Workbook

Sheet 1.Kemzeke-Zuid
B2: PARKEERONDERZOEK | D2: CARPOOLPARKINGS EN P+R PARKINGS
B3: 1 | D3: =B8 & " - "& TEXT(VLOOKUP(B3,Coordinaten!$A$2:$G$95,7,0),"dddd dd mmmm jjjj") -> Carpool parking Kemzeke-Zuid, Stekene - dinsdag 09 november 2021
B4: =VLOOKUP(B3,Coordinaten!$A$2:$G$95,6,0) -> 51.226907, 4.063425
D5: BEZETTING | Q5: OPMERKINGEN
B7: Onderzoeksgebied | D7: Datum | E7: Geregistreerd tussen | F7: Pers | G7: Vracht | H7: Motor | I7: Obstakel / overig | J7: Fout pers | K7: Fout Vracht | L7: Totaal | M7: E-wagen plaats | N7: Invalidenplaats | O7: Gestalde fietsen | U7: =F7 -> Pers | V7: Vracht | W7: Motor | X7: Obstakel / overig | Y7: Fout pers | Z7: Fout Vracht
B8: =VLOOKUP(B3,Coordinaten!$A$2:$G$95,3,0)&", "&VLOOKUP(B3,Coordinaten!$A$2:$G$95,5,0) -> Carpool parking Kemzeke-Zuid, Stekene | D8: 2021-11-09 | E8: 09:00 - 16:00u | F8: 40 | G8: 1 | H8: 0 | I8: 0 | J8: 17 | K8: 0 | L8: 58 | M8: 0 | N8: 0 | O8: 5 | Q8: 0 | S8: =D8 -> 2021-11-09 | T8: =E8 -> 09:00 - 16:00u | U8: =IF(F8=0,NA(),F8/$L8) -> 0.6896551724 | V8: =IF(G8=0,NA(),G8/$L8) -> 0.01724137931 | W8: =IF(H8=0,NA(),H8/$L8) ->  | Y8: 0.2931034483
B9: ="Nabij kruispunt: "&VLOOKUP(B3,Coordinaten!$A$2:$L$95,4,0) -> Nabij kruispunt: N49 / N403 | F9: 0.6896551724 | G9: 0.01724137931 | H9: - | I9: - | J9: 0.2931034483 | K9: - | L9: 1 | Q9: 0 | S9: =D10 -> 2021-11-09 | T9: =E10 -> 19:00 - 02:00u | U9: =IF(F10=0,NA(),F10/$L10) -> 0.6 | V9: =IF(G10=0,NA(),G10/$L10) -> 0.25 | Z9: 0.15
D10: 2021-11-09 | E10: 19:00 - 02:00u | F10: 12 | G10: 5 | H10: 0 | I10: 0 | J10: 0 | K10: 3 | L10: 20 | M10: 0 | N10: 0 | O10: 4 | Q10: 0
B11: Meting | F11: 0.6 | G11: 0.25 | H11: - | I11: - | J11: - | K11: 0.15 | L11: 1 | Q11: 0
B12: ="Meetperiode: "&TEXT(VLOOKUP(B3,Coordinaten!$A$2:$G$95,7,0),"dddd d mmmm jjjj") -> Meetperiode: dinsdag 9 november 2021
B13: Methodiek: Parkeerdrukmeting met waarnemers
B14: In opdracht van: Vlaamse overheid
B15: Uitgevoerd door: Dufec
D16: VERDELING NAAR CATEGORIE
B17: Locatie
B18: =IF(B4="","",HYPERLINK("http://www.googlemaps.com/?q="&B4,"Lat/Long: "&B4)) -> Lat/Long: 51.226907, 4.063425
P20: Legenda
Q21: Personenwagen
Q22: Vracht
Q23: Motor
Q24: Obstakel / overig
Q25: Fout personenwagen
Q26: Fout Vracht
B38: Opmerking
B39: Het onderzoek vindt plaats gedurende coronamaatregelen.
B40: Dit heeft mogelijk een effect op de resultaten.
B42: Toelichting
B43: Pers = personenwagens op daarvoor bestemde
B44: openbare plaatsen
B45: Vracht = vrachtwagens op daarvoor bestemde
B46: parkeerplaatsen (middel- en zwaar vrachtverkeer)
B47: Motor = geparkeerde motoren op openbare plaatsen
B48: Obstakel / overig = obstakels of overige voertuigen
B49: geparkeerd op openbare plaatsen
B50: Fout pers = personenwagens die fout geparkeerd staan
B51: Fout vracht = vrachtwagens die fout geparkeerd staan
B52: E-wagen = geparkeerde elektrisch voertuig bij een
B53: elektrisch oplaadpunt
B54: Invalide = personenwagens en motoren op voor
B55: invalide personen bestemde parkeerplaats
B56: Gestalde fietsen = alle gestalde fietsen op de
B57: daarvoor bestemde parkeerplaatsen

Sheet 2.Halle-Dassenveld
B2: PARKEERONDERZOEK | D2: CARPOOLPARKINGS EN P+R PARKINGS
B3: 2 | D3: =B8 & " - "& TEXT(VLOOKUP(B3,Coordinaten!$A$2:$G$95,7,0),"dddd dd mmmm jjjj") -> Carpool parking Halle-Dassenveld, Halle - dinsdag 23 november 2021
B4: =VLOOKUP(B3,Coordinaten!$A$2:$G$95,6,0) -> 50.726346, 4.217220
D5: BEZETTING | Q5: OPMERKINGEN
B7: Onderzoeksgebied | D7: Datum | E7: Geregistreerd tussen | F7: Pers | G7: Vracht | H7: Motor | I7: Obstakel / overig | J7: Fout pers | K7: Fout Vracht | L7: Totaal | M7: E-wagen plaats | N7: Invalidenplaats | O7: Gestalde fietsen | U7: =F7 -> Pers | V7: Vracht | W7: Motor | X7: Obstakel / overig | Y7: Fout pers | Z7: Fout Vracht
B8: =VLOOKUP(B3,Coordinaten!$A$2:$G$95,3,0)&", "&VLOOKUP(B3,Coordinaten!$A$2:$G$95,5,0) -> Carpool parking Halle-Dassenveld, Halle | D8: 2021-11-23 | E8: 09:00 - 16:00u | F8: 44 | G8: 0 | H8: 0 | I8: 0 | J8: 0 | K8: 10 | L8: 54 | M8: 0 | N8: 0 | O8: 0 | Q8: Vanaf 20 november nieuwe coronamaatregelen, waaronder verplicht telewerk | S8: =D8 -> 2021-11-23 | T8: =E8 -> 09:00 - 16:00u | U8: =IF(F8=0,NA(),F8/$L8) -> 0.8148148148 | V8: =IF(G8=0,NA(),G8/$L8) ->  | W8: =IF(H8=0,NA(),H8/$L8) ->  | Z8: 0.1851851852
B9: ="Nabij kruispunt: "&VLOOKUP(B3,Coordinaten!$A$2:$L$95,4,0) -> Nabij kruispunt: N7 / A8 | F9: 0.8148148148 | G9: - | H9: - | I9: - | J9: - | K9: 0.1851851852 | L9: 1 | Q9: 0 | S9: =D10 -> 2021-11-23 | T9: =E10 -> 19:00 - 02:00u | U9: =IF(F10=0,NA(),F10/$L10) -> 0.4285714286 | V9: =IF(G10=0,NA(),G10/$L10) ->  | Z9: 0.5714285714
D10: 2021-11-23 | E10: 19:00 - 02:00u | F10: 15 | G10: 0 | H10: 0 | I10: 0 | J10: 0 | K10: 20 | L10: 35 | M10: 0 | N10: 2 | O10: 0 | Q10: Vanaf 20 november nieuwe coronamaatregelen, waaronder verplicht telewerk
B11: Meting | F11: 0.4285714286 | G11: - | H11: - | I11: - | J11: - | K11: 0.5714285714 | L11: 1 | Q11: 0
B12: ="Meetperiode: "&TEXT(VLOOKUP(B3,Coordinaten!$A$2:$G$95,7,0),"dddd d mmmm jjjj") -> Meetperiode: dinsdag 23 november 2021
B13: Methodiek: Parkeerdrukmeting met waarnemers
B14: In opdracht van: Vlaamse overheid
B15: Uitgevoerd door: Dufec
D16: VERDELING NAAR CATEGORIE
B17: Locatie
B18: =IF(B4="","",HYPERLINK("http://www.googlemaps.com/?q="&B4,"Lat/Long: "&B4)) -> Lat/Long: 50.726346, 4.217220
P20: Legenda
Q21: Personenwagen
Q22: Vracht
Q23: Motor
Q24: Obstakel / overig
Q25: Fout personenwagen
Q26: Fout Vracht
B38: Opmerking
B39: Het onderzoek vindt plaats gedurende coronamaatregelen.
B40: Dit heeft mogelijk een effect op de resultaten.
B42: Toelichting
B43: Pers = personenwagens op daarvoor bestemde
B44: openbare plaatsen
B45: Vracht = vrachtwagens op daarvoor bestemde
B46: parkeerplaatsen (middel- en zwaar vrachtverkeer)
B47: Motor = geparkeerde motoren op openbare plaatsen
B48: Obstakel / overig = obstakels of overige voertuigen
B49: geparkeerd op openbare plaatsen
B50: Fout pers = personenwagens die fout geparkeerd staan
B51: Fout vracht = vrachtwagens die fout geparkeerd staan
B52: E-wagen = geparkeerde elektrisch voertuig bij een
B53: elektrisch oplaadpunt
B54: Invalide = personenwagens en motoren op voor
B55: invalide personen bestemde parkeerplaats
B56: Gestalde fietsen = alle gestalde fietsen op de
B57: daarvoor bestemde parkeerplaatsen

Sheet 3.Winksele
B2: PARKEERONDERZOEK | D2: CARPOOLPARKINGS EN P+R PARKINGS
B3: 3 | D3: =B8 & " - "& TEXT(VLOOKUP(B3,Coordinaten!$A$2:$G$95,7,0),"dddd dd mmmm jjjj") -> Carpool parking Winksele, Herent - dinsdag 16 november 2021
B4: =VLOOKUP(B3,Coordinaten!$A$2:$G$95,6,0) -> 50.885324, 4.672071
D5: BEZETTING | Q5: OPMERKINGEN
B7: Onderzoeksgebied | D7: Datum | E7: Geregistreerd tussen | F7: Pers | G7: Vracht | H7: Motor | I7: Obstakel / overig | J7: Fout pers | K7: Fout Vracht | L7: Totaal | M7: E-wagen plaats | N7: Invalidenplaats | O7: Gestalde fietsen | U7: =F7 -> Pers | V7: Vracht | W7: Motor | X7: Obstakel / overig | Y7: Fout pers | Z7: Fout Vracht
B8: =VLOOKUP(B3,Coordinaten!$A$2:$G$95,3,0)&", "&VLOOKUP(B3,Coordinaten!$A$2:$G$95,5,0) -> Carpool parking Winksele, Herent | D8: 2021-11-16 | E8: 09:00 - 16:00u | F8: 11 | G8: 0 | H8: 0 | I8: 0 | J8: 0 | K8: 0 | L8: 11 | M8: 0 | N8: 0 | O8: 2 | Q8: 0 | S8: =D8 -> 2021-11-16 | T8: =E8 -> 09:00 - 16:00u | U8: =IF(F8=0,NA(),F8/$L8) -> 1 | V8: =IF(G8=0,NA(),G8/$L8) ->  | W8: =IF(H8=0,NA(),H8/$L8) -> 
B9: ="Nabij kruispunt: "&VLOOKUP(B3,Coordinaten!$A$2:$L$95,4,0) -> Nabij kruispunt: Stuiverstraat / N2 | F9: 1 | G9: - | H9: - | I9: - | J9: - | K9: - | L9: 1 | Q9: 0 | S9: =D10 -> 2021-11-16 | T9: =E10 -> 19:00 - 02:00u | U9: =IF(F10=0,NA(),F10/$L10) -> 1 | V9: =IF(G10=0,NA(),G10/$L10) -> 
D10: 2021-11-16 | E10: 19:00 - 02:00u | F10: 4 | G10: 0 | H10: 0 | I10: 0 | J10: 0 | K10: 0 | L10: 4 | M10: 0 | N10: 0 | O10: 2 | Q10: 0
B11: Meting | F11: 1 | G11: - | H11: - | I11: - | J11: - | K11: - | L11: 1 | Q11: 0
B12: ="Meetperiode: "&TEXT(VLOOKUP(B3,Coordinaten!$A$2:$G$95,7,0),"dddd d mmmm jjjj") -> Meetperiode: dinsdag 16 november 2021
B13: Methodiek: Parkeerdrukmeting met waarnemers
B14: In opdracht van: Vlaamse overheid
B15: Uitgevoerd door: Dufec
D16: VERDELING NAAR CATEGORIE
B17: Locatie
B18: =IF(B4="","",HYPERLINK("http://www.googlemaps.com/?q="&B4,"Lat/Long: "&B4)) -> Lat/Long: 50.885324, 4.672071
P20: Legenda
Q21: Personenwagen
Q22: Vracht
Q23: Motor
Q24: Obstakel / overig
Q25: Fout personenwagen
Q26: Fout Vracht
B38: Opmerking
B39: Het onderzoek vindt plaats gedurende coronamaatregelen.
B40: Dit heeft mogelijk een effect op de resultaten.
B42: Toelichting
B43: Pers = personenwagens op daarvoor bestemde
B44: openbare plaatsen
B45: Vracht = vrachtwagens op daarvoor bestemde
B46: parkeerplaatsen (middel- en zwaar vrachtverkeer)
B47: Motor = geparkeerde motoren op openbare plaatsen
B48: Obstakel / overig = obstakels of overige voertuigen
B49: geparkeerd op openbare plaatsen
B50: Fout pers = personenwagens die fout geparkeerd staan
B51: Fout vracht = vrachtwagens die fout geparkeerd staan
B52: E-wagen = geparkeerde elektrisch voertuig bij een
B53: elektrisch oplaadpunt
B54: Invalide = personenwagens en motoren op voor
B55: invalide personen bestemde parkeerplaats
B56: Gestalde fietsen = alle gestalde fietsen op de
B57: daarvoor bestemde parkeerplaatsen

Sheet 4.Herent
B2: PARKEERONDERZOEK | D2: CARPOOLPARKINGS EN P+R PARKINGS
B3: 4 | D3: =B8 & " - "& TEXT(VLOOKUP(B3,Coordinaten!$A$2:$G$95,7,0),"dddd dd mmmm jjjj") -> Carpool parking Herent, Leuven - dinsdag 16 november 2021
B4: =VLOOKUP(B3,Coordinaten!$A$2:$G$95,6,0) -> 50.893869, 4.689409
D5: BEZETTING | Q5: OPMERKINGEN
B7: Onderzoeksgebied | D7: Datum | E7: Geregistreerd tussen | F7: Pers | G7: Vracht | H7: Motor | I7: Obstakel / overig | J7: Fout pers | K7: Fout Vracht | L7: Totaal | M7: E-wagen plaats | N7: Invalidenplaats | O7: Gestalde fietsen | U7: =F7 -> Pers | V7: Vracht | W7: Motor | X7: Obstakel / overig | Y7: Fout pers | Z7: Fout Vracht
B8: =VLOOKUP(B3,Coordinaten!$A$2:$G$95,3,0)&", "&VLOOKUP(B3,Coordinaten!$A$2:$G$95,5,0) -> Carpool parking Herent, Leuven | D8: 2021-11-16 | E8: 09:00 - 16:00u | F8: 45 | G8: 0 | H8: 0 | I8: 1 | J8: 0 | K8: 0 | L8: 46 | M8: 0 | N8: 0 | O8: 14 | Q8: Obstakel: aanhanger | S8: =D8 -> 2021-11-16 | T8: =E8 -> 09:00 - 16:00u | U8: =IF(F8=0,NA(),F8/$L8) -> 0.9782608696 | V8: =IF(G8=0,NA(),G8/$L8) ->  | W8: =IF(H8=0,NA(),H8/$L8) ->  | X8: 0.02173913043
B9: ="Nabij kruispunt: "&VLOOKUP(B3,Coordinaten!$A$2:$L$95,4,0) -> Nabij kruispunt: N26 / A2 | F9: 0.9782608696 | G9: - | H9: - | I9: 0.02173913043 | J9: - | K9: - | L9: 1 | Q9: 0 | S9: =D10 -> 2021-11-16 | T9: =E10 -> 19:00 - 02:00u | U9: =IF(F10=0,NA(),F10/$L10) -> 0.9591836735 | V9: =IF(G10=0,NA(),G10/$L10) ->  | Z9: 0.04081632653
D10: 2021-11-16 | E10: 19:00 - 02:00u | F10: 47 | G10: 0 | H10: 0 | I10: 0 | J10: 0 | K10: 2 | L10: 49 | M10: 0 | N10: 0 | O10: 0 | Q10: 0
B11: Meting | F11: 0.9591836735 | G11: - | H11: - | I11: - | J11: - | K11: 0.04081632653 | L11: 1 | Q11: 0
B12: ="Meetperiode: "&TEXT(VLOOKUP(B3,Coordinaten!$A$2:$G$95,7,0),"dddd d mmmm jjjj") -> Meetperiode: dinsdag 16 november 2021
B13: Methodiek: Parkeerdrukmeting met waarnemers
B14: In opdracht van: Vlaamse overheid
B15: Uitgevoerd door: Dufec
D16: VERDELING NAAR CATEGORIE
B17: Locatie
B18: =IF(B4="","",HYPERLINK("http://www.googlemaps.com/?q="&B4,"Lat/Long: "&B4)) -> Lat/Long: 50.893869, 4.689409
P20: Legenda
Q21: Personenwagen
Q22: Vracht
Q23: Motor
Q24: Obstakel / overig
Q25: Fout personenwagen
Q26: Fout Vracht
B38: Opmerking
B39: Het onderzoek vindt plaats gedurende coronamaatregelen.
B40: Dit heeft mogelijk een effect op de resultaten.
B42: Toelichting
B43: Pers = personenwagens op daarvoor bestemde
B44: openbare plaatsen
B45: Vracht = vrachtwagens op daarvoor bestemde
B46: parkeerplaatsen (middel- en zwaar vrachtverkeer)
B47: Motor = geparkeerde motoren op openbare plaatsen
B48: Obstakel / overig = obstakels of overige voertuigen
B49: geparkeerd op openbare plaatsen
B50: Fout pers = personenwagens die fout geparkeerd staan
B51: Fout vracht = vrachtwagens die fout geparkeerd staan
B52: E-wagen = geparkeerde elektrisch voertuig bij een
B53: elektrisch oplaadpunt
B54: Invalide = personenwagens en motoren op voor
B55: invalide personen bestemde parkeerplaats
B56: Gestalde fietsen = alle gestalde fietsen op de
B57: daarvoor bestemde parkeerplaatsen

Sheet 5.Bekkevoort
B2: PARKEERONDERZOEK | D2: CARPOOLPARKINGS EN P+R PARKINGS
B3: 5 | D3: =B8 & " - "& TEXT(VLOOKUP(B3,Coordinaten!$A$2:$G$95,7,0),"dddd dd mmmm jjjj") -> Carpool parking Bekkevoort, Bekkevoort - dinsdag 16 november 2021
B4: =VLOOKUP(B3,Coordinaten!$A$2:$G$95,6,0) -> 50.952219, 4.998683
D5: BEZETTING | Q5: OPMERKINGEN
B7: Onderzoeksgebied | D7: Datum | E7: Geregistreerd tussen | F7: Pers | G7: Vracht | H7: Motor | I7: Obstakel / overig | J7: Fout pers | K7: Fout Vracht | L7: Totaal | M7: E-wagen plaats | N7: Invalidenplaats | O7: Gestalde fietsen | U7: =F7 -> Pers | V7: Vracht | W7: Motor | X7: Obstakel / overig | Y7: Fout pers | Z7: Fout Vracht
B8: =VLOOKUP(B3,Coordinaten!$A$2:$G$95,3,0)&", "&VLOOKUP(B3,Coordinaten!$A$2:$G$95,5,0) -> Carpool parking Bekkevoort, Bekkevoort | D8: 2021-11-16 | E8: 09:00 - 16:00u | F8: 29 | G8: 0 | H8: 0 | I8: 0 | J8: 0 | K8: 0 | L8: 29 | M8: 0 | N8: 0 | O8: 1 | Q8: 0 | S8: =D8 -> 2021-11-16 | T8: =E8 -> 09:00 - 16:00u | U8: =IF(F8=0,NA(),F8/$L8) -> 1 | V8: =IF(G8=0,NA(),G8/$L8) ->  | W8: =IF(H8=0,NA(),H8/$L8) -> 
B9: ="Nabij kruispunt: "&VLOOKUP(B3,Coordinaten!$A$2:$L$95,4,0) -> Nabij kruispunt: N2 / A2 | F9: 1 | G9: - | H9: - | I9: - | J9: - | K9: - | L9: 1 | Q9: 0 | S9: =D10 -> 2021-11-16 | T9: =E10 -> 19:00 - 02:00u | U9: =IF(F10=0,NA(),F10/$L10) -> 1 | V9: =IF(G10=0,NA(),G10/$L10) -> 
D10: 2021-11-16 | E10: 19:00 - 02:00u | F10: 11 | G10: 0 | H10: 0 | I10: 0 | J10: 0 | K10: 0 | L10: 11 | M10: 0 | N10: 0 | O10: 0 | Q10: 0
B11: Meting | F11: 1 | G11: - | H11: - | I11: - | J11: - | K11: - | L11: 1 | Q11: 0
B12: ="Meetperiode: "&TEXT(VLOOKUP(B3,Coordinaten!$A$2:$G$95,7,0),"dddd d mmmm jjjj") -> Meetperiode: dinsdag 16 november 2021
B13: Methodiek: Parkeerdrukmeting met waarnemers
B14: In opdracht van: Vlaamse overheid
B15: Uitgevoerd door: Dufec
D16: VERDELING NAAR CATEGORIE
B17: Locatie
B18: =IF(B4="","",HYPERLINK("http://www.googlemaps.com/?q="&B4,"Lat/Long: "&B4)) -> Lat/Long: 50.952219, 4.998683
P20: Legenda
Q21: Personenwagen
Q22: Vracht
Q23: Motor
Q24: Obstakel / overig
Q25: Fout personenwagen
Q26: Fout Vracht
B38: Opmerking
B39: Het onderzoek vindt plaats gedurende coronamaatregelen.
B40: Dit heeft mogelijk een effect op de resultaten.
B42: Toelichting
B43: Pers = personenwagens op daarvoor bestemde
B44: openbare plaatsen
B45: Vracht = vrachtwagens op daarvoor bestemde
B46: parkeerplaatsen (middel- en zwaar vrachtverkeer)
B47: Motor = geparkeerde motoren op openbare plaatsen
B48: Obstakel / overig = obstakels of overige voertuigen
B49: geparkeerd op openbare plaatsen
B50: Fout pers = personenwagens die fout geparkeerd staan
B51: Fout vracht = vrachtwagens die fout geparkeerd staan
B52: E-wagen = geparkeerde elektrisch voertuig bij een
B53: elektrisch oplaadpunt
B54: Invalide = personenwagens en motoren op voor
B55: invalide personen bestemde parkeerplaats
B56: Gestalde fietsen = alle gestalde fietsen op de
B57: daarvoor bestemde parkeerplaatsen

Sheet 6.Overijse
B2: PARKEERONDERZOEK | D2: CARPOOLPARKINGS EN P+R PARKINGS
B3: 6 | D3: =B8 & " - "& TEXT(VLOOKUP(B3,Coordinaten!$A$2:$G$95,7,0),"dddd dd mmmm jjjj") -> Carpool parking Overijse, Overijse - donderdag 18 november 2021
B4: =VLOOKUP(B3,Coordinaten!$A$2:$G$95,6,0) -> 50.755140, 4.526412
D5: BEZETTING | Q5: OPMERKINGEN
B7: Onderzoeksgebied | D7: Datum | E7: Geregistreerd tussen | F7: Pers | G7: Vracht | H7: Motor | I7: Obstakel / overig | J7: Fout pers | K7: Fout Vracht | L7: Totaal | M7: E-wagen plaats | N7: Invalidenplaats | O7: Gestalde fietsen | U7: =F7 -> Pers | V7: Vracht | W7: Motor | X7: Obstakel / overig | Y7: Fout pers | Z7: Fout Vracht
B8: =VLOOKUP(B3,Coordinaten!$A$2:$G$95,3,0)&", "&VLOOKUP(B3,Coordinaten!$A$2:$G$95,5,0) -> Carpool parking Overijse, Overijse | D8: 2021-11-18 | E8: 09:00 - 16:00u | F8: 20 | G8: 0 | H8: 0 | I8: 0 | J8: 1 | K8: 0 | L8: 21 | M8: 0 | N8: 0 | O8: 0 | Q8: 0 | S8: =D8 -> 2021-11-18 | T8: =E8 -> 09:00 - 16:00u | U8: =IF(F8=0,NA(),F8/$L8) -> 0.9523809524 | V8: =IF(G8=0,NA(),G8/$L8) ->  | W8: =IF(H8=0,NA(),H8/$L8) ->  | Y8: 0.04761904762
B9: ="Nabij kruispunt: "&VLOOKUP(B3,Coordinaten!$A$2:$L$95,4,0) -> Nabij kruispunt: Kerkeweg / N253 | F9: 0.9523809524 | G9: - | H9: - | I9: - | J9: 0.04761904762 | K9: - | L9: 1 | Q9: 0 | S9: =D10 -> 2021-11-18 | T9: =E10 -> 19:00 - 02:00u | U9: =IF(F10=0,NA(),F10/$L10) -> 0.8888888889 | V9: =IF(G10=0,NA(),G10/$L10) ->  | Y9: 0.1111111111
D10: 2021-11-18 | E10: 19:00 - 02:00u | F10: 8 | G10: 0 | H10: 0 | I10: 0 | J10: 1 | K10: 0 | L10: 9 | M10: 0 | N10: 0 | O10: 0 | Q10: 0
B11: Meting | F11: 0.8888888889 | G11: - | H11: - | I11: - | J11: 0.1111111111 | K11: - | L11: 1 | Q11: 0
B12: ="Meetperiode: "&TEXT(VLOOKUP(B3,Coordinaten!$A$2:$G$95,7,0),"dddd d mmmm jjjj") -> Meetperiode: donderdag 18 november 2021
B13: Methodiek: Parkeerdrukmeting met waarnemers
B14: In opdracht van: Vlaamse overheid
B15: Uitgevoerd door: Dufec
D16: VERDELING NAAR CATEGORIE
B17: Locatie
B18: =IF(B4="","",HYPERLINK("http://www.googlemaps.com/?q="&B4,"Lat/Long: "&B4)) -> Lat/Long: 50.755140, 4.526412
P20: Legenda
Q21: Personenwagen
Q22: Vracht
Q23: Motor
Q24: Obstakel / overig
Q25: Fout personenwagen
Q26: Fout Vracht
B38: Opmerking
B39: Het onderzoek vindt plaats gedurende coronamaatregelen.
B40: Dit heeft mogelijk een effect op de resultaten.
B42: Toelichting
B43: Pers = personenwagens op daarvoor bestemde
B44: openbare plaatsen
B45: Vracht = vrachtwagens op daarvoor bestemde
B46: parkeerplaatsen (middel- en zwaar vrachtverkeer)
B47: Motor = geparkeerde motoren op openbare plaatsen
B48: Obstakel / overig = obstakels of overige voertuigen
B49: geparkeerd op openbare plaatsen
B50: Fout pers = personenwagens die fout geparkeerd staan
B51: Fout vracht = vrachtwagens die fout geparkeerd staan
B52: E-wagen = geparkeerde elektrisch voertuig bij een
B53: elektrisch oplaadpunt
B54: Invalide = personenwagens en motoren op voor
B55: invalide personen bestemde parkeerplaats
B56: Gestalde fietsen = alle gestalde fietsen op de
B57: daarvoor bestemde parkeerplaatsen

Sheet 7.St. Michiels
B2: PARKEERONDERZOEK | D2: CARPOOLPARKINGS EN P+R PARKINGS
B3: 7 | D3: =B8 & " - "& TEXT(VLOOKUP(B3,Coordinaten!$A$2:$G$95,7,0),"dddd dd mmmm jjjj") -> Carpool parking St. Michiels, Brugge - dinsdag 09 november 2021
B4: =VLOOKUP(B3,Coordinaten!$A$2:$G$95,6,0) -> 51.194190, 3.197624
D5: BEZETTING | Q5: OPMERKINGEN
B7: Onderzoeksgebied | D7: Datum | E7: Geregistreerd tussen | F7: Pers | G7: Vracht | H7: Motor | I7: Obstakel / overig | J7: Fout pers | K7: Fout Vracht | L7: Totaal | M7: E-wagen plaats | N7: Invalidenplaats | O7: Gestalde fietsen | U7: =F7 -> Pers | V7: Vracht | W7: Motor | X7: Obstakel / overig | Y7: Fout pers | Z7: Fout Vracht
B8: =VLOOKUP(B3,Coordinaten!$A$2:$G$95,3,0)&", "&VLOOKUP(B3,Coordinaten!$A$2:$G$95,5,0) -> Carpool parking St. Michiels, Brugge | D8: 2021-11-09 | E8: 09:00 - 16:00u | F8: 44 | G8: 0 | H8: 0 | I8: 0 | J8: 0 | K8: 0 | L8: 44 | M8: 1 | N8: 0 | O8: 1 | Q8: 0 | S8: =D8 -> 2021-11-09 | T8: =E8 -> 09:00 - 16:00u | U8: =IF(F8=0,NA(),F8/$L8) -> 1 | V8: =IF(G8=0,NA(),G8/$L8) ->  | W8: =IF(H8=0,NA(),H8/$L8) -> 
B9: ="Nabij kruispunt: "&VLOOKUP(B3,Coordinaten!$A$2:$L$95,4,0) -> Nabij kruispunt: N31 / N32 | F9: 1 | G9: - | H9: - | I9: - | J9: - | K9: - | L9: 1 | Q9: 0 | S9: =D10 -> 2021-11-09 | T9: =E10 -> 19:00 - 02:00u | U9: =IF(F10=0,NA(),F10/$L10) -> 1 | V9: =IF(G10=0,NA(),G10/$L10) -> 
D10: 2021-11-09 | E10: 19:00 - 02:00u | F10: 5 | G10: 0 | H10: 0 | I10: 0 | J10: 0 | K10: 0 | L10: 5 | M10: 0 | N10: 0 | O10: 0 | Q10: 0
B11: Meting | F11: 1 | G11: - | H11: - | I11: - | J11: - | K11: - | L11: 1 | Q11: 0
B12: ="Meetperiode: "&TEXT(VLOOKUP(B3,Coordinaten!$A$2:$G$95,7,0),"dddd d mmmm jjjj") -> Meetperiode: dinsdag 9 november 2021
B13: Methodiek: Parkeerdrukmeting met waarnemers
B14: In opdracht van: Vlaamse overheid
B15: Uitgevoerd door: Dufec
D16: VERDELING NAAR CATEGORIE
B17: Locatie
B18: =IF(B4="","",HYPERLINK("http://www.googlemaps.com/?q="&B4,"Lat/Long: "&B4)) -> Lat/Long: 51.194190, 3.197624
P20: Legenda
Q21: Personenwagen
Q22: Vracht
Q23: Motor
Q24: Obstakel / overig
Q25: Fout personenwagen
Q26: Fout Vracht
B38: Opmerking
B39: Het onderzoek vindt plaats gedurende coronamaatregelen.
B40: Dit heeft mogelijk een effect op de resultaten.
B42: Toelichting
B43: Pers = personenwagens op daarvoor bestemde
B44: openbare plaatsen
B45: Vracht = vrachtwagens op daarvoor bestemde
B46: parkeerplaatsen (middel- en zwaar vrachtverkeer)
B47: Motor = geparkeerde motoren op openbare plaatsen
B48: Obstakel / overig = obstakels of overige voertuigen
B49: geparkeerd op openbare plaatsen
B50: Fout pers = personenwagens die fout geparkeerd staan
B51: Fout vracht = vrachtwagens die fout geparkeerd staan
B52: E-wagen = geparkeerde elektrisch voertuig bij een
B53: elektrisch oplaadpunt
B54: Invalide = personenwagens en motoren op voor
B55: invalide personen bestemde parkeerplaats
B56: Gestalde fietsen = alle gestalde fietsen op de
B57: daarvoor bestemde parkeerplaatsen

Sheet 8.Izegem
B2: PARKEERONDERZOEK | D2: CARPOOLPARKINGS EN P+R PARKINGS
B3: 8 | D3: =B8 & " - "& TEXT(VLOOKUP(B3,Coordinaten!$A$2:$G$95,7,0),"dddd dd mmmm jjjj") -> Carpool parking Izegem, Roeselare - dinsdag 23 november 2021
B4: =VLOOKUP(B3,Coordinaten!$A$2:$G$95,6,0) -> 50.940676, 3.160323
D5: BEZETTING | Q5: OPMERKINGEN
B7: Onderzoeksgebied | D7: Datum | E7: Geregistreerd tussen | F7: Pers | G7: Vracht | H7: Motor | I7: Obstakel / overig | J7: Fout pers | K7: Fout Vracht | L7: Totaal | M7: E-wagen plaats | N7: Invalidenplaats | O7: Gestalde fietsen | U7: =F7 -> Pers | V7: Vracht | W7: Motor | X7: Obstakel / overig | Y7: Fout pers | Z7: Fout Vracht
B8: =VLOOKUP(B3,Coordinaten!$A$2:$G$95,3,0)&", "&VLOOKUP(B3,Coordinaten!$A$2:$G$95,5,0) -> Carpool parking Izegem, Roeselare | D8: 2021-11-23 | E8: 09:00 - 16:00u | F8: 5 | G8: 0 | H8: 0 | I8: 0 | J8: 0 | K8: 0 | L8: 5 | M8: 0 | N8: 0 | O8: 0 | Q8: Vanaf 20 november nieuwe coronamaatregelen, waaronder verplicht telewerk | S8: =D8 -> 2021-11-23 | T8: =E8 -> 09:00 - 16:00u | U8: =IF(F8=0,NA(),F8/$L8) -> 1 | V8: =IF(G8=0,NA(),G8/$L8) ->  | W8: =IF(H8=0,NA(),H8/$L8) -> 
B9: ="Nabij kruispunt: "&VLOOKUP(B3,Coordinaten!$A$2:$L$95,4,0) -> Nabij kruispunt: N382c / Schaapbruggestraat | F9: 1 | G9: - | H9: - | I9: - | J9: - | K9: - | L9: 1 | Q9: 0 | S9: =D10 -> 2021-11-23 | T9: =E10 -> 19:00 - 02:00u | U9: =IF(F10=0,NA(),F10/$L10) ->  | V9: =IF(G10=0,NA(),G10/$L10) -> 
D10: 2021-11-23 | E10: 19:00 - 02:00u | F10: 0 | G10: 0 | H10: 0 | I10: 0 | J10: 0 | K10: 0 | L10: 0 | M10: 0 | N10: 0 | O10: 0 | Q10: Vanaf 20 november nieuwe coronamaatregelen, waaronder verplicht telewerk
B11: Meting | F11: - | G11: - | H11: - | I11: - | J11: - | K11: - | L11: - | Q11: Slagboom staat omlaag
B12: ="Meetperiode: "&TEXT(VLOOKUP(B3,Coordinaten!$A$2:$G$95,7,0),"dddd dd mmmm jjjj") -> Meetperiode: dinsdag 23 november 2021
B13: Methodiek: Parkeerdrukmeting met waarnemers
B14: In opdracht van: Vlaamse overheid
B15: Uitgevoerd door: Dufec
D16: VERDELING NAAR CATEGORIE
B17: Locatie
B18: =IF(B4="","",HYPERLINK("http://www.googlemaps.com/?q="&B4,"Lat/Long: "&B4)) -> Lat/Long: 50.940676, 3.160323
P20: Legenda
Q21: Personenwagen
Q22: Vracht
Q23: Motor
Q24: Obstakel / overig
Q25: Fout personenwagen
Q26: Fout Vracht
B38: Opmerking
B39: Het onderzoek vindt plaats gedurende coronamaatregelen.
B40: Dit heeft mogelijk een effect op de resultaten.
B42: Toelichting
B43: Pers = personenwagens op daarvoor bestemde
B44: openbare plaatsen
B45: Vracht = vrachtwagens op daarvoor bestemde
B46: parkeerplaatsen (middel- en zwaar vrachtverkeer)
B47: Motor = geparkeerde motoren op openbare plaatsen
B48: Obstakel / overig = obstakels of overige voertuigen
B49: geparkeerd op openbare plaatsen
B50: Fout pers = personenwagens die fout geparkeerd staan
B51: Fout vracht = vrachtwagens die fout geparkeerd staan
B52: E-wagen = geparkeerde elektrisch voertuig bij een
B53: elektrisch oplaadpunt
B54: Invalide = personenwagens en motoren op voor
B55: invalide personen bestemde parkeerplaats
B56: Gestalde fietsen = alle gestalde fietsen op de
B57: daarvoor bestemde parkeerplaatsen

Sheet 9.Torhout
B2: PARKEERONDERZOEK | D2: CARPOOLPARKINGS EN P+R PARKINGS
B3: 9 | D3: =B8 & " - "& TEXT(VLOOKUP(B3,Coordinaten!$A$2:$G$95,7,0),"dddd dd mmmm jjjj") -> Carpool parking Torhout, Torhout - dinsdag 23 november 2021
B4: =VLOOKUP(B3,Coordinaten!$A$2:$G$95,6,0) -> 51.077896, 3.118743
D5: BEZETTING | Q5: OPMERKINGEN
B7: Onderzoeksgebied | D7: Datum | E7: Geregistreerd tussen | F7: Pers | G7: Vracht | H7: Motor | I7: Obstakel / overig | J7: Fout pers | K7: Fout Vracht | L7: Totaal | M7: E-wagen plaats | N7: Invalidenplaats | O7: Gestalde fietsen | U7: =F7 -> Pers | V7: Vracht | W7: Motor | X7: Obstakel / overig | Y7: Fout pers | Z7: Fout Vracht
B8: =VLOOKUP(B3,Coordinaten!$A$2:$G$95,3,0)&", "&VLOOKUP(B3,Coordinaten!$A$2:$G$95,5,0) -> Carpool parking Torhout, Torhout | D8: 2021-11-23 | E8: 09:00 - 16:00u | F8: 10 | G8: 0 | H8: 0 | I8: 1 | J8: 0 | K8: 0 | L8: 11 | M8: 0 | N8: 0 | O8: 2 | Q8: Vanaf 20 november nieuwe coronamaatregelen, waaronder verplicht telewerk | S8: =D8 -> 2021-11-23 | T8: =E8 -> 09:00 - 16:00u | U8: =IF(F8=0,NA(),F8/$L8) -> 0.9090909091 | V8: =IF(G8=0,NA(),G8/$L8) ->  | W8: =IF(H8=0,NA(),H8/$L8) ->  | X8: 0.09090909091
B9: ="Nabij kruispunt: "&VLOOKUP(B3,Coordinaten!$A$2:$L$95,4,0) -> Nabij kruispunt: R34 / Keibergstraat | F9: 0.9090909091 | G9: - | H9: - | I9: 0.09090909091 | J9: - | K9: - | L9: 1 | Q9: Overig: Tractor op gras | S9: =D10 -> 2021-11-23 | T9: =E10 -> 19:00 - 02:00u | U9: =IF(F10=0,NA(),F10/$L10) -> 0.75 | V9: =IF(G10=0,NA(),G10/$L10) ->  | X9: 0.125 | Y9: 0.125
D10: 2021-11-23 | E10: 19:00 - 02:00u | F10: 6 | G10: 0 | H10: 0 | I10: 1 | J10: 1 | K10: 0 | L10: 8 | M10: 0 | N10: 0 | O10: 0 | Q10: Vanaf 20 november nieuwe coronamaatregelen, waaronder verplicht telewerk
B11: Meting | F11: 0.75 | G11: - | H11: - | I11: 0.125 | J11: 0.125 | K11: - | L11: 1 | Q11: Overig: Tractor op gras
B12: ="Meetperiode: "&TEXT(VLOOKUP(B3,Coordinaten!$A$2:$G$95,7,0),"dddd dd mmmm jjjj") -> Meetperiode: dinsdag 23 november 2021
B13: Methodiek: Parkeerdrukmeting met waarnemers
B14: In opdracht van: Vlaamse overheid
B15: Uitgevoerd door: Dufec
D16: VERDELING NAAR CATEGORIE
B17: Locatie
B18: =IF(B4="","",HYPERLINK("http://www.googlemaps.com/?q="&B4,"Lat/Long: "&B4)) -> Lat/Long: 51.077896, 3.118743
P20: Legenda
Q21: Personenwagen
Q22: Vracht
Q23: Motor
Q24: Obstakel / overig
Q25: Fout personenwagen
Q26: Fout Vracht
B38: Opmerking
B39: Het onderzoek vindt plaats gedurende coronamaatregelen.
B40: Dit heeft mogelijk een effect op de resultaten.
B42: Toelichting
B43: Pers = personenwagens op daarvoor bestemde
B44: openbare plaatsen
B45: Vracht = vrachtwagens op daarvoor bestemde
B46: parkeerplaatsen (middel- en zwaar vrachtverkeer)
B47: Motor = geparkeerde motoren op openbare plaatsen
B48: Obstakel / overig = obstakels of overige voertuigen
B49: geparkeerd op openbare plaatsen
B50: Fout pers = personenwagens die fout geparkeerd staan
B51: Fout vracht = vrachtwagens die fout geparkeerd staan
B52: E-wagen = geparkeerde elektrisch voertuig bij een
B53: elektrisch oplaadpunt
B54: Invalide = personenwagens en motoren op voor
B55: invalide personen bestemde parkeerplaats
B56: Gestalde fietsen = alle gestalde fietsen op de
B57: daarvoor bestemde parkeerplaatsen

Sheet 10.Houthalen
B2: PARKEERONDERZOEK | D2: CARPOOLPARKINGS EN P+R PARKINGS
B3: 10 | D3: =B8 & " - "& TEXT(VLOOKUP(B3,Coordinaten!$A$2:$G$95,7,0),"dddd dd mmmm jjjj") -> Carpool parking Houthalen, Houthalen-Helchteren - dinsdag 16 november 2021
B4: =VLOOKUP(B3,Coordinaten!$A$2:$G$95,6,0) -> 51.015552, 5.371400
D5: BEZETTING | Q5: OPMERKINGEN
B7: Onderzoeksgebied | D7: Datum | E7: Geregistreerd tussen | F7: Pers | G7: Vracht | H7: Motor | I7: Obstakel / overig | J7: Fout pers | K7: Fout Vracht | L7: Totaal | M7: E-wagen plaats | N7: Invalidenplaats | O7: Gestalde fietsen | U7: =F7 -> Pers | V7: Vracht | W7: Motor | X7: Obstakel / overig | Y7: Fout pers | Z7: Fout Vracht
B8: =VLOOKUP(B3,Coordinaten!$A$2:$G$95,3,0)&", "&VLOOKUP(B3,Coordinaten!$A$2:$G$95,5,0) -> Carpool parking Houthalen, Houthalen-Helchteren | D8: 2021-11-16 | E8: 09:00 - 16:00u | F8: 80 | G8: 0 | H8: 0 | I8: 0 | J8: 0 | K8: 0 | L8: 80 | M8: 0 | N8: 0 | O8: 2 | Q8: 0 | S8: =D8 -> 2021-11-16 | T8: =E8 -> 09:00 - 16:00u | U8: =IF(F8=0,NA(),F8/$L8) -> 1 | V8: =IF(G8=0,NA(),G8/$L8) ->  | W8: =IF(H8=0,NA(),H8/$L8) -> 
B9: ="Nabij kruispunt: "&VLOOKUP(B3,Coordinaten!$A$2:$L$95,4,0) -> Nabij kruispunt: N715 / A2 | F9: 1 | G9: - | H9: - | I9: - | J9: - | K9: - | L9: 1 | Q9: 0 | S9: =D10 -> 2021-11-16 | T9: =E10 -> 19:00 - 02:00u | U9: =IF(F10=0,NA(),F10/$L10) -> 1 | V9: =IF(G10=0,NA(),G10/$L10) -> 
D10: 2021-11-16 | E10: 19:00 - 02:00u | F10: 30 | G10: 0 | H10: 0 | I10: 0 | J10: 0 | K10: 0 | L10: 30 | M10: 0 | N10: 0 | O10: 0 | Q10: 0
B11: Meting | F11: 1 | G11: - | H11: - | I11: - | J11: - | K11: - | L11: 1 | Q11: 0
B12: ="Meetperiode: "&TEXT(VLOOKUP(B3,Coordinaten!$A$2:$G$95,7,0),"dddd dd mmmm jjjj") -> Meetperiode: dinsdag 16 november 2021
B13: Methodiek: Parkeerdrukmeting met waarnemers
B14: In opdracht van: Vlaamse overheid
B15: Uitgevoerd door: Dufec
D16: VERDELING NAAR CATEGORIE
B17: Locatie
B18: =IF(B4="","",HYPERLINK("http://www.googlemaps.com/?q="&B4,"Lat/Long: "&B4)) -> Lat/Long: 51.015552, 5.371400
P20: Legenda
Q21: Personenwagen
Q22: Vracht
Q23: Motor
Q24: Obstakel / overig
Q25: Fout personenwagen
Q26: Fout Vracht
B38: Opmerking
B39: Het onderzoek vindt plaats gedurende coronamaatregelen.
B40: Dit heeft mogelijk een effect op de resultaten.
B42: Toelichting
B43: Pers = personenwagens op daarvoor bestemde
B44: openbare plaatsen
B45: Vracht = vrachtwagens op daarvoor bestemde
B46: parkeerplaatsen (middel- en zwaar vrachtverkeer)
B47: Motor = geparkeerde motoren op openbare plaatsen
B48: Obstakel / overig = obstakels of overige voertuigen
B49: geparkeerd op openbare plaatsen
B50: Fout pers = personenwagens die fout geparkeerd staan
B51: Fout vracht = vrachtwagens die fout geparkeerd staan
B52: E-wagen = geparkeerde elektrisch voertuig bij een
B53: elektrisch oplaadpunt
B54: Invalide = personenwagens en motoren op voor
B55: invalide personen bestemde parkeerplaats
B56: Gestalde fietsen = alle gestalde fietsen op de
B57: daarvoor bestemde parkeerplaatsen

Sheet 11.Diepenbeek
B2: PARKEERONDERZOEK | D2: CARPOOLPARKINGS EN P+R PARKINGS
B3: 11 | D3: =B8 & " - "& TEXT(VLOOKUP(B3,Coordinaten!$A$2:$G$95,7,0),"dddd dd mmmm jjjj") -> Carpool parking Diepenbeek, Diepenbeek - dinsdag 16 november 2021
B4: =VLOOKUP(B3,Coordinaten!$A$2:$G$95,6,0) -> 50.894087, 5.417912
D5: BEZETTING | Q5: OPMERKINGEN
B7: Onderzoeksgebied | D7: Datum | E7: Geregistreerd tussen | F7: Pers | G7: Vracht | H7: Motor | I7: Obstakel / overig | J7: Fout pers | K7: Fout Vracht | L7: Totaal | M7: E-wagen plaats | N7: Invalidenplaats | O7: Gestalde fietsen | U7: =F7 -> Pers | V7: Vracht | W7: Motor | X7: Obstakel / overig | Y7: Fout pers | Z7: Fout Vracht
B8: =VLOOKUP(B3,Coordinaten!$A$2:$G$95,3,0)&", "&VLOOKUP(B3,Coordinaten!$A$2:$G$95,5,0) -> Carpool parking Diepenbeek, Diepenbeek | D8: 2021-11-16 | E8: 09:00 - 16:00u | F8: 56 | G8: 0 | H8: 0 | I8: 0 | J8: 0 | K8: 0 | L8: 56 | M8: 0 | N8: 0 | O8: 1 | Q8: 0 | S8: =D8 -> 2021-11-16 | T8: =E8 -> 09:00 - 16:00u | U8: =IF(F8=0,NA(),F8/$L8) -> 1 | V8: =IF(G8=0,NA(),G8/$L8) ->  | W8: =IF(H8=0,NA(),H8/$L8) -> 
B9: ="Nabij kruispunt: "&VLOOKUP(B3,Coordinaten!$A$2:$L$95,4,0) -> Nabij kruispunt: N76 / A13 | F9: 1 | G9: - | H9: - | I9: - | J9: - | K9: - | L9: 1 | Q9: 0 | S9: =D10 -> 2021-11-16 | T9: =E10 -> 19:00 - 02:00u | U9: =IF(F10=0,NA(),F10/$L10) -> 1 | V9: =IF(G10=0,NA(),G10/$L10) -> 
D10: 2021-11-16 | E10: 19:00 - 02:00u | F10: 14 | G10: 0 | H10: 0 | I10: 0 | J10: 0 | K10: 0 | L10: 14 | M10: 0 | N10: 0 | O10: 1 | Q10: 0
B11: Meting | F11: 1 | G11: - | H11: - | I11: - | J11: - | K11: - | L11: 1 | Q11: 0
B12: ="Meetperiode: "&TEXT(VLOOKUP(B3,Coordinaten!$A$2:$G$95,7,0),"dddd dd mmmm jjjj") -> Meetperiode: dinsdag 16 november 2021
B13: Methodiek: Parkeerdrukmeting met waarnemers
B14: In opdracht van: Vlaamse overheid
B15: Uitgevoerd door: Dufec
D16: VERDELING NAAR CATEGORIE
B17: Locatie
B18: =IF(B4="","",HYPERLINK("http://www.googlemaps.com/?q="&B4,"Lat/Long: "&B4)) -> Lat/Long: 50.894087, 5.417912
P20: Legenda
Q21: Personenwagen
Q22: Vracht
Q23: Motor
Q24: Obstakel / overig
Q25: Fout personenwagen
Q26: Fout Vracht
B38: Opmerking
B39: Het onderzoek vindt plaats gedurende coronamaatregelen.
B40: Dit heeft mogelijk een effect op de resultaten.
B42: Toelichting
B43: Pers = personenwagens op daarvoor bestemde
B44: openbare plaatsen
B45: Vracht = vrachtwagens op daarvoor bestemde
B46: parkeerplaatsen (middel- en zwaar vrachtverkeer)
B47: Motor = geparkeerde motoren op openbare plaatsen
B48: Obstakel / overig = obstakels of overige voertuigen
B49: geparkeerd op openbare plaatsen
B50: Fout pers = personenwagens die fout geparkeerd staan
B51: Fout vracht = vrachtwagens die fout geparkeerd staan
B52: E-wagen = geparkeerde elektrisch voertuig bij een
B53: elektrisch oplaadpunt
B54: Invalide = personenwagens en motoren op voor
B55: invalide personen bestemde parkeerplaats
B56: Gestalde fietsen = alle gestalde fietsen op de
B57: daarvoor bestemde parkeerplaatsen

Sheet 12.Wommelgem-Zuid
B2: PARKEERONDERZOEK | D2: CARPOOLPARKINGS EN P+R PARKINGS
B3: 12 | D3: =B8 & " - "& TEXT(VLOOKUP(B3,Coordinaten!$A$2:$G$95,7,0),"dddd dd mmmm jjjj") -> P+R parking Wommelgem-Zuid, Wommelgem - donderdag 18 november 2021
B4: =VLOOKUP(B3,Coordinaten!$A$2:$G$95,6,0) -> 51.210463, 4.493799
D5: BEZETTING | Q5: OPMERKINGEN
B7: Onderzoeksgebied | D7: Datum | E7: Geregistreerd tussen | F7: Pers | G7: Vracht | H7: Motor | I7: Obstakel / overig | J7: Fout pers | K7: Fout Vracht | L7: Totaal | M7: E-wagen plaats | N7: Invalidenplaats | O7: Gestalde fietsen | U7: =F7 -> Pers | V7: Vracht | W7: Motor | X7: Obstakel / overig | Y7: Fout pers | Z7: Fout Vracht
B8: =VLOOKUP(B3,Coordinaten!$A$2:$G$95,3,0)&", "&VLOOKUP(B3,Coordinaten!$A$2:$G$95,5,0) -> P+R parking Wommelgem-Zuid, Wommelgem | D8: 2021-11-18 | E8: 09:00 - 16:00u | F8: 35 | G8: 0 | H8: 0 | I8: 0 | J8: 7 | K8: 0 | L8: 42 | M8: 0 | N8: 0 | O8: 1 | Q8: 0 | S8: =D8 -> 2021-11-18 | T8: =E8 -> 09:00 - 16:00u | U8: =IF(F8=0,NA(),F8/$L8) -> 0.8333333333 | V8: =IF(G8=0,NA(),G8/$L8) ->  | W8: =IF(H8=0,NA(),H8/$L8) ->  | Y8: 0.1666666667
B9: ="Nabij kruispunt: "&VLOOKUP(B3,Coordinaten!$A$2:$L$95,4,0) -> Nabij kruispunt: R11 / A13 | F9: 0.8333333333 | G9: - | H9: - | I9: - | J9: 0.1666666667 | K9: - | L9: 1 | Q9: 0 | S9: =D10 -> 2021-11-18 | T9: =E10 -> 19:00 - 02:00u | U9: =IF(F10=0,NA(),F10/$L10) -> 1 | V9: =IF(G10=0,NA(),G10/$L10) -> 
D10: 2021-11-18 | E10: 19:00 - 02:00u | F10: 23 | G10: 0 | H10: 0 | I10: 0 | J10: 0 | K10: 0 | L10: 23 | M10: 0 | N10: 0 | O10: 1 | Q10: 0
B11: Meting | F11: 1 | G11: - | H11: - | I11: - | J11: - | K11: - | L11: 1 | Q11: 0
B12: ="Meetperiode: "&TEXT(VLOOKUP(B3,Coordinaten!$A$2:$G$95,7,0),"dddd dd mmmm jjjj") -> Meetperiode: donderdag 18 november 2021
B13: Methodiek: Parkeerdrukmeting met waarnemers
B14: In opdracht van: Vlaamse overheid
B15: Uitgevoerd door: Dufec
D16: VERDELING NAAR CATEGORIE
B17: Locatie
B18: =IF(B4="","",HYPERLINK("http://www.googlemaps.com/?q="&B4,"Lat/Long: "&B4)) -> Lat/Long: 51.210463, 4.493799
P20: Legenda
Q21: Personenwagen
Q22: Vracht
Q23: Motor
Q24: Obstakel / overig
Q25: Fout personenwagen
Q26: Fout Vracht
B38: Opmerking
B39: Het onderzoek vindt plaats gedurende coronamaatregelen.
B40: Dit heeft mogelijk een effect op de resultaten.
B42: Toelichting
B43: Pers = personenwagens op daarvoor bestemde
B44: openbare plaatsen
B45: Vracht = vrachtwagens op daarvoor bestemde
B46: parkeerplaatsen (middel- en zwaar vrachtverkeer)
B47: Motor = geparkeerde motoren op openbare plaatsen
B48: Obstakel / overig = obstakels of overige voertuigen
B49: geparkeerd op openbare plaatsen
B50: Fout pers = personenwagens die fout geparkeerd staan
B51: Fout vracht = vrachtwagens die fout geparkeerd staan
B52: E-wagen = geparkeerde elektrisch voertuig bij een
B53: elektrisch oplaadpunt
B54: Invalide = personenwagens en motoren op voor
B55: invalide personen bestemde parkeerplaats
B56: Gestalde fietsen = alle gestalde fietsen op de
B57: daarvoor bestemde parkeerplaatsen

Sheet 13.Minitaria
B2: PARKEERONDERZOEK | D2: CARPOOLPARKINGS EN P+R PARKINGS
B3: 13 | D3: =B8 & " - "& TEXT(VLOOKUP(B3,Coordinaten!$A$2:$G$95,7,0),"dddd dd mmmm jjjj") -> Carpool parking Minitaria, Tienen - dinsdag 16 november 2021
B4: =VLOOKUP(B3,Coordinaten!$A$2:$G$95,6,0) -> 50.799170, 4.970858
D5: BEZETTING | Q5: OPMERKINGEN
B7: Onderzoeksgebied | D7: Datum | E7: Geregistreerd tussen | F7: Pers | G7: Vracht | H7: Motor | I7: Obstakel / overig | J7: Fout pers | K7: Fout Vracht | L7: Totaal | M7: E-wagen plaats | N7: Invalidenplaats | O7: Gestalde fietsen | U7: =F7 -> Pers | V7: Vracht | W7: Motor | X7: Obstakel / overig | Y7: Fout pers | Z7: Fout Vracht
B8: =VLOOKUP(B3,Coordinaten!$A$2:$G$95,3,0)&", "&VLOOKUP(B3,Coordinaten!$A$2:$G$95,5,0) -> Carpool parking Minitaria, Tienen | D8: 2021-11-16 | E8: 09:00 - 16:00u | F8: 4 | G8: 0 | H8: 0 | I8: 0 | J8: 0 | K8: 0 | L8: 4 | M8: 0 | N8: 0 | O8: 0 | Q8: 0 | S8: =D8 -> 2021-11-16 | T8: =E8 -> 09:00 - 16:00u | U8: =IF(F8=0,NA(),F8/$L8) -> 1 | V8: =IF(G8=0,NA(),G8/$L8) ->  | W8: =IF(H8=0,NA(),H8/$L8) -> 
B9: ="Nabij kruispunt: "&VLOOKUP(B3,Coordinaten!$A$2:$L$95,4,0) -> Nabij kruispunt: N3 / R27 | F9: 1 | G9: - | H9: - | I9: - | J9: - | K9: - | L9: 1 | Q9: 0 | S9: =D10 -> 2021-11-16 | T9: =E10 -> 19:00 - 02:00u | U9: =IF(F10=0,NA(),F10/$L10) -> 1 | V9: =IF(G10=0,NA(),G10/$L10) -> 
D10: 2021-11-16 | E10: 19:00 - 02:00u | F10: 5 | G10: 0 | H10: 0 | I10: 0 | J10: 0 | K10: 0 | L10: 5 | M10: 0 | N10: 0 | O10: 0 | Q10: 0
B11: Meting | F11: 1 | G11: - | H11: - | I11: - | J11: - | K11: - | L11: 1 | Q11: 0
B12: ="Meetperiode: "&TEXT(VLOOKUP(B3,Coordinaten!$A$2:$G$95,7,0),"dddd dd mmmm jjjj") -> Meetperiode: dinsdag 16 november 2021
B13: Methodiek: Parkeerdrukmeting met waarnemers
B14: In opdracht van: Vlaamse overheid
B15: Uitgevoerd door: Dufec
D16: VERDELING NAAR CATEGORIE
B17: Locatie
B18: =IF(B4="","",HYPERLINK("http://www.googlemaps.com/?q="&B4,"Lat/Long: "&B4)) -> Lat/Long: 50.799170, 4.970858
P20: Legenda
Q21: Personenwagen
Q22: Vracht
Q23: Motor
Q24: Obstakel / overig
Q25: Fout personenwagen
Q26: Fout Vracht
B38: Opmerking
B39: Het onderzoek vindt plaats gedurende coronamaatregelen.
B40: Dit heeft mogelijk een effect op de resultaten.
B42: Toelichting
B43: Pers = personenwagens op daarvoor bestemde
B44: openbare plaatsen
B45: Vracht = vrachtwagens op daarvoor bestemde
B46: parkeerplaatsen (middel- en zwaar vrachtverkeer)
B47: Motor = geparkeerde motoren op openbare plaatsen
B48: Obstakel / overig = obstakels of overige voertuigen
B49: geparkeerd op openbare plaatsen
B50: Fout pers = personenwagens die fout geparkeerd staan
B51: Fout vracht = vrachtwagens die fout geparkeerd staan
B52: E-wagen = geparkeerde elektrisch voertuig bij een
B53: elektrisch oplaadpunt
B54: Invalide = personenwagens en motoren op voor
B55: invalide personen bestemde parkeerplaats
B56: Gestalde fietsen = alle gestalde fietsen op de
B57: daarvoor bestemde parkeerplaatsen

Sheet 14.Hakendover
B2: PARKEERONDERZOEK | D2: CARPOOLPARKINGS EN P+R PARKINGS
B3: 14 | D3: =B8 & " - "& TEXT(VLOOKUP(B3,Coordinaten!$A$2:$G$95,7,0),"dddd dd mmmm jjjj") -> Carpool parking Hakendover, Tienen - dinsdag 16 november 2021
B4: =VLOOKUP(B3,Coordinaten!$A$2:$G$95,6,0) -> 50.798982, 4.973467
D5: BEZETTING | Q5: OPMERKINGEN
B7: Onderzoeksgebied | D7: Datum | E7: Geregistreerd tussen | F7: Pers | G7: Vracht | H7: Motor | I7: Obstakel / overig | J7: Fout pers | K7: Fout Vracht | L7: Totaal | M7: E-wagen plaats | N7: Invalidenplaats | O7: Gestalde fietsen | U7: =F7 -> Pers | V7: Vracht | W7: Motor | X7: Obstakel / overig | Y7: Fout pers | Z7: Fout Vracht
B8: =VLOOKUP(B3,Coordinaten!$A$2:$G$95,3,0)&", "&VLOOKUP(B3,Coordinaten!$A$2:$G$95,5,0) -> Carpool parking Hakendover, Tienen | D8: 2021-11-16 | E8: 09:00 - 16:00u | F8: 4 | G8: 0 | H8: 0 | I8: 1 | J8: 0 | K8: 0 | L8: 5 | M8: 0 | N8: 0 | O8: 0 | Q8: Obstakel: aanhanger | S8: =D8 -> 2021-11-16 | T8: =E8 -> 09:00 - 16:00u | U8: =IF(F8=0,NA(),F8/$L8) -> 0.8 | V8: =IF(G8=0,NA(),G8/$L8) ->  | W8: =IF(H8=0,NA(),H8/$L8) ->  | X8: 0.2
B9: ="Nabij kruispunt: "&VLOOKUP(B3,Coordinaten!$A$2:$L$95,4,0) -> Nabij kruispunt: N3 / R27 | F9: 0.8 | G9: - | H9: - | I9: 0.2 | J9: - | K9: - | L9: 1 | Q9: 0 | S9: =D10 -> 2021-11-16 | T9: =E10 -> 19:00 - 02:00u | U9: =IF(F10=0,NA(),F10/$L10) -> 1 | V9: =IF(G10=0,NA(),G10/$L10) -> 
D10: 2021-11-16 | E10: 19:00 - 02:00u | F10: 1 | G10: 0 | H10: 0 | I10: 0 | J10: 0 | K10: 0 | L10: 1 | M10: 0 | N10: 0 | O10: 0 | Q10: 0
B11: Meting | F11: 1 | G11: - | H11: - | I11: - | J11: - | K11: - | L11: 1 | Q11: 0
B12: ="Meetperiode: "&TEXT(VLOOKUP(B3,Coordinaten!$A$2:$G$95,7,0),"dddd dd mmmm jjjj") -> Meetperiode: dinsdag 16 november 2021
B13: Methodiek: Parkeerdrukmeting met waarnemers
B14: In opdracht van: Vlaamse overheid
B15: Uitgevoerd door: Dufec
D16: VERDELING NAAR CATEGORIE
B17: Locatie
B18: =IF(B4="","",HYPERLINK("http://www.googlemaps.com/?q="&B4,"Lat/Long: "&B4)) -> Lat/Long: 50.798982, 4.973467
P20: Legenda
Q21: Personenwagen
Q22: Vracht
Q23: Motor
Q24: Obstakel / overig
Q25: Fout personenwagen
Q26: Fout Vracht
B38: Opmerking
B39: Het onderzoek vindt plaats gedurende coronamaatregelen.
B40: Dit heeft mogelijk een effect op de resultaten.
B42: Toelichting
B43: Pers = personenwagens op daarvoor bestemde
B44: openbare plaatsen
B45: Vracht = vrachtwagens op daarvoor bestemde
B46: parkeerplaatsen (middel- en zwaar vrachtverkeer)
B47: Motor = geparkeerde motoren op openbare plaatsen
B48: Obstakel / overig = obstakels of overige voertuigen
B49: geparkeerd op openbare plaatsen
B50: Fout pers = personenwagens die fout geparkeerd staan
B51: Fout vracht = vrachtwagens die fout geparkeerd staan
B52: E-wagen = geparkeerde elektrisch voertuig bij een
B53: elektrisch oplaadpunt
B54: Invalide = personenwagens en motoren op voor
B55: invalide personen bestemde parkeerplaats
B56: Gestalde fietsen = alle gestalde fietsen op de
B57: daarvoor bestemde parkeerplaatsen

Sheet 15.Kontich
B2: PARKEERONDERZOEK | D2: CARPOOLPARKINGS EN P+R PARKINGS
B3: 15 | D3: =B8 & " - "& TEXT(VLOOKUP(B3,Coordinaten!$A$2:$G$95,7,0),"dddd dd mmmm jjjj") -> Carpool parking Kontich, Kontich - donderdag 18 november 2021
B4: =VLOOKUP(B3,Coordinaten!$A$2:$G$95,6,0) -> 51.126274, 4.432122
D5: BEZETTING | Q5: OPMERKINGEN
B7: Onderzoeksgebied | D7: Datum | E7: Geregistreerd tussen | F7: Pers | G7: Vracht | H7: Motor | I7: Obstakel / overig | J7: Fout pers | K7: Fout Vracht | L7: Totaal | M7: E-wagen plaats | N7: Invalidenplaats | O7: Gestalde fietsen | U7: =F7 -> Pers | V7: Vracht | W7: Motor | X7: Obstakel / overig | Y7: Fout pers | Z7: Fout Vracht
B8: =VLOOKUP(B3,Coordinaten!$A$2:$G$95,3,0)&", "&VLOOKUP(B3,Coordinaten!$A$2:$G$95,5,0) -> Carpool parking Kontich, Kontich | D8: 2021-11-18 | E8: 09:00 - 16:00u | F8: 87 | G8: 0 | H8: 0 | I8: 0 | J8: 0 | K8: 0 | L8: 87 | M8: 0 | N8: 0 | O8: 0 | Q8: 0 | S8: =D8 -> 2021-11-18 | T8: =E8 -> 09:00 - 16:00u | U8: =IF(F8=0,NA(),F8/$L8) -> 1 | V8: =IF(G8=0,NA(),G8/$L8) ->  | W8: =IF(H8=0,NA(),H8/$L8) -> 
B9: ="Nabij kruispunt: "&VLOOKUP(B3,Coordinaten!$A$2:$L$95,4,0) -> Nabij kruispunt: N171 / A1 | F9: 1 | G9: - | H9: - | I9: - | J9: - | K9: - | L9: 1 | Q9: 0 | S9: =D10 -> 2021-11-18 | T9: =E10 -> 19:00 - 02:00u | U9: =IF(F10=0,NA(),F10/$L10) -> 1 | V9: =IF(G10=0,NA(),G10/$L10) -> 
D10: 2021-11-18 | E10: 19:00 - 02:00u | F10: 49 | G10: 0 | H10: 0 | I10: 0 | J10: 0 | K10: 0 | L10: 49 | M10: 0 | N10: 0 | O10: 0 | Q10: 0
B11: Meting | F11: 1 | G11: - | H11: - | I11: - | J11: - | K11: - | L11: 1 | Q11: 0
B12: ="Meetperiode: "&TEXT(VLOOKUP(B3,Coordinaten!$A$2:$G$95,7,0),"dddd dd mmmm jjjj") -> Meetperiode: donderdag 18 november 2021
B13: Methodiek: Parkeerdrukmeting met waarnemers
B14: In opdracht van: Vlaamse overheid
B15: Uitgevoerd door: Dufec
D16: VERDELING NAAR CATEGORIE
B17: Locatie
B18: =IF(B4="","",HYPERLINK("http://www.googlemaps.com/?q="&B4,"Lat/Long: "&B4)) -> Lat/Long: 51.126274, 4.432122
P20: Legenda
Q21: Personenwagen
Q22: Vracht
Q23: Motor
Q24: Obstakel / overig
Q25: Fout personenwagen
Q26: Fout Vracht
B38: Opmerking
B39: Het onderzoek vindt plaats gedurende coronamaatregelen.
B40: Dit heeft mogelijk een effect op de resultaten.
B42: Toelichting
B43: Pers = personenwagens op daarvoor bestemde
B44: openbare plaatsen
B45: Vracht = vrachtwagens op daarvoor bestemde
B46: parkeerplaatsen (middel- en zwaar vrachtverkeer)
B47: Motor = geparkeerde motoren op openbare plaatsen
B48: Obstakel / overig = obstakels of overige voertuigen
B49: geparkeerd op openbare plaatsen
B50: Fout pers = personenwagens die fout geparkeerd staan
B51: Fout vracht = vrachtwagens die fout geparkeerd staan
B52: E-wagen = geparkeerde elektrisch voertuig bij een
B53: elektrisch oplaadpunt
B54: Invalide = personenwagens en motoren op voor
B55: invalide personen bestemde parkeerplaats
B56: Gestalde fietsen = alle gestalde fietsen op de
B57: daarvoor bestemde parkeerplaatsen

Sheet 16.Breendonk (Puurs)
B2: PARKEERONDERZOEK | D2: CARPOOLPARKINGS EN P+R PARKINGS
B3: 16 | D3: =B8 & " - "& TEXT(VLOOKUP(B3,Coordinaten!$A$2:$G$95,7,0),"dddd dd mmmm jjjj") -> Carpool parking Breendonk (Puurs), Puurs - donderdag 18 november 2021
B4: =VLOOKUP(B3,Coordinaten!$A$2:$G$95,6,0) -> 51.060329, 4.334348
D5: BEZETTING | Q5: OPMERKINGEN
B7: Onderzoeksgebied | D7: Datum | E7: Geregistreerd tussen | F7: Pers | G7: Vracht | H7: Motor | I7: Obstakel / overig | J7: Fout pers | K7: Fout Vracht | L7: Totaal | M7: E-wagen plaats | N7: Invalidenplaats | O7: Gestalde fietsen | U7: =F7 -> Pers | V7: Vracht | W7: Motor | X7: Obstakel / overig | Y7: Fout pers | Z7: Fout Vracht
B8: =VLOOKUP(B3,Coordinaten!$A$2:$G$95,3,0)&", "&VLOOKUP(B3,Coordinaten!$A$2:$G$95,5,0) -> Carpool parking Breendonk (Puurs), Puurs | D8: 2021-11-18 | E8: 09:00 - 16:00u | F8: 31 | G8: 8 | H8: 0 | I8: 2 | J8: 0 | K8: 4 | L8: 45 | M8: 0 | N8: 0 | O8: 0 | Q8: 0 | S8: =D8 -> 2021-11-18 | T8: =E8 -> 09:00 - 16:00u | U8: =IF(F8=0,NA(),F8/$L8) -> 0.6888888889 | V8: =IF(G8=0,NA(),G8/$L8) -> 0.1777777778 | W8: =IF(H8=0,NA(),H8/$L8) ->  | X8: 0.04444444444 | Z8: 0.08888888889
B9: ="Nabij kruispunt: "&VLOOKUP(B3,Coordinaten!$A$2:$L$95,4,0) -> Nabij kruispunt: N16 / N183 | F9: 0.6888888889 | G9: 0.1777777778 | H9: - | I9: 0.04444444444 | J9: - | K9: 0.08888888889 | L9: 1 | Q9: 0 | S9: =D10 -> 2021-11-18 | T9: =E10 -> 19:00 - 02:00u | U9: =IF(F10=0,NA(),F10/$L10) -> 0.1875 | V9: =IF(G10=0,NA(),G10/$L10) -> 0.265625 | Z9: 0.546875
D10: 2021-11-18 | E10: 19:00 - 02:00u | F10: 12 | G10: 17 | H10: 0 | I10: 0 | J10: 0 | K10: 35 | L10: 64 | M10: 0 | N10: 0 | O10: 0 | Q10: Fout vracht: de parking was bijna geheel vol. Veel vrachtwagens op
B11: Meting | F11: 0.1875 | G11: 0.265625 | H11: - | I11: - | J11: - | K11: 0.546875 | L11: 1 | Q11: autoparkeerplaatsen en langs de zijde geparkeerd
B12: ="Meetperiode: "&TEXT(VLOOKUP(B3,Coordinaten!$A$2:$G$95,7,0),"dddd dd mmmm jjjj") -> Meetperiode: donderdag 18 november 2021
B13: Methodiek: Parkeerdrukmeting met waarnemers
B14: In opdracht van: Vlaamse overheid
B15: Uitgevoerd door: Dufec
D16: VERDELING NAAR CATEGORIE
B17: Locatie
B18: =IF(B4="","",HYPERLINK("http://www.googlemaps.com/?q="&B4,"Lat/Long: "&B4)) -> Lat/Long: 51.060329, 4.334348
P20: Legenda
Q21: Personenwagen
Q22: Vracht
Q23: Motor
Q24: Obstakel / overig
Q25: Fout personenwagen
Q26: Fout Vracht
B38: Opmerking
B39: Het onderzoek vindt plaats gedurende coronamaatregelen.
B40: Dit heeft mogelijk een effect op de resultaten.
B42: Toelichting
B43: Pers = personenwagens op daarvoor bestemde
B44: openbare plaatsen
B45: Vracht = vrachtwagens op daarvoor bestemde
B46: parkeerplaatsen (middel- en zwaar vrachtverkeer)
B47: Motor = geparkeerde motoren op openbare plaatsen
B48: Obstakel / overig = obstakels of overige voertuigen
B49: geparkeerd op openbare plaatsen
B50: Fout pers = personenwagens die fout geparkeerd staan
B51: Fout vracht = vrachtwagens die fout geparkeerd staan
B52: E-wagen = geparkeerde elektrisch voertuig bij een
B53: elektrisch oplaadpunt
B54: Invalide = personenwagens en motoren op voor
B55: invalide personen bestemde parkeerplaats
B56: Gestalde fietsen = alle gestalde fietsen op de
B57: daarvoor bestemde parkeerplaatsen

Sheet 17.Hasselt-Zuid
B2: PARKEERONDERZOEK | D2: CARPOOLPARKINGS EN P+R PARKINGS
B3: 17 | D3: =B8 & " - "& TEXT(VLOOKUP(B3,Coordinaten!$A$2:$G$95,7,0),"dddd dd mmmm jjjj") -> Carpool parking Hasselt-Zuid, Hasselt - dinsdag 16 november 2021
B4: =VLOOKUP(B3,Coordinaten!$A$2:$G$95,6,0) -> 50.915675, 5.322639
D5: BEZETTING | Q5: OPMERKINGEN
B7: Onderzoeksgebied | D7: Datum | E7: Geregistreerd tussen | F7: Pers | G7: Vracht | H7: Motor | I7: Obstakel / overig | J7: Fout pers | K7: Fout Vracht | L7: Totaal | M7: E-wagen plaats | N7: Invalidenplaats | O7: Gestalde fietsen | U7: =F7 -> Pers | V7: Vracht | W7: Motor | X7: Obstakel / overig | Y7: Fout pers | Z7: Fout Vracht
B8: =VLOOKUP(B3,Coordinaten!$A$2:$G$95,3,0)&", "&VLOOKUP(B3,Coordinaten!$A$2:$G$95,5,0) -> Carpool parking Hasselt-Zuid, Hasselt | D8: 2021-11-16 | E8: 09:00 - 16:00u | F8: 31 | G8: 0 | H8: 0 | I8: 0 | J8: 0 | K8: 1 | L8: 32 | M8: 0 | N8: 0 | O8: 12 | Q8: 0 | S8: =D8 -> 2021-11-16 | T8: =E8 -> 09:00 - 16:00u | U8: =IF(F8=0,NA(),F8/$L8) -> 0.96875 | V8: =IF(G8=0,NA(),G8/$L8) ->  | W8: =IF(H8=0,NA(),H8/$L8) ->  | Z8: 0.03125
B9: ="Nabij kruispunt: "&VLOOKUP(B3,Coordinaten!$A$2:$L$95,4,0) -> Nabij kruispunt: N80 / A13 | F9: 0.96875 | G9: - | H9: - | I9: - | J9: - | K9: 0.03125 | L9: 1 | Q9: 0 | S9: =D10 -> 2021-11-16 | T9: =E10 -> 19:00 - 02:00u | U9: =IF(F10=0,NA(),F10/$L10) -> 1 | V9: =IF(G10=0,NA(),G10/$L10) -> 
D10: 2021-11-16 | E10: 19:00 - 02:00u | F10: 20 | G10: 0 | H10: 0 | I10: 0 | J10: 0 | K10: 0 | L10: 20 | M10: 0 | N10: 0 | O10: 3 | Q10: 0
B11: Meting | F11: 1 | G11: - | H11: - | I11: - | J11: - | K11: - | L11: 1 | Q11: 0
B12: ="Meetperiode: "&TEXT(VLOOKUP(B3,Coordinaten!$A$2:$G$95,7,0),"dddd dd mmmm jjjj") -> Meetperiode: dinsdag 16 november 2021
B13: Methodiek: Parkeerdrukmeting met waarnemers
B14: In opdracht van: Vlaamse overheid
B15: Uitgevoerd door: Dufec
D16: VERDELING NAAR CATEGORIE
B17: Locatie
B18: =IF(B4="","",HYPERLINK("http://www.googlemaps.com/?q="&B4,"Lat/Long: "&B4)) -> Lat/Long: 50.915675, 5.322639
P20: Legenda
Q21: Personenwagen
Q22: Vracht
Q23: Motor
Q24: Obstakel / overig
Q25: Fout personenwagen
Q26: Fout Vracht
B38: Opmerking
B39: Het onderzoek vindt plaats gedurende coronamaatregelen.
B40: Dit heeft mogelijk een effect op de resultaten.
B42: Toelichting
B43: Pers = personenwagens op daarvoor bestemde
B44: openbare plaatsen
B45: Vracht = vrachtwagens op daarvoor bestemde
B46: parkeerplaatsen (middel- en zwaar vrachtverkeer)
B47: Motor = geparkeerde motoren op openbare plaatsen
B48: Obstakel / overig = obstakels of overige voertuigen
B49: geparkeerd op openbare plaatsen
B50: Fout pers = personenwagens die fout geparkeerd staan
B51: Fout vracht = vrachtwagens die fout geparkeerd staan
B52: E-wagen = geparkeerde elektrisch voertuig bij een
B53: elektrisch oplaadpunt
B54: Invalide = personenwagens en motoren op voor
B55: invalide personen bestemde parkeerplaats
B56: Gestalde fietsen = alle gestalde fietsen op de
B57: daarvoor bestemde parkeerplaatsen

Sheet 18.Herentals-West
B2: PARKEERONDERZOEK | D2: CARPOOLPARKINGS EN P+R PARKINGS
B3: 18 | D3: =B8 & " - "& TEXT(VLOOKUP(B3,Coordinaten!$A$2:$G$95,7,0),"dddd dd mmmm jjjj") -> Carpool parking Herentals-West, Grobbendonk - donderdag 18 november 2021
B4: =VLOOKUP(B3,Coordinaten!$A$2:$G$95,6,0) -> 51.175093, 4.761781
D5: BEZETTING | Q5: OPMERKINGEN
B7: Onderzoeksgebied | D7: Datum | E7: Geregistreerd tussen | F7: Pers | G7: Vracht | H7: Motor | I7: Obstakel / overig | J7: Fout pers | K7: Fout Vracht | L7: Totaal | M7: E-wagen plaats | N7: Invalidenplaats | O7: Gestalde fietsen | U7: =F7 -> Pers | V7: Vracht | W7: Motor | X7: Obstakel / overig | Y7: Fout pers | Z7: Fout Vracht
B8: =VLOOKUP(B3,Coordinaten!$A$2:$G$95,3,0)&", "&VLOOKUP(B3,Coordinaten!$A$2:$G$95,5,0) -> Carpool parking Herentals-West, Grobbendonk | D8: 2021-11-18 | E8: 09:00 - 16:00u | F8: 40 | G8: 0 | H8: 1 | I8: 0 | J8: 2 | K8: 0 | L8: 43 | M8: 0 | N8: 0 | O8: 0 | Q8: 0 | S8: =D8 -> 2021-11-18 | T8: =E8 -> 09:00 - 16:00u | U8: =IF(F8=0,NA(),F8/$L8) -> 0.9302325581 | V8: =IF(G8=0,NA(),G8/$L8) ->  | W8: =IF(H8=0,NA(),H8/$L8) -> 0.02325581395 | Y8: 0.04651162791
B9: ="Nabij kruispunt: "&VLOOKUP(B3,Coordinaten!$A$2:$L$95,4,0) -> Nabij kruispunt: N13 / A13 | F9: 0.9302325581 | G9: - | H9: 0.02325581395 | I9: - | J9: 0.04651162791 | K9: - | L9: 1 | Q9: 0 | S9: =D10 -> 2021-11-18 | T9: =E10 -> 19:00 - 02:00u | U9: =IF(F10=0,NA(),F10/$L10) -> 1 | V9: =IF(G10=0,NA(),G10/$L10) -> 
D10: 2021-11-18 | E10: 19:00 - 02:00u | F10: 13 | G10: 0 | H10: 0 | I10: 0 | J10: 0 | K10: 0 | L10: 13 | M10: 0 | N10: 0 | O10: 0 | Q10: 0
B11: Meting | F11: 1 | G11: - | H11: - | I11: - | J11: - | K11: - | L11: 1 | Q11: 0
B12: ="Meetperiode: "&TEXT(VLOOKUP(B3,Coordinaten!$A$2:$G$95,7,0),"dddd dd mmmm jjjj") -> Meetperiode: donderdag 18 november 2021
B13: Methodiek: Parkeerdrukmeting met waarnemers
B14: In opdracht van: Vlaamse overheid
B15: Uitgevoerd door: Dufec
D16: VERDELING NAAR CATEGORIE
B17: Locatie
B18: =IF(B4="","",HYPERLINK("http://www.googlemaps.com/?q="&B4,"Lat/Long: "&B4)) -> Lat/Long: 51.175093, 4.761781
P20: Legenda
Q21: Personenwagen
Q22: Vracht
Q23: Motor
Q24: Obstakel / overig
Q25: Fout personenwagen
Q26: Fout Vracht
B38: Opmerking
B39: Het onderzoek vindt plaats gedurende coronamaatregelen.
B40: Dit heeft mogelijk een effect op de resultaten.
B42: Toelichting
B43: Pers = personenwagens op daarvoor bestemde
B44: openbare plaatsen
B45: Vracht = vrachtwagens op daarvoor bestemde
B46: parkeerplaatsen (middel- en zwaar vrachtverkeer)
B47: Motor = geparkeerde motoren op openbare plaatsen
B48: Obstakel / overig = obstakels of overige voertuigen
B49: geparkeerd op openbare plaatsen
B50: Fout pers = personenwagens die fout geparkeerd staan
B51: Fout vracht = vrachtwagens die fout geparkeerd staan
B52: E-wagen = geparkeerde elektrisch voertuig bij een
B53: elektrisch oplaadpunt
B54: Invalide = personenwagens en motoren op voor
B55: invalide personen bestemde parkeerplaats
B56: Gestalde fietsen = alle gestalde fietsen op de
B57: daarvoor bestemde parkeerplaatsen

Sheet 19.Rumst
B2: PARKEERONDERZOEK | D2: CARPOOLPARKINGS EN P+R PARKINGS
B3: 19 | D3: =B8 & " - "& TEXT(VLOOKUP(B3,Coordinaten!$A$2:$G$95,7,0),"dddd dd mmmm jjjj") -> Carpool parking Rumst, Rumst - donderdag 18 november 2021
B4: =VLOOKUP(B3,Coordinaten!$A$2:$G$95,6,0) -> 51.085447, 4.444751
D5: BEZETTING | Q5: OPMERKINGEN
B7: Onderzoeksgebied | D7: Datum | E7: Geregistreerd tussen | F7: Pers | G7: Vracht | H7: Motor | I7: Obstakel / overig | J7: Fout pers | K7: Fout Vracht | L7: Totaal | M7: E-wagen plaats | N7: Invalidenplaats | O7: Gestalde fietsen | U7: =F7 -> Pers | V7: Vracht | W7: Motor | X7: Obstakel / overig | Y7: Fout pers | Z7: Fout Vracht
B8: =VLOOKUP(B3,Coordinaten!$A$2:$G$95,3,0)&", "&VLOOKUP(B3,Coordinaten!$A$2:$G$95,5,0) -> Carpool parking Rumst, Rumst | D8: 2021-11-18 | E8: 09:00 - 16:00u | F8: 40 | G8: 0 | H8: 0 | I8: 3 | J8: 0 | K8: 0 | L8: 43 | M8: 0 | N8: 0 | O8: 0 | Q8: Obstakel: 2 aanhagers, 1 camper | S8: =D8 -> 2021-11-18 | T8: =E8 -> 09:00 - 16:00u | U8: =IF(F8=0,NA(),F8/$L8) -> 0.9302325581 | V8: =IF(G8=0,NA(),G8/$L8) ->  | W8: =IF(H8=0,NA(),H8/$L8) ->  | X8: 0.06976744186
B9: ="Nabij kruispunt: "&VLOOKUP(B3,Coordinaten!$A$2:$L$95,4,0) -> Nabij kruispunt: N1c / A1 | F9: 0.9302325581 | G9: - | H9: - | I9: 0.06976744186 | J9: - | K9: - | L9: 1 | Q9: 0 | S9: =D10 -> 2021-11-18 | T9: =E10 -> 19:00 - 02:00u | U9: =IF(F10=0,NA(),F10/$L10) -> 0.95 | V9: =IF(G10=0,NA(),G10/$L10) ->  | Z9: 0.05
D10: 2021-11-18 | E10: 19:00 - 02:00u | F10: 19 | G10: 0 | H10: 0 | I10: 0 | J10: 0 | K10: 1 | L10: 20 | M10: 0 | N10: 0 | O10: 0 | Q10: 0
B11: Meting | F11: 0.95 | G11: - | H11: - | I11: - | J11: - | K11: 0.05 | L11: 1 | Q11: 0
B12: ="Meetperiode: "&TEXT(VLOOKUP(B3,Coordinaten!$A$2:$G$95,7,0),"dddd dd mmmm jjjj") -> Meetperiode: donderdag 18 november 2021
B13: Methodiek: Parkeerdrukmeting met waarnemers
B14: In opdracht van: Vlaamse overheid
B15: Uitgevoerd door: Dufec
D16: VERDELING NAAR CATEGORIE
B17: Locatie
B18: =IF(B4="","",HYPERLINK("http://www.googlemaps.com/?q="&B4,"Lat/Long: "&B4)) -> Lat/Long: 51.085447, 4.444751
P20: Legenda
Q21: Personenwagen
Q22: Vracht
Q23: Motor
Q24: Obstakel / overig
Q25: Fout personenwagen
Q26: Fout Vracht
B38: Opmerking
B39: Het onderzoek vindt plaats gedurende coronamaatregelen.
B40: Dit heeft mogelijk een effect op de resultaten.
B42: Toelichting
B43: Pers = personenwagens op daarvoor bestemde
B44: openbare plaatsen
B45: Vracht = vrachtwagens op daarvoor bestemde
B46: parkeerplaatsen (middel- en zwaar vrachtverkeer)
B47: Motor = geparkeerde motoren op openbare plaatsen
B48: Obstakel / overig = obstakels of overige voertuigen
B49: geparkeerd op openbare plaatsen
B50: Fout pers = personenwagens die fout geparkeerd staan
B51: Fout vracht = vrachtwagens die fout geparkeerd staan
B52: E-wagen = geparkeerde elektrisch voertuig bij een
B53: elektrisch oplaadpunt
B54: Invalide = personenwagens en motoren op voor
B55: invalide personen bestemde parkeerplaats
B56: Gestalde fietsen = alle gestalde fietsen op de
B57: daarvoor bestemde parkeerplaatsen

Sheet 20.Paal
B2: PARKEERONDERZOEK | D2: CARPOOLPARKINGS EN P+R PARKINGS
B3: 20 | D3: =B8 & " - "& TEXT(VLOOKUP(B3,Coordinaten!$A$2:$G$95,7,0),"dddd dd mmmm jjjj") -> Carpool parking Paal, Beringen - donderdag 18 november 2021
B4: =VLOOKUP(B3,Coordinaten!$A$2:$G$95,6,0) -> 51.043187, 5.186305
D5: BEZETTING | Q5: OPMERKINGEN
B7: Onderzoeksgebied | D7: Datum | E7: Geregistreerd tussen | F7: Pers | G7: Vracht | H7: Motor | I7: Obstakel / overig | J7: Fout pers | K7: Fout Vracht | L7: Totaal | M7: E-wagen plaats | N7: Invalidenplaats | O7: Gestalde fietsen | U7: =F7 -> Pers | V7: Vracht | W7: Motor | X7: Obstakel / overig | Y7: Fout pers | Z7: Fout Vracht
B8: =VLOOKUP(B3,Coordinaten!$A$2:$G$95,3,0)&", "&VLOOKUP(B3,Coordinaten!$A$2:$G$95,5,0) -> Carpool parking Paal, Beringen | D8: 2021-11-18 | E8: 09:00 - 16:00u | F8: 54 | G8: 0 | H8: 0 | I8: 0 | J8: 0 | K8: 1 | L8: 55 | M8: 0 | N8: 0 | O8: 2 | Q8: 0 | S8: =D8 -> 2021-11-18 | T8: =E8 -> 09:00 - 16:00u | U8: =IF(F8=0,NA(),F8/$L8) -> 0.9818181818 | V8: =IF(G8=0,NA(),G8/$L8) ->  | W8: =IF(H8=0,NA(),H8/$L8) ->  | Z8: 0.01818181818
B9: ="Nabij kruispunt: "&VLOOKUP(B3,Coordinaten!$A$2:$L$95,4,0) -> Nabij kruispunt: N29 / A13 | F9: 0.9818181818 | G9: - | H9: - | I9: - | J9: - | K9: 0.01818181818 | L9: 1 | Q9: 0 | S9: =D10 -> 2021-11-18 | T9: =E10 -> 19:00 - 02:00u | U9: =IF(F10=0,NA(),F10/$L10) -> 1 | V9: =IF(G10=0,NA(),G10/$L10) -> 
D10: 2021-11-18 | E10: 19:00 - 02:00u | F10: 16 | G10: 0 | H10: 0 | I10: 0 | J10: 0 | K10: 0 | L10: 16 | M10: 0 | N10: 0 | O10: 0 | Q10: 0
B11: Meting | F11: 1 | G11: - | H11: - | I11: - | J11: - | K11: - | L11: 1 | Q11: 0
B12: ="Meetperiode: "&TEXT(VLOOKUP(B3,Coordinaten!$A$2:$G$95,7,0),"dddd dd mmmm jjjj") -> Meetperiode: donderdag 18 november 2021
B13: Methodiek: Parkeerdrukmeting met waarnemers
B14: In opdracht van: Vlaamse overheid
B15: Uitgevoerd door: Dufec
D16: VERDELING NAAR CATEGORIE
B17: Locatie
B18: =IF(B4="","",HYPERLINK("http://www.googlemaps.com/?q="&B4,"Lat/Long: "&B4)) -> Lat/Long: 51.043187, 5.186305
P20: Legenda
Q21: Personenwagen
Q22: Vracht
Q23: Motor
Q24: Obstakel / overig
Q25: Fout personenwagen
Q26: Fout Vracht
B38: Opmerking
B39: Het onderzoek vindt plaats gedurende coronamaatregelen.
B40: Dit heeft mogelijk een effect op de resultaten.
B42: Toelichting
B43: Pers = personenwagens op daarvoor bestemde
B44: openbare plaatsen
B45: Vracht = vrachtwagens op daarvoor bestemde
B46: parkeerplaatsen (middel- en zwaar vrachtverkeer)
B47: Motor = geparkeerde motoren op openbare plaatsen
B48: Obstakel / overig = obstakels of overige voertuigen
B49: geparkeerd op openbare plaatsen
B50: Fout pers = personenwagens die fout geparkeerd staan
B51: Fout vracht = vrachtwagens die fout geparkeerd staan
B52: E-wagen = geparkeerde elektrisch voertuig bij een
B53: elektrisch oplaadpunt
B54: Invalide = personenwagens en motoren op voor
B55: invalide personen bestemde parkeerplaats
B56: Gestalde fietsen = alle gestalde fietsen op de
B57: daarvoor bestemde parkeerplaatsen

Sheet 21.Lummen
B2: PARKEERONDERZOEK | D2: CARPOOLPARKINGS EN P+R PARKINGS
B3: 21 | D3: =B8 & " - "& TEXT(VLOOKUP(B3,Coordinaten!$A$2:$G$95,7,0),"dddd dd mmmm jjjj") -> Carpool parking Lummen, Lummen - dinsdag 16 november 2021
B4: =VLOOKUP(B3,Coordinaten!$A$2:$G$95,6,0) -> 50.997621, 5.197778
D5: BEZETTING | Q5: OPMERKINGEN
B7: Onderzoeksgebied | D7: Datum | E7: Geregistreerd tussen | F7: Pers | G7: Vracht | H7: Motor | I7: Obstakel / overig | J7: Fout pers | K7: Fout Vracht | L7: Totaal | M7: E-wagen plaats | N7: Invalidenplaats | O7: Gestalde fietsen | U7: =F7 -> Pers | V7: Vracht | W7: Motor | X7: Obstakel / overig | Y7: Fout pers | Z7: Fout Vracht
B8: =VLOOKUP(B3,Coordinaten!$A$2:$G$95,3,0)&", "&VLOOKUP(B3,Coordinaten!$A$2:$G$95,5,0) -> Carpool parking Lummen, Lummen | D8: 2021-11-16 | E8: 09:00 - 16:00u | F8: 156 | G8: 0 | H8: 0 | I8: 0 | J8: 0 | K8: 1 | L8: 157 | M8: 0 | N8: 0 | O8: 2 | Q8: 0 | S8: =D8 -> 2021-11-16 | T8: =E8 -> 09:00 - 16:00u | U8: =IF(F8=0,NA(),F8/$L8) -> 0.9936305732 | V8: =IF(G8=0,NA(),G8/$L8) ->  | W8: =IF(H8=0,NA(),H8/$L8) ->  | Z8: 0.006369426752
B9: ="Nabij kruispunt: "&VLOOKUP(B3,Coordinaten!$A$2:$L$95,4,0) -> Nabij kruispunt: N717 / A2 | F9: 0.9936305732 | G9: - | H9: - | I9: - | J9: - | K9: 0.006369426752 | L9: 1 | Q9: 0 | S9: =D10 -> 2021-11-16 | T9: =E10 -> 19:00 - 02:00u | U9: =IF(F10=0,NA(),F10/$L10) -> 1 | V9: =IF(G10=0,NA(),G10/$L10) -> 
D10: 2021-11-16 | E10: 19:00 - 02:00u | F10: 28 | G10: 0 | H10: 0 | I10: 0 | J10: 0 | K10: 0 | L10: 28 | M10: 0 | N10: 0 | O10: 5 | Q10: 0
B11: Meting | F11: 1 | G11: - | H11: - | I11: - | J11: - | K11: - | L11: 1 | Q11: 0
B12: ="Meetperiode: "&TEXT(VLOOKUP(B3,Coordinaten!$A$2:$G$95,7,0),"dddd dd mmmm jjjj") -> Meetperiode: dinsdag 16 november 2021
B13: Methodiek: Parkeerdrukmeting met waarnemers
B14: In opdracht van: Vlaamse overheid
B15: Uitgevoerd door: Dufec
D16: VERDELING NAAR CATEGORIE
B17: Locatie
B18: =IF(B4="","",HYPERLINK("http://www.googlemaps.com/?q="&B4,"Lat/Long: "&B4)) -> Lat/Long: 50.997621, 5.197778
P20: Legenda
Q21: Personenwagen
Q22: Vracht
Q23: Motor
Q24: Obstakel / overig
Q25: Fout personenwagen
Q26: Fout Vracht
B38: Opmerking
B39: Het onderzoek vindt plaats gedurende coronamaatregelen.
B40: Dit heeft mogelijk een effect op de resultaten.
B42: Toelichting
B43: Pers = personenwagens op daarvoor bestemde
B44: openbare plaatsen
B45: Vracht = vrachtwagens op daarvoor bestemde
B46: parkeerplaatsen (middel- en zwaar vrachtverkeer)
B47: Motor = geparkeerde motoren op openbare plaatsen
B48: Obstakel / overig = obstakels of overige voertuigen
B49: geparkeerd op openbare plaatsen
B50: Fout pers = personenwagens die fout geparkeerd staan
B51: Fout vracht = vrachtwagens die fout geparkeerd staan
B52: E-wagen = geparkeerde elektrisch voertuig bij een
B53: elektrisch oplaadpunt
B54: Invalide = personenwagens en motoren op voor
B55: invalide personen bestemde parkeerplaats
B56: Gestalde fietsen = alle gestalde fietsen op de
B57: daarvoor bestemde parkeerplaatsen

Sheet 22.Halen
B2: PARKEERONDERZOEK | D2: CARPOOLPARKINGS EN P+R PARKINGS
B3: 22 | D3: =B8 & " - "& TEXT(VLOOKUP(B3,Coordinaten!$A$2:$G$95,7,0),"dddd dd mmmm jjjj") -> Carpool parking Halen, Halen - dinsdag 16 november 2021
B4: =VLOOKUP(B3,Coordinaten!$A$2:$G$95,6,0) -> 50.962073, 5.083806
D5: BEZETTING | Q5: OPMERKINGEN
B7: Onderzoeksgebied | D7: Datum | E7: Geregistreerd tussen | F7: Pers | G7: Vracht | H7: Motor | I7: Obstakel / overig | J7: Fout pers | K7: Fout Vracht | L7: Totaal | M7: E-wagen plaats | N7: Invalidenplaats | O7: Gestalde fietsen | U7: =F7 -> Pers | V7: Vracht | W7: Motor | X7: Obstakel / overig | Y7: Fout pers | Z7: Fout Vracht
B8: =VLOOKUP(B3,Coordinaten!$A$2:$G$95,3,0)&", "&VLOOKUP(B3,Coordinaten!$A$2:$G$95,5,0) -> Carpool parking Halen, Halen | D8: 2021-11-16 | E8: 09:00 - 16:00u | F8: 35 | G8: 0 | H8: 0 | I8: 1 | J8: 0 | K8: 1 | L8: 37 | M8: 0 | N8: 0 | O8: 0 | Q8: Obstakel: aanhanger | S8: =D8 -> 2021-11-16 | T8: =E8 -> 09:00 - 16:00u | U8: =IF(F8=0,NA(),F8/$L8) -> 0.9459459459 | V8: =IF(G8=0,NA(),G8/$L8) ->  | W8: =IF(H8=0,NA(),H8/$L8) ->  | X8: 0.02702702703 | Z8: 0.02702702703
B9: ="Nabij kruispunt: "&VLOOKUP(B3,Coordinaten!$A$2:$L$95,4,0) -> Nabij kruispunt: N2 / A2 | F9: 0.9459459459 | G9: - | H9: - | I9: 0.02702702703 | J9: - | K9: 0.02702702703 | L9: 1 | Q9: 0 | S9: =D10 -> 2021-11-16 | T9: =E10 -> 19:00 - 02:00u | U9: =IF(F10=0,NA(),F10/$L10) -> 1 | V9: =IF(G10=0,NA(),G10/$L10) -> 
D10: 2021-11-16 | E10: 19:00 - 02:00u | F10: 5 | G10: 0 | H10: 0 | I10: 0 | J10: 0 | K10: 0 | L10: 5 | M10: 0 | N10: 0 | O10: 0 | Q10: 0
B11: Meting | F11: 1 | G11: - | H11: - | I11: - | J11: - | K11: - | L11: 1 | Q11: 0
B12: ="Meetperiode: "&TEXT(VLOOKUP(B3,Coordinaten!$A$2:$G$95,7,0),"dddd dd mmmm jjjj") -> Meetperiode: dinsdag 16 november 2021
B13: Methodiek: Parkeerdrukmeting met waarnemers
B14: In opdracht van: Vlaamse overheid
B15: Uitgevoerd door: Dufec
D16: VERDELING NAAR CATEGORIE
B17: Locatie
B18: =IF(B4="","",HYPERLINK("http://www.googlemaps.com/?q="&B4,"Lat/Long: "&B4)) -> Lat/Long: 50.962073, 5.083806
P20: Legenda
Q21: Personenwagen
Q22: Vracht
Q23: Motor
Q24: Obstakel / overig
Q25: Fout personenwagen
Q26: Fout Vracht
B38: Opmerking
B39: Het onderzoek vindt plaats gedurende coronamaatregelen.
B40: Dit heeft mogelijk een effect op de resultaten.
B42: Toelichting
B43: Pers = personenwagens op daarvoor bestemde
B44: openbare plaatsen
B45: Vracht = vrachtwagens op daarvoor bestemde
B46: parkeerplaatsen (middel- en zwaar vrachtverkeer)
B47: Motor = geparkeerde motoren op openbare plaatsen
B48: Obstakel / overig = obstakels of overige voertuigen
B49: geparkeerd op openbare plaatsen
B50: Fout pers = personenwagens die fout geparkeerd staan
B51: Fout vracht = vrachtwagens die fout geparkeerd staan
B52: E-wagen = geparkeerde elektrisch voertuig bij een
B53: elektrisch oplaadpunt
B54: Invalide = personenwagens en motoren op voor
B55: invalide personen bestemde parkeerplaats
B56: Gestalde fietsen = alle gestalde fietsen op de
B57: daarvoor bestemde parkeerplaatsen

Sheet 23.Maasmechelen
B2: PARKEERONDERZOEK | D2: CARPOOLPARKINGS EN P+R PARKINGS
B3: 23 | D3: =B8 & " - "& TEXT(VLOOKUP(B3,Coordinaten!$A$2:$G$95,7,0),"dddd dd mmmm jjjj") -> Carpool parking Maasmechelen, Maasmechelen - dinsdag 16 november 2021
B4: =VLOOKUP(B3,Coordinaten!$A$2:$G$95,6,0) -> 50.954058, 5.694835
D5: BEZETTING | Q5: OPMERKINGEN
B7: Onderzoeksgebied | D7: Datum | E7: Geregistreerd tussen | F7: Pers | G7: Vracht | H7: Motor | I7: Obstakel / overig | J7: Fout pers | K7: Fout Vracht | L7: Totaal | M7: E-wagen plaats | N7: Invalidenplaats | O7: Gestalde fietsen | U7: =F7 -> Pers | V7: Vracht | W7: Motor | X7: Obstakel / overig | Y7: Fout pers | Z7: Fout Vracht
B8: =VLOOKUP(B3,Coordinaten!$A$2:$G$95,3,0)&", "&VLOOKUP(B3,Coordinaten!$A$2:$G$95,5,0) -> Carpool parking Maasmechelen, Maasmechelen | D8: 2021-11-16 | E8: 09:00 - 16:00u | F8: 54 | G8: 0 | H8: 0 | I8: 0 | J8: 0 | K8: 0 | L8: 54 | M8: 0 | N8: 0 | O8: 0 | Q8: 0 | S8: =D8 -> 2021-11-16 | T8: =E8 -> 09:00 - 16:00u | U8: =IF(F8=0,NA(),F8/$L8) -> 1 | V8: =IF(G8=0,NA(),G8/$L8) ->  | W8: =IF(H8=0,NA(),H8/$L8) -> 
B9: ="Nabij kruispunt: "&VLOOKUP(B3,Coordinaten!$A$2:$L$95,4,0) -> Nabij kruispunt: N78 / E314 | F9: 1 | G9: - | H9: - | I9: - | J9: - | K9: - | L9: 1 | Q9: 0 | S9: =D10 -> 2021-11-16 | T9: =E10 -> 19:00 - 02:00u | U9: =IF(F10=0,NA(),F10/$L10) -> 1 | V9: =IF(G10=0,NA(),G10/$L10) -> 
D10: 2021-11-16 | E10: 19:00 - 02:00u | F10: 29 | G10: 0 | H10: 0 | I10: 0 | J10: 0 | K10: 0 | L10: 29 | M10: 0 | N10: 0 | O10: 0 | Q10: 0
B11: Meting | F11: 1 | G11: - | H11: - | I11: - | J11: - | K11: - | L11: 1 | Q11: 0
B12: ="Meetperiode: "&TEXT(VLOOKUP(B3,Coordinaten!$A$2:$G$95,7,0),"dddd dd mmmm jjjj") -> Meetperiode: dinsdag 16 november 2021
B13: Methodiek: Parkeerdrukmeting met waarnemers
B14: In opdracht van: Vlaamse overheid
B15: Uitgevoerd door: Dufec
D16: VERDELING NAAR CATEGORIE
B17: Locatie
B18: =IF(B4="","",HYPERLINK("http://www.googlemaps.com/?q="&B4,"Lat/Long: "&B4)) -> Lat/Long: 50.954058, 5.694835
P20: Legenda
Q21: Personenwagen
Q22: Vracht
Q23: Motor
Q24: Obstakel / overig
Q25: Fout personenwagen
Q26: Fout Vracht
B38: Opmerking
B39: Het onderzoek vindt plaats gedurende coronamaatregelen.
B40: Dit heeft mogelijk een effect op de resultaten.
B42: Toelichting
B43: Pers = personenwagens op daarvoor bestemde
B44: openbare plaatsen
B45: Vracht = vrachtwagens op daarvoor bestemde
B46: parkeerplaatsen (middel- en zwaar vrachtverkeer)
B47: Motor = geparkeerde motoren op openbare plaatsen
B48: Obstakel / overig = obstakels of overige voertuigen
B49: geparkeerd op openbare plaatsen
B50: Fout pers = personenwagens die fout geparkeerd staan
B51: Fout vracht = vrachtwagens die fout geparkeerd staan
B52: E-wagen = geparkeerde elektrisch voertuig bij een
B53: elektrisch oplaadpunt
B54: Invalide = personenwagens en motoren op voor
B55: invalide personen bestemde parkeerplaats
B56: Gestalde fietsen = alle gestalde fietsen op de
B57: daarvoor bestemde parkeerplaatsen

Sheet 24.Gentbrugge Arsenaal
B2: PARKEERONDERZOEK | D2: CARPOOLPARKINGS EN P+R PARKINGS
B3: 24 | D3: =B8 & " - "& TEXT(VLOOKUP(B3,Coordinaten!$A$2:$G$95,7,0),"dddd dd mmmm jjjj") -> P+R parking Gentbrugge Arsenaal, Gent - dinsdag 23 november 2021
B4: =VLOOKUP(B3,Coordinaten!$A$2:$G$95,6,0) -> 51.032277, 3.758713
D5: BEZETTING | Q5: OPMERKINGEN
B7: Onderzoeksgebied | D7: Datum | E7: Geregistreerd tussen | F7: Pers | G7: Vracht | H7: Motor | I7: Obstakel / overig | J7: Fout pers | K7: Fout Vracht | L7: Totaal | M7: E-wagen plaats | N7: Invalidenplaats | O7: Gestalde fietsen | U7: =F7 -> Pers | V7: Vracht | W7: Motor | X7: Obstakel / overig | Y7: Fout pers | Z7: Fout Vracht
B8: =VLOOKUP(B3,Coordinaten!$A$2:$G$95,3,0)&", "&VLOOKUP(B3,Coordinaten!$A$2:$G$95,5,0) -> P+R parking Gentbrugge Arsenaal, Gent | D8: 2021-11-23 | E8: 09:00 - 16:00u | F8: 247 | G8: 0 | H8: 0 | I8: 3 | J8: 18 | K8: 0 | L8: 268 | M8: 0 | N8: 0 | O8: 55 | Q8: Vanaf 20 november nieuwe coronamaatregelen, waaronder verplicht telewerk | S8: =D8 -> 2021-11-23 | T8: =E8 -> 09:00 - 16:00u | U8: =IF(F8=0,NA(),F8/$L8) -> 0.921641791 | V8: =IF(G8=0,NA(),G8/$L8) ->  | W8: =IF(H8=0,NA(),H8/$L8) ->  | X8: 0.01119402985 | Y8: 0.0671641791
B9: ="Nabij kruispunt: "&VLOOKUP(B3,Coordinaten!$A$2:$L$95,4,0) -> Nabij kruispunt: N9 / Jules de Saint-Genoisstraat | F9: 0.921641791 | G9: - | H9: - | I9: 0.01119402985 | J9: 0.0671641791 | K9: - | L9: 1 | Q9: Obstakel: 3 caravans | S9: =D10 -> 2021-11-23 | T9: =E10 -> 19:00 - 02:00u | U9: =IF(F10=0,NA(),F10/$L10) -> 0.9834254144 | V9: =IF(G10=0,NA(),G10/$L10) ->  | X9: 0.01657458564
D10: 2021-11-23 | E10: 19:00 - 02:00u | F10: 178 | G10: 0 | H10: 0 | I10: 3 | J10: 0 | K10: 0 | L10: 181 | M10: 0 | N10: 4 | O10: 60 | Q10: Vanaf 20 november nieuwe coronamaatregelen, waaronder verplicht telewerk
B11: Meting | F11: 0.9834254144 | G11: - | H11: - | I11: 0.01657458564 | J11: - | K11: - | L11: 1 | Q11: Obstakel: 3 caravans
B12: ="Meetperiode: "&TEXT(VLOOKUP(B3,Coordinaten!$A$2:$G$95,7,0),"dddd dd mmmm jjjj") -> Meetperiode: dinsdag 23 november 2021
B13: Methodiek: Parkeerdrukmeting met waarnemers
B14: In opdracht van: Vlaamse overheid
B15: Uitgevoerd door: Dufec
D16: VERDELING NAAR CATEGORIE
B17: Locatie
B18: =IF(B4="","",HYPERLINK("http://www.googlemaps.com/?q="&B4,"Lat/Long: "&B4)) -> Lat/Long: 51.032277, 3.758713
P20: Legenda
Q21: Personenwagen
Q22: Vracht
Q23: Motor
Q24: Obstakel / overig
Q25: Fout personenwagen
Q26: Fout Vracht
B38: Opmerking
B39: Het onderzoek vindt plaats gedurende coronamaatregelen.
B40: Dit heeft mogelijk een effect op de resultaten.
B42: Toelichting
B43: Pers = personenwagens op daarvoor bestemde
B44: openbare plaatsen
B45: Vracht = vrachtwagens op daarvoor bestemde
B46: parkeerplaatsen (middel- en zwaar vrachtverkeer)
B47: Motor = geparkeerde motoren op openbare plaatsen
B48: Obstakel / overig = obstakels of overige voertuigen
B49: geparkeerd op openbare plaatsen
B50: Fout pers = personenwagens die fout geparkeerd staan
B51: Fout vracht = vrachtwagens die fout geparkeerd staan
B52: E-wagen = geparkeerde elektrisch voertuig bij een
B53: elektrisch oplaadpunt
B54: Invalide = personenwagens en motoren op voor
B55: invalide personen bestemde parkeerplaats
B56: Gestalde fietsen = alle gestalde fietsen op de
B57: daarvoor bestemde parkeerplaatsen

Sheet 25.Aalst-Zuid
B2: PARKEERONDERZOEK | D2: CARPOOLPARKINGS EN P+R PARKINGS
B3: 25 | D3: =B8 & " - "& TEXT(VLOOKUP(B3,Coordinaten!$A$2:$G$95,7,0),"dddd dd mmmm jjjj") -> Carpool parking Aalst-Zuid, Aalst - dinsdag 23 november 2021
B4: =VLOOKUP(B3,Coordinaten!$A$2:$G$95,6,0) -> 50.913372, 4.031872
D5: BEZETTING | Q5: OPMERKINGEN
B7: Onderzoeksgebied | D7: Datum | E7: Geregistreerd tussen | F7: Pers | G7: Vracht | H7: Motor | I7: Obstakel / overig | J7: Fout pers | K7: Fout Vracht | L7: Totaal | M7: E-wagen plaats | N7: Invalidenplaats | O7: Gestalde fietsen | U7: =F7 -> Pers | V7: Vracht | W7: Motor | X7: Obstakel / overig | Y7: Fout pers | Z7: Fout Vracht
B8: =VLOOKUP(B3,Coordinaten!$A$2:$G$95,3,0)&", "&VLOOKUP(B3,Coordinaten!$A$2:$G$95,5,0) -> Carpool parking Aalst-Zuid, Aalst | D8: 2021-11-23 | E8: 09:00 - 16:00u | F8: 25 | G8: 0 | H8: 0 | I8: 0 | J8: 0 | K8: 0 | L8: 25 | M8: 0 | N8: 0 | O8: 0 | Q8: Vanaf 20 november nieuwe coronamaatregelen, waaronder verplicht telewerk | S8: =D8 -> 2021-11-23 | T8: =E8 -> 09:00 - 16:00u | U8: =IF(F8=0,NA(),F8/$L8) -> 1 | V8: =IF(G8=0,NA(),G8/$L8) ->  | W8: =IF(H8=0,NA(),H8/$L8) -> 
B9: ="Nabij kruispunt: "&VLOOKUP(B3,Coordinaten!$A$2:$L$95,4,0) -> Nabij kruispunt: N45 / N460 | F9: 1 | G9: - | H9: - | I9: - | J9: - | K9: - | L9: 1 | Q9: 0 | S9: =D10 -> 2021-11-23 | T9: =E10 -> 19:00 - 02:00u | U9: =IF(F10=0,NA(),F10/$L10) -> 1 | V9: =IF(G10=0,NA(),G10/$L10) -> 
D10: 2021-11-23 | E10: 19:00 - 02:00u | F10: 9 | G10: 0 | H10: 0 | I10: 0 | J10: 0 | K10: 0 | L10: 9 | M10: 1 | N10: 0 | O10: 0 | Q10: Vanaf 20 november nieuwe coronamaatregelen, waaronder verplicht telewerk
B11: Meting | F11: 1 | G11: - | H11: - | I11: - | J11: - | K11: - | L11: 1 | Q11: 0
B12: ="Meetperiode: "&TEXT(VLOOKUP(B3,Coordinaten!$A$2:$G$95,7,0),"dddd dd mmmm jjjj") -> Meetperiode: dinsdag 23 november 2021
B13: Methodiek: Parkeerdrukmeting met waarnemers
B14: In opdracht van: Vlaamse overheid
B15: Uitgevoerd door: Dufec
D16: VERDELING NAAR CATEGORIE
B17: Locatie
B18: =IF(B4="","",HYPERLINK("http://www.googlemaps.com/?q="&B4,"Lat/Long: "&B4)) -> Lat/Long: 50.913372, 4.031872
P20: Legenda
Q21: Personenwagen
Q22: Vracht
Q23: Motor
Q24: Obstakel / overig
Q25: Fout personenwagen
Q26: Fout Vracht
B38: Opmerking
B39: Het onderzoek vindt plaats gedurende coronamaatregelen.
B40: Dit heeft mogelijk een effect op de resultaten.
B42: Toelichting
B43: Pers = personenwagens op daarvoor bestemde
B44: openbare plaatsen
B45: Vracht = vrachtwagens op daarvoor bestemde
B46: parkeerplaatsen (middel- en zwaar vrachtverkeer)
B47: Motor = geparkeerde motoren op openbare plaatsen
B48: Obstakel / overig = obstakels of overige voertuigen
B49: geparkeerd op openbare plaatsen
B50: Fout pers = personenwagens die fout geparkeerd staan
B51: Fout vracht = vrachtwagens die fout geparkeerd staan
B52: E-wagen = geparkeerde elektrisch voertuig bij een
B53: elektrisch oplaadpunt
B54: Invalide = personenwagens en motoren op voor
B55: invalide personen bestemde parkeerplaats
B56: Gestalde fietsen = alle gestalde fietsen op de
B57: daarvoor bestemde parkeerplaatsen

Sheet 26.Waasmunster
B2: PARKEERONDERZOEK | D2: CARPOOLPARKINGS EN P+R PARKINGS
B3: 26 | D3: =B8 & " - "& TEXT(VLOOKUP(B3,Coordinaten!$A$2:$G$95,7,0),"dddd dd mmmm jjjj") -> P+R parking Waasmunster, Waasmunster - dinsdag 09 november 2021
B4: =VLOOKUP(B3,Coordinaten!$A$2:$G$95,6,0) -> 51.127953, 4.079340
D5: BEZETTING | Q5: OPMERKINGEN
B7: Onderzoeksgebied | D7: Datum | E7: Geregistreerd tussen | F7: Pers | G7: Vracht | H7: Motor | I7: Obstakel / overig | J7: Fout pers | K7: Fout Vracht | L7: Totaal | M7: E-wagen plaats | N7: Invalidenplaats | O7: Gestalde fietsen | U7: =F7 -> Pers | V7: Vracht | W7: Motor | X7: Obstakel / overig | Y7: Fout pers | Z7: Fout Vracht
B8: =VLOOKUP(B3,Coordinaten!$A$2:$G$95,3,0)&", "&VLOOKUP(B3,Coordinaten!$A$2:$G$95,5,0) -> P+R parking Waasmunster, Waasmunster | D8: 2021-11-09 | E8: 09:00 - 16:00u | F8: 31 | G8: 0 | H8: 0 | I8: 0 | J8: 0 | K8: 0 | L8: 31 | M8: 0 | N8: 0 | O8: 0 | Q8: 0 | S8: =D8 -> 2021-11-09 | T8: =E8 -> 09:00 - 16:00u | U8: =IF(F8=0,NA(),F8/$L8) -> 1 | V8: =IF(G8=0,NA(),G8/$L8) ->  | W8: =IF(H8=0,NA(),H8/$L8) -> 
B9: ="Nabij kruispunt: "&VLOOKUP(B3,Coordinaten!$A$2:$L$95,4,0) -> Nabij kruispunt: N446 / A14 | F9: 1 | G9: - | H9: - | I9: - | J9: - | K9: - | L9: 1 | Q9: 0 | S9: =D10 -> 2021-11-09 | T9: =E10 -> 19:00 - 02:00u | U9: =IF(F10=0,NA(),F10/$L10) -> 1 | V9: =IF(G10=0,NA(),G10/$L10) -> 
D10: 2021-11-09 | E10: 19:00 - 02:00u | F10: 17 | G10: 0 | H10: 0 | I10: 0 | J10: 0 | K10: 0 | L10: 17 | M10: 0 | N10: 0 | O10: 1 | Q10: 0
B11: Meting | F11: 1 | G11: - | H11: - | I11: - | J11: - | K11: - | L11: 1 | Q11: 0
B12: ="Meetperiode: "&TEXT(VLOOKUP(B3,Coordinaten!$A$2:$G$95,7,0),"dddd dd mmmm jjjj") -> Meetperiode: dinsdag 09 november 2021
B13: Methodiek: Parkeerdrukmeting met waarnemers
B14: In opdracht van: Vlaamse overheid
B15: Uitgevoerd door: Dufec
D16: VERDELING NAAR CATEGORIE
B17: Locatie
B18: =IF(B4="","",HYPERLINK("http://www.googlemaps.com/?q="&B4,"Lat/Long: "&B4)) -> Lat/Long: 51.127953, 4.079340
P20: Legenda
Q21: Personenwagen
Q22: Vracht
Q23: Motor
Q24: Obstakel / overig
Q25: Fout personenwagen
Q26: Fout Vracht
B38: Opmerking
B39: Het onderzoek vindt plaats gedurende coronamaatregelen.
B40: Dit heeft mogelijk een effect op de resultaten.
B42: Toelichting
B43: Pers = personenwagens op daarvoor bestemde
B44: openbare plaatsen
B45: Vracht = vrachtwagens op daarvoor bestemde
B46: parkeerplaatsen (middel- en zwaar vrachtverkeer)
B47: Motor = geparkeerde motoren op openbare plaatsen
B48: Obstakel / overig = obstakels of overige voertuigen
B49: geparkeerd op openbare plaatsen
B50: Fout pers = personenwagens die fout geparkeerd staan
B51: Fout vracht = vrachtwagens die fout geparkeerd staan
B52: E-wagen = geparkeerde elektrisch voertuig bij een
B53: elektrisch oplaadpunt
B54: Invalide = personenwagens en motoren op voor
B55: invalide personen bestemde parkeerplaats
B56: Gestalde fietsen = alle gestalde fietsen op de
B57: daarvoor bestemde parkeerplaatsen

Sheet 27.Melsele-Zuid
B2: PARKEERONDERZOEK | D2: CARPOOLPARKINGS EN P+R PARKINGS
B3: 27 | D3: =B8 & " - "& TEXT(VLOOKUP(B3,Coordinaten!$A$2:$G$95,7,0),"dddd dd mmmm jjjj") -> Carpool parking Melsele-Zuid, Beveren - dinsdag 09 november 2021
B4: =VLOOKUP(B3,Coordinaten!$A$2:$G$95,6,0) -> 51.239507, 4.269469
D5: BEZETTING | Q5: OPMERKINGEN
B7: Onderzoeksgebied | D7: Datum | E7: Geregistreerd tussen | F7: Pers | G7: Vracht | H7: Motor | I7: Obstakel / overig | J7: Fout pers | K7: Fout Vracht | L7: Totaal | M7: E-wagen plaats | N7: Invalidenplaats | O7: Gestalde fietsen | U7: =F7 -> Pers | V7: Vracht | W7: Motor | X7: Obstakel / overig | Y7: Fout pers | Z7: Fout Vracht
B8: =VLOOKUP(B3,Coordinaten!$A$2:$G$95,3,0)&", "&VLOOKUP(B3,Coordinaten!$A$2:$G$95,5,0) -> Carpool parking Melsele-Zuid, Beveren | D8: 2021-11-09 | E8: 09:00 - 16:00u | F8: 15 | G8: 0 | H8: 0 | I8: 0 | J8: 0 | K8: 1 | L8: 16 | M8: 0 | N8: 0 | O8: 3 | Q8: 0 | S8: =D8 -> 2021-11-09 | T8: =E8 -> 09:00 - 16:00u | U8: =IF(F8=0,NA(),F8/$L8) -> 0.9375 | V8: =IF(G8=0,NA(),G8/$L8) ->  | W8: =IF(H8=0,NA(),H8/$L8) ->  | Z8: 0.0625
B9: ="Nabij kruispunt: "&VLOOKUP(B3,Coordinaten!$A$2:$L$95,4,0) -> Nabij kruispunt: N450 / A11 | F9: 0.9375 | G9: - | H9: - | I9: - | J9: - | K9: 0.0625 | L9: 1 | Q9: 0 | S9: =D10 -> 2021-11-09 | T9: =E10 -> 19:00 - 02:00u | U9: =IF(F10=0,NA(),F10/$L10) -> 0.6 | V9: =IF(G10=0,NA(),G10/$L10) ->  | Y9: 0.2 | Z9: 0.2
D10: 2021-11-09 | E10: 19:00 - 02:00u | F10: 3 | G10: 0 | H10: 0 | I10: 0 | J10: 1 | K10: 1 | L10: 5 | M10: 0 | N10: 0 | O10: 0 | Q10: 0
B11: Meting | F11: 0.6 | G11: - | H11: - | I11: - | J11: 0.2 | K11: 0.2 | L11: 1 | Q11: 0
B12: ="Meetperiode: "&TEXT(VLOOKUP(B3,Coordinaten!$A$2:$G$95,7,0),"dddd dd mmmm jjjj") -> Meetperiode: dinsdag 09 november 2021
B13: Methodiek: Parkeerdrukmeting met waarnemers
B14: In opdracht van: Vlaamse overheid
B15: Uitgevoerd door: Dufec
D16: VERDELING NAAR CATEGORIE
B17: Locatie
B18: =IF(B4="","",HYPERLINK("http://www.googlemaps.com/?q="&B4,"Lat/Long: "&B4)) -> Lat/Long: 51.239507, 4.269469
P20: Legenda
Q21: Personenwagen
Q22: Vracht
Q23: Motor
Q24: Obstakel / overig
Q25: Fout personenwagen
Q26: Fout Vracht
B38: Opmerking
B39: Het onderzoek vindt plaats gedurende coronamaatregelen.
B40: Dit heeft mogelijk een effect op de resultaten.
B42: Toelichting
B43: Pers = personenwagens op daarvoor bestemde
B44: openbare plaatsen
B45: Vracht = vrachtwagens op daarvoor bestemde
B46: parkeerplaatsen (middel- en zwaar vrachtverkeer)
B47: Motor = geparkeerde motoren op openbare plaatsen
B48: Obstakel / overig = obstakels of overige voertuigen
B49: geparkeerd op openbare plaatsen
B50: Fout pers = personenwagens die fout geparkeerd staan
B51: Fout vracht = vrachtwagens die fout geparkeerd staan
B52: E-wagen = geparkeerde elektrisch voertuig bij een
B53: elektrisch oplaadpunt
B54: Invalide = personenwagens en motoren op voor
B55: invalide personen bestemde parkeerplaats
B56: Gestalde fietsen = alle gestalde fietsen op de
B57: daarvoor bestemde parkeerplaatsen

Sheet 28.Meerbeke
B2: PARKEERONDERZOEK | D2: CARPOOLPARKINGS EN P+R PARKINGS
B3: 28 | D3: =B8 & " - "& TEXT(VLOOKUP(B3,Coordinaten!$A$2:$G$95,7,0),"dddd dd mmmm jjjj") -> Carpool parking Meerbeke, Ninove - dinsdag 23 november 2021
B4: =VLOOKUP(B3,Coordinaten!$A$2:$G$95,6,0) -> 50.828223, 4.034914
D5: BEZETTING | Q5: OPMERKINGEN
B7: Onderzoeksgebied | D7: Datum | E7: Geregistreerd tussen | F7: Pers | G7: Vracht | H7: Motor | I7: Obstakel / overig | J7: Fout pers | K7: Fout Vracht | L7: Totaal | M7: E-wagen plaats | N7: Invalidenplaats | O7: Gestalde fietsen | U7: =F7 -> Pers | V7: Vracht | W7: Motor | X7: Obstakel / overig | Y7: Fout pers | Z7: Fout Vracht
B8: =VLOOKUP(B3,Coordinaten!$A$2:$G$95,3,0)&", "&VLOOKUP(B3,Coordinaten!$A$2:$G$95,5,0) -> Carpool parking Meerbeke, Ninove | D8: 2021-11-23 | E8: 09:00 - 16:00u | F8: 27 | G8: 0 | H8: 0 | I8: 0 | J8: 0 | K8: 0 | L8: 27 | M8: 0 | N8: 0 | O8: 0 | Q8: Vanaf 20 november nieuwe coronamaatregelen, waaronder verplicht telewerk | S8: =D8 -> 2021-11-23 | T8: =E8 -> 09:00 - 16:00u | U8: =IF(F8=0,NA(),F8/$L8) -> 1 | V8: =IF(G8=0,NA(),G8/$L8) ->  | W8: =IF(H8=0,NA(),H8/$L8) -> 
B9: ="Nabij kruispunt: "&VLOOKUP(B3,Coordinaten!$A$2:$L$95,4,0) -> Nabij kruispunt: N28 / N8 | F9: 1 | G9: - | H9: - | I9: - | J9: - | K9: - | L9: 1 | Q9: 0 | S9: =D10 -> 2021-11-23 | T9: =E10 -> 19:00 - 02:00u | U9: =IF(F10=0,NA(),F10/$L10) -> 1 | V9: =IF(G10=0,NA(),G10/$L10) -> 
D10: 2021-11-23 | E10: 19:00 - 02:00u | F10: 15 | G10: 0 | H10: 0 | I10: 0 | J10: 0 | K10: 0 | L10: 15 | M10: 0 | N10: 0 | O10: 0 | Q10: Vanaf 20 november nieuwe coronamaatregelen, waaronder verplicht telewerk
B11: Meting | F11: 1 | G11: - | H11: - | I11: - | J11: - | K11: - | L11: 1 | Q11: 0
B12: ="Meetperiode: "&TEXT(VLOOKUP(B3,Coordinaten!$A$2:$G$95,7,0),"dddd dd mmmm jjjj") -> Meetperiode: dinsdag 23 november 2021
B13: Methodiek: Parkeerdrukmeting met waarnemers
B14: In opdracht van: Vlaamse overheid
B15: Uitgevoerd door: Dufec
D16: VERDELING NAAR CATEGORIE
B17: Locatie
B18: =IF(B4="","",HYPERLINK("http://www.googlemaps.com/?q="&B4,"Lat/Long: "&B4)) -> Lat/Long: 50.828223, 4.034914
P20: Legenda
Q21: Personenwagen
Q22: Vracht
Q23: Motor
Q24: Obstakel / overig
Q25: Fout personenwagen
Q26: Fout Vracht
B38: Opmerking
B39: Het onderzoek vindt plaats gedurende coronamaatregelen.
B40: Dit heeft mogelijk een effect op de resultaten.
B42: Toelichting
B43: Pers = personenwagens op daarvoor bestemde
B44: openbare plaatsen
B45: Vracht = vrachtwagens op daarvoor bestemde
B46: parkeerplaatsen (middel- en zwaar vrachtverkeer)
B47: Motor = geparkeerde motoren op openbare plaatsen
B48: Obstakel / overig = obstakels of overige voertuigen
B49: geparkeerd op openbare plaatsen
B50: Fout pers = personenwagens die fout geparkeerd staan
B51: Fout vracht = vrachtwagens die fout geparkeerd staan
B52: E-wagen = geparkeerde elektrisch voertuig bij een
B53: elektrisch oplaadpunt
B54: Invalide = personenwagens en motoren op voor
B55: invalide personen bestemde parkeerplaats
B56: Gestalde fietsen = alle gestalde fietsen op de
B57: daarvoor bestemde parkeerplaatsen

Sheet 29.Ninove
B2: PARKEERONDERZOEK | D2: CARPOOLPARKINGS EN P+R PARKINGS
B3: 29 | D3: =B8 & " - "& TEXT(VLOOKUP(B3,Coordinaten!$A$2:$G$95,7,0),"dddd dd mmmm jjjj") -> Carpool parking Ninove, Ninove - dinsdag 23 november 2021
B4: =VLOOKUP(B3,Coordinaten!$A$2:$G$95,6,0) -> 50.827345, 4.025918
D5: BEZETTING | Q5: OPMERKINGEN
B7: Onderzoeksgebied | D7: Datum | E7: Geregistreerd tussen | F7: Pers | G7: Vracht | H7: Motor | I7: Obstakel / overig | J7: Fout pers | K7: Fout Vracht | L7: Totaal | M7: E-wagen plaats | N7: Invalidenplaats | O7: Gestalde fietsen | U7: =F7 -> Pers | V7: Vracht | W7: Motor | X7: Obstakel / overig | Y7: Fout pers | Z7: Fout Vracht
B8: =VLOOKUP(B3,Coordinaten!$A$2:$G$95,3,0)&", "&VLOOKUP(B3,Coordinaten!$A$2:$G$95,5,0) -> Carpool parking Ninove, Ninove | D8: 2021-11-23 | E8: 09:00 - 16:00u | F8: 22 | G8: 0 | H8: 0 | I8: 0 | J8: 0 | K8: 0 | L8: 22 | M8: 0 | N8: 0 | O8: 0 | Q8: Vanaf 20 november nieuwe coronamaatregelen, waaronder verplicht telewerk | S8: =D8 -> 2021-11-23 | T8: =E8 -> 09:00 - 16:00u | U8: =IF(F8=0,NA(),F8/$L8) -> 1 | V8: =IF(G8=0,NA(),G8/$L8) ->  | W8: =IF(H8=0,NA(),H8/$L8) -> 
B9: ="Nabij kruispunt: "&VLOOKUP(B3,Coordinaten!$A$2:$L$95,4,0) -> Nabij kruispunt: N255 / N8 | F9: 1 | G9: - | H9: - | I9: - | J9: - | K9: - | L9: 1 | Q9: 0 | S9: =D10 -> 2021-11-23 | T9: =E10 -> 19:00 - 02:00u | U9: =IF(F10=0,NA(),F10/$L10) -> 1 | V9: =IF(G10=0,NA(),G10/$L10) -> 
D10: 2021-11-23 | E10: 19:00 - 02:00u | F10: 18 | G10: 0 | H10: 0 | I10: 0 | J10: 0 | K10: 0 | L10: 18 | M10: 0 | N10: 0 | O10: 0 | Q10: Vanaf 20 november nieuwe coronamaatregelen, waaronder verplicht telewerk
B11: Meting | F11: 1 | G11: - | H11: - | I11: - | J11: - | K11: - | L11: 1 | Q11: 0
B12: ="Meetperiode: "&TEXT(VLOOKUP(B3,Coordinaten!$A$2:$G$95,7,0),"dddd dd mmmm jjjj") -> Meetperiode: dinsdag 23 november 2021
B13: Methodiek: Parkeerdrukmeting met waarnemers
B14: In opdracht van: Vlaamse overheid
B15: Uitgevoerd door: Dufec
D16: VERDELING NAAR CATEGORIE
B17: Locatie
B18: =IF(B4="","",HYPERLINK("http://www.googlemaps.com/?q="&B4,"Lat/Long: "&B4)) -> Lat/Long: 50.827345, 4.025918
P20: Legenda
Q21: Personenwagen
Q22: Vracht
Q23: Motor
Q24: Obstakel / overig
Q25: Fout personenwagen
Q26: Fout Vracht
B38: Opmerking
B39: Het onderzoek vindt plaats gedurende coronamaatregelen.
B40: Dit heeft mogelijk een effect op de resultaten.
B42: Toelichting
B43: Pers = personenwagens op daarvoor bestemde
B44: openbare plaatsen
B45: Vracht = vrachtwagens op daarvoor bestemde
B46: parkeerplaatsen (middel- en zwaar vrachtverkeer)
B47: Motor = geparkeerde motoren op openbare plaatsen
B48: Obstakel / overig = obstakels of overige voertuigen
B49: geparkeerd op openbare plaatsen
B50: Fout pers = personenwagens die fout geparkeerd staan
B51: Fout vracht = vrachtwagens die fout geparkeerd staan
B52: E-wagen = geparkeerde elektrisch voertuig bij een
B53: elektrisch oplaadpunt
B54: Invalide = personenwagens en motoren op voor
B55: invalide personen bestemde parkeerplaats
B56: Gestalde fietsen = alle gestalde fietsen op de
B57: daarvoor bestemde parkeerplaatsen

Sheet 30.Kruishoutem
B2: PARKEERONDERZOEK | D2: CARPOOLPARKINGS EN P+R PARKINGS
B3: 30 | D3: =B8 & " - "& TEXT(VLOOKUP(B3,Coordinaten!$A$2:$G$95,7,0),"dddd dd mmmm jjjj") -> Carpool parking Kruishoutem, Kruishoutem - dinsdag 23 november 2021
B4: =VLOOKUP(B3,Coordinaten!$A$2:$G$95,6,0) -> 50.916012, 3.492023
D5: BEZETTING | Q5: OPMERKINGEN
B7: Onderzoeksgebied | D7: Datum | E7: Geregistreerd tussen | F7: Pers | G7: Vracht | H7: Motor | I7: Obstakel / overig | J7: Fout pers | K7: Fout Vracht | L7: Totaal | M7: E-wagen plaats | N7: Invalidenplaats | O7: Gestalde fietsen | U7: =F7 -> Pers | V7: Vracht | W7: Motor | X7: Obstakel / overig | Y7: Fout pers | Z7: Fout Vracht
B8: =VLOOKUP(B3,Coordinaten!$A$2:$G$95,3,0)&", "&VLOOKUP(B3,Coordinaten!$A$2:$G$95,5,0) -> Carpool parking Kruishoutem, Kruishoutem | D8: 2021-11-23 | E8: 09:00 - 16:00u | F8: 28 | G8: 0 | H8: 0 | I8: 0 | J8: 0 | K8: 0 | L8: 28 | M8: 0 | N8: 0 | O8: 3 | Q8: Vanaf 20 november nieuwe coronamaatregelen, waaronder verplicht telewerk | S8: =D8 -> 2021-11-23 | T8: =E8 -> 09:00 - 16:00u | U8: =IF(F8=0,NA(),F8/$L8) -> 1 | V8: =IF(G8=0,NA(),G8/$L8) ->  | W8: =IF(H8=0,NA(),H8/$L8) -> 
B9: ="Nabij kruispunt: "&VLOOKUP(B3,Coordinaten!$A$2:$L$95,4,0) -> Nabij kruispunt: N459 / A14 | F9: 1 | G9: - | H9: - | I9: - | J9: - | K9: - | L9: 1 | Q9: 0 | S9: =D10 -> 2021-11-23 | T9: =E10 -> 19:00 - 02:00u | U9: =IF(F10=0,NA(),F10/$L10) -> 0.75 | V9: =IF(G10=0,NA(),G10/$L10) ->  | Z9: 0.25
D10: 2021-11-23 | E10: 19:00 - 02:00u | F10: 12 | G10: 0 | H10: 0 | I10: 0 | J10: 0 | K10: 4 | L10: 16 | M10: 0 | N10: 0 | O10: 0 | Q10: Vanaf 20 november nieuwe coronamaatregelen, waaronder verplicht telewerk
B11: Meting | F11: 0.75 | G11: - | H11: - | I11: - | J11: - | K11: 0.25 | L11: 1 | Q11: 0
B12: ="Meetperiode: "&TEXT(VLOOKUP(B3,Coordinaten!$A$2:$G$95,7,0),"dddd dd mmmm jjjj") -> Meetperiode: dinsdag 23 november 2021
B13: Methodiek: Parkeerdrukmeting met waarnemers
B14: In opdracht van: Vlaamse overheid
B15: Uitgevoerd door: Dufec
D16: VERDELING NAAR CATEGORIE
B17: Locatie
B18: =IF(B4="","",HYPERLINK("http://www.googlemaps.com/?q="&B4,"Lat/Long: "&B4)) -> Lat/Long: 50.916012, 3.492023
P20: Legenda
Q21: Personenwagen
Q22: Vracht
Q23: Motor
Q24: Obstakel / overig
Q25: Fout personenwagen
Q26: Fout Vracht
B38: Opmerking
B39: Het onderzoek vindt plaats gedurende coronamaatregelen.
B40: Dit heeft mogelijk een effect op de resultaten.
B42: Toelichting
B43: Pers = personenwagens op daarvoor bestemde
B44: openbare plaatsen
B45: Vracht = vrachtwagens op daarvoor bestemde
B46: parkeerplaatsen (middel- en zwaar vrachtverkeer)
B47: Motor = geparkeerde motoren op openbare plaatsen
B48: Obstakel / overig = obstakels of overige voertuigen
B49: geparkeerd op openbare plaatsen
B50: Fout pers = personenwagens die fout geparkeerd staan
B51: Fout vracht = vrachtwagens die fout geparkeerd staan
B52: E-wagen = geparkeerde elektrisch voertuig bij een
B53: elektrisch oplaadpunt
B54: Invalide = personenwagens en motoren op voor
B55: invalide personen bestemde parkeerplaats
B56: Gestalde fietsen = alle gestalde fietsen op de
B57: daarvoor bestemde parkeerplaatsen

Sheet 32.Vrasene-Noord
B2: PARKEERONDERZOEK | D2: CARPOOLPARKINGS EN P+R PARKINGS
B3: 32 | D3: =B8 & " - "& TEXT(VLOOKUP(B3,Coordinaten!$A$2:$G$95,7,0),"dddd dd mmmm jjjj") -> Carpool parking Vrasene-Noord, Beveren - dinsdag 09 november 2021
B4: =VLOOKUP(B3,Coordinaten!$A$2:$G$95,6,0) -> 51.240943, 4.189741
D5: BEZETTING | Q5: OPMERKINGEN
B7: Onderzoeksgebied | D7: Datum | E7: Geregistreerd tussen | F7: Pers | G7: Vracht | H7: Motor | I7: Obstakel / overig | J7: Fout pers | K7: Fout Vracht | L7: Totaal | M7: E-wagen plaats | N7: Invalidenplaats | O7: Gestalde fietsen | U7: =F7 -> Pers | V7: Vracht | W7: Motor | X7: Obstakel / overig | Y7: Fout pers | Z7: Fout Vracht
B8: =VLOOKUP(B3,Coordinaten!$A$2:$G$95,3,0)&", "&VLOOKUP(B3,Coordinaten!$A$2:$G$95,5,0) -> Carpool parking Vrasene-Noord, Beveren | D8: 2021-11-09 | E8: 09:00 - 16:00u | F8: 23 | G8: 2 | H8: 0 | I8: 0 | J8: 0 | K8: 0 | L8: 25 | M8: 0 | N8: 0 | O8: 3 | Q8: 0 | S8: =D8 -> 2021-11-09 | T8: =E8 -> 09:00 - 16:00u | U8: =IF(F8=0,NA(),F8/$L8) -> 0.92 | V8: =IF(G8=0,NA(),G8/$L8) -> 0.08 | W8: =IF(H8=0,NA(),H8/$L8) -> 
B9: ="Nabij kruispunt: "&VLOOKUP(B3,Coordinaten!$A$2:$L$95,4,0) -> Nabij kruispunt: N451 / A11 | F9: 0.92 | G9: 0.08 | H9: - | I9: - | J9: - | K9: - | L9: 1 | Q9: 0 | S9: =D10 -> 2021-11-09 | T9: =E10 -> 19:00 - 02:00u | U9: =IF(F10=0,NA(),F10/$L10) -> 0.9 | V9: =IF(G10=0,NA(),G10/$L10) ->  | Z9: 0.1
D10: 2021-11-09 | E10: 19:00 - 02:00u | F10: 9 | G10: 0 | H10: 0 | I10: 0 | J10: 0 | K10: 1 | L10: 10 | M10: 0 | N10: 0 | O10: 0 | Q10: 0
B11: Meting | F11: 0.9 | G11: - | H11: - | I11: - | J11: - | K11: 0.1 | L11: 1 | Q11: 0
B12: ="Meetperiode: "&TEXT(VLOOKUP(B3,Coordinaten!$A$2:$G$95,7,0),"dddd dd mmmm jjjj") -> Meetperiode: dinsdag 09 november 2021
B13: Methodiek: Parkeerdrukmeting met waarnemers
B14: In opdracht van: Vlaamse overheid
B15: Uitgevoerd door: Dufec
D16: VERDELING NAAR CATEGORIE
B17: Locatie
B18: =IF(B4="","",HYPERLINK("http://www.googlemaps.com/?q="&B4,"Lat/Long: "&B4)) -> Lat/Long: 51.240943, 4.189741
P20: Legenda
Q21: Personenwagen
Q22: Vracht
Q23: Motor
Q24: Obstakel / overig
Q25: Fout personenwagen
Q26: Fout Vracht
B38: Opmerking
B39: Het onderzoek vindt plaats gedurende coronamaatregelen.
B40: Dit heeft mogelijk een effect op de resultaten.
B42: Toelichting
B43: Pers = personenwagens op daarvoor bestemde
B44: openbare plaatsen
B45: Vracht = vrachtwagens op daarvoor bestemde
B46: parkeerplaatsen (middel- en zwaar vrachtverkeer)
B47: Motor = geparkeerde motoren op openbare plaatsen
B48: Obstakel / overig = obstakels of overige voertuigen
B49: geparkeerd op openbare plaatsen
B50: Fout pers = personenwagens die fout geparkeerd staan
B51: Fout vracht = vrachtwagens die fout geparkeerd staan
B52: E-wagen = geparkeerde elektrisch voertuig bij een
B53: elektrisch oplaadpunt
B54: Invalide = personenwagens en motoren op voor
B55: invalide personen bestemde parkeerplaats
B56: Gestalde fietsen = alle gestalde fietsen op de
B57: daarvoor bestemde parkeerplaatsen

Sheet 33.Merelbeke
B2: PARKEERONDERZOEK | D2: CARPOOLPARKINGS EN P+R PARKINGS
B3: 33 | D3: =B8 & " - "& TEXT(VLOOKUP(B3,Coordinaten!$A$2:$G$95,7,0),"dddd dd mmmm jjjj") -> Carpool parking Merelbeke, Merelbeke - dinsdag 23 november 2021
B4: =VLOOKUP(B3,Coordinaten!$A$2:$G$95,6,0) -> 51.003542, 3.763040
D5: BEZETTING | Q5: OPMERKINGEN
B7: Onderzoeksgebied | D7: Datum | E7: Geregistreerd tussen | F7: Pers | G7: Vracht | H7: Motor | I7: Obstakel / overig | J7: Fout pers | K7: Fout Vracht | L7: Totaal | M7: E-wagen plaats | N7: Invalidenplaats | O7: Gestalde fietsen | U7: =F7 -> Pers | V7: Vracht | W7: Motor | X7: Obstakel / overig | Y7: Fout pers | Z7: Fout Vracht
B8: =VLOOKUP(B3,Coordinaten!$A$2:$G$95,3,0)&", "&VLOOKUP(B3,Coordinaten!$A$2:$G$95,5,0) -> Carpool parking Merelbeke, Merelbeke | D8: 2021-11-23 | E8: 09:00 - 16:00u | F8: 45 | G8: 0 | H8: 0 | I8: 1 | J8: 0 | K8: 0 | L8: 46 | M8: 0 | N8: 0 | O8: 3 | Q8: Vanaf 20 november nieuwe coronamaatregelen, waaronder verplicht telewerk | S8: =D8 -> 2021-11-23 | T8: =E8 -> 09:00 - 16:00u | U8: =IF(F8=0,NA(),F8/$L8) -> 0.9782608696 | V8: =IF(G8=0,NA(),G8/$L8) ->  | W8: =IF(H8=0,NA(),H8/$L8) ->  | X8: 0.02173913043
B9: ="Nabij kruispunt: "&VLOOKUP(B3,Coordinaten!$A$2:$L$95,4,0) -> Nabij kruispunt: B403 / R4 | F9: 0.9782608696 | G9: - | H9: - | I9: 0.02173913043 | J9: - | K9: - | L9: 1 | Q9: Obstakel: stalen pijpen op parkeerplaats | S9: =D10 -> 2021-11-23 | T9: =E10 -> 19:00 - 02:00u | U9: =IF(F10=0,NA(),F10/$L10) -> 0.9333333333 | V9: =IF(G10=0,NA(),G10/$L10) ->  | X9: 0.06666666667
D10: 2021-11-23 | E10: 19:00 - 02:00u | F10: 14 | G10: 0 | H10: 0 | I10: 1 | J10: 0 | K10: 0 | L10: 15 | M10: 0 | N10: 0 | O10: 0 | Q10: Vanaf 20 november nieuwe coronamaatregelen, waaronder verplicht telewerk
B11: Meting | F11: 0.9333333333 | G11: - | H11: - | I11: 0.06666666667 | J11: - | K11: - | L11: 1 | Q11: Obstakel: stalen pijpen op parkeerplaats
B12: ="Meetperiode: "&TEXT(VLOOKUP(B3,Coordinaten!$A$2:$G$95,7,0),"dddd dd mmmm jjjj") -> Meetperiode: dinsdag 23 november 2021
B13: Methodiek: Parkeerdrukmeting met waarnemers
B14: In opdracht van: Vlaamse overheid
B15: Uitgevoerd door: Dufec
D16: VERDELING NAAR CATEGORIE
B17: Locatie
B18: =IF(B4="","",HYPERLINK("http://www.googlemaps.com/?q="&B4,"Lat/Long: "&B4)) -> Lat/Long: 51.003542, 3.763040
P20: Legenda
Q21: Personenwagen
Q22: Vracht
Q23: Motor
Q24: Obstakel / overig
Q25: Fout personenwagen
Q26: Fout Vracht
B38: Opmerking
B39: Het onderzoek vindt plaats gedurende coronamaatregelen.
B40: Dit heeft mogelijk een effect op de resultaten.
B42: Toelichting
B43: Pers = personenwagens op daarvoor bestemde
B44: openbare plaatsen
B45: Vracht = vrachtwagens op daarvoor bestemde
B46: parkeerplaatsen (middel- en zwaar vrachtverkeer)
B47: Motor = geparkeerde motoren op openbare plaatsen
B48: Obstakel / overig = obstakels of overige voertuigen
B49: geparkeerd op openbare plaatsen
B50: Fout pers = personenwagens die fout geparkeerd staan
B51: Fout vracht = vrachtwagens die fout geparkeerd staan
B52: E-wagen = geparkeerde elektrisch voertuig bij een
B53: elektrisch oplaadpunt
B54: Invalide = personenwagens en motoren op voor
B55: invalide personen bestemde parkeerplaats
B56: Gestalde fietsen = alle gestalde fietsen op de
B57: daarvoor bestemde parkeerplaatsen

Sheet 34.Vilvoorde
B2: PARKEERONDERZOEK | D2: CARPOOLPARKINGS EN P+R PARKINGS
B3: 34 | D3: =B8 & " - "& TEXT(VLOOKUP(B3,Coordinaten!$A$2:$G$95,7,0),"dddd dd mmmm jjjj") -> Carpool parking Vilvoorde, Machelen - donderdag 18 november 2021
B4: =VLOOKUP(B3,Coordinaten!$A$2:$G$95,6,0) -> 50.910540, 4.459740
D5: BEZETTING | Q5: OPMERKINGEN
B7: Onderzoeksgebied | D7: Datum | E7: Geregistreerd tussen | F7: Pers | G7: Vracht | H7: Motor | I7: Obstakel / overig | J7: Fout pers | K7: Fout Vracht | L7: Totaal | M7: E-wagen plaats | N7: Invalidenplaats | O7: Gestalde fietsen | U7: =F7 -> Pers | V7: Vracht | W7: Motor | X7: Obstakel / overig | Y7: Fout pers | Z7: Fout Vracht
B8: =VLOOKUP(B3,Coordinaten!$A$2:$G$95,3,0)&", "&VLOOKUP(B3,Coordinaten!$A$2:$G$95,5,0) -> Carpool parking Vilvoorde, Machelen | D8: 2021-11-18 | E8: 09:00 - 16:00u | F8: 28 | G8: 0 | H8: 0 | I8: 0 | J8: 0 | K8: 2 | L8: 30 | M8: 0 | N8: 0 | O8: 0 | Q8: 0 | S8: =D8 -> 2021-11-18 | T8: =E8 -> 09:00 - 16:00u | U8: =IF(F8=0,NA(),F8/$L8) -> 0.9333333333 | V8: =IF(G8=0,NA(),G8/$L8) ->  | W8: =IF(H8=0,NA(),H8/$L8) ->  | Z8: 0.06666666667
B9: ="Nabij kruispunt: "&VLOOKUP(B3,Coordinaten!$A$2:$L$95,4,0) -> Nabij kruispunt: N211 / N21 | F9: 0.9333333333 | G9: - | H9: - | I9: - | J9: - | K9: 0.06666666667 | L9: 1 | Q9: 0 | S9: =D10 -> 2021-11-18 | T9: =E10 -> 19:00 - 02:00u | U9: =IF(F10=0,NA(),F10/$L10) -> 1 | V9: =IF(G10=0,NA(),G10/$L10) -> 
D10: 2021-11-18 | E10: 19:00 - 02:00u | F10: 10 | G10: 0 | H10: 0 | I10: 0 | J10: 0 | K10: 0 | L10: 10 | M10: 0 | N10: 0 | O10: 0 | Q10: 0
B11: Meting | F11: 1 | G11: - | H11: - | I11: - | J11: - | K11: - | L11: 1 | Q11: 0
B12: ="Meetperiode: "&TEXT(VLOOKUP(B3,Coordinaten!$A$2:$G$95,7,0),"dddd dd mmmm jjjj") -> Meetperiode: donderdag 18 november 2021
B13: Methodiek: Parkeerdrukmeting met waarnemers
B14: In opdracht van: Vlaamse overheid
B15: Uitgevoerd door: Dufec
D16: VERDELING NAAR CATEGORIE
B17: Locatie
B18: =IF(B4="","",HYPERLINK("http://www.googlemaps.com/?q="&B4,"Lat/Long: "&B4)) -> Lat/Long: 50.910540, 4.459740
P20: Legenda
Q21: Personenwagen
Q22: Vracht
Q23: Motor
Q24: Obstakel / overig
Q25: Fout personenwagen
Q26: Fout Vracht
B38: Opmerking
B39: Het onderzoek vindt plaats gedurende coronamaatregelen.
B40: Dit heeft mogelijk een effect op de resultaten.
B42: Toelichting
B43: Pers = personenwagens op daarvoor bestemde
B44: openbare plaatsen
B45: Vracht = vrachtwagens op daarvoor bestemde
B46: parkeerplaatsen (middel- en zwaar vrachtverkeer)
B47: Motor = geparkeerde motoren op openbare plaatsen
B48: Obstakel / overig = obstakels of overige voertuigen
B49: geparkeerd op openbare plaatsen
B50: Fout pers = personenwagens die fout geparkeerd staan
B51: Fout vracht = vrachtwagens die fout geparkeerd staan
B52: E-wagen = geparkeerde elektrisch voertuig bij een
B53: elektrisch oplaadpunt
B54: Invalide = personenwagens en motoren op voor
B55: invalide personen bestemde parkeerplaats
B56: Gestalde fietsen = alle gestalde fietsen op de
B57: daarvoor bestemde parkeerplaatsen

Sheet 35.Holsbeek
B2: PARKEERONDERZOEK | D2: CARPOOLPARKINGS EN P+R PARKINGS
B3: 35 | D3: =B8 & " - "& TEXT(VLOOKUP(B3,Coordinaten!$A$2:$G$95,7,0),"dddd dd mmmm jjjj") -> Carpool parking Holsbeek, Leuven - dinsdag 16 november 2021
B4: =VLOOKUP(B3,Coordinaten!$A$2:$G$95,6,0) -> 50.933565, 4.743369
D5: BEZETTING | Q5: OPMERKINGEN
B7: Onderzoeksgebied | D7: Datum | E7: Geregistreerd tussen | F7: Pers | G7: Vracht | H7: Motor | I7: Obstakel / overig | J7: Fout pers | K7: Fout Vracht | L7: Totaal | M7: E-wagen plaats | N7: Invalidenplaats | O7: Gestalde fietsen | U7: =F7 -> Pers | V7: Vracht | W7: Motor | X7: Obstakel / overig | Y7: Fout pers | Z7: Fout Vracht
B8: =VLOOKUP(B3,Coordinaten!$A$2:$G$95,3,0)&", "&VLOOKUP(B3,Coordinaten!$A$2:$G$95,5,0) -> Carpool parking Holsbeek, Leuven | D8: 2021-11-16 | E8: 09:00 - 16:00u | F8: 13 | G8: 0 | H8: 0 | I8: 0 | J8: 0 | K8: 0 | L8: 13 | M8: 0 | N8: 0 | O8: 0 | Q8: 0 | S8: =D8 -> 2021-11-16 | T8: =E8 -> 09:00 - 16:00u | U8: =IF(F8=0,NA(),F8/$L8) -> 1 | V8: =IF(G8=0,NA(),G8/$L8) ->  | W8: =IF(H8=0,NA(),H8/$L8) -> 
B9: ="Nabij kruispunt: "&VLOOKUP(B3,Coordinaten!$A$2:$L$95,4,0) -> Nabij kruispunt: N229 / A2 | F9: 1 | G9: - | H9: - | I9: - | J9: - | K9: - | L9: 1 | Q9: 0 | S9: =D10 -> 2021-11-16 | T9: =E10 -> 19:00 - 02:00u | U9: =IF(F10=0,NA(),F10/$L10) -> 1 | V9: =IF(G10=0,NA(),G10/$L10) -> 
D10: 2021-11-16 | E10: 19:00 - 02:00u | F10: 5 | G10: 0 | H10: 0 | I10: 0 | J10: 0 | K10: 0 | L10: 5 | M10: 0 | N10: 0 | O10: 0 | Q10: 0
B11: Meting | F11: 1 | G11: - | H11: - | I11: - | J11: - | K11: - | L11: 1 | Q11: 0
B12: ="Meetperiode: "&TEXT(VLOOKUP(B3,Coordinaten!$A$2:$G$95,7,0),"dddd dd mmmm jjjj") -> Meetperiode: dinsdag 16 november 2021
B13: Methodiek: Parkeerdrukmeting met waarnemers
B14: In opdracht van: Vlaamse overheid
B15: Uitgevoerd door: Dufec
D16: VERDELING NAAR CATEGORIE
B17: Locatie
B18: =IF(B4="","",HYPERLINK("http://www.googlemaps.com/?q="&B4,"Lat/Long: "&B4)) -> Lat/Long: 50.933565, 4.743369
P20: Legenda
Q21: Personenwagen
Q22: Vracht
Q23: Motor
Q24: Obstakel / overig
Q25: Fout personenwagen
Q26: Fout Vracht
B38: Opmerking
B39: Het onderzoek vindt plaats gedurende coronamaatregelen.
B40: Dit heeft mogelijk een effect op de resultaten.
B42: Toelichting
B43: Pers = personenwagens op daarvoor bestemde
B44: openbare plaatsen
B45: Vracht = vrachtwagens op daarvoor bestemde
B46: parkeerplaatsen (middel- en zwaar vrachtverkeer)
B47: Motor = geparkeerde motoren op openbare plaatsen
B48: Obstakel / overig = obstakels of overige voertuigen
B49: geparkeerd op openbare plaatsen
B50: Fout pers = personenwagens die fout geparkeerd staan
B51: Fout vracht = vrachtwagens die fout geparkeerd staan
B52: E-wagen = geparkeerde elektrisch voertuig bij een
B53: elektrisch oplaadpunt
B54: Invalide = personenwagens en motoren op voor
B55: invalide personen bestemde parkeerplaats
B56: Gestalde fietsen = alle gestalde fietsen op de
B57: daarvoor bestemde parkeerplaatsen

Sheet 36.Halle-Essenbeek
B2: PARKEERONDERZOEK | D2: CARPOOLPARKINGS EN P+R PARKINGS
B3: 36 | D3: =B8 & " - "& TEXT(VLOOKUP(B3,Coordinaten!$A$2:$G$95,7,0),"dddd dd mmmm jjjj") -> P+R parking Halle-Essenbeek, Halle - dinsdag 23 november 2021
B4: =VLOOKUP(B3,Coordinaten!$A$2:$G$95,6,0) -> 50.721091, 4.250252
D5: BEZETTING | Q5: OPMERKINGEN
B7: Onderzoeksgebied | D7: Datum | E7: Geregistreerd tussen | F7: Pers | G7: Vracht | H7: Motor | I7: Obstakel / overig | J7: Fout pers | K7: Fout Vracht | L7: Totaal | M7: E-wagen plaats | N7: Invalidenplaats | O7: Gestalde fietsen | U7: =F7 -> Pers | V7: Vracht | W7: Motor | X7: Obstakel / overig | Y7: Fout pers | Z7: Fout Vracht
B8: =VLOOKUP(B3,Coordinaten!$A$2:$G$95,3,0)&", "&VLOOKUP(B3,Coordinaten!$A$2:$G$95,5,0) -> P+R parking Halle-Essenbeek, Halle | D8: 2021-11-23 | E8: 09:00 - 16:00u | F8: 15 | G8: 0 | H8: 0 | I8: 0 | J8: 0 | K8: 0 | L8: 15 | M8: 0 | N8: 0 | O8: 0 | Q8: Vanaf 20 november nieuwe coronamaatregelen, waaronder verplicht telewerk | S8: =D8 -> 2021-11-23 | T8: =E8 -> 09:00 - 16:00u | U8: =IF(F8=0,NA(),F8/$L8) -> 1 | V8: =IF(G8=0,NA(),G8/$L8) ->  | W8: =IF(H8=0,NA(),H8/$L8) -> 
B9: ="Nabij kruispunt: "&VLOOKUP(B3,Coordinaten!$A$2:$L$95,4,0) -> Nabij kruispunt: N28 / N203a | F9: 1 | G9: - | H9: - | I9: - | J9: - | K9: - | L9: 1 | Q9: 0 | S9: =D10 -> 2021-11-23 | T9: =E10 -> 19:00 - 02:00u | U9: =IF(F10=0,NA(),F10/$L10) -> 1 | V9: =IF(G10=0,NA(),G10/$L10) -> 
D10: 2021-11-23 | E10: 19:00 - 02:00u | F10: 13 | G10: 0 | H10: 0 | I10: 0 | J10: 0 | K10: 0 | L10: 13 | M10: 0 | N10: 0 | O10: 0 | Q10: Vanaf 20 november nieuwe coronamaatregelen, waaronder verplicht telewerk
B11: Meting | F11: 1 | G11: - | H11: - | I11: - | J11: - | K11: - | L11: 1 | Q11: 0
B12: ="Meetperiode: "&TEXT(VLOOKUP(B3,Coordinaten!$A$2:$G$95,7,0),"dddd dd mmmm jjjj") -> Meetperiode: dinsdag 23 november 2021
B13: Methodiek: Parkeerdrukmeting met waarnemers
B14: In opdracht van: Vlaamse overheid
B15: Uitgevoerd door: Dufec
D16: VERDELING NAAR CATEGORIE
B17: Locatie
B18: =IF(B4="","",HYPERLINK("http://www.googlemaps.com/?q="&B4,"Lat/Long: "&B4)) -> Lat/Long: 50.721091, 4.250252
P20: Legenda
Q21: Personenwagen
Q22: Vracht
Q23: Motor
Q24: Obstakel / overig
Q25: Fout personenwagen
Q26: Fout Vracht
B38: Opmerking
B39: Het onderzoek vindt plaats gedurende coronamaatregelen.
B40: Dit heeft mogelijk een effect op de resultaten.
B42: Toelichting
B43: Pers = personenwagens op daarvoor bestemde
B44: openbare plaatsen
B45: Vracht = vrachtwagens op daarvoor bestemde
B46: parkeerplaatsen (middel- en zwaar vrachtverkeer)
B47: Motor = geparkeerde motoren op openbare plaatsen
B48: Obstakel / overig = obstakels of overige voertuigen
B49: geparkeerd op openbare plaatsen
B50: Fout pers = personenwagens die fout geparkeerd staan
B51: Fout vracht = vrachtwagens die fout geparkeerd staan
B52: E-wagen = geparkeerde elektrisch voertuig bij een
B53: elektrisch oplaadpunt
B54: Invalide = personenwagens en motoren op voor
B55: invalide personen bestemde parkeerplaats
B56: Gestalde fietsen = alle gestalde fietsen op de
B57: daarvoor bestemde parkeerplaatsen

Sheet 37.Halle-Sint Rochus
B2: PARKEERONDERZOEK | D2: CARPOOLPARKINGS EN P+R PARKINGS
B3: 37 | D3: =B8 & " - "& TEXT(VLOOKUP(B3,Coordinaten!$A$2:$G$95,7,0),"dddd dd mmmm jjjj") -> Carpool parking Halle-Sint Rochus, Halle - dinsdag 23 november 2021
B4: =VLOOKUP(B3,Coordinaten!$A$2:$G$95,6,0) -> 50.727008, 4.258883
D5: BEZETTING | Q5: OPMERKINGEN
B7: Onderzoeksgebied | D7: Datum | E7: Geregistreerd tussen | F7: Pers | G7: Vracht | H7: Motor | I7: Obstakel / overig | J7: Fout pers | K7: Fout Vracht | L7: Totaal | M7: E-wagen plaats | N7: Invalidenplaats | O7: Gestalde fietsen | U7: =F7 -> Pers | V7: Vracht | W7: Motor | X7: Obstakel / overig | Y7: Fout pers | Z7: Fout Vracht
B8: =VLOOKUP(B3,Coordinaten!$A$2:$G$95,3,0)&", "&VLOOKUP(B3,Coordinaten!$A$2:$G$95,5,0) -> Carpool parking Halle-Sint Rochus, Halle | D8: 2021-11-23 | E8: 09:00 - 16:00u | F8: 6 | G8: 0 | H8: 0 | I8: 0 | J8: 0 | K8: 4 | L8: 10 | M8: 0 | N8: 0 | O8: 0 | Q8: Vanaf 20 november nieuwe coronamaatregelen, waaronder verplicht telewerk | S8: =D8 -> 2021-11-23 | T8: =E8 -> 09:00 - 16:00u | U8: =IF(F8=0,NA(),F8/$L8) -> 0.6 | V8: =IF(G8=0,NA(),G8/$L8) ->  | W8: =IF(H8=0,NA(),H8/$L8) ->  | Z8: 0.4
B9: ="Nabij kruispunt: "&VLOOKUP(B3,Coordinaten!$A$2:$L$95,4,0) -> Nabij kruispunt: N203 / N203a | F9: 0.6 | G9: - | H9: - | I9: - | J9: - | K9: 0.4 | L9: 1 | Q9: 0 | S9: =D10 -> 2021-11-23 | T9: =E10 -> 19:00 - 02:00u | U9: =IF(F10=0,NA(),F10/$L10) -> 1 | V9: =IF(G10=0,NA(),G10/$L10) -> 
D10: 2021-11-23 | E10: 19:00 - 02:00u | F10: 5 | G10: 0 | H10: 0 | I10: 0 | J10: 0 | K10: 0 | L10: 5 | M10: 0 | N10: 0 | O10: 0 | Q10: Vanaf 20 november nieuwe coronamaatregelen, waaronder verplicht telewerk
B11: Meting | F11: 1 | G11: - | H11: - | I11: - | J11: - | K11: - | L11: 1 | Q11: 0
B12: ="Meetperiode: "&TEXT(VLOOKUP(B3,Coordinaten!$A$2:$G$95,7,0),"dddd dd mmmm jjjj") -> Meetperiode: dinsdag 23 november 2021
B13: Methodiek: Parkeerdrukmeting met waarnemers
B14: In opdracht van: Vlaamse overheid
B15: Uitgevoerd door: Dufec
D16: VERDELING NAAR CATEGORIE
B17: Locatie
B18: =IF(B4="","",HYPERLINK("http://www.googlemaps.com/?q="&B4,"Lat/Long: "&B4)) -> Lat/Long: 50.727008, 4.258883
P20: Legenda
Q21: Personenwagen
Q22: Vracht
Q23: Motor
Q24: Obstakel / overig
Q25: Fout personenwagen
Q26: Fout Vracht
B38: Opmerking
B39: Het onderzoek vindt plaats gedurende coronamaatregelen.
B40: Dit heeft mogelijk een effect op de resultaten.
B42: Toelichting
B43: Pers = personenwagens op daarvoor bestemde
B44: openbare plaatsen
B45: Vracht = vrachtwagens op daarvoor bestemde
B46: parkeerplaatsen (middel- en zwaar vrachtverkeer)
B47: Motor = geparkeerde motoren op openbare plaatsen
B48: Obstakel / overig = obstakels of overige voertuigen
B49: geparkeerd op openbare plaatsen
B50: Fout pers = personenwagens die fout geparkeerd staan
B51: Fout vracht = vrachtwagens die fout geparkeerd staan
B52: E-wagen = geparkeerde elektrisch voertuig bij een
B53: elektrisch oplaadpunt
B54: Invalide = personenwagens en motoren op voor
B55: invalide personen bestemde parkeerplaats
B56: Gestalde fietsen = alle gestalde fietsen op de
B57: daarvoor bestemde parkeerplaatsen

Sheet 38.Boutersem
B2: PARKEERONDERZOEK | D2: CARPOOLPARKINGS EN P+R PARKINGS
B3: 38 | D3: =B8 & " - "& TEXT(VLOOKUP(B3,Coordinaten!$A$2:$G$95,7,0),"dddd dd mmmm jjjj") -> Carpool parking Boutersem, Boutersem - dinsdag 16 november 2021
B4: =VLOOKUP(B3,Coordinaten!$A$2:$G$95,6,0) -> 50.825404, 4.814390
D5: BEZETTING | Q5: OPMERKINGEN
B7: Onderzoeksgebied | D7: Datum | E7: Geregistreerd tussen | F7: Pers | G7: Vracht | H7: Motor | I7: Obstakel / overig | J7: Fout pers | K7: Fout Vracht | L7: Totaal | M7: E-wagen plaats | N7: Invalidenplaats | O7: Gestalde fietsen | U7: =F7 -> Pers | V7: Vracht | W7: Motor | X7: Obstakel / overig | Y7: Fout pers | Z7: Fout Vracht
B8: =VLOOKUP(B3,Coordinaten!$A$2:$G$95,3,0)&", "&VLOOKUP(B3,Coordinaten!$A$2:$G$95,5,0) -> Carpool parking Boutersem, Boutersem | D8: 2021-11-16 | E8: 09:00 - 16:00u | F8: 22 | G8: 0 | H8: 0 | I8: 0 | J8: 1 | K8: 0 | L8: 23 | M8: 0 | N8: 0 | O8: 0 | Q8: 0 | S8: =D8 -> 2021-11-16 | T8: =E8 -> 09:00 - 16:00u | U8: =IF(F8=0,NA(),F8/$L8) -> 0.9565217391 | V8: =IF(G8=0,NA(),G8/$L8) ->  | W8: =IF(H8=0,NA(),H8/$L8) ->  | Y8: 0.04347826087
B9: ="Nabij kruispunt: "&VLOOKUP(B3,Coordinaten!$A$2:$L$95,4,0) -> Nabij kruispunt: N234 / A3 | F9: 0.9565217391 | G9: - | H9: - | I9: - | J9: 0.04347826087 | K9: - | L9: 1 | Q9: 0 | S9: =D10 -> 2021-11-16 | T9: =E10 -> 19:00 - 02:00u | U9: =IF(F10=0,NA(),F10/$L10) -> 1 | V9: =IF(G10=0,NA(),G10/$L10) -> 
D10: 2021-11-16 | E10: 19:00 - 02:00u | F10: 6 | G10: 0 | H10: 0 | I10: 0 | J10: 0 | K10: 0 | L10: 6 | M10: 0 | N10: 0 | O10: 1 | Q10: 0
B11: Meting | F11: 1 | G11: - | H11: - | I11: - | J11: - | K11: - | L11: 1 | Q11: 0
B12: ="Meetperiode: "&TEXT(VLOOKUP(B3,Coordinaten!$A$2:$G$95,7,0),"dddd dd mmmm jjjj") -> Meetperiode: dinsdag 16 november 2021
B13: Methodiek: Parkeerdrukmeting met waarnemers
B14: In opdracht van: Vlaamse overheid
B15: Uitgevoerd door: Dufec
D16: VERDELING NAAR CATEGORIE
B17: Locatie
B18: =IF(B4="","",HYPERLINK("http://www.googlemaps.com/?q="&B4,"Lat/Long: "&B4)) -> Lat/Long: 50.825404, 4.814390
P20: Legenda
Q21: Personenwagen
Q22: Vracht
Q23: Motor
Q24: Obstakel / overig
Q25: Fout personenwagen
Q26: Fout Vracht
B38: Opmerking
B39: Het onderzoek vindt plaats gedurende coronamaatregelen.
B40: Dit heeft mogelijk een effect op de resultaten.
B42: Toelichting
B43: Pers = personenwagens op daarvoor bestemde
B44: openbare plaatsen
B45: Vracht = vrachtwagens op daarvoor bestemde
B46: parkeerplaatsen (middel- en zwaar vrachtverkeer)
B47: Motor = geparkeerde motoren op openbare plaatsen
B48: Obstakel / overig = obstakels of overige voertuigen
B49: geparkeerd op openbare plaatsen
B50: Fout pers = personenwagens die fout geparkeerd staan
B51: Fout vracht = vrachtwagens die fout geparkeerd staan
B52: E-wagen = geparkeerde elektrisch voertuig bij een
B53: elektrisch oplaadpunt
B54: Invalide = personenwagens en motoren op voor
B55: invalide personen bestemde parkeerplaats
B56: Gestalde fietsen = alle gestalde fietsen op de
B57: daarvoor bestemde parkeerplaatsen

Sheet 39.Aarschot
B2: PARKEERONDERZOEK | D2: CARPOOLPARKINGS EN P+R PARKINGS
B3: 39 | D3: =B8 & " - "& TEXT(VLOOKUP(B3,Coordinaten!$A$2:$G$95,7,0),"dddd dd mmmm jjjj") -> Carpool parking Aarschot, Aarschot - dinsdag 16 november 2021
B4: =VLOOKUP(B3,Coordinaten!$A$2:$G$95,6,0) -> 50.963819, 4.836608
D5: BEZETTING | Q5: OPMERKINGEN
B7: Onderzoeksgebied | D7: Datum | E7: Geregistreerd tussen | F7: Pers | G7: Vracht | H7: Motor | I7: Obstakel / overig | J7: Fout pers | K7: Fout Vracht | L7: Totaal | M7: E-wagen plaats | N7: Invalidenplaats | O7: Gestalde fietsen | U7: =F7 -> Pers | V7: Vracht | W7: Motor | X7: Obstakel / overig | Y7: Fout pers | Z7: Fout Vracht
B8: =VLOOKUP(B3,Coordinaten!$A$2:$G$95,3,0)&", "&VLOOKUP(B3,Coordinaten!$A$2:$G$95,5,0) -> Carpool parking Aarschot, Aarschot | D8: 2021-11-16 | E8: 09:00 - 16:00u | F8: 44 | G8: 0 | H8: 0 | I8: 1 | J8: 0 | K8: 0 | L8: 45 | M8: 0 | N8: 0 | O8: 0 | Q8: Obstakel: hoogwerker | S8: =D8 -> 2021-11-16 | T8: =E8 -> 09:00 - 16:00u | U8: =IF(F8=0,NA(),F8/$L8) -> 0.9777777778 | V8: =IF(G8=0,NA(),G8/$L8) ->  | W8: =IF(H8=0,NA(),H8/$L8) ->  | X8: 0.02222222222
B9: ="Nabij kruispunt: "&VLOOKUP(B3,Coordinaten!$A$2:$L$95,4,0) -> Nabij kruispunt: A2 / N233 | F9: 0.9777777778 | G9: - | H9: - | I9: 0.02222222222 | J9: - | K9: - | L9: 1 | Q9: 0 | S9: =D10 -> 2021-11-16 | T9: =E10 -> 19:00 - 02:00u | U9: =IF(F10=0,NA(),F10/$L10) -> 0.9166666667 | V9: =IF(G10=0,NA(),G10/$L10) ->  | X9: 0.08333333333
D10: 2021-11-16 | E10: 19:00 - 02:00u | F10: 11 | G10: 0 | H10: 0 | I10: 1 | J10: 0 | K10: 0 | L10: 12 | M10: 0 | N10: 0 | O10: 0 | Q10: Obstakel: hoogwerker
B11: Meting | F11: 0.9166666667 | G11: - | H11: - | I11: 0.08333333333 | J11: - | K11: - | L11: 1 | Q11: 0
B12: ="Meetperiode: "&TEXT(VLOOKUP(B3,Coordinaten!$A$2:$G$95,7,0),"dddd dd mmmm jjjj") -> Meetperiode: dinsdag 16 november 2021
B13: Methodiek: Parkeerdrukmeting met waarnemers
B14: In opdracht van: Vlaamse overheid
B15: Uitgevoerd door: Dufec
D16: VERDELING NAAR CATEGORIE
B17: Locatie
B18: =IF(B4="","",HYPERLINK("http://www.googlemaps.com/?q="&B4,"Lat/Long: "&B4)) -> Lat/Long: 50.963819, 4.836608
P20: Legenda
Q21: Personenwagen
Q22: Vracht
Q23: Motor
Q24: Obstakel / overig
Q25: Fout personenwagen
Q26: Fout Vracht
B38: Opmerking
B39: Het onderzoek vindt plaats gedurende coronamaatregelen.
B40: Dit heeft mogelijk een effect op de resultaten.
B42: Toelichting
B43: Pers = personenwagens op daarvoor bestemde
B44: openbare plaatsen
B45: Vracht = vrachtwagens op daarvoor bestemde
B46: parkeerplaatsen (middel- en zwaar vrachtverkeer)
B47: Motor = geparkeerde motoren op openbare plaatsen
B48: Obstakel / overig = obstakels of overige voertuigen
B49: geparkeerd op openbare plaatsen
B50: Fout pers = personenwagens die fout geparkeerd staan
B51: Fout vracht = vrachtwagens die fout geparkeerd staan
B52: E-wagen = geparkeerde elektrisch voertuig bij een
B53: elektrisch oplaadpunt
B54: Invalide = personenwagens en motoren op voor
B55: invalide personen bestemde parkeerplaats
B56: Gestalde fietsen = alle gestalde fietsen op de
B57: daarvoor bestemde parkeerplaatsen

Sheet 40.Tielt-Winge
B2: PARKEERONDERZOEK | D2: CARPOOLPARKINGS EN P+R PARKINGS
B3: 40 | D3: =B8 & " - "& TEXT(VLOOKUP(B3,Coordinaten!$A$2:$G$95,7,0),"dddd dd mmmm jjjj") -> Carpool parking Tielt-Winge, Tielt-Winge - dinsdag 16 november 2021
B4: =VLOOKUP(B3,Coordinaten!$A$2:$G$95,6,0) -> 50.959801, 4.930284
D5: BEZETTING | Q5: OPMERKINGEN
B7: Onderzoeksgebied | D7: Datum | E7: Geregistreerd tussen | F7: Pers | G7: Vracht | H7: Motor | I7: Obstakel / overig | J7: Fout pers | K7: Fout Vracht | L7: Totaal | M7: E-wagen plaats | N7: Invalidenplaats | O7: Gestalde fietsen | U7: =F7 -> Pers | V7: Vracht | W7: Motor | X7: Obstakel / overig | Y7: Fout pers | Z7: Fout Vracht
B8: =VLOOKUP(B3,Coordinaten!$A$2:$G$95,3,0)&", "&VLOOKUP(B3,Coordinaten!$A$2:$G$95,5,0) -> Carpool parking Tielt-Winge, Tielt-Winge | D8: 2021-11-16 | E8: 09:00 - 16:00u | F8: 23 | G8: 0 | H8: 0 | I8: 0 | J8: 0 | K8: 1 | L8: 24 | M8: 0 | N8: 0 | O8: 1 | Q8: 0 | S8: =D8 -> 2021-11-16 | T8: =E8 -> 09:00 - 16:00u | U8: =IF(F8=0,NA(),F8/$L8) -> 0.9583333333 | V8: =IF(G8=0,NA(),G8/$L8) ->  | W8: =IF(H8=0,NA(),H8/$L8) ->  | Z8: 0.04166666667
B9: ="Nabij kruispunt: "&VLOOKUP(B3,Coordinaten!$A$2:$L$95,4,0) -> Nabij kruispunt: N258 / A2 | F9: 0.9583333333 | G9: - | H9: - | I9: - | J9: - | K9: 0.04166666667 | L9: 1 | Q9: 0 | S9: =D10 -> 2021-11-16 | T9: =E10 -> 19:00 - 02:00u | U9: =IF(F10=0,NA(),F10/$L10) -> 1 | V9: =IF(G10=0,NA(),G10/$L10) -> 
D10: 2021-11-16 | E10: 19:00 - 02:00u | F10: 9 | G10: 0 | H10: 0 | I10: 0 | J10: 0 | K10: 0 | L10: 9 | M10: 0 | N10: 0 | O10: 0 | Q10: 0
B11: Meting | F11: 1 | G11: - | H11: - | I11: - | J11: - | K11: - | L11: 1 | Q11: 0
B12: ="Meetperiode: "&TEXT(VLOOKUP(B3,Coordinaten!$A$2:$G$95,7,0),"dddd dd mmmm jjjj") -> Meetperiode: dinsdag 16 november 2021
B13: Methodiek: Parkeerdrukmeting met waarnemers
B14: In opdracht van: Vlaamse overheid
B15: Uitgevoerd door: Dufec
D16: VERDELING NAAR CATEGORIE
B17: Locatie
B18: =IF(B4="","",HYPERLINK("http://www.googlemaps.com/?q="&B4,"Lat/Long: "&B4)) -> Lat/Long: 50.959801, 4.930284
P20: Legenda
Q21: Personenwagen
Q22: Vracht
Q23: Motor
Q24: Obstakel / overig
Q25: Fout personenwagen
Q26: Fout Vracht
B38: Opmerking
B39: Het onderzoek vindt plaats gedurende coronamaatregelen.
B40: Dit heeft mogelijk een effect op de resultaten.
B42: Toelichting
B43: Pers = personenwagens op daarvoor bestemde
B44: openbare plaatsen
B45: Vracht = vrachtwagens op daarvoor bestemde
B46: parkeerplaatsen (middel- en zwaar vrachtverkeer)
B47: Motor = geparkeerde motoren op openbare plaatsen
B48: Obstakel / overig = obstakels of overige voertuigen
B49: geparkeerd op openbare plaatsen
B50: Fout pers = personenwagens die fout geparkeerd staan
B51: Fout vracht = vrachtwagens die fout geparkeerd staan
B52: E-wagen = geparkeerde elektrisch voertuig bij een
B53: elektrisch oplaadpunt
B54: Invalide = personenwagens en motoren op voor
B55: invalide personen bestemde parkeerplaats
B56: Gestalde fietsen = alle gestalde fietsen op de
B57: daarvoor bestemde parkeerplaatsen

Sheet 41.Walshoutem
B2: PARKEERONDERZOEK | D2: CARPOOLPARKINGS EN P+R PARKINGS
B3: 41 | D3: =B8 & " - "& TEXT(VLOOKUP(B3,Coordinaten!$A$2:$G$95,7,0),"dddd dd mmmm jjjj") -> Carpool parking Walshoutem, Landen - dinsdag 16 november 2021
B4: =VLOOKUP(B3,Coordinaten!$A$2:$G$95,6,0) -> 50.713075, 5.081833
D5: BEZETTING | Q5: OPMERKINGEN
B7: Onderzoeksgebied | D7: Datum | E7: Geregistreerd tussen | F7: Pers | G7: Vracht | H7: Motor | I7: Obstakel / overig | J7: Fout pers | K7: Fout Vracht | L7: Totaal | M7: E-wagen plaats | N7: Invalidenplaats | O7: Gestalde fietsen | U7: =F7 -> Pers | V7: Vracht | W7: Motor | X7: Obstakel / overig | Y7: Fout pers | Z7: Fout Vracht
B8: =VLOOKUP(B3,Coordinaten!$A$2:$G$95,3,0)&", "&VLOOKUP(B3,Coordinaten!$A$2:$G$95,5,0) -> Carpool parking Walshoutem, Landen | D8: 2021-11-16 | E8: 09:00 - 16:00u | F8: 33 | G8: 0 | H8: 0 | I8: 0 | J8: 19 | K8: 0 | L8: 52 | M8: 0 | N8: 1 | O8: 1 | Q8: 0 | S8: =D8 -> 2021-11-16 | T8: =E8 -> 09:00 - 16:00u | U8: =IF(F8=0,NA(),F8/$L8) -> 0.6346153846 | V8: =IF(G8=0,NA(),G8/$L8) ->  | W8: =IF(H8=0,NA(),H8/$L8) ->  | Y8: 0.3653846154
B9: ="Nabij kruispunt: "&VLOOKUP(B3,Coordinaten!$A$2:$L$95,4,0) -> Nabij kruispunt: N80 / A3 | F9: 0.6346153846 | G9: - | H9: - | I9: - | J9: 0.3653846154 | K9: - | L9: 1 | Q9: 0 | S9: =D10 -> 2021-11-16 | T9: =E10 -> 19:00 - 02:00u | U9: =IF(F10=0,NA(),F10/$L10) -> 0.7 | V9: =IF(G10=0,NA(),G10/$L10) ->  | Z9: 0.3
D10: 2021-11-16 | E10: 19:00 - 02:00u | F10: 7 | G10: 0 | H10: 0 | I10: 0 | J10: 0 | K10: 3 | L10: 10 | M10: 0 | N10: 0 | O10: 0 | Q10: 0
B11: Meting | F11: 0.7 | G11: - | H11: - | I11: - | J11: - | K11: 0.3 | L11: 1 | Q11: 0
B12: ="Meetperiode: "&TEXT(VLOOKUP(B3,Coordinaten!$A$2:$G$95,7,0),"dddd dd mmmm jjjj") -> Meetperiode: dinsdag 16 november 2021
B13: Methodiek: Parkeerdrukmeting met waarnemers
B14: In opdracht van: Vlaamse overheid
B15: Uitgevoerd door: Dufec
D16: VERDELING NAAR CATEGORIE
B17: Locatie
B18: =IF(B4="","",HYPERLINK("http://www.googlemaps.com/?q="&B4,"Lat/Long: "&B4)) -> Lat/Long: 50.713075, 5.081833
P20: Legenda
Q21: Personenwagen
Q22: Vracht
Q23: Motor
Q24: Obstakel / overig
Q25: Fout personenwagen
Q26: Fout Vracht
B38: Opmerking
B39: Het onderzoek vindt plaats gedurende coronamaatregelen.
B40: Dit heeft mogelijk een effect op de resultaten.
B42: Toelichting
B43: Pers = personenwagens op daarvoor bestemde
B44: openbare plaatsen
B45: Vracht = vrachtwagens op daarvoor bestemde
B46: parkeerplaatsen (middel- en zwaar vrachtverkeer)
B47: Motor = geparkeerde motoren op openbare plaatsen
B48: Obstakel / overig = obstakels of overige voertuigen
B49: geparkeerd op openbare plaatsen
B50: Fout pers = personenwagens die fout geparkeerd staan
B51: Fout vracht = vrachtwagens die fout geparkeerd staan
B52: E-wagen = geparkeerde elektrisch voertuig bij een
B53: elektrisch oplaadpunt
B54: Invalide = personenwagens en motoren op voor
B55: invalide personen bestemde parkeerplaats
B56: Gestalde fietsen = alle gestalde fietsen op de
B57: daarvoor bestemde parkeerplaatsen

Sheet 42.Zingem
B2: PARKEERONDERZOEK | D2: CARPOOLPARKINGS EN P+R PARKINGS
B3: 42 | D3: =B8 & " - "& TEXT(VLOOKUP(B3,Coordinaten!$A$2:$G$95,7,0),"dddd dd mmmm jjjj") -> Carpool parking Zingem, Zingem - dinsdag 23 november 2021
B4: =VLOOKUP(B3,Coordinaten!$A$2:$G$95,6,0) -> 50.909427, 3.615886
D5: BEZETTING | Q5: OPMERKINGEN
B7: Onderzoeksgebied | D7: Datum | E7: Geregistreerd tussen | F7: Pers | G7: Vracht | H7: Motor | I7: Obstakel / overig | J7: Fout pers | K7: Fout Vracht | L7: Totaal | M7: E-wagen plaats | N7: Invalidenplaats | O7: Gestalde fietsen | U7: =F7 -> Pers | V7: Vracht | W7: Motor | X7: Obstakel / overig | Y7: Fout pers | Z7: Fout Vracht
B8: =VLOOKUP(B3,Coordinaten!$A$2:$G$95,3,0)&", "&VLOOKUP(B3,Coordinaten!$A$2:$G$95,5,0) -> Carpool parking Zingem, Zingem | D8: 2021-11-23 | E8: 09:00 - 16:00u | F8: 10 | G8: 0 | H8: 0 | I8: 0 | J8: 0 | K8: 0 | L8: 10 | M8: 0 | N8: 0 | O8: 0 | Q8: Vanaf 20 november nieuwe coronamaatregelen, waaronder verplicht telewerk | S8: =D8 -> 2021-11-23 | T8: =E8 -> 09:00 - 16:00u | U8: =IF(F8=0,NA(),F8/$L8) -> 1 | V8: =IF(G8=0,NA(),G8/$L8) ->  | W8: =IF(H8=0,NA(),H8/$L8) -> 
B9: ="Nabij kruispunt: "&VLOOKUP(B3,Coordinaten!$A$2:$L$95,4,0) -> Nabij kruispunt: N435 / N60 | F9: 1 | G9: - | H9: - | I9: - | J9: - | K9: - | L9: 1 | Q9: 0 | S9: =D10 -> 2021-11-23 | T9: =E10 -> 19:00 - 02:00u | U9: =IF(F10=0,NA(),F10/$L10) -> 1 | V9: =IF(G10=0,NA(),G10/$L10) -> 
D10: 2021-11-23 | E10: 19:00 - 02:00u | F10: 7 | G10: 0 | H10: 0 | I10: 0 | J10: 0 | K10: 0 | L10: 7 | M10: 0 | N10: 0 | O10: 0 | Q10: Vanaf 20 november nieuwe coronamaatregelen, waaronder verplicht telewerk
B11: Meting | F11: 1 | G11: - | H11: - | I11: - | J11: - | K11: - | L11: 1 | Q11: 0
B12: ="Meetperiode: "&TEXT(VLOOKUP(B3,Coordinaten!$A$2:$G$95,7,0),"dddd dd mmmm jjjj") -> Meetperiode: dinsdag 23 november 2021
B13: Methodiek: Parkeerdrukmeting met waarnemers
B14: In opdracht van: Vlaamse overheid
B15: Uitgevoerd door: Dufec
D16: VERDELING NAAR CATEGORIE
B17: Locatie
B18: =IF(B4="","",HYPERLINK("http://www.googlemaps.com/?q="&B4,"Lat/Long: "&B4)) -> Lat/Long: 50.909427, 3.615886
P20: Legenda
Q21: Personenwagen
Q22: Vracht
Q23: Motor
Q24: Obstakel / overig
Q25: Fout personenwagen
Q26: Fout Vracht
B38: Opmerking
B39: Het onderzoek vindt plaats gedurende coronamaatregelen.
B40: Dit heeft mogelijk een effect op de resultaten.
B42: Toelichting
B43: Pers = personenwagens op daarvoor bestemde
B44: openbare plaatsen
B45: Vracht = vrachtwagens op daarvoor bestemde
B46: parkeerplaatsen (middel- en zwaar vrachtverkeer)
B47: Motor = geparkeerde motoren op openbare plaatsen
B48: Obstakel / overig = obstakels of overige voertuigen
B49: geparkeerd op openbare plaatsen
B50: Fout pers = personenwagens die fout geparkeerd staan
B51: Fout vracht = vrachtwagens die fout geparkeerd staan
B52: E-wagen = geparkeerde elektrisch voertuig bij een
B53: elektrisch oplaadpunt
B54: Invalide = personenwagens en motoren op voor
B55: invalide personen bestemde parkeerplaats
B56: Gestalde fietsen = alle gestalde fietsen op de
B57: daarvoor bestemde parkeerplaatsen

Sheet 43.Kemzeke-West
B2: PARKEERONDERZOEK | D2: CARPOOLPARKINGS EN P+R PARKINGS
B3: 43 | D3: =B8 & " - "& TEXT(VLOOKUP(B3,Coordinaten!$A$2:$G$95,7,0),"dddd dd mmmm jjjj") -> Carpool parking Kemzeke-West, Stekene - dinsdag 09 november 2021
B4: =VLOOKUP(B3,Coordinaten!$A$2:$G$95,6,0) -> 51.229594, 4.060439
D5: BEZETTING | Q5: OPMERKINGEN
B7: Onderzoeksgebied | D7: Datum | E7: Geregistreerd tussen | F7: Pers | G7: Vracht | H7: Motor | I7: Obstakel / overig | J7: Fout pers | K7: Fout Vracht | L7: Totaal | M7: E-wagen plaats | N7: Invalidenplaats | O7: Gestalde fietsen | U7: =F7 -> Pers | V7: Vracht | W7: Motor | X7: Obstakel / overig | Y7: Fout pers | Z7: Fout Vracht
B8: =VLOOKUP(B3,Coordinaten!$A$2:$G$95,3,0)&", "&VLOOKUP(B3,Coordinaten!$A$2:$G$95,5,0) -> Carpool parking Kemzeke-West, Stekene | D8: 2021-11-09 | E8: 09:00 - 16:00u | F8: 21 | G8: 0 | H8: 0 | I8: 0 | J8: 1 | K8: 0 | L8: 22 | M8: 0 | N8: 0 | O8: 0 | Q8: 0 | S8: =D8 -> 2021-11-09 | T8: =E8 -> 09:00 - 16:00u | U8: =IF(F8=0,NA(),F8/$L8) -> 0.9545454545 | V8: =IF(G8=0,NA(),G8/$L8) ->  | W8: =IF(H8=0,NA(),H8/$L8) ->  | Y8: 0.04545454545
B9: ="Nabij kruispunt: "&VLOOKUP(B3,Coordinaten!$A$2:$L$95,4,0) -> Nabij kruispunt: N403 / N49 | F9: 0.9545454545 | G9: - | H9: - | I9: - | J9: 0.04545454545 | K9: - | L9: 1 | Q9: 0 | S9: =D10 -> 2021-11-09 | T9: =E10 -> 19:00 - 02:00u | U9: =IF(F10=0,NA(),F10/$L10) -> 1 | V9: =IF(G10=0,NA(),G10/$L10) -> 
D10: 2021-11-09 | E10: 19:00 - 02:00u | F10: 4 | G10: 0 | H10: 0 | I10: 0 | J10: 0 | K10: 0 | L10: 4 | M10: 0 | N10: 0 | O10: 0 | Q10: 0
B11: Meting | F11: 1 | G11: - | H11: - | I11: - | J11: - | K11: - | L11: 1 | Q11: 0
B12: ="Meetperiode: "&TEXT(VLOOKUP(B3,Coordinaten!$A$2:$G$95,7,0),"dddd dd mmmm jjjj") -> Meetperiode: dinsdag 09 november 2021
B13: Methodiek: Parkeerdrukmeting met waarnemers
B14: In opdracht van: Vlaamse overheid
B15: Uitgevoerd door: Dufec
D16: VERDELING NAAR CATEGORIE
B17: Locatie
B18: =IF(B4="","",HYPERLINK("http://www.googlemaps.com/?q="&B4,"Lat/Long: "&B4)) -> Lat/Long: 51.229594, 4.060439
P20: Legenda
Q21: Personenwagen
Q22: Vracht
Q23: Motor
Q24: Obstakel / overig
Q25: Fout personenwagen
Q26: Fout Vracht
B38: Opmerking
B39: Het onderzoek vindt plaats gedurende coronamaatregelen.
B40: Dit heeft mogelijk een effect op de resultaten.
B42: Toelichting
B43: Pers = personenwagens op daarvoor bestemde
B44: openbare plaatsen
B45: Vracht = vrachtwagens op daarvoor bestemde
B46: parkeerplaatsen (middel- en zwaar vrachtverkeer)
B47: Motor = geparkeerde motoren op openbare plaatsen
B48: Obstakel / overig = obstakels of overige voertuigen
B49: geparkeerd op openbare plaatsen
B50: Fout pers = personenwagens die fout geparkeerd staan
B51: Fout vracht = vrachtwagens die fout geparkeerd staan
B52: E-wagen = geparkeerde elektrisch voertuig bij een
B53: elektrisch oplaadpunt
B54: Invalide = personenwagens en motoren op voor
B55: invalide personen bestemde parkeerplaats
B56: Gestalde fietsen = alle gestalde fietsen op de
B57: daarvoor bestemde parkeerplaatsen

Sheet 44.Kemzeke-Oost
B2: PARKEERONDERZOEK | D2: CARPOOLPARKINGS EN P+R PARKINGS
B3: 44 | D3: =B8 & " - "& TEXT(VLOOKUP(B3,Coordinaten!$A$2:$G$95,7,0),"dddd dd mmmm jjjj") -> Carpool parking Kemzeke-Oost, Stekene - dinsdag 09 november 2021
B4: =VLOOKUP(B3,Coordinaten!$A$2:$G$95,6,0) -> 51.229783, 4.061087
D5: BEZETTING | Q5: OPMERKINGEN
B7: Onderzoeksgebied | D7: Datum | E7: Geregistreerd tussen | F7: Pers | G7: Vracht | H7: Motor | I7: Obstakel / overig | J7: Fout pers | K7: Fout Vracht | L7: Totaal | M7: E-wagen plaats | N7: Invalidenplaats | O7: Gestalde fietsen | U7: =F7 -> Pers | V7: Vracht | W7: Motor | X7: Obstakel / overig | Y7: Fout pers | Z7: Fout Vracht
B8: =VLOOKUP(B3,Coordinaten!$A$2:$G$95,3,0)&", "&VLOOKUP(B3,Coordinaten!$A$2:$G$95,5,0) -> Carpool parking Kemzeke-Oost, Stekene | D8: 2021-11-09 | E8: 09:00 - 16:00u | F8: 2 | G8: 0 | H8: 0 | I8: 0 | J8: 0 | K8: 0 | L8: 2 | M8: 0 | N8: 0 | O8: 0 | Q8: 0 | S8: =D8 -> 2021-11-09 | T8: =E8 -> 09:00 - 16:00u | U8: =IF(F8=0,NA(),F8/$L8) -> 1 | V8: =IF(G8=0,NA(),G8/$L8) ->  | W8: =IF(H8=0,NA(),H8/$L8) -> 
B9: ="Nabij kruispunt: "&VLOOKUP(B3,Coordinaten!$A$2:$L$95,4,0) -> Nabij kruispunt: N403 / N49 | F9: 1 | G9: - | H9: - | I9: - | J9: - | K9: - | L9: 1 | Q9: 0 | S9: =D10 -> 2021-11-09 | T9: =E10 -> 19:00 - 02:00u | U9: =IF(F10=0,NA(),F10/$L10) -> 1 | V9: =IF(G10=0,NA(),G10/$L10) -> 
D10: 2021-11-09 | E10: 19:00 - 02:00u | F10: 2 | G10: 0 | H10: 0 | I10: 0 | J10: 0 | K10: 0 | L10: 2 | M10: 0 | N10: 0 | O10: 0 | Q10: 0
B11: Meting | F11: 1 | G11: - | H11: - | I11: - | J11: - | K11: - | L11: 1 | Q11: 0
B12: ="Meetperiode: "&TEXT(VLOOKUP(B3,Coordinaten!$A$2:$G$95,7,0),"dddd dd mmmm jjjj") -> Meetperiode: dinsdag 09 november 2021
B13: Methodiek: Parkeerdrukmeting met waarnemers
B14: In opdracht van: Vlaamse overheid
B15: Uitgevoerd door: Dufec
D16: VERDELING NAAR CATEGORIE
B17: Locatie
B18: =IF(B4="","",HYPERLINK("http://www.googlemaps.com/?q="&B4,"Lat/Long: "&B4)) -> Lat/Long: 51.229783, 4.061087
P20: Legenda
Q21: Personenwagen
Q22: Vracht
Q23: Motor
Q24: Obstakel / overig
Q25: Fout personenwagen
Q26: Fout Vracht
B38: Opmerking
B39: Het onderzoek vindt plaats gedurende coronamaatregelen.
B40: Dit heeft mogelijk een effect op de resultaten.
B42: Toelichting
B43: Pers = personenwagens op daarvoor bestemde
B44: openbare plaatsen
B45: Vracht = vrachtwagens op daarvoor bestemde
B46: parkeerplaatsen (middel- en zwaar vrachtverkeer)
B47: Motor = geparkeerde motoren op openbare plaatsen
B48: Obstakel / overig = obstakels of overige voertuigen
B49: geparkeerd op openbare plaatsen
B50: Fout pers = personenwagens die fout geparkeerd staan
B51: Fout vracht = vrachtwagens die fout geparkeerd staan
B52: E-wagen = geparkeerde elektrisch voertuig bij een
B53: elektrisch oplaadpunt
B54: Invalide = personenwagens en motoren op voor
B55: invalide personen bestemde parkeerplaats
B56: Gestalde fietsen = alle gestalde fietsen op de
B57: daarvoor bestemde parkeerplaatsen

Sheet 45.Wommelgem-Noord
B2: PARKEERONDERZOEK | D2: CARPOOLPARKINGS EN P+R PARKINGS
B3: 45 | D3: =B8 & " - "& TEXT(VLOOKUP(B3,Coordinaten!$A$2:$G$95,7,0),"dddd dd mmmm jjjj") -> P+R parking Wommelgem-Noord, Wommelgem - donderdag 18 november 2021
B4: =VLOOKUP(B3,Coordinaten!$A$2:$G$95,6,0) -> 51.212489, 4.491956
D5: BEZETTING | Q5: OPMERKINGEN
B7: Onderzoeksgebied | D7: Datum | E7: Geregistreerd tussen | F7: Pers | G7: Vracht | H7: Motor | I7: Obstakel / overig | J7: Fout pers | K7: Fout Vracht | L7: Totaal | M7: E-wagen plaats | N7: Invalidenplaats | O7: Gestalde fietsen | U7: =F7 -> Pers | V7: Vracht | W7: Motor | X7: Obstakel / overig | Y7: Fout pers | Z7: Fout Vracht
B8: =VLOOKUP(B3,Coordinaten!$A$2:$G$95,3,0)&", "&VLOOKUP(B3,Coordinaten!$A$2:$G$95,5,0) -> P+R parking Wommelgem-Noord, Wommelgem | D8: 2021-11-18 | E8: 09:00 - 16:00u | F8: 140 | G8: 0 | H8: 0 | I8: 1 | J8: 2 | K8: 0 | L8: 143 | M8: 1 | N8: 0 | O8: 6 | Q8: 0 | S8: =D8 -> 2021-11-18 | T8: =E8 -> 09:00 - 16:00u | U8: =IF(F8=0,NA(),F8/$L8) -> 0.979020979 | V8: =IF(G8=0,NA(),G8/$L8) ->  | W8: =IF(H8=0,NA(),H8/$L8) ->  | X8: 0.006993006993 | Y8: 0.01398601399
B9: ="Nabij kruispunt: "&VLOOKUP(B3,Coordinaten!$A$2:$L$95,4,0) -> Nabij kruispunt: R11 / A13 | F9: 0.979020979 | G9: - | H9: - | I9: 0.006993006993 | J9: 0.01398601399 | K9: - | L9: 1 | Q9: 0 | S9: =D10 -> 2021-11-18 | T9: =E10 -> 19:00 - 02:00u | U9: =IF(F10=0,NA(),F10/$L10) -> 0.9903846154 | V9: =IF(G10=0,NA(),G10/$L10) ->  | X9: 0.009615384615
D10: 2021-11-18 | E10: 19:00 - 02:00u | F10: 103 | G10: 0 | H10: 0 | I10: 1 | J10: 0 | K10: 0 | L10: 104 | M10: 0 | N10: 0 | O10: 2 | Q10: 0
B11: Meting | F11: 0.9903846154 | G11: - | H11: - | I11: 0.009615384615 | J11: - | K11: - | L11: 1 | Q11: 0
B12: ="Meetperiode: "&TEXT(VLOOKUP(B3,Coordinaten!$A$2:$G$95,7,0),"dddd dd mmmm jjjj") -> Meetperiode: donderdag 18 november 2021
B13: Methodiek: Parkeerdrukmeting met waarnemers
B14: In opdracht van: Vlaamse overheid
B15: Uitgevoerd door: Dufec
D16: VERDELING NAAR CATEGORIE
B17: Locatie
B18: =IF(B4="","",HYPERLINK("http://www.googlemaps.com/?q="&B4,"Lat/Long: "&B4)) -> Lat/Long: 51.212489, 4.491956
P20: Legenda
Q21: Personenwagen
Q22: Vracht
Q23: Motor
Q24: Obstakel / overig
Q25: Fout personenwagen
Q26: Fout Vracht
B38: Opmerking
B39: Het onderzoek vindt plaats gedurende coronamaatregelen.
B40: Dit heeft mogelijk een effect op de resultaten.
B42: Toelichting
B43: Pers = personenwagens op daarvoor bestemde
B44: openbare plaatsen
B45: Vracht = vrachtwagens op daarvoor bestemde
B46: parkeerplaatsen (middel- en zwaar vrachtverkeer)
B47: Motor = geparkeerde motoren op openbare plaatsen
B48: Obstakel / overig = obstakels of overige voertuigen
B49: geparkeerd op openbare plaatsen
B50: Fout pers = personenwagens die fout geparkeerd staan
B51: Fout vracht = vrachtwagens die fout geparkeerd staan
B52: E-wagen = geparkeerde elektrisch voertuig bij een
B53: elektrisch oplaadpunt
B54: Invalide = personenwagens en motoren op voor
B55: invalide personen bestemde parkeerplaats
B56: Gestalde fietsen = alle gestalde fietsen op de
B57: daarvoor bestemde parkeerplaatsen

Sheet 47.Lille
B2: PARKEERONDERZOEK | D2: CARPOOLPARKINGS EN P+R PARKINGS
B3: 47 | D3: =B8 & " - "& TEXT(VLOOKUP(B3,Coordinaten!$A$2:$G$95,7,0),"dddd dd mmmm jjjj") -> Carpool parking Lille, Lille - donderdag 18 november 2021
B4: =VLOOKUP(B3,Coordinaten!$A$2:$G$95,6,0) -> 51.254780, 4.807767
D5: BEZETTING | Q5: OPMERKINGEN
B7: Onderzoeksgebied | D7: Datum | E7: Geregistreerd tussen | F7: Pers | G7: Vracht | H7: Motor | I7: Obstakel / overig | J7: Fout pers | K7: Fout Vracht | L7: Totaal | M7: E-wagen plaats | N7: Invalidenplaats | O7: Gestalde fietsen | U7: =F7 -> Pers | V7: Vracht | W7: Motor | X7: Obstakel / overig | Y7: Fout pers | Z7: Fout Vracht
B8: =VLOOKUP(B3,Coordinaten!$A$2:$G$95,3,0)&", "&VLOOKUP(B3,Coordinaten!$A$2:$G$95,5,0) -> Carpool parking Lille, Lille | D8: 2021-11-18 | E8: 09:00 - 16:00u | F8: 47 | G8: 0 | H8: 1 | I8: 0 | J8: 0 | K8: 2 | L8: 50 | M8: 0 | N8: 0 | O8: 9 | Q8: 0 | S8: =D8 -> 2021-11-18 | T8: =E8 -> 09:00 - 16:00u | U8: =IF(F8=0,NA(),F8/$L8) -> 0.94 | V8: =IF(G8=0,NA(),G8/$L8) ->  | W8: =IF(H8=0,NA(),H8/$L8) -> 0.02 | Z8: 0.04
B9: ="Nabij kruispunt: "&VLOOKUP(B3,Coordinaten!$A$2:$L$95,4,0) -> Nabij kruispunt: N153 / A21 | F9: 0.94 | G9: - | H9: 0.02 | I9: - | J9: - | K9: 0.04 | L9: 1 | Q9: 0 | S9: =D10 -> 2021-11-18 | T9: =E10 -> 19:00 - 02:00u | U9: =IF(F10=0,NA(),F10/$L10) -> 0.5238095238 | V9: =IF(G10=0,NA(),G10/$L10) ->  | X9: 0.09523809524 | Z9: 0.380952381
D10: 2021-11-18 | E10: 19:00 - 02:00u | F10: 11 | G10: 0 | H10: 0 | I10: 2 | J10: 0 | K10: 8 | L10: 21 | M10: 0 | N10: 0 | O10: 6 | Q10: 0
B11: Meting | F11: 0.5238095238 | G11: - | H11: - | I11: 0.09523809524 | J11: - | K11: 0.380952381 | L11: 1 | Q11: 0
B12: ="Meetperiode: "&TEXT(VLOOKUP(B3,Coordinaten!$A$2:$G$95,7,0),"dddd dd mmmm jjjj") -> Meetperiode: donderdag 18 november 2021
B13: Methodiek: Parkeerdrukmeting met waarnemers
B14: In opdracht van: Vlaamse overheid
B15: Uitgevoerd door: Dufec
D16: VERDELING NAAR CATEGORIE
B17: Locatie
B18: =IF(B4="","",HYPERLINK("http://www.googlemaps.com/?q="&B4,"Lat/Long: "&B4)) -> Lat/Long: 51.254780, 4.807767
P20: Legenda
Q21: Personenwagen
Q22: Vracht
Q23: Motor
Q24: Obstakel / overig
Q25: Fout personenwagen
Q26: Fout Vracht
B38: Opmerking
B39: Het onderzoek vindt plaats gedurende coronamaatregelen.
B40: Dit heeft mogelijk een effect op de resultaten.
B42: Toelichting
B43: Pers = personenwagens op daarvoor bestemde
B44: openbare plaatsen
B45: Vracht = vrachtwagens op daarvoor bestemde
B46: parkeerplaatsen (middel- en zwaar vrachtverkeer)
B47: Motor = geparkeerde motoren op openbare plaatsen
B48: Obstakel / overig = obstakels of overige voertuigen
B49: geparkeerd op openbare plaatsen
B50: Fout pers = personenwagens die fout geparkeerd staan
B51: Fout vracht = vrachtwagens die fout geparkeerd staan
B52: E-wagen = geparkeerde elektrisch voertuig bij een
B53: elektrisch oplaadpunt
B54: Invalide = personenwagens en motoren op voor
B55: invalide personen bestemde parkeerplaats
B56: Gestalde fietsen = alle gestalde fietsen op de
B57: daarvoor bestemde parkeerplaatsen

Sheet 48.Oelegem-West
B2: PARKEERONDERZOEK | D2: CARPOOLPARKINGS EN P+R PARKINGS
B3: 48 | D3: =B8 & " - "& TEXT(VLOOKUP(B3,Coordinaten!$A$2:$G$95,7,0),"dddd dd mmmm jjjj") -> Carpool parking Oelegem-West, Ranst - donderdag 18 november 2021
B4: =VLOOKUP(B3,Coordinaten!$A$2:$G$95,6,0) -> 51.212044, 4.623777
D5: BEZETTING | Q5: OPMERKINGEN
B7: Onderzoeksgebied | D7: Datum | E7: Geregistreerd tussen | F7: Pers | G7: Vracht | H7: Motor | I7: Obstakel / overig | J7: Fout pers | K7: Fout Vracht | L7: Totaal | M7: E-wagen plaats | N7: Invalidenplaats | O7: Gestalde fietsen | U7: =F7 -> Pers | V7: Vracht | W7: Motor | X7: Obstakel / overig | Y7: Fout pers | Z7: Fout Vracht
B8: =VLOOKUP(B3,Coordinaten!$A$2:$G$95,3,0)&", "&VLOOKUP(B3,Coordinaten!$A$2:$G$95,5,0) -> Carpool parking Oelegem-West, Ranst | D8: 2021-11-18 | E8: 09:00 - 16:00u | F8: 11 | G8: 0 | H8: 0 | I8: 0 | J8: 0 | K8: 0 | L8: 11 | M8: 0 | N8: 0 | O8: 0 | Q8: 0 | S8: =D8 -> 2021-11-18 | T8: =E8 -> 09:00 - 16:00u | U8: =IF(F8=0,NA(),F8/$L8) -> 1 | V8: =IF(G8=0,NA(),G8/$L8) ->  | W8: =IF(H8=0,NA(),H8/$L8) -> 
B9: ="Nabij kruispunt: "&VLOOKUP(B3,Coordinaten!$A$2:$L$95,4,0) -> Nabij kruispunt: A21 / Zandhovensesteenweg | F9: 1 | G9: - | H9: - | I9: - | J9: - | K9: - | L9: 1 | Q9: 0 | S9: =D10 -> 2021-11-18 | T9: =E10 -> 19:00 - 02:00u | U9: =IF(F10=0,NA(),F10/$L10) -> 1 | V9: =IF(G10=0,NA(),G10/$L10) -> 
D10: 2021-11-18 | E10: 19:00 - 02:00u | F10: 1 | G10: 0 | H10: 0 | I10: 0 | J10: 0 | K10: 0 | L10: 1 | M10: 0 | N10: 0 | O10: 0 | Q10: 0
B11: Meting | F11: 1 | G11: - | H11: - | I11: - | J11: - | K11: - | L11: 1 | Q11: 0
B12: ="Meetperiode: "&TEXT(VLOOKUP(B3,Coordinaten!$A$2:$G$95,7,0),"dddd dd mmmm jjjj") -> Meetperiode: donderdag 18 november 2021
B13: Methodiek: Parkeerdrukmeting met waarnemers
B14: In opdracht van: Vlaamse overheid
B15: Uitgevoerd door: Dufec
D16: VERDELING NAAR CATEGORIE
B17: Locatie
B18: =IF(B4="","",HYPERLINK("http://www.googlemaps.com/?q="&B4,"Lat/Long: "&B4)) -> Lat/Long: 51.212044, 4.623777
P20: Legenda
Q21: Personenwagen
Q22: Vracht
Q23: Motor
Q24: Obstakel / overig
Q25: Fout personenwagen
Q26: Fout Vracht
B38: Opmerking
B39: Het onderzoek vindt plaats gedurende coronamaatregelen.
B40: Dit heeft mogelijk een effect op de resultaten.
B42: Toelichting
B43: Pers = personenwagens op daarvoor bestemde
B44: openbare plaatsen
B45: Vracht = vrachtwagens op daarvoor bestemde
B46: parkeerplaatsen (middel- en zwaar vrachtverkeer)
B47: Motor = geparkeerde motoren op openbare plaatsen
B48: Obstakel / overig = obstakels of overige voertuigen
B49: geparkeerd op openbare plaatsen
B50: Fout pers = personenwagens die fout geparkeerd staan
B51: Fout vracht = vrachtwagens die fout geparkeerd staan
B52: E-wagen = geparkeerde elektrisch voertuig bij een
B53: elektrisch oplaadpunt
B54: Invalide = personenwagens en motoren op voor
B55: invalide personen bestemde parkeerplaats
B56: Gestalde fietsen = alle gestalde fietsen op de
B57: daarvoor bestemde parkeerplaatsen

Sheet 49.Oelegem-Oost
B2: PARKEERONDERZOEK | D2: CARPOOLPARKINGS EN P+R PARKINGS
B3: 49 | D3: =B8 & " - "& TEXT(VLOOKUP(B3,Coordinaten!$A$2:$G$95,7,0),"dddd dd mmmm jjjj") -> Carpool parking Oelegem-Oost, Ranst - donderdag 18 november 2021
B4: =VLOOKUP(B3,Coordinaten!$A$2:$G$95,6,0) -> 51.211693, 4.625380
D5: BEZETTING | Q5: OPMERKINGEN
B7: Onderzoeksgebied | D7: Datum | E7: Geregistreerd tussen | F7: Pers | G7: Vracht | H7: Motor | I7: Obstakel / overig | J7: Fout pers | K7: Fout Vracht | L7: Totaal | M7: E-wagen plaats | N7: Invalidenplaats | O7: Gestalde fietsen | U7: =F7 -> Pers | V7: Vracht | W7: Motor | X7: Obstakel / overig | Y7: Fout pers | Z7: Fout Vracht
B8: =VLOOKUP(B3,Coordinaten!$A$2:$G$95,3,0)&", "&VLOOKUP(B3,Coordinaten!$A$2:$G$95,5,0) -> Carpool parking Oelegem-Oost, Ranst | D8: 2021-11-18 | E8: 09:00 - 16:00u | F8: 9 | G8: 0 | H8: 0 | I8: 0 | J8: 0 | K8: 0 | L8: 9 | M8: 0 | N8: 0 | O8: 0 | Q8: 0 | S8: =D8 -> 2021-11-18 | T8: =E8 -> 09:00 - 16:00u | U8: =IF(F8=0,NA(),F8/$L8) -> 1 | V8: =IF(G8=0,NA(),G8/$L8) ->  | W8: =IF(H8=0,NA(),H8/$L8) -> 
B9: ="Nabij kruispunt: "&VLOOKUP(B3,Coordinaten!$A$2:$L$95,4,0) -> Nabij kruispunt: A21 / Zandhovensesteenweg | F9: 1 | G9: - | H9: - | I9: - | J9: - | K9: - | L9: 1 | Q9: 0 | S9: =D10 -> 2021-11-18 | T9: =E10 -> 19:00 - 02:00u | U9: =IF(F10=0,NA(),F10/$L10) -> 1 | V9: =IF(G10=0,NA(),G10/$L10) -> 
D10: 2021-11-18 | E10: 19:00 - 02:00u | F10: 13 | G10: 0 | H10: 0 | I10: 0 | J10: 0 | K10: 0 | L10: 13 | M10: 0 | N10: 0 | O10: 0 | Q10: 0
B11: Meting | F11: 1 | G11: - | H11: - | I11: - | J11: - | K11: - | L11: 1 | Q11: 0
B12: ="Meetperiode: "&TEXT(VLOOKUP(B3,Coordinaten!$A$2:$G$95,7,0),"dddd dd mmmm jjjj") -> Meetperiode: donderdag 18 november 2021
B13: Methodiek: Parkeerdrukmeting met waarnemers
B14: In opdracht van: Vlaamse overheid
B15: Uitgevoerd door: Dufec
D16: VERDELING NAAR CATEGORIE
B17: Locatie
B18: =IF(B4="","",HYPERLINK("http://www.googlemaps.com/?q="&B4,"Lat/Long: "&B4)) -> Lat/Long: 51.211693, 4.625380
P20: Legenda
Q21: Personenwagen
Q22: Vracht
Q23: Motor
Q24: Obstakel / overig
Q25: Fout personenwagen
Q26: Fout Vracht
B38: Opmerking
B39: Het onderzoek vindt plaats gedurende coronamaatregelen.
B40: Dit heeft mogelijk een effect op de resultaten.
B42: Toelichting
B43: Pers = personenwagens op daarvoor bestemde
B44: openbare plaatsen
B45: Vracht = vrachtwagens op daarvoor bestemde
B46: parkeerplaatsen (middel- en zwaar vrachtverkeer)
B47: Motor = geparkeerde motoren op openbare plaatsen
B48: Obstakel / overig = obstakels of overige voertuigen
B49: geparkeerd op openbare plaatsen
B50: Fout pers = personenwagens die fout geparkeerd staan
B51: Fout vracht = vrachtwagens die fout geparkeerd staan
B52: E-wagen = geparkeerde elektrisch voertuig bij een
B53: elektrisch oplaadpunt
B54: Invalide = personenwagens en motoren op voor
B55: invalide personen bestemde parkeerplaats
B56: Gestalde fietsen = alle gestalde fietsen op de
B57: daarvoor bestemde parkeerplaatsen

Sheet 50.Sint Job in 't Goor
B2: PARKEERONDERZOEK | D2: CARPOOLPARKINGS EN P+R PARKINGS
B3: 50 | D3: =B8 & " - "& TEXT(VLOOKUP(B3,Coordinaten!$A$2:$G$95,7,0),"dddd dd mmmm jjjj") -> P+R parking Sint Job in 't Goor, Brasschaat - dinsdag 09 november 2021
B4: =VLOOKUP(B3,Coordinaten!$A$2:$G$95,6,0) -> 51.309564, 4.555137
D5: BEZETTING | Q5: OPMERKINGEN
B7: Onderzoeksgebied | D7: Datum | E7: Geregistreerd tussen | F7: Pers | G7: Vracht | H7: Motor | I7: Obstakel / overig | J7: Fout pers | K7: Fout Vracht | L7: Totaal | M7: E-wagen plaats | N7: Invalidenplaats | O7: Gestalde fietsen | U7: =F7 -> Pers | V7: Vracht | W7: Motor | X7: Obstakel / overig | Y7: Fout pers | Z7: Fout Vracht
B8: =VLOOKUP(B3,Coordinaten!$A$2:$G$95,3,0)&", "&VLOOKUP(B3,Coordinaten!$A$2:$G$95,5,0) -> P+R parking Sint Job in 't Goor, Brasschaat | D8: 2021-11-09 | E8: 09:00 - 16:00u | F8: 55 | G8: 10 | H8: 0 | I8: 0 | J8: 0 | K8: 4 | L8: 69 | M8: 0 | N8: 0 | O8: 2 | Q8: 0 | S8: =D8 -> 2021-11-09 | T8: =E8 -> 09:00 - 16:00u | U8: =IF(F8=0,NA(),F8/$L8) -> 0.7971014493 | V8: =IF(G8=0,NA(),G8/$L8) -> 0.1449275362 | W8: =IF(H8=0,NA(),H8/$L8) ->  | Z8: 0.05797101449
B9: ="Nabij kruispunt: "&VLOOKUP(B3,Coordinaten!$A$2:$L$95,4,0) -> Nabij kruispunt: N117 / A1 | F9: 0.7971014493 | G9: 0.1449275362 | H9: - | I9: - | J9: - | K9: 0.05797101449 | L9: 1 | Q9: 0 | S9: =D10 -> 2021-11-09 | T9: =E10 -> 19:00 - 02:00u | U9: =IF(F10=0,NA(),F10/$L10) -> 0.8648648649 | V9: =IF(G10=0,NA(),G10/$L10) ->  | Y9: 0.08108108108 | Z9: 0.05405405405
D10: 2021-11-09 | E10: 19:00 - 02:00u | F10: 32 | G10: 0 | H10: 0 | I10: 0 | J10: 3 | K10: 2 | L10: 37 | M10: 0 | N10: 0 | O10: 0 | Q10: 0
B11: Meting | F11: 0.8648648649 | G11: - | H11: - | I11: - | J11: 0.08108108108 | K11: 0.05405405405 | L11: 1 | Q11: 0
B12: ="Meetperiode: "&TEXT(VLOOKUP(B3,Coordinaten!$A$2:$G$95,7,0),"dddd dd mmmm jjjj") -> Meetperiode: dinsdag 09 november 2021
B13: Methodiek: Parkeerdrukmeting met waarnemers
B14: In opdracht van: Vlaamse overheid
B15: Uitgevoerd door: Dufec
D16: VERDELING NAAR CATEGORIE
B17: Locatie
B18: =IF(B4="","",HYPERLINK("http://www.googlemaps.com/?q="&B4,"Lat/Long: "&B4)) -> Lat/Long: 51.309564, 4.555137
P20: Legenda
Q21: Personenwagen
Q22: Vracht
Q23: Motor
Q24: Obstakel / overig
Q25: Fout personenwagen
Q26: Fout Vracht
B38: Opmerking
B39: Het onderzoek vindt plaats gedurende coronamaatregelen.
B40: Dit heeft mogelijk een effect op de resultaten.
B42: Toelichting
B43: Pers = personenwagens op daarvoor bestemde
B44: openbare plaatsen
B45: Vracht = vrachtwagens op daarvoor bestemde
B46: parkeerplaatsen (middel- en zwaar vrachtverkeer)
B47: Motor = geparkeerde motoren op openbare plaatsen
B48: Obstakel / overig = obstakels of overige voertuigen
B49: geparkeerd op openbare plaatsen
B50: Fout pers = personenwagens die fout geparkeerd staan
B51: Fout vracht = vrachtwagens die fout geparkeerd staan
B52: E-wagen = geparkeerde elektrisch voertuig bij een
B53: elektrisch oplaadpunt
B54: Invalide = personenwagens en motoren op voor
B55: invalide personen bestemde parkeerplaats
B56: Gestalde fietsen = alle gestalde fietsen op de
B57: daarvoor bestemde parkeerplaatsen

Sheet 51.Menen
B2: PARKEERONDERZOEK | D2: CARPOOLPARKINGS EN P+R PARKINGS
B3: 51 | D3: =B8 & " - "& TEXT(VLOOKUP(B3,Coordinaten!$A$2:$G$95,7,0),"dddd dd mmmm jjjj") -> Carpool parking Menen, Menen - dinsdag 23 november 2021
B4: =VLOOKUP(B3,Coordinaten!$A$2:$G$95,6,0) -> 50.817106, 3.125718
D5: BEZETTING | Q5: OPMERKINGEN
B7: Onderzoeksgebied | D7: Datum | E7: Geregistreerd tussen | F7: Pers | G7: Vracht | H7: Motor | I7: Obstakel / overig | J7: Fout pers | K7: Fout Vracht | L7: Totaal | M7: E-wagen plaats | N7: Invalidenplaats | O7: Gestalde fietsen | U7: =F7 -> Pers | V7: Vracht | W7: Motor | X7: Obstakel / overig | Y7: Fout pers | Z7: Fout Vracht
B8: =VLOOKUP(B3,Coordinaten!$A$2:$G$95,3,0)&", "&VLOOKUP(B3,Coordinaten!$A$2:$G$95,5,0) -> Carpool parking Menen, Menen | D8: 2021-11-23 | E8: 09:00 - 16:00u | F8: 31 | G8: 0 | H8: 0 | I8: 0 | J8: 0 | K8: 0 | L8: 31 | M8: 0 | N8: 0 | O8: 4 | Q8: Vanaf 20 november nieuwe coronamaatregelen, waaronder verplicht telewerk | S8: =D8 -> 2021-11-23 | T8: =E8 -> 09:00 - 16:00u | U8: =IF(F8=0,NA(),F8/$L8) -> 1 | V8: =IF(G8=0,NA(),G8/$L8) ->  | W8: =IF(H8=0,NA(),H8/$L8) -> 
B9: ="Nabij kruispunt: "&VLOOKUP(B3,Coordinaten!$A$2:$L$95,4,0) -> Nabij kruispunt: A19 / N32 | F9: 1 | G9: - | H9: - | I9: - | J9: - | K9: - | L9: 1 | Q9: 0 | S9: =D10 -> 2021-11-23 | T9: =E10 -> 19:00 - 02:00u | U9: =IF(F10=0,NA(),F10/$L10) -> 1 | V9: =IF(G10=0,NA(),G10/$L10) -> 
D10: 2021-11-23 | E10: 19:00 - 02:00u | F10: 14 | G10: 0 | H10: 0 | I10: 0 | J10: 0 | K10: 0 | L10: 14 | M10: 0 | N10: 0 | O10: 0 | Q10: Vanaf 20 november nieuwe coronamaatregelen, waaronder verplicht telewerk
B11: Meting | F11: 1 | G11: - | H11: - | I11: - | J11: - | K11: - | L11: 1 | Q11: 0
B12: ="Meetperiode: "&TEXT(VLOOKUP(B3,Coordinaten!$A$2:$G$95,7,0),"dddd dd mmmm jjjj") -> Meetperiode: dinsdag 23 november 2021
B13: Methodiek: Parkeerdrukmeting met waarnemers
B14: In opdracht van: Vlaamse overheid
B15: Uitgevoerd door: Dufec
D16: VERDELING NAAR CATEGORIE
B17: Locatie
B18: =IF(B4="","",HYPERLINK("http://www.googlemaps.com/?q="&B4,"Lat/Long: "&B4)) -> Lat/Long: 50.817106, 3.125718
P20: Legenda
Q21: Personenwagen
Q22: Vracht
Q23: Motor
Q24: Obstakel / overig
Q25: Fout personenwagen
Q26: Fout Vracht
B38: Opmerking
B39: Het onderzoek vindt plaats gedurende coronamaatregelen.
B40: Dit heeft mogelijk een effect op de resultaten.
B42: Toelichting
B43: Pers = personenwagens op daarvoor bestemde
B44: openbare plaatsen
B45: Vracht = vrachtwagens op daarvoor bestemde
B46: parkeerplaatsen (middel- en zwaar vrachtverkeer)
B47: Motor = geparkeerde motoren op openbare plaatsen
B48: Obstakel / overig = obstakels of overige voertuigen
B49: geparkeerd op openbare plaatsen
B50: Fout pers = personenwagens die fout geparkeerd staan
B51: Fout vracht = vrachtwagens die fout geparkeerd staan
B52: E-wagen = geparkeerde elektrisch voertuig bij een
B53: elektrisch oplaadpunt
B54: Invalide = personenwagens en motoren op voor
B55: invalide personen bestemde parkeerplaats
B56: Gestalde fietsen = alle gestalde fietsen op de
B57: daarvoor bestemde parkeerplaatsen

Sheet 52.Deerlijk
B2: PARKEERONDERZOEK | D2: CARPOOLPARKINGS EN P+R PARKINGS
B3: 52 | D3: =B8 & " - "& TEXT(VLOOKUP(B3,Coordinaten!$A$2:$G$95,7,0),"dddd dd mmmm jjjj") -> Carpool parking Deerlijk, Deerlijk - dinsdag 23 november 2021
B4: =VLOOKUP(B3,Coordinaten!$A$2:$G$95,6,0) -> 50.850190, 3.368235
D5: BEZETTING | Q5: OPMERKINGEN
B7: Onderzoeksgebied | D7: Datum | E7: Geregistreerd tussen | F7: Pers | G7: Vracht | H7: Motor | I7: Obstakel / overig | J7: Fout pers | K7: Fout Vracht | L7: Totaal | M7: E-wagen plaats | N7: Invalidenplaats | O7: Gestalde fietsen | U7: =F7 -> Pers | V7: Vracht | W7: Motor | X7: Obstakel / overig | Y7: Fout pers | Z7: Fout Vracht
B8: =VLOOKUP(B3,Coordinaten!$A$2:$G$95,3,0)&", "&VLOOKUP(B3,Coordinaten!$A$2:$G$95,5,0) -> Carpool parking Deerlijk, Deerlijk | D8: 2021-11-23 | E8: 09:00 - 16:00u | F8: 46 | G8: 0 | H8: 0 | I8: 0 | J8: 0 | K8: 0 | L8: 46 | M8: 0 | N8: 0 | O8: 5 | Q8: Vanaf 20 november nieuwe coronamaatregelen, waaronder verplicht telewerk | S8: =D8 -> 2021-11-23 | T8: =E8 -> 09:00 - 16:00u | U8: =IF(F8=0,NA(),F8/$L8) -> 1 | V8: =IF(G8=0,NA(),G8/$L8) ->  | W8: =IF(H8=0,NA(),H8/$L8) -> 
B9: ="Nabij kruispunt: "&VLOOKUP(B3,Coordinaten!$A$2:$L$95,4,0) -> Nabij kruispunt: N36 / Vichtesteenweg | F9: 1 | G9: - | H9: - | I9: - | J9: - | K9: - | L9: 1 | Q9: 0 | S9: =D10 -> 2021-11-23 | T9: =E10 -> 19:00 - 02:00u | U9: =IF(F10=0,NA(),F10/$L10) -> 1 | V9: =IF(G10=0,NA(),G10/$L10) -> 
D10: 2021-11-23 | E10: 19:00 - 02:00u | F10: 15 | G10: 0 | H10: 0 | I10: 0 | J10: 0 | K10: 0 | L10: 15 | M10: 0 | N10: 0 | O10: 0 | Q10: Vanaf 20 november nieuwe coronamaatregelen, waaronder verplicht telewerk
B11: Meting | F11: 1 | G11: - | H11: - | I11: - | J11: - | K11: - | L11: 1 | Q11: 0
B12: ="Meetperiode: "&TEXT(VLOOKUP(B3,Coordinaten!$A$2:$G$95,7,0),"dddd dd mmmm jjjj") -> Meetperiode: dinsdag 23 november 2021
B13: Methodiek: Parkeerdrukmeting met waarnemers
B14: In opdracht van: Vlaamse overheid
B15: Uitgevoerd door: Dufec
D16: VERDELING NAAR CATEGORIE
B17: Locatie
B18: =IF(B4="","",HYPERLINK("http://www.googlemaps.com/?q="&B4,"Lat/Long: "&B4)) -> Lat/Long: 50.850190, 3.368235
P20: Legenda
Q21: Personenwagen
Q22: Vracht
Q23: Motor
Q24: Obstakel / overig
Q25: Fout personenwagen
Q26: Fout Vracht
B38: Opmerking
B39: Het onderzoek vindt plaats gedurende coronamaatregelen.
B40: Dit heeft mogelijk een effect op de resultaten.
B42: Toelichting
B43: Pers = personenwagens op daarvoor bestemde
B44: openbare plaatsen
B45: Vracht = vrachtwagens op daarvoor bestemde
B46: parkeerplaatsen (middel- en zwaar vrachtverkeer)
B47: Motor = geparkeerde motoren op openbare plaatsen
B48: Obstakel / overig = obstakels of overige voertuigen
B49: geparkeerd op openbare plaatsen
B50: Fout pers = personenwagens die fout geparkeerd staan
B51: Fout vracht = vrachtwagens die fout geparkeerd staan
B52: E-wagen = geparkeerde elektrisch voertuig bij een
B53: elektrisch oplaadpunt
B54: Invalide = personenwagens en motoren op voor
B55: invalide personen bestemde parkeerplaats
B56: Gestalde fietsen = alle gestalde fietsen op de
B57: daarvoor bestemde parkeerplaatsen

Sheet 53.Zoersel
B2: PARKEERONDERZOEK | D2: CARPOOLPARKINGS EN P+R PARKINGS
B3: 53 | D3: =B8 & " - "& TEXT(VLOOKUP(B3,Coordinaten!$A$2:$G$95,7,0),"dddd dd mmmm jjjj") -> Carpool parking Zoersel, Zoersel - donderdag 18 november 2021
B4: =VLOOKUP(B3,Coordinaten!$A$2:$G$95,6,0) -> 51.245282, 4.703352
D5: BEZETTING | Q5: OPMERKINGEN
B7: Onderzoeksgebied | D7: Datum | E7: Geregistreerd tussen | F7: Pers | G7: Vracht | H7: Motor | I7: Obstakel / overig | J7: Fout pers | K7: Fout Vracht | L7: Totaal | M7: E-wagen plaats | N7: Invalidenplaats | O7: Gestalde fietsen | U7: =F7 -> Pers | V7: Vracht | W7: Motor | X7: Obstakel / overig | Y7: Fout pers | Z7: Fout Vracht
B8: =VLOOKUP(B3,Coordinaten!$A$2:$G$95,3,0)&", "&VLOOKUP(B3,Coordinaten!$A$2:$G$95,5,0) -> Carpool parking Zoersel, Zoersel | D8: 2021-11-18 | E8: 09:00 - 16:00u | F8: 55 | G8: 0 | H8: 0 | I8: 0 | J8: 6 | K8: 0 | L8: 61 | M8: 0 | N8: 0 | O8: 11 | Q8: 0 | S8: =D8 -> 2021-11-18 | T8: =E8 -> 09:00 - 16:00u | U8: =IF(F8=0,NA(),F8/$L8) -> 0.9016393443 | V8: =IF(G8=0,NA(),G8/$L8) ->  | W8: =IF(H8=0,NA(),H8/$L8) ->  | Y8: 0.09836065574
B9: ="Nabij kruispunt: "&VLOOKUP(B3,Coordinaten!$A$2:$L$95,4,0) -> Nabij kruispunt: N14 / A21 | F9: 0.9016393443 | G9: - | H9: - | I9: - | J9: 0.09836065574 | K9: - | L9: 1 | Q9: 0 | S9: =D10 -> 2021-11-18 | T9: =E10 -> 19:00 - 02:00u | U9: =IF(F10=0,NA(),F10/$L10) -> 1 | V9: =IF(G10=0,NA(),G10/$L10) -> 
D10: 2021-11-18 | E10: 19:00 - 02:00u | F10: 17 | G10: 0 | H10: 0 | I10: 0 | J10: 0 | K10: 0 | L10: 17 | M10: 0 | N10: 0 | O10: 3 | Q10: 0
B11: Meting | F11: 1 | G11: - | H11: - | I11: - | J11: - | K11: - | L11: 1 | Q11: 0
B12: ="Meetperiode: "&TEXT(VLOOKUP(B3,Coordinaten!$A$2:$G$95,7,0),"dddd dd mmmm jjjj") -> Meetperiode: donderdag 18 november 2021
B13: Methodiek: Parkeerdrukmeting met waarnemers
B14: In opdracht van: Vlaamse overheid
B15: Uitgevoerd door: Dufec
D16: VERDELING NAAR CATEGORIE
B17: Locatie
B18: =IF(B4="","",HYPERLINK("http://www.googlemaps.com/?q="&B4,"Lat/Long: "&B4)) -> Lat/Long: 51.245282, 4.703352
P20: Legenda
Q21: Personenwagen
Q22: Vracht
Q23: Motor
Q24: Obstakel / overig
Q25: Fout personenwagen
Q26: Fout Vracht
B38: Opmerking
B39: Het onderzoek vindt plaats gedurende coronamaatregelen.
B40: Dit heeft mogelijk een effect op de resultaten.
B42: Toelichting
B43: Pers = personenwagens op daarvoor bestemde
B44: openbare plaatsen
B45: Vracht = vrachtwagens op daarvoor bestemde
B46: parkeerplaatsen (middel- en zwaar vrachtverkeer)
B47: Motor = geparkeerde motoren op openbare plaatsen
B48: Obstakel / overig = obstakels of overige voertuigen
B49: geparkeerd op openbare plaatsen
B50: Fout pers = personenwagens die fout geparkeerd staan
B51: Fout vracht = vrachtwagens die fout geparkeerd staan
B52: E-wagen = geparkeerde elektrisch voertuig bij een
B53: elektrisch oplaadpunt
B54: Invalide = personenwagens en motoren op voor
B55: invalide personen bestemde parkeerplaats
B56: Gestalde fietsen = alle gestalde fietsen op de
B57: daarvoor bestemde parkeerplaatsen

Sheet 54.E17 Deinze
B2: PARKEERONDERZOEK | D2: CARPOOLPARKINGS EN P+R PARKINGS
B3: 54 | D3: =B8 & " - "& TEXT(VLOOKUP(B3,Coordinaten!$A$2:$G$95,7,0),"dddd dd mmmm jjjj") -> Carpool parking E17 Deinze, Nazareth - dinsdag 23 november 2021
B4: =VLOOKUP(B3,Coordinaten!$A$2:$G$95,6,0) -> 50.952738, 3.569722
D5: BEZETTING | Q5: OPMERKINGEN
B7: Onderzoeksgebied | D7: Datum | E7: Geregistreerd tussen | F7: Pers | G7: Vracht | H7: Motor | I7: Obstakel / overig | J7: Fout pers | K7: Fout Vracht | L7: Totaal | M7: E-wagen plaats | N7: Invalidenplaats | O7: Gestalde fietsen | U7: =F7 -> Pers | V7: Vracht | W7: Motor | X7: Obstakel / overig | Y7: Fout pers | Z7: Fout Vracht
B8: =VLOOKUP(B3,Coordinaten!$A$2:$G$95,3,0)&", "&VLOOKUP(B3,Coordinaten!$A$2:$G$95,5,0) -> Carpool parking E17 Deinze, Nazareth | D8: 2021-11-23 | E8: 09:00 - 16:00u | F8: 21 | G8: 0 | H8: 0 | I8: 0 | J8: 0 | K8: 0 | L8: 21 | M8: 0 | N8: 0 | O8: 18 | Q8: Vanaf 20 november nieuwe coronamaatregelen, waaronder verplicht telewerk | S8: =D8 -> 2021-11-23 | T8: =E8 -> 09:00 - 16:00u | U8: =IF(F8=0,NA(),F8/$L8) -> 1 | V8: =IF(G8=0,NA(),G8/$L8) ->  | W8: =IF(H8=0,NA(),H8/$L8) -> 
B9: ="Nabij kruispunt: "&VLOOKUP(B3,Coordinaten!$A$2:$L$95,4,0) -> Nabij kruispunt: N35 / N17 | F9: 1 | G9: - | H9: - | I9: - | J9: - | K9: - | L9: 1 | Q9: 0 | S9: =D10 -> 2021-11-23 | T9: =E10 -> 19:00 - 02:00u | U9: =IF(F10=0,NA(),F10/$L10) -> 1 | V9: =IF(G10=0,NA(),G10/$L10) -> 
D10: 2021-11-23 | E10: 19:00 - 02:00u | F10: 15 | G10: 0 | H10: 0 | I10: 0 | J10: 0 | K10: 0 | L10: 15 | M10: 0 | N10: 0 | O10: 0 | Q10: Vanaf 20 november nieuwe coronamaatregelen, waaronder verplicht telewerk
B11: Meting | F11: 1 | G11: - | H11: - | I11: - | J11: - | K11: - | L11: 1 | Q11: 0
B12: ="Meetperiode: "&TEXT(VLOOKUP(B3,Coordinaten!$A$2:$G$95,7,0),"dddd dd mmmm jjjj") -> Meetperiode: dinsdag 23 november 2021
B13: Methodiek: Parkeerdrukmeting met waarnemers
B14: In opdracht van: Vlaamse overheid
B15: Uitgevoerd door: Dufec
D16: VERDELING NAAR CATEGORIE
B17: Locatie
B18: =IF(B4="","",HYPERLINK("http://www.googlemaps.com/?q="&B4,"Lat/Long: "&B4)) -> Lat/Long: 50.952738, 3.569722
P20: Legenda
Q21: Personenwagen
Q22: Vracht
Q23: Motor
Q24: Obstakel / overig
Q25: Fout personenwagen
Q26: Fout Vracht
B38: Opmerking
B39: Het onderzoek vindt plaats gedurende coronamaatregelen.
B40: Dit heeft mogelijk een effect op de resultaten.
B42: Toelichting
B43: Pers = personenwagens op daarvoor bestemde
B44: openbare plaatsen
B45: Vracht = vrachtwagens op daarvoor bestemde
B46: parkeerplaatsen (middel- en zwaar vrachtverkeer)
B47: Motor = geparkeerde motoren op openbare plaatsen
B48: Obstakel / overig = obstakels of overige voertuigen
B49: geparkeerd op openbare plaatsen
B50: Fout pers = personenwagens die fout geparkeerd staan
B51: Fout vracht = vrachtwagens die fout geparkeerd staan
B52: E-wagen = geparkeerde elektrisch voertuig bij een
B53: elektrisch oplaadpunt
B54: Invalide = personenwagens en motoren op voor
B55: invalide personen bestemde parkeerplaats
B56: Gestalde fietsen = alle gestalde fietsen op de
B57: daarvoor bestemde parkeerplaatsen

Sheet 55.Erpe-Mere
B2: PARKEERONDERZOEK | D2: CARPOOLPARKINGS EN P+R PARKINGS
B3: 55 | D3: =B8 & " - "& TEXT(VLOOKUP(B3,Coordinaten!$A$2:$G$95,7,0),"dddd dd mmmm jjjj") -> Carpool parking Erpe-Mere, Erpe-Mere - dinsdag 23 november 2021
B4: =VLOOKUP(B3,Coordinaten!$A$2:$G$95,6,0) -> 50.927985, 3.958209
D5: BEZETTING | Q5: OPMERKINGEN
B7: Onderzoeksgebied | D7: Datum | E7: Geregistreerd tussen | F7: Pers | G7: Vracht | H7: Motor | I7: Obstakel / overig | J7: Fout pers | K7: Fout Vracht | L7: Totaal | M7: E-wagen plaats | N7: Invalidenplaats | O7: Gestalde fietsen | U7: =F7 -> Pers | V7: Vracht | W7: Motor | X7: Obstakel / overig | Y7: Fout pers | Z7: Fout Vracht
B8: =VLOOKUP(B3,Coordinaten!$A$2:$G$95,3,0)&", "&VLOOKUP(B3,Coordinaten!$A$2:$G$95,5,0) -> Carpool parking Erpe-Mere, Erpe-Mere | D8: 2021-11-23 | E8: 09:00 - 16:00u | F8: 66 | G8: 0 | H8: 0 | I8: 0 | J8: 0 | K8: 1 | L8: 67 | M8: 0 | N8: 0 | O8: 3 | Q8: Vanaf 20 november nieuwe coronamaatregelen, waaronder verplicht telewerk | S8: =D8 -> 2021-11-23 | T8: =E8 -> 09:00 - 16:00u | U8: =IF(F8=0,NA(),F8/$L8) -> 0.9850746269 | V8: =IF(G8=0,NA(),G8/$L8) ->  | W8: =IF(H8=0,NA(),H8/$L8) ->  | Z8: 0.01492537313
B9: ="Nabij kruispunt: "&VLOOKUP(B3,Coordinaten!$A$2:$L$95,4,0) -> Nabij kruispunt: N46 / A10 | F9: 0.9850746269 | G9: - | H9: - | I9: - | J9: - | K9: 0.01492537313 | L9: 1 | Q9: 0 | S9: =D10 -> 2021-11-23 | T9: =E10 -> 19:00 - 02:00u | U9: =IF(F10=0,NA(),F10/$L10) -> 1 | V9: =IF(G10=0,NA(),G10/$L10) -> 
D10: 2021-11-23 | E10: 19:00 - 02:00u | F10: 123 | G10: 0 | H10: 0 | I10: 0 | J10: 0 | K10: 0 | L10: 123 | M10: 0 | N10: 0 | O10: 34 | Q10: Vanaf 20 november nieuwe coronamaatregelen, waaronder verplicht telewerk
B11: Meting | F11: 1 | G11: - | H11: - | I11: - | J11: - | K11: - | L11: 1 | Q11: 0
B12: ="Meetperiode: "&TEXT(VLOOKUP(B3,Coordinaten!$A$2:$G$95,7,0),"dddd dd mmmm jjjj") -> Meetperiode: dinsdag 23 november 2021
B13: Methodiek: Parkeerdrukmeting met waarnemers
B14: In opdracht van: Vlaamse overheid
B15: Uitgevoerd door: Dufec
D16: VERDELING NAAR CATEGORIE
B17: Locatie
B18: =IF(B4="","",HYPERLINK("http://www.googlemaps.com/?q="&B4,"Lat/Long: "&B4)) -> Lat/Long: 50.927985, 3.958209
P20: Legenda
Q21: Personenwagen
Q22: Vracht
Q23: Motor
Q24: Obstakel / overig
Q25: Fout personenwagen
Q26: Fout Vracht
B38: Opmerking
B39: Het onderzoek vindt plaats gedurende coronamaatregelen.
B40: Dit heeft mogelijk een effect op de resultaten.
B42: Toelichting
B43: Pers = personenwagens op daarvoor bestemde
B44: openbare plaatsen
B45: Vracht = vrachtwagens op daarvoor bestemde
B46: parkeerplaatsen (middel- en zwaar vrachtverkeer)
B47: Motor = geparkeerde motoren op openbare plaatsen
B48: Obstakel / overig = obstakels of overige voertuigen
B49: geparkeerd op openbare plaatsen
B50: Fout pers = personenwagens die fout geparkeerd staan
B51: Fout vracht = vrachtwagens die fout geparkeerd staan
B52: E-wagen = geparkeerde elektrisch voertuig bij een
B53: elektrisch oplaadpunt
B54: Invalide = personenwagens en motoren op voor
B55: invalide personen bestemde parkeerplaats
B56: Gestalde fietsen = alle gestalde fietsen op de
B57: daarvoor bestemde parkeerplaatsen

Sheet 56.Geel-West
B2: PARKEERONDERZOEK | D2: CARPOOLPARKINGS EN P+R PARKINGS
B3: 56 | D3: =B8 & " - "& TEXT(VLOOKUP(B3,Coordinaten!$A$2:$G$95,7,0),"dddd dd mmmm jjjj") -> Carpool parking Geel-West, Westerlo - donderdag 18 november 2021
B4: =VLOOKUP(B3,Coordinaten!$A$2:$G$95,6,0) -> 51.133020, 4.940494
D5: BEZETTING | Q5: OPMERKINGEN
B7: Onderzoeksgebied | D7: Datum | E7: Geregistreerd tussen | F7: Pers | G7: Vracht | H7: Motor | I7: Obstakel / overig | J7: Fout pers | K7: Fout Vracht | L7: Totaal | M7: E-wagen plaats | N7: Invalidenplaats | O7: Gestalde fietsen | U7: =F7 -> Pers | V7: Vracht | W7: Motor | X7: Obstakel / overig | Y7: Fout pers | Z7: Fout Vracht
B8: =VLOOKUP(B3,Coordinaten!$A$2:$G$95,3,0)&", "&VLOOKUP(B3,Coordinaten!$A$2:$G$95,5,0) -> Carpool parking Geel-West, Westerlo | D8: 2021-11-18 | E8: 09:00 - 16:00u | F8: 67 | G8: 9 | H8: 0 | I8: 0 | J8: 0 | K8: 2 | L8: 78 | M8: 0 | N8: 0 | O8: 6 | Q8: 0 | S8: =D8 -> 2021-11-18 | T8: =E8 -> 09:00 - 16:00u | U8: =IF(F8=0,NA(),F8/$L8) -> 0.858974359 | V8: =IF(G8=0,NA(),G8/$L8) -> 0.1153846154 | W8: =IF(H8=0,NA(),H8/$L8) ->  | Z8: 0.02564102564
B9: ="Nabij kruispunt: "&VLOOKUP(B3,Coordinaten!$A$2:$L$95,4,0) -> Nabij kruispunt: N19 / Bell-Telephonelaan | F9: 0.858974359 | G9: 0.1153846154 | H9: - | I9: - | J9: - | K9: 0.02564102564 | L9: 1 | Q9: 0 | S9: =D10 -> 2021-11-18 | T9: =E10 -> 19:00 - 02:00u | U9: =IF(F10=0,NA(),F10/$L10) -> 1 | V9: =IF(G10=0,NA(),G10/$L10) -> 
D10: 2021-11-18 | E10: 19:00 - 02:00u | F10: 14 | G10: 0 | H10: 0 | I10: 0 | J10: 0 | K10: 0 | L10: 14 | M10: 0 | N10: 0 | O10: 8 | Q10: 0
B11: Meting | F11: 1 | G11: - | H11: - | I11: - | J11: - | K11: - | L11: 1 | Q11: 0
B12: ="Meetperiode: "&TEXT(VLOOKUP(B3,Coordinaten!$A$2:$G$95,7,0),"dddd dd mmmm jjjj") -> Meetperiode: donderdag 18 november 2021
B13: Methodiek: Parkeerdrukmeting met waarnemers
B14: In opdracht van: Vlaamse overheid
B15: Uitgevoerd door: Dufec
D16: VERDELING NAAR CATEGORIE
B17: Locatie
B18: =IF(B4="","",HYPERLINK("http://www.googlemaps.com/?q="&B4,"Lat/Long: "&B4)) -> Lat/Long: 51.133020, 4.940494
P20: Legenda
Q21: Personenwagen
Q22: Vracht
Q23: Motor
Q24: Obstakel / overig
Q25: Fout personenwagen
Q26: Fout Vracht
B38: Opmerking
B39: Het onderzoek vindt plaats gedurende coronamaatregelen.
B40: Dit heeft mogelijk een effect op de resultaten.
B42: Toelichting
B43: Pers = personenwagens op daarvoor bestemde
B44: openbare plaatsen
B45: Vracht = vrachtwagens op daarvoor bestemde
B46: parkeerplaatsen (middel- en zwaar vrachtverkeer)
B47: Motor = geparkeerde motoren op openbare plaatsen
B48: Obstakel / overig = obstakels of overige voertuigen
B49: geparkeerd op openbare plaatsen
B50: Fout pers = personenwagens die fout geparkeerd staan
B51: Fout vracht = vrachtwagens die fout geparkeerd staan
B52: E-wagen = geparkeerde elektrisch voertuig bij een
B53: elektrisch oplaadpunt
B54: Invalide = personenwagens en motoren op voor
B55: invalide personen bestemde parkeerplaats
B56: Gestalde fietsen = alle gestalde fietsen op de
B57: daarvoor bestemde parkeerplaatsen

Sheet 57.Veurne
B2: PARKEERONDERZOEK | D2: CARPOOLPARKINGS EN P+R PARKINGS
B3: 57 | D3: =B8 & " - "& TEXT(VLOOKUP(B3,Coordinaten!$A$2:$G$95,7,0),"dddd dd mmmm jjjj") -> Carpool parking Veurne, Veurne - dinsdag 09 november 2021
B4: =VLOOKUP(B3,Coordinaten!$A$2:$G$95,6,0) -> 51.070372, 2.656499
D5: BEZETTING | Q5: OPMERKINGEN
B7: Onderzoeksgebied | D7: Datum | E7: Geregistreerd tussen | F7: Pers | G7: Vracht | H7: Motor | I7: Obstakel / overig | J7: Fout pers | K7: Fout Vracht | L7: Totaal | M7: E-wagen plaats | N7: Invalidenplaats | O7: Gestalde fietsen | U7: =F7 -> Pers | V7: Vracht | W7: Motor | X7: Obstakel / overig | Y7: Fout pers | Z7: Fout Vracht
B8: =VLOOKUP(B3,Coordinaten!$A$2:$G$95,3,0)&", "&VLOOKUP(B3,Coordinaten!$A$2:$G$95,5,0) -> Carpool parking Veurne, Veurne | D8: 2021-11-09 | E8: 09:00 - 16:00u | F8: 32 | G8: 0 | H8: 0 | I8: 1 | J8: 1 | K8: 0 | L8: 34 | M8: 0 | N8: 0 | O8: 0 | Q8: Obstakel: aanhanger | S8: =D8 -> 2021-11-09 | T8: =E8 -> 09:00 - 16:00u | U8: =IF(F8=0,NA(),F8/$L8) -> 0.9411764706 | V8: =IF(G8=0,NA(),G8/$L8) ->  | W8: =IF(H8=0,NA(),H8/$L8) ->  | X8: 0.02941176471 | Y8: 0.02941176471
B9: ="Nabij kruispunt: "&VLOOKUP(B3,Coordinaten!$A$2:$L$95,4,0) -> Nabij kruispunt: N39 / N8 | F9: 0.9411764706 | G9: - | H9: - | I9: 0.02941176471 | J9: 0.02941176471 | K9: - | L9: 1 | Q9: 0 | S9: =D10 -> 2021-11-09 | T9: =E10 -> 19:00 - 02:00u | U9: =IF(F10=0,NA(),F10/$L10) -> 0.6666666667 | V9: =IF(G10=0,NA(),G10/$L10) ->  | Z9: 0.3333333333
D10: 2021-11-09 | E10: 19:00 - 02:00u | F10: 2 | G10: 0 | H10: 0 | I10: 0 | J10: 0 | K10: 1 | L10: 3 | M10: 0 | N10: 0 | O10: 0 | Q10: 0
B11: Meting | F11: 0.6666666667 | G11: - | H11: - | I11: - | J11: - | K11: 0.3333333333 | L11: 1 | Q11: 0
B12: ="Meetperiode: "&TEXT(VLOOKUP(B3,Coordinaten!$A$2:$G$95,7,0),"dddd dd mmmm jjjj") -> Meetperiode: dinsdag 09 november 2021
B13: Methodiek: Parkeerdrukmeting met waarnemers
B14: In opdracht van: Vlaamse overheid
B15: Uitgevoerd door: Dufec
D16: VERDELING NAAR CATEGORIE
B17: Locatie
B18: =IF(B4="","",HYPERLINK("http://www.googlemaps.com/?q="&B4,"Lat/Long: "&B4)) -> Lat/Long: 51.070372, 2.656499
P20: Legenda
Q21: Personenwagen
Q22: Vracht
Q23: Motor
Q24: Obstakel / overig
Q25: Fout personenwagen
Q26: Fout Vracht
B38: Opmerking
B39: Het onderzoek vindt plaats gedurende coronamaatregelen.
B40: Dit heeft mogelijk een effect op de resultaten.
B42: Toelichting
B43: Pers = personenwagens op daarvoor bestemde
B44: openbare plaatsen
B45: Vracht = vrachtwagens op daarvoor bestemde
B46: parkeerplaatsen (middel- en zwaar vrachtverkeer)
B47: Motor = geparkeerde motoren op openbare plaatsen
B48: Obstakel / overig = obstakels of overige voertuigen
B49: geparkeerd op openbare plaatsen
B50: Fout pers = personenwagens die fout geparkeerd staan
B51: Fout vracht = vrachtwagens die fout geparkeerd staan
B52: E-wagen = geparkeerde elektrisch voertuig bij een
B53: elektrisch oplaadpunt
B54: Invalide = personenwagens en motoren op voor
B55: invalide personen bestemde parkeerplaats
B56: Gestalde fietsen = alle gestalde fietsen op de
B57: daarvoor bestemde parkeerplaatsen

Sheet 58.Oudenburg
B2: PARKEERONDERZOEK | D2: CARPOOLPARKINGS EN P+R PARKINGS
B3: 58 | D3: =B8 & " - "& TEXT(VLOOKUP(B3,Coordinaten!$A$2:$G$95,7,0),"dddd dd mmmm jjjj") -> Carpool parking Oudenburg, Oudenburg - dinsdag 09 november 2021
B4: =VLOOKUP(B3,Coordinaten!$A$2:$G$95,6,0) -> 51.200906, 3.007635
D5: BEZETTING | Q5: OPMERKINGEN
B7: Onderzoeksgebied | D7: Datum | E7: Geregistreerd tussen | F7: Pers | G7: Vracht | H7: Motor | I7: Obstakel / overig | J7: Fout pers | K7: Fout Vracht | L7: Totaal | M7: E-wagen plaats | N7: Invalidenplaats | O7: Gestalde fietsen | U7: =F7 -> Pers | V7: Vracht | W7: Motor | X7: Obstakel / overig | Y7: Fout pers | Z7: Fout Vracht
B8: =VLOOKUP(B3,Coordinaten!$A$2:$G$95,3,0)&", "&VLOOKUP(B3,Coordinaten!$A$2:$G$95,5,0) -> Carpool parking Oudenburg, Oudenburg | D8: 2021-11-09 | E8: 09:00 - 16:00u | F8: 3 | G8: 0 | H8: 0 | I8: 2 | J8: 0 | K8: 0 | L8: 5 | M8: 0 | N8: 0 | O8: 0 | Q8: Obstakel 2 aanhangers | S8: =D8 -> 2021-11-09 | T8: =E8 -> 09:00 - 16:00u | U8: =IF(F8=0,NA(),F8/$L8) -> 0.6 | V8: =IF(G8=0,NA(),G8/$L8) ->  | W8: =IF(H8=0,NA(),H8/$L8) ->  | X8: 0.4
B9: ="Nabij kruispunt: "&VLOOKUP(B3,Coordinaten!$A$2:$L$95,4,0) -> Nabij kruispunt: N358 / A10 | F9: 0.6 | G9: - | H9: - | I9: 0.4 | J9: - | K9: - | L9: 1 | Q9: 0 | S9: =D10 -> 2021-11-09 | T9: =E10 -> 19:00 - 02:00u | U9: =IF(F10=0,NA(),F10/$L10) -> 1 | V9: =IF(G10=0,NA(),G10/$L10) -> 
D10: 2021-11-09 | E10: 19:00 - 02:00u | F10: 2 | G10: 0 | H10: 0 | I10: 0 | J10: 0 | K10: 0 | L10: 2 | M10: 0 | N10: 0 | O10: 0 | Q10: 0
B11: Meting | F11: 1 | G11: - | H11: - | I11: - | J11: - | K11: - | L11: 1 | Q11: 0
B12: ="Meetperiode: "&TEXT(VLOOKUP(B3,Coordinaten!$A$2:$G$95,7,0),"dddd dd mmmm jjjj") -> Meetperiode: dinsdag 09 november 2021
B13: Methodiek: Parkeerdrukmeting met waarnemers
B14: In opdracht van: Vlaamse overheid
B15: Uitgevoerd door: Dufec
D16: VERDELING NAAR CATEGORIE
B17: Locatie
B18: =IF(B4="","",HYPERLINK("http://www.googlemaps.com/?q="&B4,"Lat/Long: "&B4)) -> Lat/Long: 51.200906, 3.007635
P20: Legenda
Q21: Personenwagen
Q22: Vracht
Q23: Motor
Q24: Obstakel / overig
Q25: Fout personenwagen
Q26: Fout Vracht
B38: Opmerking
B39: Het onderzoek vindt plaats gedurende coronamaatregelen.
B40: Dit heeft mogelijk een effect op de resultaten.
B42: Toelichting
B43: Pers = personenwagens op daarvoor bestemde
B44: openbare plaatsen
B45: Vracht = vrachtwagens op daarvoor bestemde
B46: parkeerplaatsen (middel- en zwaar vrachtverkeer)
B47: Motor = geparkeerde motoren op openbare plaatsen
B48: Obstakel / overig = obstakels of overige voertuigen
B49: geparkeerd op openbare plaatsen
B50: Fout pers = personenwagens die fout geparkeerd staan
B51: Fout vracht = vrachtwagens die fout geparkeerd staan
B52: E-wagen = geparkeerde elektrisch voertuig bij een
B53: elektrisch oplaadpunt
B54: Invalide = personenwagens en motoren op voor
B55: invalide personen bestemde parkeerplaats
B56: Gestalde fietsen = alle gestalde fietsen op de
B57: daarvoor bestemde parkeerplaatsen

Sheet 59.Middelkerke
B2: PARKEERONDERZOEK | D2: CARPOOLPARKINGS EN P+R PARKINGS
B3: 59 | D3: =B8 & " - "& TEXT(VLOOKUP(B3,Coordinaten!$A$2:$G$95,7,0),"dddd dd mmmm jjjj") -> Carpool parking Middelkerke, Middelkerke - dinsdag 09 november 2021
B4: =VLOOKUP(B3,Coordinaten!$A$2:$G$95,6,0) -> 51.139750, 2.862593
D5: BEZETTING | Q5: OPMERKINGEN
B7: Onderzoeksgebied | D7: Datum | E7: Geregistreerd tussen | F7: Pers | G7: Vracht | H7: Motor | I7: Obstakel / overig | J7: Fout pers | K7: Fout Vracht | L7: Totaal | M7: E-wagen plaats | N7: Invalidenplaats | O7: Gestalde fietsen | U7: =F7 -> Pers | V7: Vracht | W7: Motor | X7: Obstakel / overig | Y7: Fout pers | Z7: Fout Vracht
B8: =VLOOKUP(B3,Coordinaten!$A$2:$G$95,3,0)&", "&VLOOKUP(B3,Coordinaten!$A$2:$G$95,5,0) -> Carpool parking Middelkerke, Middelkerke | D8: 2021-11-09 | E8: 09:00 - 16:00u | F8: 9 | G8: 0 | H8: 1 | I8: 1 | J8: 0 | K8: 0 | L8: 11 | M8: 0 | N8: 0 | O8: 1 | Q8: Obstakel: aanhanger | S8: =D8 -> 2021-11-09 | T8: =E8 -> 09:00 - 16:00u | U8: =IF(F8=0,NA(),F8/$L8) -> 0.8181818182 | V8: =IF(G8=0,NA(),G8/$L8) ->  | W8: =IF(H8=0,NA(),H8/$L8) -> 0.09090909091 | X8: 0.09090909091
B9: ="Nabij kruispunt: "&VLOOKUP(B3,Coordinaten!$A$2:$L$95,4,0) -> Nabij kruispunt: N369 / A18 | F9: 0.8181818182 | G9: - | H9: 0.09090909091 | I9: 0.09090909091 | J9: - | K9: - | L9: 1 | Q9: 0 | S9: =D10 -> 2021-11-09 | T9: =E10 -> 19:00 - 02:00u | U9: =IF(F10=0,NA(),F10/$L10) ->  | V9: =IF(G10=0,NA(),G10/$L10) -> 
D10: 2021-11-09 | E10: 19:00 - 02:00u | F10: 0 | G10: 0 | H10: 0 | I10: 0 | J10: 0 | K10: 0 | L10: 0 | M10: 0 | N10: 0 | O10: 0 | Q10: Geen bezetting
B11: Meting | F11: - | G11: - | H11: - | I11: - | J11: - | K11: - | L11: - | Q11: 0
B12: ="Meetperiode: "&TEXT(VLOOKUP(B3,Coordinaten!$A$2:$G$95,7,0),"dddd dd mmmm jjjj") -> Meetperiode: dinsdag 09 november 2021
B13: Methodiek: Parkeerdrukmeting met waarnemers
B14: In opdracht van: Vlaamse overheid
B15: Uitgevoerd door: Dufec
D16: VERDELING NAAR CATEGORIE
B17: Locatie
B18: =IF(B4="","",HYPERLINK("http://www.googlemaps.com/?q="&B4,"Lat/Long: "&B4)) -> Lat/Long: 51.139750, 2.862593
P20: Legenda
Q21: Personenwagen
Q22: Vracht
Q23: Motor
Q24: Obstakel / overig
Q25: Fout personenwagen
Q26: Fout Vracht
B38: Opmerking
B39: Het onderzoek vindt plaats gedurende coronamaatregelen.
B40: Dit heeft mogelijk een effect op de resultaten.
B42: Toelichting
B43: Pers = personenwagens op daarvoor bestemde
B44: openbare plaatsen
B45: Vracht = vrachtwagens op daarvoor bestemde
B46: parkeerplaatsen (middel- en zwaar vrachtverkeer)
B47: Motor = geparkeerde motoren op openbare plaatsen
B48: Obstakel / overig = obstakels of overige voertuigen
B49: geparkeerd op openbare plaatsen
B50: Fout pers = personenwagens die fout geparkeerd staan
B51: Fout vracht = vrachtwagens die fout geparkeerd staan
B52: E-wagen = geparkeerde elektrisch voertuig bij een
B53: elektrisch oplaadpunt
B54: Invalide = personenwagens en motoren op voor
B55: invalide personen bestemde parkeerplaats
B56: Gestalde fietsen = alle gestalde fietsen op de
B57: daarvoor bestemde parkeerplaatsen

Sheet 60.Loenhout
B2: PARKEERONDERZOEK | D2: CARPOOLPARKINGS EN P+R PARKINGS
B3: 60 | D3: =B8 & " - "& TEXT(VLOOKUP(B3,Coordinaten!$A$2:$G$95,7,0),"dddd dd mmmm jjjj") -> P+R parking Loenhout, Wuustwezel - dinsdag 09 november 2021
B4: =VLOOKUP(B3,Coordinaten!$A$2:$G$95,6,0) -> 51.397419, 4.689008
D5: BEZETTING | Q5: OPMERKINGEN
B7: Onderzoeksgebied | D7: Datum | E7: Geregistreerd tussen | F7: Pers | G7: Vracht | H7: Motor | I7: Obstakel / overig | J7: Fout pers | K7: Fout Vracht | L7: Totaal | M7: E-wagen plaats | N7: Invalidenplaats | O7: Gestalde fietsen | U7: =F7 -> Pers | V7: Vracht | W7: Motor | X7: Obstakel / overig | Y7: Fout pers | Z7: Fout Vracht
B8: =VLOOKUP(B3,Coordinaten!$A$2:$G$95,3,0)&", "&VLOOKUP(B3,Coordinaten!$A$2:$G$95,5,0) -> P+R parking Loenhout, Wuustwezel | D8: 2021-11-09 | E8: 09:00 - 16:00u | F8: 23 | G8: 0 | H8: 0 | I8: 0 | J8: 0 | K8: 0 | L8: 23 | M8: 0 | N8: 0 | O8: 0 | Q8: 0 | S8: =D8 -> 2021-11-09 | T8: =E8 -> 09:00 - 16:00u | U8: =IF(F8=0,NA(),F8/$L8) -> 1 | V8: =IF(G8=0,NA(),G8/$L8) ->  | W8: =IF(H8=0,NA(),H8/$L8) -> 
B9: ="Nabij kruispunt: "&VLOOKUP(B3,Coordinaten!$A$2:$L$95,4,0) -> Nabij kruispunt: N144 / Hollandseweg | F9: 1 | G9: - | H9: - | I9: - | J9: - | K9: - | L9: 1 | Q9: 0 | S9: =D10 -> 2021-11-09 | T9: =E10 -> 19:00 - 02:00u | U9: =IF(F10=0,NA(),F10/$L10) -> 0.4285714286 | V9: =IF(G10=0,NA(),G10/$L10) ->  | Z9: 0.5714285714
D10: 2021-11-09 | E10: 19:00 - 02:00u | F10: 6 | G10: 0 | H10: 0 | I10: 0 | J10: 0 | K10: 8 | L10: 14 | M10: 0 | N10: 0 | O10: 0 | Q10: 0
B11: Meting | F11: 0.4285714286 | G11: - | H11: - | I11: - | J11: - | K11: 0.5714285714 | L11: 1 | Q11: 0
B12: ="Meetperiode: "&TEXT(VLOOKUP(B3,Coordinaten!$A$2:$G$95,7,0),"dddd dd mmmm jjjj") -> Meetperiode: dinsdag 09 november 2021
B13: Methodiek: Parkeerdrukmeting met waarnemers
B14: In opdracht van: Vlaamse overheid
B15: Uitgevoerd door: Dufec
D16: VERDELING NAAR CATEGORIE
B17: Locatie
B18: =IF(B4="","",HYPERLINK("http://www.googlemaps.com/?q="&B4,"Lat/Long: "&B4)) -> Lat/Long: 51.397419, 4.689008
P20: Legenda
Q21: Personenwagen
Q22: Vracht
Q23: Motor
Q24: Obstakel / overig
Q25: Fout personenwagen
Q26: Fout Vracht
B38: Opmerking
B39: Het onderzoek vindt plaats gedurende coronamaatregelen.
B40: Dit heeft mogelijk een effect op de resultaten.
B42: Toelichting
B43: Pers = personenwagens op daarvoor bestemde
B44: openbare plaatsen
B45: Vracht = vrachtwagens op daarvoor bestemde
B46: parkeerplaatsen (middel- en zwaar vrachtverkeer)
B47: Motor = geparkeerde motoren op openbare plaatsen
B48: Obstakel / overig = obstakels of overige voertuigen
B49: geparkeerd op openbare plaatsen
B50: Fout pers = personenwagens die fout geparkeerd staan
B51: Fout vracht = vrachtwagens die fout geparkeerd staan
B52: E-wagen = geparkeerde elektrisch voertuig bij een
B53: elektrisch oplaadpunt
B54: Invalide = personenwagens en motoren op voor
B55: invalide personen bestemde parkeerplaats
B56: Gestalde fietsen = alle gestalde fietsen op de
B57: daarvoor bestemde parkeerplaatsen

Sheet 61.Meise
B2: PARKEERONDERZOEK | D2: CARPOOLPARKINGS EN P+R PARKINGS
B3: 61 | D3: =B8 & " - "& TEXT(VLOOKUP(B3,Coordinaten!$A$2:$G$95,7,0),"dddd dd mmmm jjjj") -> P+R parking Meise, Meise - donderdag 18 november 2021
B4: =VLOOKUP(B3,Coordinaten!$A$2:$G$95,6,0) -> 50.934686, 4.330993
D5: BEZETTING | Q5: OPMERKINGEN
B7: Onderzoeksgebied | D7: Datum | E7: Geregistreerd tussen | F7: Pers | G7: Vracht | H7: Motor | I7: Obstakel / overig | J7: Fout pers | K7: Fout Vracht | L7: Totaal | M7: E-wagen plaats | N7: Invalidenplaats | O7: Gestalde fietsen | U7: =F7 -> Pers | V7: Vracht | W7: Motor | X7: Obstakel / overig | Y7: Fout pers | Z7: Fout Vracht
B8: =VLOOKUP(B3,Coordinaten!$A$2:$G$95,3,0)&", "&VLOOKUP(B3,Coordinaten!$A$2:$G$95,5,0) -> P+R parking Meise, Meise | D8: 2021-11-18 | E8: 09:00 - 16:00u | F8: 31 | G8: 5 | H8: 0 | I8: 1 | J8: 1 | K8: 4 | L8: 42 | M8: 0 | N8: 0 | O8: 0 | Q8: Obstakel: aanhanger | S8: =D8 -> 2021-11-18 | T8: =E8 -> 09:00 - 16:00u | U8: =IF(F8=0,NA(),F8/$L8) -> 0.7380952381 | V8: =IF(G8=0,NA(),G8/$L8) -> 0.119047619 | W8: =IF(H8=0,NA(),H8/$L8) ->  | X8: 0.02380952381 | Y8: 0.02380952381 | Z8: 0.09523809524
B9: ="Nabij kruispunt: "&VLOOKUP(B3,Coordinaten!$A$2:$L$95,4,0) -> Nabij kruispunt: N227 / A12 | F9: 0.7380952381 | G9: 0.119047619 | H9: - | I9: 0.02380952381 | J9: 0.02380952381 | K9: 0.09523809524 | L9: 1 | Q9: 0 | S9: =D10 -> 2021-11-18 | T9: =E10 -> 19:00 - 02:00u | U9: =IF(F10=0,NA(),F10/$L10) -> 0.4857142857 | V9: =IF(G10=0,NA(),G10/$L10) -> 0.2 | Z9: 0.3142857143
D10: 2021-11-18 | E10: 19:00 - 02:00u | F10: 17 | G10: 7 | H10: 0 | I10: 0 | J10: 0 | K10: 11 | L10: 35 | M10: 0 | N10: 0 | O10: 0 | Q10: 0
B11: Meting | F11: 0.4857142857 | G11: 0.2 | H11: - | I11: - | J11: - | K11: 0.3142857143 | L11: 1 | Q11: 0
B12: ="Meetperiode: "&TEXT(VLOOKUP(B3,Coordinaten!$A$2:$G$95,7,0),"dddd dd mmmm jjjj") -> Meetperiode: donderdag 18 november 2021
B13: Methodiek: Parkeerdrukmeting met waarnemers
B14: In opdracht van: Vlaamse overheid
B15: Uitgevoerd door: Dufec
D16: VERDELING NAAR CATEGORIE
B17: Locatie
B18: =IF(B4="","",HYPERLINK("http://www.googlemaps.com/?q="&B4,"Lat/Long: "&B4)) -> Lat/Long: 50.934686, 4.330993
P20: Legenda
Q21: Personenwagen
Q22: Vracht
Q23: Motor
Q24: Obstakel / overig
Q25: Fout personenwagen
Q26: Fout Vracht
B38: Opmerking
B39: Het onderzoek vindt plaats gedurende coronamaatregelen.
B40: Dit heeft mogelijk een effect op de resultaten.
B42: Toelichting
B43: Pers = personenwagens op daarvoor bestemde
B44: openbare plaatsen
B45: Vracht = vrachtwagens op daarvoor bestemde
B46: parkeerplaatsen (middel- en zwaar vrachtverkeer)
B47: Motor = geparkeerde motoren op openbare plaatsen
B48: Obstakel / overig = obstakels of overige voertuigen
B49: geparkeerd op openbare plaatsen
B50: Fout pers = personenwagens die fout geparkeerd staan
B51: Fout vracht = vrachtwagens die fout geparkeerd staan
B52: E-wagen = geparkeerde elektrisch voertuig bij een
B53: elektrisch oplaadpunt
B54: Invalide = personenwagens en motoren op voor
B55: invalide personen bestemde parkeerplaats
B56: Gestalde fietsen = alle gestalde fietsen op de
B57: daarvoor bestemde parkeerplaatsen

Sheet 62.Nieuwpoort
B2: PARKEERONDERZOEK | D2: CARPOOLPARKINGS EN P+R PARKINGS
B3: 62 | D3: =B8 & " - "& TEXT(VLOOKUP(B3,Coordinaten!$A$2:$G$95,7,0),"dddd dd mmmm jjjj") -> Carpool parking Nieuwpoort, Nieuwpoort - dinsdag 09 november 2021
B4: =VLOOKUP(B3,Coordinaten!$A$2:$G$95,6,0) -> 51.109593, 2.757978
D5: BEZETTING | Q5: OPMERKINGEN
B7: Onderzoeksgebied | D7: Datum | E7: Geregistreerd tussen | F7: Pers | G7: Vracht | H7: Motor | I7: Obstakel / overig | J7: Fout pers | K7: Fout Vracht | L7: Totaal | M7: E-wagen plaats | N7: Invalidenplaats | O7: Gestalde fietsen | U7: =F7 -> Pers | V7: Vracht | W7: Motor | X7: Obstakel / overig | Y7: Fout pers | Z7: Fout Vracht
B8: =VLOOKUP(B3,Coordinaten!$A$2:$G$95,3,0)&", "&VLOOKUP(B3,Coordinaten!$A$2:$G$95,5,0) -> Carpool parking Nieuwpoort, Nieuwpoort | D8: 2021-11-09 | E8: 09:00 - 16:00u | F8: 14 | G8: 0 | H8: 0 | I8: 2 | J8: 2 | K8: 0 | L8: 18 | M8: 0 | N8: 0 | O8: 0 | Q8: Obstakel: glasbakken en kledingcontainer | S8: =D8 -> 2021-11-09 | T8: =E8 -> 09:00 - 16:00u | U8: =IF(F8=0,NA(),F8/$L8) -> 0.7777777778 | V8: =IF(G8=0,NA(),G8/$L8) ->  | W8: =IF(H8=0,NA(),H8/$L8) ->  | X8: 0.1111111111 | Y8: 0.1111111111
B9: ="Nabij kruispunt: "&VLOOKUP(B3,Coordinaten!$A$2:$L$95,4,0) -> Nabij kruispunt: N355 / A18 | F9: 0.7777777778 | G9: - | H9: - | I9: 0.1111111111 | J9: 0.1111111111 | K9: - | L9: 1 | Q9: 0 | S9: =D10 -> 2021-11-09 | T9: =E10 -> 19:00 - 02:00u | U9: =IF(F10=0,NA(),F10/$L10) -> 0.1428571429 | V9: =IF(G10=0,NA(),G10/$L10) -> 0.4285714286 | Z9: 0.4285714286
D10: 2021-11-09 | E10: 19:00 - 02:00u | F10: 1 | G10: 3 | H10: 0 | I10: 0 | J10: 0 | K10: 3 | L10: 7 | M10: 0 | N10: 1 | O10: 0 | Q10: 0
B11: Meting | F11: 0.1428571429 | G11: 0.4285714286 | H11: - | I11: - | J11: - | K11: 0.4285714286 | L11: 1 | Q11: 0
B12: ="Meetperiode: "&TEXT(VLOOKUP(B3,Coordinaten!$A$2:$G$95,7,0),"dddd dd mmmm jjjj") -> Meetperiode: dinsdag 09 november 2021
B13: Methodiek: Parkeerdrukmeting met waarnemers
B14: In opdracht van: Vlaamse overheid
B15: Uitgevoerd door: Dufec
D16: VERDELING NAAR CATEGORIE
B17: Locatie
B18: =IF(B4="","",HYPERLINK("http://www.googlemaps.com/?q="&B4,"Lat/Long: "&B4)) -> Lat/Long: 51.109593, 2.757978
P20: Legenda
Q21: Personenwagen
Q22: Vracht
Q23: Motor
Q24: Obstakel / overig
Q25: Fout personenwagen
Q26: Fout Vracht
B38: Opmerking
B39: Het onderzoek vindt plaats gedurende coronamaatregelen.
B40: Dit heeft mogelijk een effect op de resultaten.
B42: Toelichting
B43: Pers = personenwagens op daarvoor bestemde
B44: openbare plaatsen
B45: Vracht = vrachtwagens op daarvoor bestemde
B46: parkeerplaatsen (middel- en zwaar vrachtverkeer)
B47: Motor = geparkeerde motoren op openbare plaatsen
B48: Obstakel / overig = obstakels of overige voertuigen
B49: geparkeerd op openbare plaatsen
B50: Fout pers = personenwagens die fout geparkeerd staan
B51: Fout vracht = vrachtwagens die fout geparkeerd staan
B52: E-wagen = geparkeerde elektrisch voertuig bij een
B53: elektrisch oplaadpunt
B54: Invalide = personenwagens en motoren op voor
B55: invalide personen bestemde parkeerplaats
B56: Gestalde fietsen = alle gestalde fietsen op de
B57: daarvoor bestemde parkeerplaatsen

Sheet 63.Lichtervelde
B2: PARKEERONDERZOEK | D2: CARPOOLPARKINGS EN P+R PARKINGS
B3: 63 | D3: =B8 & " - "& TEXT(VLOOKUP(B3,Coordinaten!$A$2:$G$95,7,0),"dddd dd mmmm jjjj") -> Carpool parking Lichtervelde, Lichtervelde - dinsdag 23 november 2021
B4: =VLOOKUP(B3,Coordinaten!$A$2:$G$95,6,0) -> 51.011285, 3.167382
D5: BEZETTING | Q5: OPMERKINGEN
B7: Onderzoeksgebied | D7: Datum | E7: Geregistreerd tussen | F7: Pers | G7: Vracht | H7: Motor | I7: Obstakel / overig | J7: Fout pers | K7: Fout Vracht | L7: Totaal | M7: E-wagen plaats | N7: Invalidenplaats | O7: Gestalde fietsen | U7: =F7 -> Pers | V7: Vracht | W7: Motor | X7: Obstakel / overig | Y7: Fout pers | Z7: Fout Vracht
B8: =VLOOKUP(B3,Coordinaten!$A$2:$G$95,3,0)&", "&VLOOKUP(B3,Coordinaten!$A$2:$G$95,5,0) -> Carpool parking Lichtervelde, Lichtervelde | D8: 2021-11-23 | E8: 09:00 - 16:00u | F8: 28 | G8: 1 | H8: 0 | I8: 0 | J8: 0 | K8: 0 | L8: 29 | M8: 0 | N8: 0 | O8: 4 | Q8: Vanaf 20 november nieuwe coronamaatregelen, waaronder verplicht telewerk | S8: =D8 -> 2021-11-23 | T8: =E8 -> 09:00 - 16:00u | U8: =IF(F8=0,NA(),F8/$L8) -> 0.9655172414 | V8: =IF(G8=0,NA(),G8/$L8) -> 0.03448275862 | W8: =IF(H8=0,NA(),H8/$L8) -> 
B9: ="Nabij kruispunt: "&VLOOKUP(B3,Coordinaten!$A$2:$L$95,4,0) -> Nabij kruispunt: N35 / A17 | F9: 0.9655172414 | G9: 0.03448275862 | H9: - | I9: - | J9: - | K9: - | L9: 1 | Q9: 0 | S9: =D10 -> 2021-11-23 | T9: =E10 -> 19:00 - 02:00u | U9: =IF(F10=0,NA(),F10/$L10) -> 0.5 | V9: =IF(G10=0,NA(),G10/$L10) -> 0.25 | Z9: 0.25
D10: 2021-11-23 | E10: 19:00 - 02:00u | F10: 4 | G10: 2 | H10: 0 | I10: 0 | J10: 0 | K10: 2 | L10: 8 | M10: 0 | N10: 0 | O10: 0 | Q10: Vanaf 20 november nieuwe coronamaatregelen, waaronder verplicht telewerk
B11: Meting | F11: 0.5 | G11: 0.25 | H11: - | I11: - | J11: - | K11: 0.25 | L11: 1 | Q11: 0
B12: ="Meetperiode: "&TEXT(VLOOKUP(B3,Coordinaten!$A$2:$G$95,7,0),"dddd dd mmmm jjjj") -> Meetperiode: dinsdag 23 november 2021
B13: Methodiek: Parkeerdrukmeting met waarnemers
B14: In opdracht van: Vlaamse overheid
B15: Uitgevoerd door: Dufec
D16: VERDELING NAAR CATEGORIE
B17: Locatie
B18: =IF(B4="","",HYPERLINK("http://www.googlemaps.com/?q="&B4,"Lat/Long: "&B4)) -> Lat/Long: 51.011285, 3.167382
P20: Legenda
Q21: Personenwagen
Q22: Vracht
Q23: Motor
Q24: Obstakel / overig
Q25: Fout personenwagen
Q26: Fout Vracht
B38: Opmerking
B39: Het onderzoek vindt plaats gedurende coronamaatregelen.
B40: Dit heeft mogelijk een effect op de resultaten.
B42: Toelichting
B43: Pers = personenwagens op daarvoor bestemde
B44: openbare plaatsen
B45: Vracht = vrachtwagens op daarvoor bestemde
B46: parkeerplaatsen (middel- en zwaar vrachtverkeer)
B47: Motor = geparkeerde motoren op openbare plaatsen
B48: Obstakel / overig = obstakels of overige voertuigen
B49: geparkeerd op openbare plaatsen
B50: Fout pers = personenwagens die fout geparkeerd staan
B51: Fout vracht = vrachtwagens die fout geparkeerd staan
B52: E-wagen = geparkeerde elektrisch voertuig bij een
B53: elektrisch oplaadpunt
B54: Invalide = personenwagens en motoren op voor
B55: invalide personen bestemde parkeerplaats
B56: Gestalde fietsen = alle gestalde fietsen op de
B57: daarvoor bestemde parkeerplaatsen

Sheet 64.Kortrijk-Oost
B2: PARKEERONDERZOEK | D2: CARPOOLPARKINGS EN P+R PARKINGS
B3: 64 | D3: =B8 & " - "& TEXT(VLOOKUP(B3,Coordinaten!$A$2:$G$95,7,0),"dddd dd mmmm jjjj") -> Carpool parking Kortrijk-Oost, Kortrijk - dinsdag 23 november 2021
B4: =VLOOKUP(B3,Coordinaten!$A$2:$G$95,6,0) -> 50.817455, 3.299312
D5: BEZETTING | Q5: OPMERKINGEN
B7: Onderzoeksgebied | D7: Datum | E7: Geregistreerd tussen | F7: Pers | G7: Vracht | H7: Motor | I7: Obstakel / overig | J7: Fout pers | K7: Fout Vracht | L7: Totaal | M7: E-wagen plaats | N7: Invalidenplaats | O7: Gestalde fietsen | U7: =F7 -> Pers | V7: Vracht | W7: Motor | X7: Obstakel / overig | Y7: Fout pers | Z7: Fout Vracht
B8: =VLOOKUP(B3,Coordinaten!$A$2:$G$95,3,0)&", "&VLOOKUP(B3,Coordinaten!$A$2:$G$95,5,0) -> Carpool parking Kortrijk-Oost, Kortrijk | D8: 2021-11-23 | E8: 09:00 - 16:00u | F8: 60 | G8: 0 | H8: 0 | I8: 0 | J8: 0 | K8: 0 | L8: 60 | M8: 0 | N8: 0 | O8: 8 | Q8: Vanaf 20 november nieuwe coronamaatregelen, waaronder verplicht telewerk | S8: =D8 -> 2021-11-23 | T8: =E8 -> 09:00 - 16:00u | U8: =IF(F8=0,NA(),F8/$L8) -> 1 | V8: =IF(G8=0,NA(),G8/$L8) ->  | W8: =IF(H8=0,NA(),H8/$L8) -> 
B9: ="Nabij kruispunt: "&VLOOKUP(B3,Coordinaten!$A$2:$L$95,4,0) -> Nabij kruispunt: N8 / A14 | F9: 1 | G9: - | H9: - | I9: - | J9: - | K9: - | L9: 1 | Q9: 0 | S9: =D10 -> 2021-11-23 | T9: =E10 -> 19:00 - 02:00u | U9: =IF(F10=0,NA(),F10/$L10) -> 1 | V9: =IF(G10=0,NA(),G10/$L10) -> 
D10: 2021-11-23 | E10: 19:00 - 02:00u | F10: 26 | G10: 0 | H10: 0 | I10: 0 | J10: 0 | K10: 0 | L10: 26 | M10: 0 | N10: 0 | O10: 4 | Q10: Vanaf 20 november nieuwe coronamaatregelen, waaronder verplicht telewerk
B11: Meting | F11: 1 | G11: - | H11: - | I11: - | J11: - | K11: - | L11: 1 | Q11: 0
B12: ="Meetperiode: "&TEXT(VLOOKUP(B3,Coordinaten!$A$2:$G$95,7,0),"dddd dd mmmm jjjj") -> Meetperiode: dinsdag 23 november 2021
B13: Methodiek: Parkeerdrukmeting met waarnemers
B14: In opdracht van: Vlaamse overheid
B15: Uitgevoerd door: Dufec
D16: VERDELING NAAR CATEGORIE
B17: Locatie
B18: =IF(B4="","",HYPERLINK("http://www.googlemaps.com/?q="&B4,"Lat/Long: "&B4)) -> Lat/Long: 50.817455, 3.299312
P20: Legenda
Q21: Personenwagen
Q22: Vracht
Q23: Motor
Q24: Obstakel / overig
Q25: Fout personenwagen
Q26: Fout Vracht
B38: Opmerking
B39: Het onderzoek vindt plaats gedurende coronamaatregelen.
B40: Dit heeft mogelijk een effect op de resultaten.
B42: Toelichting
B43: Pers = personenwagens op daarvoor bestemde
B44: openbare plaatsen
B45: Vracht = vrachtwagens op daarvoor bestemde
B46: parkeerplaatsen (middel- en zwaar vrachtverkeer)
B47: Motor = geparkeerde motoren op openbare plaatsen
B48: Obstakel / overig = obstakels of overige voertuigen
B49: geparkeerd op openbare plaatsen
B50: Fout pers = personenwagens die fout geparkeerd staan
B51: Fout vracht = vrachtwagens die fout geparkeerd staan
B52: E-wagen = geparkeerde elektrisch voertuig bij een
B53: elektrisch oplaadpunt
B54: Invalide = personenwagens en motoren op voor
B55: invalide personen bestemde parkeerplaats
B56: Gestalde fietsen = alle gestalde fietsen op de
B57: daarvoor bestemde parkeerplaatsen

Sheet 65.Loppem
B2: PARKEERONDERZOEK | D2: CARPOOLPARKINGS EN P+R PARKINGS
B3: 65 | D3: =B8 & " - "& TEXT(VLOOKUP(B3,Coordinaten!$A$2:$G$95,7,0),"dddd dd mmmm jjjj") -> P+R parking Loppem, Zedelgem - dinsdag 09 november 2021
B4: =VLOOKUP(B3,Coordinaten!$A$2:$G$95,6,0) -> 51.162436, 3.192146
D5: BEZETTING | Q5: OPMERKINGEN
B7: Onderzoeksgebied | D7: Datum | E7: Geregistreerd tussen | F7: Pers | G7: Vracht | H7: Motor | I7: Obstakel / overig | J7: Fout pers | K7: Fout Vracht | L7: Totaal | M7: E-wagen plaats | N7: Invalidenplaats | O7: Gestalde fietsen | U7: =F7 -> Pers | V7: Vracht | W7: Motor | X7: Obstakel / overig | Y7: Fout pers | Z7: Fout Vracht
B8: =VLOOKUP(B3,Coordinaten!$A$2:$G$95,3,0)&", "&VLOOKUP(B3,Coordinaten!$A$2:$G$95,5,0) -> P+R parking Loppem, Zedelgem | D8: 2021-11-09 | E8: 09:00 - 16:00u | F8: 59 | G8: 0 | H8: 1 | I8: 0 | J8: 0 | K8: 0 | L8: 60 | M8: 0 | N8: 0 | O8: 5 | Q8: 0 | S8: =D8 -> 2021-11-09 | T8: =E8 -> 09:00 - 16:00u | U8: =IF(F8=0,NA(),F8/$L8) -> 0.9833333333 | V8: =IF(G8=0,NA(),G8/$L8) ->  | W8: =IF(H8=0,NA(),H8/$L8) -> 0.01666666667
B9: ="Nabij kruispunt: "&VLOOKUP(B3,Coordinaten!$A$2:$L$95,4,0) -> Nabij kruispunt: N397 / E40 | F9: 0.9833333333 | G9: - | H9: 0.01666666667 | I9: - | J9: - | K9: - | L9: 1 | Q9: 0 | S9: =D10 -> 2021-11-09 | T9: =E10 -> 19:00 - 02:00u | U9: =IF(F10=0,NA(),F10/$L10) -> 1 | V9: =IF(G10=0,NA(),G10/$L10) -> 
D10: 2021-11-09 | E10: 19:00 - 02:00u | F10: 14 | G10: 0 | H10: 0 | I10: 0 | J10: 0 | K10: 0 | L10: 14 | M10: 0 | N10: 0 | O10: 0 | Q10: 0
B11: Meting | F11: 1 | G11: - | H11: - | I11: - | J11: - | K11: - | L11: 1 | Q11: 0
B12: ="Meetperiode: "&TEXT(VLOOKUP(B3,Coordinaten!$A$2:$G$95,7,0),"dddd dd mmmm jjjj") -> Meetperiode: dinsdag 09 november 2021
B13: Methodiek: Parkeerdrukmeting met waarnemers
B14: In opdracht van: Vlaamse overheid
B15: Uitgevoerd door: Dufec
D16: VERDELING NAAR CATEGORIE
B17: Locatie
B18: =IF(B4="","",HYPERLINK("http://www.googlemaps.com/?q="&B4,"Lat/Long: "&B4)) -> Lat/Long: 51.162436, 3.192146
P20: Legenda
Q21: Personenwagen
Q22: Vracht
Q23: Motor
Q24: Obstakel / overig
Q25: Fout personenwagen
Q26: Fout Vracht
B38: Opmerking
B39: Het onderzoek vindt plaats gedurende coronamaatregelen.
B40: Dit heeft mogelijk een effect op de resultaten.
B42: Toelichting
B43: Pers = personenwagens op daarvoor bestemde
B44: openbare plaatsen
B45: Vracht = vrachtwagens op daarvoor bestemde
B46: parkeerplaatsen (middel- en zwaar vrachtverkeer)
B47: Motor = geparkeerde motoren op openbare plaatsen
B48: Obstakel / overig = obstakels of overige voertuigen
B49: geparkeerd op openbare plaatsen
B50: Fout pers = personenwagens die fout geparkeerd staan
B51: Fout vracht = vrachtwagens die fout geparkeerd staan
B52: E-wagen = geparkeerde elektrisch voertuig bij een
B53: elektrisch oplaadpunt
B54: Invalide = personenwagens en motoren op voor
B55: invalide personen bestemde parkeerplaats
B56: Gestalde fietsen = alle gestalde fietsen op de
B57: daarvoor bestemde parkeerplaatsen

Sheet 66.Jabbeke-Oost
B2: PARKEERONDERZOEK | D2: CARPOOLPARKINGS EN P+R PARKINGS
B3: 66 | D3: =B8 & " - "& TEXT(VLOOKUP(B3,Coordinaten!$A$2:$G$95,7,0),"dddd dd mmmm jjjj") -> Carpool parking Jabbeke-Oost, Jabbeke - dinsdag 09 november 2021
B4: =VLOOKUP(B3,Coordinaten!$A$2:$G$95,6,0) -> 51.180310, 3.113845
D5: BEZETTING | Q5: OPMERKINGEN
B7: Onderzoeksgebied | D7: Datum | E7: Geregistreerd tussen | F7: Pers | G7: Vracht | H7: Motor | I7: Obstakel / overig | J7: Fout pers | K7: Fout Vracht | L7: Totaal | M7: E-wagen plaats | N7: Invalidenplaats | O7: Gestalde fietsen | U7: =F7 -> Pers | V7: Vracht | W7: Motor | X7: Obstakel / overig | Y7: Fout pers | Z7: Fout Vracht
B8: =VLOOKUP(B3,Coordinaten!$A$2:$G$95,3,0)&", "&VLOOKUP(B3,Coordinaten!$A$2:$G$95,5,0) -> Carpool parking Jabbeke-Oost, Jabbeke | D8: 2021-11-09 | E8: 09:00 - 16:00u | F8: 24 | G8: 5 | H8: 0 | I8: 0 | J8: 0 | K8: 1 | L8: 30 | M8: 0 | N8: 0 | O8: 0 | Q8: 0 | S8: =D8 -> 2021-11-09 | T8: =E8 -> 09:00 - 16:00u | U8: =IF(F8=0,NA(),F8/$L8) -> 0.8 | V8: =IF(G8=0,NA(),G8/$L8) -> 0.1666666667 | W8: =IF(H8=0,NA(),H8/$L8) ->  | Z8: 0.03333333333
B9: ="Nabij kruispunt: "&VLOOKUP(B3,Coordinaten!$A$2:$L$95,4,0) -> Nabij kruispunt: N376 / Vlamingveld | F9: 0.8 | G9: 0.1666666667 | H9: - | I9: - | J9: - | K9: 0.03333333333 | L9: 1 | Q9: 0 | S9: =D10 -> 2021-11-09 | T9: =E10 -> 19:00 - 02:00u | U9: =IF(F10=0,NA(),F10/$L10) -> 0.9090909091 | V9: =IF(G10=0,NA(),G10/$L10) -> 0.09090909091
D10: 2021-11-09 | E10: 19:00 - 02:00u | F10: 10 | G10: 1 | H10: 0 | I10: 0 | J10: 0 | K10: 0 | L10: 11 | M10: 0 | N10: 0 | O10: 0 | Q10: 0
B11: Meting | F11: 0.9090909091 | G11: 0.09090909091 | H11: - | I11: - | J11: - | K11: - | L11: 1 | Q11: 0
B12: ="Meetperiode: "&TEXT(VLOOKUP(B3,Coordinaten!$A$2:$G$95,7,0),"dddd dd mmmm jjjj") -> Meetperiode: dinsdag 09 november 2021
B13: Methodiek: Parkeerdrukmeting met waarnemers
B14: In opdracht van: Vlaamse overheid
B15: Uitgevoerd door: Dufec
D16: VERDELING NAAR CATEGORIE
B17: Locatie
B18: =IF(B4="","",HYPERLINK("http://www.googlemaps.com/?q="&B4,"Lat/Long: "&B4)) -> Lat/Long: 51.180310, 3.113845
P20: Legenda
Q21: Personenwagen
Q22: Vracht
Q23: Motor
Q24: Obstakel / overig
Q25: Fout personenwagen
Q26: Fout Vracht
B38: Opmerking
B39: Het onderzoek vindt plaats gedurende coronamaatregelen.
B40: Dit heeft mogelijk een effect op de resultaten.
B42: Toelichting
B43: Pers = personenwagens op daarvoor bestemde
B44: openbare plaatsen
B45: Vracht = vrachtwagens op daarvoor bestemde
B46: parkeerplaatsen (middel- en zwaar vrachtverkeer)
B47: Motor = geparkeerde motoren op openbare plaatsen
B48: Obstakel / overig = obstakels of overige voertuigen
B49: geparkeerd op openbare plaatsen
B50: Fout pers = personenwagens die fout geparkeerd staan
B51: Fout vracht = vrachtwagens die fout geparkeerd staan
B52: E-wagen = geparkeerde elektrisch voertuig bij een
B53: elektrisch oplaadpunt
B54: Invalide = personenwagens en motoren op voor
B55: invalide personen bestemde parkeerplaats
B56: Gestalde fietsen = alle gestalde fietsen op de
B57: daarvoor bestemde parkeerplaatsen

Sheet 67.Waregem
B2: PARKEERONDERZOEK | D2: CARPOOLPARKINGS EN P+R PARKINGS
B3: 67 | D3: =B8 & " - "& TEXT(VLOOKUP(B3,Coordinaten!$A$2:$G$95,7,0),"dddd dd mmmm jjjj") -> Carpool parking Waregem, Waregem - dinsdag 23 november 2021
B4: =VLOOKUP(B3,Coordinaten!$A$2:$G$95,6,0) -> 50.873938, 3.441505
D5: BEZETTING | Q5: OPMERKINGEN
B7: Onderzoeksgebied | D7: Datum | E7: Geregistreerd tussen | F7: Pers | G7: Vracht | H7: Motor | I7: Obstakel / overig | J7: Fout pers | K7: Fout Vracht | L7: Totaal | M7: E-wagen plaats | N7: Invalidenplaats | O7: Gestalde fietsen | U7: =F7 -> Pers | V7: Vracht | W7: Motor | X7: Obstakel / overig | Y7: Fout pers | Z7: Fout Vracht
B8: =VLOOKUP(B3,Coordinaten!$A$2:$G$95,3,0)&", "&VLOOKUP(B3,Coordinaten!$A$2:$G$95,5,0) -> Carpool parking Waregem, Waregem | D8: 2021-11-23 | E8: 09:00 - 16:00u | F8: 31 | G8: 0 | H8: 0 | I8: 0 | J8: 0 | K8: 0 | L8: 31 | M8: 0 | N8: 0 | O8: 0 | Q8: Vanaf 20 november nieuwe coronamaatregelen, waaronder verplicht telewerk | S8: =D8 -> 2021-11-23 | T8: =E8 -> 09:00 - 16:00u | U8: =IF(F8=0,NA(),F8/$L8) -> 1 | V8: =IF(G8=0,NA(),G8/$L8) ->  | W8: =IF(H8=0,NA(),H8/$L8) -> 
B9: ="Nabij kruispunt: "&VLOOKUP(B3,Coordinaten!$A$2:$L$95,4,0) -> Nabij kruispunt: N357 / Franklin Rooseveltlaan | F9: 1 | G9: - | H9: - | I9: - | J9: - | K9: - | L9: 1 | Q9: 0 | S9: =D10 -> 2021-11-23 | T9: =E10 -> 19:00 - 02:00u | U9: =IF(F10=0,NA(),F10/$L10) -> 1 | V9: =IF(G10=0,NA(),G10/$L10) -> 
D10: 2021-11-23 | E10: 19:00 - 02:00u | F10: 16 | G10: 0 | H10: 0 | I10: 0 | J10: 0 | K10: 0 | L10: 16 | M10: 0 | N10: 0 | O10: 0 | Q10: Vanaf 20 november nieuwe coronamaatregelen, waaronder verplicht telewerk
B11: Meting | F11: 1 | G11: - | H11: - | I11: - | J11: - | K11: - | L11: 1 | Q11: 0
B12: ="Meetperiode: "&TEXT(VLOOKUP(B3,Coordinaten!$A$2:$G$95,7,0),"dddd dd mmmm jjjj") -> Meetperiode: dinsdag 23 november 2021
B13: Methodiek: Parkeerdrukmeting met waarnemers
B14: In opdracht van: Vlaamse overheid
B15: Uitgevoerd door: Dufec
D16: VERDELING NAAR CATEGORIE
B17: Locatie
B18: =IF(B4="","",HYPERLINK("http://www.googlemaps.com/?q="&B4,"Lat/Long: "&B4)) -> Lat/Long: 50.873938, 3.441505
P20: Legenda
Q21: Personenwagen
Q22: Vracht
Q23: Motor
Q24: Obstakel / overig
Q25: Fout personenwagen
Q26: Fout Vracht
B38: Opmerking
B39: Het onderzoek vindt plaats gedurende coronamaatregelen.
B40: Dit heeft mogelijk een effect op de resultaten.
B42: Toelichting
B43: Pers = personenwagens op daarvoor bestemde
B44: openbare plaatsen
B45: Vracht = vrachtwagens op daarvoor bestemde
B46: parkeerplaatsen (middel- en zwaar vrachtverkeer)
B47: Motor = geparkeerde motoren op openbare plaatsen
B48: Obstakel / overig = obstakels of overige voertuigen
B49: geparkeerd op openbare plaatsen
B50: Fout pers = personenwagens die fout geparkeerd staan
B51: Fout vracht = vrachtwagens die fout geparkeerd staan
B52: E-wagen = geparkeerde elektrisch voertuig bij een
B53: elektrisch oplaadpunt
B54: Invalide = personenwagens en motoren op voor
B55: invalide personen bestemde parkeerplaats
B56: Gestalde fietsen = alle gestalde fietsen op de
B57: daarvoor bestemde parkeerplaatsen

Sheet 68.Zandvoorde
B2: PARKEERONDERZOEK | D2: CARPOOLPARKINGS EN P+R PARKINGS
B3: 68 | D3: =B8 & " - "& TEXT(VLOOKUP(B3,Coordinaten!$A$2:$G$95,7,0),"dddd dd mmmm jjjj") -> Carpool parking Zandvoorde, Oostende - dinsdag 09 november 2021
B4: =VLOOKUP(B3,Coordinaten!$A$2:$G$95,6,0) -> 51.204204, 2.976173
D5: BEZETTING | Q5: OPMERKINGEN
B7: Onderzoeksgebied | D7: Datum | E7: Geregistreerd tussen | F7: Pers | G7: Vracht | H7: Motor | I7: Obstakel / overig | J7: Fout pers | K7: Fout Vracht | L7: Totaal | M7: E-wagen plaats | N7: Invalidenplaats | O7: Gestalde fietsen | U7: =F7 -> Pers | V7: Vracht | W7: Motor | X7: Obstakel / overig | Y7: Fout pers | Z7: Fout Vracht
B8: =VLOOKUP(B3,Coordinaten!$A$2:$G$95,3,0)&", "&VLOOKUP(B3,Coordinaten!$A$2:$G$95,5,0) -> Carpool parking Zandvoorde, Oostende | D8: 2021-11-09 | E8: 09:00 - 16:00u | F8: 3 | G8: 0 | H8: 0 | I8: 0 | J8: 0 | K8: 0 | L8: 3 | M8: 0 | N8: 0 | O8: 0 | Q8: 0 | S8: =D8 -> 2021-11-09 | T8: =E8 -> 09:00 - 16:00u | U8: =IF(F8=0,NA(),F8/$L8) -> 1 | V8: =IF(G8=0,NA(),G8/$L8) ->  | W8: =IF(H8=0,NA(),H8/$L8) -> 
B9: ="Nabij kruispunt: "&VLOOKUP(B3,Coordinaten!$A$2:$L$95,4,0) -> Nabij kruispunt: A10 / Kasteelstraat | F9: 1 | G9: - | H9: - | I9: - | J9: - | K9: - | L9: 1 | Q9: 0 | S9: =D10 -> 2021-11-09 | T9: =E10 -> 19:00 - 02:00u | U9: =IF(F10=0,NA(),F10/$L10) -> 1 | V9: =IF(G10=0,NA(),G10/$L10) -> 
D10: 2021-11-09 | E10: 19:00 - 02:00u | F10: 2 | G10: 0 | H10: 0 | I10: 0 | J10: 0 | K10: 0 | L10: 2 | M10: 0 | N10: 0 | O10: 0 | Q10: 0
B11: Meting | F11: 1 | G11: - | H11: - | I11: - | J11: - | K11: - | L11: 1 | Q11: 0
B12: ="Meetperiode: "&TEXT(VLOOKUP(B3,Coordinaten!$A$2:$G$95,7,0),"dddd dd mmmm jjjj") -> Meetperiode: dinsdag 09 november 2021
B13: Methodiek: Parkeerdrukmeting met waarnemers
B14: In opdracht van: Vlaamse overheid
B15: Uitgevoerd door: Dufec
D16: VERDELING NAAR CATEGORIE
B17: Locatie
B18: =IF(B4="","",HYPERLINK("http://www.googlemaps.com/?q="&B4,"Lat/Long: "&B4)) -> Lat/Long: 51.204204, 2.976173
P20: Legenda
Q21: Personenwagen
Q22: Vracht
Q23: Motor
Q24: Obstakel / overig
Q25: Fout personenwagen
Q26: Fout Vracht
B38: Opmerking
B39: Het onderzoek vindt plaats gedurende coronamaatregelen.
B40: Dit heeft mogelijk een effect op de resultaten.
B42: Toelichting
B43: Pers = personenwagens op daarvoor bestemde
B44: openbare plaatsen
B45: Vracht = vrachtwagens op daarvoor bestemde
B46: parkeerplaatsen (middel- en zwaar vrachtverkeer)
B47: Motor = geparkeerde motoren op openbare plaatsen
B48: Obstakel / overig = obstakels of overige voertuigen
B49: geparkeerd op openbare plaatsen
B50: Fout pers = personenwagens die fout geparkeerd staan
B51: Fout vracht = vrachtwagens die fout geparkeerd staan
B52: E-wagen = geparkeerde elektrisch voertuig bij een
B53: elektrisch oplaadpunt
B54: Invalide = personenwagens en motoren op voor
B55: invalide personen bestemde parkeerplaats
B56: Gestalde fietsen = alle gestalde fietsen op de
B57: daarvoor bestemde parkeerplaatsen

Sheet 69.Beernem
B2: PARKEERONDERZOEK | D2: CARPOOLPARKINGS EN P+R PARKINGS
B3: 69 | D3: =B8 & " - "& TEXT(VLOOKUP(B3,Coordinaten!$A$2:$G$95,7,0),"dddd dd mmmm jjjj") -> Carpool parking Beernem, Beernem - dinsdag 09 november 2021
B4: =VLOOKUP(B3,Coordinaten!$A$2:$G$95,6,0) -> 51.120332, 3.324059
D5: BEZETTING | Q5: OPMERKINGEN
B7: Onderzoeksgebied | D7: Datum | E7: Geregistreerd tussen | F7: Pers | G7: Vracht | H7: Motor | I7: Obstakel / overig | J7: Fout pers | K7: Fout Vracht | L7: Totaal | M7: E-wagen plaats | N7: Invalidenplaats | O7: Gestalde fietsen | U7: =F7 -> Pers | V7: Vracht | W7: Motor | X7: Obstakel / overig | Y7: Fout pers | Z7: Fout Vracht
B8: =VLOOKUP(B3,Coordinaten!$A$2:$G$95,3,0)&", "&VLOOKUP(B3,Coordinaten!$A$2:$G$95,5,0) -> Carpool parking Beernem, Beernem | D8: 2021-11-09 | E8: 09:00 - 16:00u | F8: 24 | G8: 0 | H8: 0 | I8: 0 | J8: 0 | K8: 0 | L8: 24 | M8: 0 | N8: 0 | O8: 0 | Q8: 0 | S8: =D8 -> 2021-11-09 | T8: =E8 -> 09:00 - 16:00u | U8: =IF(F8=0,NA(),F8/$L8) -> 1 | V8: =IF(G8=0,NA(),G8/$L8) ->  | W8: =IF(H8=0,NA(),H8/$L8) -> 
B9: ="Nabij kruispunt: "&VLOOKUP(B3,Coordinaten!$A$2:$L$95,4,0) -> Nabij kruispunt: N370 / A10 | F9: 1 | G9: - | H9: - | I9: - | J9: - | K9: - | L9: 1 | Q9: 0 | S9: =D10 -> 2021-11-09 | T9: =E10 -> 19:00 - 02:00u | U9: =IF(F10=0,NA(),F10/$L10) -> 0.4285714286 | V9: =IF(G10=0,NA(),G10/$L10) ->  | Y9: 0.1428571429 | Z9: 0.4285714286
D10: 2021-11-09 | E10: 19:00 - 02:00u | F10: 3 | G10: 0 | H10: 0 | I10: 0 | J10: 1 | K10: 3 | L10: 7 | M10: 0 | N10: 0 | O10: 0 | Q10: 0
B11: Meting | F11: 0.4285714286 | G11: - | H11: - | I11: - | J11: 0.1428571429 | K11: 0.4285714286 | L11: 1 | Q11: 0
B12: ="Meetperiode: "&TEXT(VLOOKUP(B3,Coordinaten!$A$2:$G$95,7,0),"dddd dd mmmm jjjj") -> Meetperiode: dinsdag 09 november 2021
B13: Methodiek: Parkeerdrukmeting met waarnemers
B14: In opdracht van: Vlaamse overheid
B15: Uitgevoerd door: Dufec
D16: VERDELING NAAR CATEGORIE
B17: Locatie
B18: =IF(B4="","",HYPERLINK("http://www.googlemaps.com/?q="&B4,"Lat/Long: "&B4)) -> Lat/Long: 51.120332, 3.324059
P20: Legenda
Q21: Personenwagen
Q22: Vracht
Q23: Motor
Q24: Obstakel / overig
Q25: Fout personenwagen
Q26: Fout Vracht
B38: Opmerking
B39: Het onderzoek vindt plaats gedurende coronamaatregelen.
B40: Dit heeft mogelijk een effect op de resultaten.
B42: Toelichting
B43: Pers = personenwagens op daarvoor bestemde
B44: openbare plaatsen
B45: Vracht = vrachtwagens op daarvoor bestemde
B46: parkeerplaatsen (middel- en zwaar vrachtverkeer)
B47: Motor = geparkeerde motoren op openbare plaatsen
B48: Obstakel / overig = obstakels of overige voertuigen
B49: geparkeerd op openbare plaatsen
B50: Fout pers = personenwagens die fout geparkeerd staan
B51: Fout vracht = vrachtwagens die fout geparkeerd staan
B52: E-wagen = geparkeerde elektrisch voertuig bij een
B53: elektrisch oplaadpunt
B54: Invalide = personenwagens en motoren op voor
B55: invalide personen bestemde parkeerplaats
B56: Gestalde fietsen = alle gestalde fietsen op de
B57: daarvoor bestemde parkeerplaatsen

Sheet 70.The Loop-Expo
B2: PARKEERONDERZOEK | D2: CARPOOLPARKINGS EN P+R PARKINGS
B3: 70 | D3: =B8 & " - "& TEXT(VLOOKUP(B3,Coordinaten!$A$2:$G$95,7,0),"dddd dd mmmm jjjj") -> P+R parking The Loop/Expo, Gent - dinsdag 23 november 2021
B4: =VLOOKUP(B3,Coordinaten!$A$2:$G$95,6,0) -> 51.024607, 3.695634
D5: BEZETTING | Q5: OPMERKINGEN
B7: Onderzoeksgebied | D7: Datum | E7: Geregistreerd tussen | F7: Pers | G7: Vracht | H7: Motor | I7: Obstakel / overig | J7: Fout pers | K7: Fout Vracht | L7: Totaal | M7: E-wagen plaats | N7: Invalidenplaats | O7: Gestalde fietsen | U7: =F7 -> Pers | V7: Vracht | W7: Motor | X7: Obstakel / overig | Y7: Fout pers | Z7: Fout Vracht
B8: =VLOOKUP(B3,Coordinaten!$A$2:$G$95,3,0)&", "&VLOOKUP(B3,Coordinaten!$A$2:$G$95,5,0) -> P+R parking The Loop/Expo, Gent | D8: 2021-11-23 | E8: 09:00 - 16:00u | F8: 180 | G8: 0 | H8: 0 | I8: 0 | J8: 14 | K8: 0 | L8: 194 | M8: 1 | N8: 0 | O8: 0 | Q8: Vanaf 20 november nieuwe coronamaatregelen, waaronder verplicht telewerk | S8: =D8 -> 2021-11-23 | T8: =E8 -> 09:00 - 16:00u | U8: =IF(F8=0,NA(),F8/$L8) -> 0.9278350515 | V8: =IF(G8=0,NA(),G8/$L8) ->  | W8: =IF(H8=0,NA(),H8/$L8) ->  | Y8: 0.07216494845
B9: ="Nabij kruispunt: "&VLOOKUP(B3,Coordinaten!$A$2:$L$95,4,0) -> Nabij kruispunt: Derbystraat / Hélène Dutrieulaan | F9: 0.9278350515 | G9: - | H9: - | I9: - | J9: 0.07216494845 | K9: - | L9: 1 | Q9: 0 | S9: =D10 -> 2021-11-23 | T9: =E10 -> 19:00 - 02:00u | U9: =IF(F10=0,NA(),F10/$L10) -> 1 | V9: =IF(G10=0,NA(),G10/$L10) -> 
D10: 2021-11-23 | E10: 19:00 - 02:00u | F10: 107 | G10: 0 | H10: 0 | I10: 0 | J10: 0 | K10: 0 | L10: 107 | M10: 1 | N10: 0 | O10: 16 | Q10: Vanaf 20 november nieuwe coronamaatregelen, waaronder verplicht telewerk
B11: Meting | F11: 1 | G11: - | H11: - | I11: - | J11: - | K11: - | L11: 1 | Q11: 0
B12: ="Meetperiode: "&TEXT(VLOOKUP(B3,Coordinaten!$A$2:$G$95,7,0),"dddd dd mmmm jjjj") -> Meetperiode: dinsdag 23 november 2021
B13: Methodiek: Parkeerdrukmeting met waarnemers
B14: In opdracht van: Vlaamse overheid
B15: Uitgevoerd door: Dufec
D16: VERDELING NAAR CATEGORIE
B17: Locatie
B18: =IF(B4="","",HYPERLINK("http://www.googlemaps.com/?q="&B4,"Lat/Long: "&B4)) -> Lat/Long: 51.024607, 3.695634
P20: Legenda
Q21: Personenwagen
Q22: Vracht
Q23: Motor
Q24: Obstakel / overig
Q25: Fout personenwagen
Q26: Fout Vracht
B38: Opmerking
B39: Het onderzoek vindt plaats gedurende coronamaatregelen.
B40: Dit heeft mogelijk een effect op de resultaten.
B42: Toelichting
B43: Pers = personenwagens op daarvoor bestemde
B44: openbare plaatsen
B45: Vracht = vrachtwagens op daarvoor bestemde
B46: parkeerplaatsen (middel- en zwaar vrachtverkeer)
B47: Motor = geparkeerde motoren op openbare plaatsen
B48: Obstakel / overig = obstakels of overige voertuigen
B49: geparkeerd op openbare plaatsen
B50: Fout pers = personenwagens die fout geparkeerd staan
B51: Fout vracht = vrachtwagens die fout geparkeerd staan
B52: E-wagen = geparkeerde elektrisch voertuig bij een
B53: elektrisch oplaadpunt
B54: Invalide = personenwagens en motoren op voor
B55: invalide personen bestemde parkeerplaats
B56: Gestalde fietsen = alle gestalde fietsen op de
B57: daarvoor bestemde parkeerplaatsen

Sheet 72.Veurne
B2: PARKEERONDERZOEK | D2: CARPOOLPARKINGS EN P+R PARKINGS
B3: 72 | D3: =B8 & " - "& TEXT(VLOOKUP(B3,Coordinaten!$A$2:$G$95,7,0),"dddd dd mmmm jjjj") -> Carpool parking Veurne, Veurne - dinsdag 09 november 2021
B4: =VLOOKUP(B3,Coordinaten!$A$2:$G$95,6,0) -> 51.057349, 2.667068
D5: BEZETTING | Q5: OPMERKINGEN
B7: Onderzoeksgebied | D7: Datum | E7: Geregistreerd tussen | F7: Pers | G7: Vracht | H7: Motor | I7: Obstakel / overig | J7: Fout pers | K7: Fout Vracht | L7: Totaal | M7: E-wagen plaats | N7: Invalidenplaats | O7: Gestalde fietsen | U7: =F7 -> Pers | V7: Vracht | W7: Motor | X7: Obstakel / overig | Y7: Fout pers | Z7: Fout Vracht
B8: =VLOOKUP(B3,Coordinaten!$A$2:$G$95,3,0)&", "&VLOOKUP(B3,Coordinaten!$A$2:$G$95,5,0) -> Carpool parking Veurne, Veurne | D8: 2021-11-09 | E8: 09:00 - 16:00u | F8: 16 | G8: 0 | H8: 0 | I8: 1 | J8: 0 | K8: 1 | L8: 18 | M8: 0 | N8: 0 | O8: 0 | Q8: Obstakel: aanhanger | S8: =D8 -> 2021-11-09 | T8: =E8 -> 09:00 - 16:00u | U8: =IF(F8=0,NA(),F8/$L8) -> 0.8888888889 | V8: =IF(G8=0,NA(),G8/$L8) ->  | W8: =IF(H8=0,NA(),H8/$L8) ->  | X8: 0.05555555556 | Z8: 0.05555555556
B9: ="Nabij kruispunt: "&VLOOKUP(B3,Coordinaten!$A$2:$L$95,4,0) -> Nabij kruispunt: N8 / A18 | F9: 0.8888888889 | G9: - | H9: - | I9: 0.05555555556 | J9: - | K9: 0.05555555556 | L9: 1 | Q9: 0 | S9: =D10 -> 2021-11-09 | T9: =E10 -> 19:00 - 02:00u | U9: =IF(F10=0,NA(),F10/$L10) -> 1 | V9: =IF(G10=0,NA(),G10/$L10) -> 
D10: 2021-11-09 | E10: 19:00 - 02:00u | F10: 1 | G10: 0 | H10: 0 | I10: 0 | J10: 0 | K10: 0 | L10: 1 | M10: 0 | N10: 0 | O10: 0 | Q10: 0
B11: Meting | F11: 1 | G11: - | H11: - | I11: - | J11: - | K11: - | L11: 1 | Q11: 0
B12: ="Meetperiode: "&TEXT(VLOOKUP(B3,Coordinaten!$A$2:$G$95,7,0),"dddd dd mmmm jjjj") -> Meetperiode: dinsdag 09 november 2021
B13: Methodiek: Parkeerdrukmeting met waarnemers
B14: In opdracht van: Vlaamse overheid
B15: Uitgevoerd door: Dufec
D16: VERDELING NAAR CATEGORIE
B17: Locatie
B18: =IF(B4="","",HYPERLINK("http://www.googlemaps.com/?q="&B4,"Lat/Long: "&B4)) -> Lat/Long: 51.057349, 2.667068
P20: Legenda
Q21: Personenwagen
Q22: Vracht
Q23: Motor
Q24: Obstakel / overig
Q25: Fout personenwagen
Q26: Fout Vracht
B38: Opmerking
B39: Het onderzoek vindt plaats gedurende coronamaatregelen.
B40: Dit heeft mogelijk een effect op de resultaten.
B42: Toelichting
B43: Pers = personenwagens op daarvoor bestemde
B44: openbare plaatsen
B45: Vracht = vrachtwagens op daarvoor bestemde
B46: parkeerplaatsen (middel- en zwaar vrachtverkeer)
B47: Motor = geparkeerde motoren op openbare plaatsen
B48: Obstakel / overig = obstakels of overige voertuigen
B49: geparkeerd op openbare plaatsen
B50: Fout pers = personenwagens die fout geparkeerd staan
B51: Fout vracht = vrachtwagens die fout geparkeerd staan
B52: E-wagen = geparkeerde elektrisch voertuig bij een
B53: elektrisch oplaadpunt
B54: Invalide = personenwagens en motoren op voor
B55: invalide personen bestemde parkeerplaats
B56: Gestalde fietsen = alle gestalde fietsen op de
B57: daarvoor bestemde parkeerplaatsen

Sheet 73.Jabbeke-West
B2: PARKEERONDERZOEK | D2: CARPOOLPARKINGS EN P+R PARKINGS
B3: 73 | D3: =B8 & " - "& TEXT(VLOOKUP(B3,Coordinaten!$A$2:$G$95,7,0),"dddd dd mmmm jjjj") -> Carpool parking Jabbeke-West, Jabbeke - dinsdag 09 november 2021
B4: =VLOOKUP(B3,Coordinaten!$A$2:$G$95,6,0) -> 51.187549, 3.093136
D5: BEZETTING | Q5: OPMERKINGEN
B7: Onderzoeksgebied | D7: Datum | E7: Geregistreerd tussen | F7: Pers | G7: Vracht | H7: Motor | I7: Obstakel / overig | J7: Fout pers | K7: Fout Vracht | L7: Totaal | M7: E-wagen plaats | N7: Invalidenplaats | O7: Gestalde fietsen | U7: =F7 -> Pers | V7: Vracht | W7: Motor | X7: Obstakel / overig | Y7: Fout pers | Z7: Fout Vracht
B8: =VLOOKUP(B3,Coordinaten!$A$2:$G$95,3,0)&", "&VLOOKUP(B3,Coordinaten!$A$2:$G$95,5,0) -> Carpool parking Jabbeke-West, Jabbeke | D8: 2021-11-09 | E8: 09:00 - 16:00u | F8: 7 | G8: 0 | H8: 0 | I8: 0 | J8: 0 | K8: 0 | L8: 7 | M8: 0 | N8: 0 | O8: 0 | Q8: 0 | S8: =D8 -> 2021-11-09 | T8: =E8 -> 09:00 - 16:00u | U8: =IF(F8=0,NA(),F8/$L8) -> 1 | V8: =IF(G8=0,NA(),G8/$L8) ->  | W8: =IF(H8=0,NA(),H8/$L8) -> 
B9: ="Nabij kruispunt: "&VLOOKUP(B3,Coordinaten!$A$2:$L$95,4,0) -> Nabij kruispunt: N377 / A10 | F9: 1 | G9: - | H9: - | I9: - | J9: - | K9: - | L9: 1 | Q9: 0 | S9: =D10 -> 2021-11-09 | T9: =E10 -> 19:00 - 02:00u | U9: =IF(F10=0,NA(),F10/$L10) -> 1 | V9: =IF(G10=0,NA(),G10/$L10) -> 
D10: 2021-11-09 | E10: 19:00 - 02:00u | F10: 2 | G10: 0 | H10: 0 | I10: 0 | J10: 0 | K10: 0 | L10: 2 | M10: 0 | N10: 0 | O10: 0 | Q10: 0
B11: Meting | F11: 1 | G11: - | H11: - | I11: - | J11: - | K11: - | L11: 1 | Q11: 0
B12: ="Meetperiode: "&TEXT(VLOOKUP(B3,Coordinaten!$A$2:$G$95,7,0),"dddd dd mmmm jjjj") -> Meetperiode: dinsdag 09 november 2021
B13: Methodiek: Parkeerdrukmeting met waarnemers
B14: In opdracht van: Vlaamse overheid
B15: Uitgevoerd door: Dufec
D16: VERDELING NAAR CATEGORIE
B17: Locatie
B18: =IF(B4="","",HYPERLINK("http://www.googlemaps.com/?q="&B4,"Lat/Long: "&B4)) -> Lat/Long: 51.187549, 3.093136
P20: Legenda
Q21: Personenwagen
Q22: Vracht
Q23: Motor
Q24: Obstakel / overig
Q25: Fout personenwagen
Q26: Fout Vracht
B38: Opmerking
B39: Het onderzoek vindt plaats gedurende coronamaatregelen.
B40: Dit heeft mogelijk een effect op de resultaten.
B42: Toelichting
B43: Pers = personenwagens op daarvoor bestemde
B44: openbare plaatsen
B45: Vracht = vrachtwagens op daarvoor bestemde
B46: parkeerplaatsen (middel- en zwaar vrachtverkeer)
B47: Motor = geparkeerde motoren op openbare plaatsen
B48: Obstakel / overig = obstakels of overige voertuigen
B49: geparkeerd op openbare plaatsen
B50: Fout pers = personenwagens die fout geparkeerd staan
B51: Fout vracht = vrachtwagens die fout geparkeerd staan
B52: E-wagen = geparkeerde elektrisch voertuig bij een
B53: elektrisch oplaadpunt
B54: Invalide = personenwagens en motoren op voor
B55: invalide personen bestemde parkeerplaats
B56: Gestalde fietsen = alle gestalde fietsen op de
B57: daarvoor bestemde parkeerplaatsen

Sheet 74.Melsele
B2: PARKEERONDERZOEK | D2: CARPOOLPARKINGS EN P+R PARKINGS
B3: 74 | D3: =B8 & " - "& TEXT(VLOOKUP(B3,Coordinaten!$A$2:$G$95,7,0),"dddd dd mmmm jjjj") -> P+R parking Melsele, Beveren - dinsdag 09 november 2021
B4: =VLOOKUP(B3,Coordinaten!$A$2:$G$95,6,0) -> 51.218385, 4.305929
D5: BEZETTING | Q5: OPMERKINGEN
B7: Onderzoeksgebied | D7: Datum | E7: Geregistreerd tussen | F7: Pers | G7: Vracht | H7: Motor | I7: Obstakel / overig | J7: Fout pers | K7: Fout Vracht | L7: Totaal | M7: E-wagen plaats | N7: Invalidenplaats | O7: Gestalde fietsen | U7: =F7 -> Pers | V7: Vracht | W7: Motor | X7: Obstakel / overig | Y7: Fout pers | Z7: Fout Vracht
B8: =VLOOKUP(B3,Coordinaten!$A$2:$G$95,3,0)&", "&VLOOKUP(B3,Coordinaten!$A$2:$G$95,5,0) -> P+R parking Melsele, Beveren | D8: 2021-11-09 | E8: 09:00 - 16:00u | F8: 105 | G8: 0 | H8: 0 | I8: 0 | J8: 0 | K8: 0 | L8: 105 | M8: 0 | N8: 2 | O8: 102 | Q8: 0 | S8: =D8 -> 2021-11-09 | T8: =E8 -> 09:00 - 16:00u | U8: =IF(F8=0,NA(),F8/$L8) -> 1 | V8: =IF(G8=0,NA(),G8/$L8) ->  | W8: =IF(H8=0,NA(),H8/$L8) -> 
B9: ="Nabij kruispunt: "&VLOOKUP(B3,Coordinaten!$A$2:$L$95,4,0) -> Nabij kruispunt: N70 / N419 | F9: 1 | G9: - | H9: - | I9: - | J9: - | K9: - | L9: 1 | Q9: 0 | S9: =D10 -> 2021-11-09 | T9: =E10 -> 19:00 - 02:00u | U9: =IF(F10=0,NA(),F10/$L10) -> 1 | V9: =IF(G10=0,NA(),G10/$L10) -> 
D10: 2021-11-09 | E10: 19:00 - 02:00u | F10: 79 | G10: 0 | H10: 0 | I10: 0 | J10: 0 | K10: 0 | L10: 79 | M10: 0 | N10: 0 | O10: 0 | Q10: 0
B11: Meting | F11: 1 | G11: - | H11: - | I11: - | J11: - | K11: - | L11: 1 | Q11: 0
B12: ="Meetperiode: "&TEXT(VLOOKUP(B3,Coordinaten!$A$2:$G$95,7,0),"dddd dd mmmm jjjj") -> Meetperiode: dinsdag 09 november 2021
B13: Methodiek: Parkeerdrukmeting met waarnemers
B14: In opdracht van: Vlaamse overheid
B15: Uitgevoerd door: Dufec
D16: VERDELING NAAR CATEGORIE
B17: Locatie
B18: =IF(B4="","",HYPERLINK("http://www.googlemaps.com/?q="&B4,"Lat/Long: "&B4)) -> Lat/Long: 51.218385, 4.305929
P20: Legenda
Q21: Personenwagen
Q22: Vracht
Q23: Motor
Q24: Obstakel / overig
Q25: Fout personenwagen
Q26: Fout Vracht
B38: Opmerking
B39: Het onderzoek vindt plaats gedurende coronamaatregelen.
B40: Dit heeft mogelijk een effect op de resultaten.
B42: Toelichting
B43: Pers = personenwagens op daarvoor bestemde
B44: openbare plaatsen
B45: Vracht = vrachtwagens op daarvoor bestemde
B46: parkeerplaatsen (middel- en zwaar vrachtverkeer)
B47: Motor = geparkeerde motoren op openbare plaatsen
B48: Obstakel / overig = obstakels of overige voertuigen
B49: geparkeerd op openbare plaatsen
B50: Fout pers = personenwagens die fout geparkeerd staan
B51: Fout vracht = vrachtwagens die fout geparkeerd staan
B52: E-wagen = geparkeerde elektrisch voertuig bij een
B53: elektrisch oplaadpunt
B54: Invalide = personenwagens en motoren op voor
B55: invalide personen bestemde parkeerplaats
B56: Gestalde fietsen = alle gestalde fietsen op de
B57: daarvoor bestemde parkeerplaatsen

Sheet 76.Wuustwezel
B2: PARKEERONDERZOEK | D2: CARPOOLPARKINGS EN P+R PARKINGS
B3: 76 | D3: =B8 & " - "& TEXT(VLOOKUP(B3,Coordinaten!$A$2:$G$95,7,0),"dddd dd mmmm jjjj") -> Carpool parking Wuustwezel, Wuustwezel - donderdag 18 november 2021
B4: =VLOOKUP(B3,Coordinaten!$A$2:$G$95,6,0) -> 51.408496, 4.612086
D5: BEZETTING | Q5: OPMERKINGEN
B7: Onderzoeksgebied | D7: Datum | E7: Geregistreerd tussen | F7: Pers | G7: Vracht | H7: Motor | I7: Obstakel / overig | J7: Fout pers | K7: Fout Vracht | L7: Totaal | M7: E-wagen plaats | N7: Invalidenplaats | O7: Gestalde fietsen | U7: =F7 -> Pers | V7: Vracht | W7: Motor | X7: Obstakel / overig | Y7: Fout pers | Z7: Fout Vracht
B8: =VLOOKUP(B3,Coordinaten!$A$2:$G$95,3,0)&", "&VLOOKUP(B3,Coordinaten!$A$2:$G$95,5,0) -> Carpool parking Wuustwezel, Wuustwezel | D8: 2021-11-18 | E8: 09:00 - 16:00u | F8: 7 | G8: 0 | H8: 0 | I8: 0 | J8: 11 | K8: 0 | L8: 18 | M8: 0 | N8: 0 | O8: 0 | Q8: 0 | S8: =D8 -> 2021-11-18 | T8: =E8 -> 09:00 - 16:00u | U8: =IF(F8=0,NA(),F8/$L8) -> 0.3888888889 | V8: =IF(G8=0,NA(),G8/$L8) ->  | W8: =IF(H8=0,NA(),H8/$L8) ->  | Y8: 0.6111111111
B9: ="Nabij kruispunt: "&VLOOKUP(B3,Coordinaten!$A$2:$L$95,4,0) -> Nabij kruispunt: N1 / N144 | F9: 0.3888888889 | G9: - | H9: - | I9: - | J9: 0.6111111111 | K9: - | L9: 1 | Q9: 0 | S9: =D10 -> 2021-11-18 | T9: =E10 -> 19:00 - 02:00u | U9: =IF(F10=0,NA(),F10/$L10) -> 1 | V9: =IF(G10=0,NA(),G10/$L10) -> 
D10: 2021-11-18 | E10: 19:00 - 02:00u | F10: 5 | G10: 0 | H10: 0 | I10: 0 | J10: 0 | K10: 0 | L10: 5 | M10: 0 | N10: 0 | O10: 0 | Q10: 0
B11: Meting | F11: 1 | G11: - | H11: - | I11: - | J11: - | K11: - | L11: 1 | Q11: 0
B12: ="Meetperiode: "&TEXT(VLOOKUP(B3,Coordinaten!$A$2:$G$95,7,0),"dddd dd mmmm jjjj") -> Meetperiode: donderdag 18 november 2021
B13: Methodiek: Parkeerdrukmeting met waarnemers
B14: In opdracht van: Vlaamse overheid
B15: Uitgevoerd door: Dufec
D16: VERDELING NAAR CATEGORIE
B17: Locatie
B18: =IF(B4="","",HYPERLINK("http://www.googlemaps.com/?q="&B4,"Lat/Long: "&B4)) -> Lat/Long: 51.408496, 4.612086
P20: Legenda
Q21: Personenwagen
Q22: Vracht
Q23: Motor
Q24: Obstakel / overig
Q25: Fout personenwagen
Q26: Fout Vracht
B38: Opmerking
B39: Het onderzoek vindt plaats gedurende coronamaatregelen.
B40: Dit heeft mogelijk een effect op de resultaten.
B42: Toelichting
B43: Pers = personenwagens op daarvoor bestemde
B44: openbare plaatsen
B45: Vracht = vrachtwagens op daarvoor bestemde
B46: parkeerplaatsen (middel- en zwaar vrachtverkeer)
B47: Motor = geparkeerde motoren op openbare plaatsen
B48: Obstakel / overig = obstakels of overige voertuigen
B49: geparkeerd op openbare plaatsen
B50: Fout pers = personenwagens die fout geparkeerd staan
B51: Fout vracht = vrachtwagens die fout geparkeerd staan
B52: E-wagen = geparkeerde elektrisch voertuig bij een
B53: elektrisch oplaadpunt
B54: Invalide = personenwagens en motoren op voor
B55: invalide personen bestemde parkeerplaats
B56: Gestalde fietsen = alle gestalde fietsen op de
B57: daarvoor bestemde parkeerplaatsen

Sheet 77.Keizershoek
B2: PARKEERONDERZOEK | D2: CARPOOLPARKINGS EN P+R PARKINGS
B3: 77 | D3: =B8 & " - "& TEXT(VLOOKUP(B3,Coordinaten!$A$2:$G$95,7,0),"dddd dd mmmm jjjj") -> Carpool parking/P+R parking Keizershoek, Antwerpen - dinsdag 09 november 2021
B4: =VLOOKUP(B3,Coordinaten!$A$2:$G$95,6,0) -> 51.258243, 4.461816
D5: BEZETTING | Q5: OPMERKINGEN
B7: Onderzoeksgebied | D7: Datum | E7: Geregistreerd tussen | F7: Pers | G7: Vracht | H7: Motor | I7: Obstakel / overig | J7: Fout pers | K7: Fout Vracht | L7: Totaal | M7: E-wagen plaats | N7: Invalidenplaats | O7: Gestalde fietsen | U7: =F7 -> Pers | V7: Vracht | W7: Motor | X7: Obstakel / overig | Y7: Fout pers | Z7: Fout Vracht
B8: =VLOOKUP(B3,Coordinaten!$A$2:$G$95,3,0)&", "&VLOOKUP(B3,Coordinaten!$A$2:$G$95,5,0) -> Carpool parking/P+R parking Keizershoek, Antwerpen | D8: 2021-11-09 | E8: 09:00 - 16:00u | F8: 18 | G8: 0 | H8: 0 | I8: 0 | J8: 0 | K8: 1 | L8: 19 | M8: 0 | N8: 0 | O8: 0 | Q8: 0 | S8: =D8 -> 2021-11-09 | T8: =E8 -> 09:00 - 16:00u | U8: =IF(F8=0,NA(),F8/$L8) -> 0.9473684211 | V8: =IF(G8=0,NA(),G8/$L8) ->  | W8: =IF(H8=0,NA(),H8/$L8) ->  | Z8: 0.05263157895
B9: ="Nabij kruispunt: "&VLOOKUP(B3,Coordinaten!$A$2:$L$95,4,0) -> Nabij kruispunt: N1 / Horstebaan | F9: 0.9473684211 | G9: - | H9: - | I9: - | J9: - | K9: 0.05263157895 | L9: 1 | Q9: 0 | S9: =D10 -> 2021-11-09 | T9: =E10 -> 19:00 - 02:00u | U9: =IF(F10=0,NA(),F10/$L10) -> 0.8235294118 | V9: =IF(G10=0,NA(),G10/$L10) ->  | Z9: 0.1764705882
D10: 2021-11-09 | E10: 19:00 - 02:00u | F10: 14 | G10: 0 | H10: 0 | I10: 0 | J10: 0 | K10: 3 | L10: 17 | M10: 0 | N10: 0 | O10: 0 | Q10: 0
B11: Meting | F11: 0.8235294118 | G11: - | H11: - | I11: - | J11: - | K11: 0.1764705882 | L11: 1 | Q11: 0
B12: ="Meetperiode: "&TEXT(VLOOKUP(B3,Coordinaten!$A$2:$G$95,7,0),"dddd dd mmmm jjjj") -> Meetperiode: dinsdag 09 november 2021
B13: Methodiek: Parkeerdrukmeting met waarnemers
B14: In opdracht van: Vlaamse overheid
B15: Uitgevoerd door: Dufec
D16: VERDELING NAAR CATEGORIE
B17: Locatie
B18: =IF(B4="","",HYPERLINK("http://www.googlemaps.com/?q="&B4,"Lat/Long: "&B4)) -> Lat/Long: 51.258243, 4.461816
P20: Legenda
Q21: Personenwagen
Q22: Vracht
Q23: Motor
Q24: Obstakel / overig
Q25: Fout personenwagen
Q26: Fout Vracht
B38: Opmerking
B39: Het onderzoek vindt plaats gedurende coronamaatregelen.
B40: Dit heeft mogelijk een effect op de resultaten.
B42: Toelichting
B43: Pers = personenwagens op daarvoor bestemde
B44: openbare plaatsen
B45: Vracht = vrachtwagens op daarvoor bestemde
B46: parkeerplaatsen (middel- en zwaar vrachtverkeer)
B47: Motor = geparkeerde motoren op openbare plaatsen
B48: Obstakel / overig = obstakels of overige voertuigen
B49: geparkeerd op openbare plaatsen
B50: Fout pers = personenwagens die fout geparkeerd staan
B51: Fout vracht = vrachtwagens die fout geparkeerd staan
B52: E-wagen = geparkeerde elektrisch voertuig bij een
B53: elektrisch oplaadpunt
B54: Invalide = personenwagens en motoren op voor
B55: invalide personen bestemde parkeerplaats
B56: Gestalde fietsen = alle gestalde fietsen op de
B57: daarvoor bestemde parkeerplaatsen

Sheet 78.Blancefloerlaan
B2: PARKEERONDERZOEK | D2: CARPOOLPARKINGS EN P+R PARKINGS
B3: 78 | D3: =B8 & " - "& TEXT(VLOOKUP(B3,Coordinaten!$A$2:$G$95,7,0),"dddd dd mmmm jjjj") -> Carpool parking Blancefloerlaan, Antwerpen - dinsdag 09 november 2021
B4: =VLOOKUP(B3,Coordinaten!$A$2:$G$95,6,0) -> 51.219428, 4.347431
D5: BEZETTING | Q5: OPMERKINGEN
B7: Onderzoeksgebied | D7: Datum | E7: Geregistreerd tussen | F7: Pers | G7: Vracht | H7: Motor | I7: Obstakel / overig | J7: Fout pers | K7: Fout Vracht | L7: Totaal | M7: E-wagen plaats | N7: Invalidenplaats | O7: Gestalde fietsen | U7: =F7 -> Pers | V7: Vracht | W7: Motor | X7: Obstakel / overig | Y7: Fout pers | Z7: Fout Vracht
B8: =VLOOKUP(B3,Coordinaten!$A$2:$G$95,3,0)&", "&VLOOKUP(B3,Coordinaten!$A$2:$G$95,5,0) -> Carpool parking Blancefloerlaan, Antwerpen | D8: 2021-11-09 | E8: 09:00 - 16:00u | F8: 258 | G8: 0 | H8: 0 | I8: 0 | J8: 15 | K8: 0 | L8: 273 | M8: 0 | N8: 0 | O8: 0 | Q8: 0 | S8: =D8 -> 2021-11-09 | T8: =E8 -> 09:00 - 16:00u | U8: =IF(F8=0,NA(),F8/$L8) -> 0.9450549451 | V8: =IF(G8=0,NA(),G8/$L8) ->  | W8: =IF(H8=0,NA(),H8/$L8) ->  | Y8: 0.05494505495
B9: ="Nabij kruispunt: "&VLOOKUP(B3,Coordinaten!$A$2:$L$95,4,0) -> Nabij kruispunt: R1 / N70 | F9: 0.9450549451 | G9: - | H9: - | I9: - | J9: 0.05494505495 | K9: - | L9: 1 | Q9: 0 | S9: =D10 -> 2021-11-09 | T9: =E10 -> 19:00 - 02:00u | U9: =IF(F10=0,NA(),F10/$L10) -> 0.9791666667 | V9: =IF(G10=0,NA(),G10/$L10) ->  | Y9: 0.02083333333
D10: 2021-11-09 | E10: 19:00 - 02:00u | F10: 141 | G10: 0 | H10: 0 | I10: 0 | J10: 3 | K10: 0 | L10: 144 | M10: 0 | N10: 0 | O10: 0 | Q10: 0
B11: Meting | F11: 0.9791666667 | G11: - | H11: - | I11: - | J11: 0.02083333333 | K11: - | L11: 1 | Q11: 0
B12: ="Meetperiode: "&TEXT(VLOOKUP(B3,Coordinaten!$A$2:$G$95,7,0),"dddd dd mmmm jjjj") -> Meetperiode: dinsdag 09 november 2021
B13: Methodiek: Parkeerdrukmeting met waarnemers
B14: In opdracht van: Vlaamse overheid
B15: Uitgevoerd door: Dufec
D16: VERDELING NAAR CATEGORIE
B17: Locatie
B18: =IF(B4="","",HYPERLINK("http://www.googlemaps.com/?q="&B4,"Lat/Long: "&B4)) -> Lat/Long: 51.219428, 4.347431
P20: Legenda
Q21: Personenwagen
Q22: Vracht
Q23: Motor
Q24: Obstakel / overig
Q25: Fout personenwagen
Q26: Fout Vracht
B38: Opmerking
B39: Het onderzoek vindt plaats gedurende coronamaatregelen.
B40: Dit heeft mogelijk een effect op de resultaten.
B42: Toelichting
B43: Pers = personenwagens op daarvoor bestemde
B44: openbare plaatsen
B45: Vracht = vrachtwagens op daarvoor bestemde
B46: parkeerplaatsen (middel- en zwaar vrachtverkeer)
B47: Motor = geparkeerde motoren op openbare plaatsen
B48: Obstakel / overig = obstakels of overige voertuigen
B49: geparkeerd op openbare plaatsen
B50: Fout pers = personenwagens die fout geparkeerd staan
B51: Fout vracht = vrachtwagens die fout geparkeerd staan
B52: E-wagen = geparkeerde elektrisch voertuig bij een
B53: elektrisch oplaadpunt
B54: Invalide = personenwagens en motoren op voor
B55: invalide personen bestemde parkeerplaats
B56: Gestalde fietsen = alle gestalde fietsen op de
B57: daarvoor bestemde parkeerplaatsen

Sheet 81.Rotselaar
B2: PARKEERONDERZOEK | D2: CARPOOLPARKINGS EN P+R PARKINGS
B3: 81 | D3: =B8 & " - "& TEXT(VLOOKUP(B3,Coordinaten!$A$2:$G$95,7,0),"dddd dd mmmm jjjj") -> Carpool parking Rotselaar, Rotselaar - dinsdag 16 november 2021
B4: =VLOOKUP(B3,Coordinaten!$A$2:$G$95,6,0) -> 50.938803, 4.736643
D5: BEZETTING | Q5: OPMERKINGEN
B7: Onderzoeksgebied | D7: Datum | E7: Geregistreerd tussen | F7: Pers | G7: Vracht | H7: Motor | I7: Obstakel / overig | J7: Fout pers | K7: Fout Vracht | L7: Totaal | M7: E-wagen plaats | N7: Invalidenplaats | O7: Gestalde fietsen | U7: =F7 -> Pers | V7: Vracht | W7: Motor | X7: Obstakel / overig | Y7: Fout pers | Z7: Fout Vracht
B8: =VLOOKUP(B3,Coordinaten!$A$2:$G$95,3,0)&", "&VLOOKUP(B3,Coordinaten!$A$2:$G$95,5,0) -> Carpool parking Rotselaar, Rotselaar | D8: 2021-11-16 | E8: 09:00 - 16:00u | F8: 33 | G8: 0 | H8: 0 | I8: 1 | J8: 0 | K8: 1 | L8: 35 | M8: 1 | N8: 1 | O8: 17 | Q8: Obstakel: aanhanger | S8: =D8 -> 2021-11-16 | T8: =E8 -> 09:00 - 16:00u | U8: =IF(F8=0,NA(),F8/$L8) -> 0.9428571429 | V8: =IF(G8=0,NA(),G8/$L8) ->  | W8: =IF(H8=0,NA(),H8/$L8) ->  | X8: 0.02857142857 | Z8: 0.02857142857
B9: ="Nabij kruispunt: "&VLOOKUP(B3,Coordinaten!$A$2:$L$95,4,0) -> Nabij kruispunt: N19 / N229 | F9: 0.9428571429 | G9: - | H9: - | I9: 0.02857142857 | J9: - | K9: 0.02857142857 | L9: 1 | Q9: 0 | S9: =D10 -> 2021-11-16 | T9: =E10 -> 19:00 - 02:00u | U9: =IF(F10=0,NA(),F10/$L10) -> 0.8947368421 | V9: =IF(G10=0,NA(),G10/$L10) ->  | Z9: 0.1052631579
D10: 2021-11-16 | E10: 19:00 - 02:00u | F10: 17 | G10: 0 | H10: 0 | I10: 0 | J10: 0 | K10: 2 | L10: 19 | M10: 0 | N10: 0 | O10: 0 | Q10: 0
B11: Meting | F11: 0.8947368421 | G11: - | H11: - | I11: - | J11: - | K11: 0.1052631579 | L11: 1 | Q11: 0
B12: ="Meetperiode: "&TEXT(VLOOKUP(B3,Coordinaten!$A$2:$G$95,7,0),"dddd dd mmmm jjjj") -> Meetperiode: dinsdag 16 november 2021
B13: Methodiek: Parkeerdrukmeting met waarnemers
B14: In opdracht van: Vlaamse overheid
B15: Uitgevoerd door: Dufec
D16: VERDELING NAAR CATEGORIE
B17: Locatie
B18: =IF(B4="","",HYPERLINK("http://www.googlemaps.com/?q="&B4,"Lat/Long: "&B4)) -> Lat/Long: 50.938803, 4.736643
P20: Legenda
Q21: Personenwagen
Q22: Vracht
Q23: Motor
Q24: Obstakel / overig
Q25: Fout personenwagen
Q26: Fout Vracht
B38: Opmerking
B39: Het onderzoek vindt plaats gedurende coronamaatregelen.
B40: Dit heeft mogelijk een effect op de resultaten.
B42: Toelichting
B43: Pers = personenwagens op daarvoor bestemde
B44: openbare plaatsen
B45: Vracht = vrachtwagens op daarvoor bestemde
B46: parkeerplaatsen (middel- en zwaar vrachtverkeer)
B47: Motor = geparkeerde motoren op openbare plaatsen
B48: Obstakel / overig = obstakels of overige voertuigen
B49: geparkeerd op openbare plaatsen
B50: Fout pers = personenwagens die fout geparkeerd staan
B51: Fout vracht = vrachtwagens die fout geparkeerd staan
B52: E-wagen = geparkeerde elektrisch voertuig bij een
B53: elektrisch oplaadpunt
B54: Invalide = personenwagens en motoren op voor
B55: invalide personen bestemde parkeerplaats
B56: Gestalde fietsen = alle gestalde fietsen op de
B57: daarvoor bestemde parkeerplaatsen

Sheet 82.Vuntcomplex
B2: PARKEERONDERZOEK | D2: CARPOOLPARKINGS EN P+R PARKINGS
B3: 82 | D3: =B8 & " - "& TEXT(VLOOKUP(B3,Coordinaten!$A$2:$G$95,7,0),"dddd dd mmmm jjjj") -> Carpool parking Vuntcomplex, Leuven - dinsdag 16 november 2021
B4: =VLOOKUP(B3,Coordinaten!$A$2:$G$95,6,0) -> 50.906947, 4.716171
D5: BEZETTING | Q5: OPMERKINGEN
B7: Onderzoeksgebied | D7: Datum | E7: Geregistreerd tussen | F7: Pers | G7: Vracht | H7: Motor | I7: Obstakel / overig | J7: Fout pers | K7: Fout Vracht | L7: Totaal | M7: E-wagen plaats | N7: Invalidenplaats | O7: Gestalde fietsen | U7: =F7 -> Pers | V7: Vracht | W7: Motor | X7: Obstakel / overig | Y7: Fout pers | Z7: Fout Vracht
B8: =VLOOKUP(B3,Coordinaten!$A$2:$G$95,3,0)&", "&VLOOKUP(B3,Coordinaten!$A$2:$G$95,5,0) -> Carpool parking Vuntcomplex, Leuven | D8: 2021-11-16 | E8: 09:00 - 16:00u | F8: 12 | G8: 0 | H8: 0 | I8: 0 | J8: 0 | K8: 0 | L8: 12 | M8: 0 | N8: 0 | O8: 1 | Q8: 0 | S8: =D8 -> 2021-11-16 | T8: =E8 -> 09:00 - 16:00u | U8: =IF(F8=0,NA(),F8/$L8) -> 1 | V8: =IF(G8=0,NA(),G8/$L8) ->  | W8: =IF(H8=0,NA(),H8/$L8) -> 
B9: ="Nabij kruispunt: "&VLOOKUP(B3,Coordinaten!$A$2:$L$95,4,0) -> Nabij kruispunt: A2 / Vuntcomplex | F9: 1 | G9: - | H9: - | I9: - | J9: - | K9: - | L9: 1 | Q9: 0 | S9: =D10 -> 2021-11-16 | T9: =E10 -> 19:00 - 02:00u | U9: =IF(F10=0,NA(),F10/$L10) -> 0.8 | V9: =IF(G10=0,NA(),G10/$L10) ->  | Z9: 0.2
D10: 2021-11-16 | E10: 19:00 - 02:00u | F10: 4 | G10: 0 | H10: 0 | I10: 0 | J10: 0 | K10: 1 | L10: 5 | M10: 0 | N10: 0 | O10: 11 | Q10: 0
B11: Meting | F11: 0.8 | G11: - | H11: - | I11: - | J11: - | K11: 0.2 | L11: 1 | Q11: 0
B12: ="Meetperiode: "&TEXT(VLOOKUP(B3,Coordinaten!$A$2:$G$95,7,0),"dddd dd mmmm jjjj") -> Meetperiode: dinsdag 16 november 2021
B13: Methodiek: Parkeerdrukmeting met waarnemers
B14: In opdracht van: Vlaamse overheid
B15: Uitgevoerd door: Dufec
D16: VERDELING NAAR CATEGORIE
B17: Locatie
B18: =IF(B4="","",HYPERLINK("http://www.googlemaps.com/?q="&B4,"Lat/Long: "&B4)) -> Lat/Long: 50.906947, 4.716171
P20: Legenda
Q21: Personenwagen
Q22: Vracht
Q23: Motor
Q24: Obstakel / overig
Q25: Fout personenwagen
Q26: Fout Vracht
B38: Opmerking
B39: Het onderzoek vindt plaats gedurende coronamaatregelen.
B40: Dit heeft mogelijk een effect op de resultaten.
B42: Toelichting
B43: Pers = personenwagens op daarvoor bestemde
B44: openbare plaatsen
B45: Vracht = vrachtwagens op daarvoor bestemde
B46: parkeerplaatsen (middel- en zwaar vrachtverkeer)
B47: Motor = geparkeerde motoren op openbare plaatsen
B48: Obstakel / overig = obstakels of overige voertuigen
B49: geparkeerd op openbare plaatsen
B50: Fout pers = personenwagens die fout geparkeerd staan
B51: Fout vracht = vrachtwagens die fout geparkeerd staan
B52: E-wagen = geparkeerde elektrisch voertuig bij een
B53: elektrisch oplaadpunt
B54: Invalide = personenwagens en motoren op voor
B55: invalide personen bestemde parkeerplaats
B56: Gestalde fietsen = alle gestalde fietsen op de
B57: daarvoor bestemde parkeerplaatsen

Sheet 83.Sterrebeek
B2: PARKEERONDERZOEK | D2: CARPOOLPARKINGS EN P+R PARKINGS
B3: 83 | D3: =B8 & " - "& TEXT(VLOOKUP(B3,Coordinaten!$A$2:$G$95,7,0),"dddd dd mmmm jjjj") -> Carpool parking Sterrebeek, Zaventem - donderdag 18 november 2021
B4: =VLOOKUP(B3,Coordinaten!$A$2:$G$95,6,0) -> 50.871388, 4.510603
D5: BEZETTING | Q5: OPMERKINGEN
B7: Onderzoeksgebied | D7: Datum | E7: Geregistreerd tussen | F7: Pers | G7: Vracht | H7: Motor | I7: Obstakel / overig | J7: Fout pers | K7: Fout Vracht | L7: Totaal | M7: E-wagen plaats | N7: Invalidenplaats | O7: Gestalde fietsen | U7: =F7 -> Pers | V7: Vracht | W7: Motor | X7: Obstakel / overig | Y7: Fout pers | Z7: Fout Vracht
B8: =VLOOKUP(B3,Coordinaten!$A$2:$G$95,3,0)&", "&VLOOKUP(B3,Coordinaten!$A$2:$G$95,5,0) -> Carpool parking Sterrebeek, Zaventem | D8: 2021-11-18 | E8: 09:00 - 16:00u | F8: 22 | G8: 0 | H8: 0 | I8: 0 | J8: 0 | K8: 0 | L8: 22 | M8: 0 | N8: 0 | O8: 0 | Q8: 0 | S8: =D8 -> 2021-11-18 | T8: =E8 -> 09:00 - 16:00u | U8: =IF(F8=0,NA(),F8/$L8) -> 1 | V8: =IF(G8=0,NA(),G8/$L8) ->  | W8: =IF(H8=0,NA(),H8/$L8) -> 
B9: ="Nabij kruispunt: "&VLOOKUP(B3,Coordinaten!$A$2:$L$95,4,0) -> Nabij kruispunt: N227 / A3 | F9: 1 | G9: - | H9: - | I9: - | J9: - | K9: - | L9: 1 | Q9: 0 | S9: =D10 -> 2021-11-18 | T9: =E10 -> 19:00 - 02:00u | U9: =IF(F10=0,NA(),F10/$L10) -> 1 | V9: =IF(G10=0,NA(),G10/$L10) -> 
D10: 2021-11-18 | E10: 19:00 - 02:00u | F10: 13 | G10: 0 | H10: 0 | I10: 0 | J10: 0 | K10: 0 | L10: 13 | M10: 0 | N10: 0 | O10: 0 | Q10: 0
B11: Meting | F11: 1 | G11: - | H11: - | I11: - | J11: - | K11: - | L11: 1 | Q11: 0
B12: ="Meetperiode: "&TEXT(VLOOKUP(B3,Coordinaten!$A$2:$G$95,7,0),"dddd dd mmmm jjjj") -> Meetperiode: donderdag 18 november 2021
B13: Methodiek: Parkeerdrukmeting met waarnemers
B14: In opdracht van: Vlaamse overheid
B15: Uitgevoerd door: Dufec
D16: VERDELING NAAR CATEGORIE
B17: Locatie
B18: =IF(B4="","",HYPERLINK("http://www.googlemaps.com/?q="&B4,"Lat/Long: "&B4)) -> Lat/Long: 50.871388, 4.510603
P20: Legenda
Q21: Personenwagen
Q22: Vracht
Q23: Motor
Q24: Obstakel / overig
Q25: Fout personenwagen
Q26: Fout Vracht
B38: Opmerking
B39: Het onderzoek vindt plaats gedurende coronamaatregelen.
B40: Dit heeft mogelijk een effect op de resultaten.
B42: Toelichting
B43: Pers = personenwagens op daarvoor bestemde
B44: openbare plaatsen
B45: Vracht = vrachtwagens op daarvoor bestemde
B46: parkeerplaatsen (middel- en zwaar vrachtverkeer)
B47: Motor = geparkeerde motoren op openbare plaatsen
B48: Obstakel / overig = obstakels of overige voertuigen
B49: geparkeerd op openbare plaatsen
B50: Fout pers = personenwagens die fout geparkeerd staan
B51: Fout vracht = vrachtwagens die fout geparkeerd staan
B52: E-wagen = geparkeerde elektrisch voertuig bij een
B53: elektrisch oplaadpunt
B54: Invalide = personenwagens en motoren op voor
B55: invalide personen bestemde parkeerplaats
B56: Gestalde fietsen = alle gestalde fietsen op de
B57: daarvoor bestemde parkeerplaatsen

Sheet 84.Halle-Rattenput
B2: PARKEERONDERZOEK | D2: CARPOOLPARKINGS EN P+R PARKINGS
B3: 84 | D3: =B8 & " - "& TEXT(VLOOKUP(B3,Coordinaten!$A$2:$G$95,7,0),"dddd dd mmmm jjjj") -> Carpool parking Halle-Rattenput, Halle - dinsdag 23 november 2021
B4: =VLOOKUP(B3,Coordinaten!$A$2:$G$95,6,0) -> 50.723963, 4.227925
D5: BEZETTING | Q5: OPMERKINGEN
B7: Onderzoeksgebied | D7: Datum | E7: Geregistreerd tussen | F7: Pers | G7: Vracht | H7: Motor | I7: Obstakel / overig | J7: Fout pers | K7: Fout Vracht | L7: Totaal | M7: E-wagen plaats | N7: Invalidenplaats | O7: Gestalde fietsen | U7: =F7 -> Pers | V7: Vracht | W7: Motor | X7: Obstakel / overig | Y7: Fout pers | Z7: Fout Vracht
B8: =VLOOKUP(B3,Coordinaten!$A$2:$G$95,3,0)&", "&VLOOKUP(B3,Coordinaten!$A$2:$G$95,5,0) -> Carpool parking Halle-Rattenput, Halle | D8: 2021-11-23 | E8: 09:00 - 16:00u | F8: 3 | G8: 0 | H8: 0 | I8: 2 | J8: 0 | K8: 0 | L8: 5 | M8: 0 | N8: 0 | O8: 0 | Q8: Vanaf 20 november nieuwe coronamaatregelen, waaronder verplicht telewerk | S8: =D8 -> 2021-11-23 | T8: =E8 -> 09:00 - 16:00u | U8: =IF(F8=0,NA(),F8/$L8) -> 0.6 | V8: =IF(G8=0,NA(),G8/$L8) ->  | W8: =IF(H8=0,NA(),H8/$L8) ->  | X8: 0.4
B9: ="Nabij kruispunt: "&VLOOKUP(B3,Coordinaten!$A$2:$L$95,4,0) -> Nabij kruispunt: N6 / A8 | F9: 0.6 | G9: - | H9: - | I9: 0.4 | J9: - | K9: - | L9: 1 | Q9: Obstakel 2 aanhangers | S9: =D10 -> 2021-11-23 | T9: =E10 -> 19:00 - 02:00u | U9: =IF(F10=0,NA(),F10/$L10) -> 1 | V9: =IF(G10=0,NA(),G10/$L10) -> 
D10: 2021-11-23 | E10: 19:00 - 02:00u | F10: 20 | G10: 0 | H10: 0 | I10: 0 | J10: 0 | K10: 0 | L10: 20 | M10: 0 | N10: 0 | O10: 1 | Q10: Vanaf 20 november nieuwe coronamaatregelen, waaronder verplicht telewerk
B11: Meting | F11: 1 | G11: - | H11: - | I11: - | J11: - | K11: - | L11: 1 | Q11: 0
B12: ="Meetperiode: "&TEXT(VLOOKUP(B3,Coordinaten!$A$2:$G$95,7,0),"dddd dd mmmm jjjj") -> Meetperiode: dinsdag 23 november 2021
B13: Methodiek: Parkeerdrukmeting met waarnemers
B14: In opdracht van: Vlaamse overheid
B15: Uitgevoerd door: Dufec
D16: VERDELING NAAR CATEGORIE
B17: Locatie
B18: =IF(B4="","",HYPERLINK("http://www.googlemaps.com/?q="&B4,"Lat/Long: "&B4)) -> Lat/Long: 50.723963, 4.227925
P20: Legenda
Q21: Personenwagen
Q22: Vracht
Q23: Motor
Q24: Obstakel / overig
Q25: Fout personenwagen
Q26: Fout Vracht
B38: Opmerking
B39: Het onderzoek vindt plaats gedurende coronamaatregelen.
B40: Dit heeft mogelijk een effect op de resultaten.
B42: Toelichting
B43: Pers = personenwagens op daarvoor bestemde
B44: openbare plaatsen
B45: Vracht = vrachtwagens op daarvoor bestemde
B46: parkeerplaatsen (middel- en zwaar vrachtverkeer)
B47: Motor = geparkeerde motoren op openbare plaatsen
B48: Obstakel / overig = obstakels of overige voertuigen
B49: geparkeerd op openbare plaatsen
B50: Fout pers = personenwagens die fout geparkeerd staan
B51: Fout vracht = vrachtwagens die fout geparkeerd staan
B52: E-wagen = geparkeerde elektrisch voertuig bij een
B53: elektrisch oplaadpunt
B54: Invalide = personenwagens en motoren op voor
B55: invalide personen bestemde parkeerplaats
B56: Gestalde fietsen = alle gestalde fietsen op de
B57: daarvoor bestemde parkeerplaatsen

Sheet 85.Strombeek-Bever
B2: PARKEERONDERZOEK | D2: CARPOOLPARKINGS EN P+R PARKINGS
B3: 85 | D3: =B8 & " - "& TEXT(VLOOKUP(B3,Coordinaten!$A$2:$G$95,7,0),"dddd dd mmmm jjjj") -> Carpool parking Strombeek-Bever, Grimbergen - donderdag 18 november 2021
B4: =VLOOKUP(B3,Coordinaten!$A$2:$G$95,6,0) -> 50.903140, 4.346976
D5: BEZETTING | Q5: OPMERKINGEN
B7: Onderzoeksgebied | D7: Datum | E7: Geregistreerd tussen | F7: Pers | G7: Vracht | H7: Motor | I7: Obstakel / overig | J7: Fout pers | K7: Fout Vracht | L7: Totaal | M7: E-wagen plaats | N7: Invalidenplaats | O7: Gestalde fietsen | U7: =F7 -> Pers | V7: Vracht | W7: Motor | X7: Obstakel / overig | Y7: Fout pers | Z7: Fout Vracht
B8: =VLOOKUP(B3,Coordinaten!$A$2:$G$95,3,0)&", "&VLOOKUP(B3,Coordinaten!$A$2:$G$95,5,0) -> Carpool parking Strombeek-Bever, Grimbergen | D8: 2021-11-18 | E8: 09:00 - 16:00u | F8: 21 | G8: 0 | H8: 0 | I8: 0 | J8: 1 | K8: 0 | L8: 22 | M8: 0 | N8: 0 | O8: 0 | Q8: 0 | S8: =D8 -> 2021-11-18 | T8: =E8 -> 09:00 - 16:00u | U8: =IF(F8=0,NA(),F8/$L8) -> 0.9545454545 | V8: =IF(G8=0,NA(),G8/$L8) ->  | W8: =IF(H8=0,NA(),H8/$L8) ->  | Y8: 0.04545454545
B9: ="Nabij kruispunt: "&VLOOKUP(B3,Coordinaten!$A$2:$L$95,4,0) -> Nabij kruispunt: N276 / Nieuwelaan | F9: 0.9545454545 | G9: - | H9: - | I9: - | J9: 0.04545454545 | K9: - | L9: 1 | Q9: 0 | S9: =D10 -> 2021-11-18 | T9: =E10 -> 19:00 - 02:00u | U9: =IF(F10=0,NA(),F10/$L10) -> 0.9473684211 | V9: =IF(G10=0,NA(),G10/$L10) ->  | Z9: 0.05263157895
D10: 2021-11-18 | E10: 19:00 - 02:00u | F10: 18 | G10: 0 | H10: 0 | I10: 0 | J10: 0 | K10: 1 | L10: 19 | M10: 0 | N10: 0 | O10: 0 | Q10: 0
B11: Meting | F11: 0.9473684211 | G11: - | H11: - | I11: - | J11: - | K11: 0.05263157895 | L11: 1 | Q11: 0
B12: ="Meetperiode: "&TEXT(VLOOKUP(B3,Coordinaten!$A$2:$G$95,7,0),"dddd dd mmmm jjjj") -> Meetperiode: donderdag 18 november 2021
B13: Methodiek: Parkeerdrukmeting met waarnemers
B14: In opdracht van: Vlaamse overheid
B15: Uitgevoerd door: Dufec
D16: VERDELING NAAR CATEGORIE
B17: Locatie
B18: =IF(B4="","",HYPERLINK("http://www.googlemaps.com/?q="&B4,"Lat/Long: "&B4)) -> Lat/Long: 50.903140, 4.346976
P20: Legenda
Q21: Personenwagen
Q22: Vracht
Q23: Motor
Q24: Obstakel / overig
Q25: Fout personenwagen
Q26: Fout Vracht
B38: Opmerking
B39: Het onderzoek vindt plaats gedurende coronamaatregelen.
B40: Dit heeft mogelijk een effect op de resultaten.
B42: Toelichting
B43: Pers = personenwagens op daarvoor bestemde
B44: openbare plaatsen
B45: Vracht = vrachtwagens op daarvoor bestemde
B46: parkeerplaatsen (middel- en zwaar vrachtverkeer)
B47: Motor = geparkeerde motoren op openbare plaatsen
B48: Obstakel / overig = obstakels of overige voertuigen
B49: geparkeerd op openbare plaatsen
B50: Fout pers = personenwagens die fout geparkeerd staan
B51: Fout vracht = vrachtwagens die fout geparkeerd staan
B52: E-wagen = geparkeerde elektrisch voertuig bij een
B53: elektrisch oplaadpunt
B54: Invalide = personenwagens en motoren op voor
B55: invalide personen bestemde parkeerplaats
B56: Gestalde fietsen = alle gestalde fietsen op de
B57: daarvoor bestemde parkeerplaatsen

Sheet 86.Jezus-Eik
B2: PARKEERONDERZOEK | D2: CARPOOLPARKINGS EN P+R PARKINGS
B3: 86 | D3: =B8 & " - "& TEXT(VLOOKUP(B3,Coordinaten!$A$2:$G$95,7,0),"dddd dd mmmm jjjj") -> Carpool parking Jezus-Eik, Overijse - donderdag 18 november 2021
B4: =VLOOKUP(B3,Coordinaten!$A$2:$G$95,6,0) -> 50.791286, 4.486517
D5: BEZETTING | Q5: OPMERKINGEN
B7: Onderzoeksgebied | D7: Datum | E7: Geregistreerd tussen | F7: Pers | G7: Vracht | H7: Motor | I7: Obstakel / overig | J7: Fout pers | K7: Fout Vracht | L7: Totaal | M7: E-wagen plaats | N7: Invalidenplaats | O7: Gestalde fietsen | U7: =F7 -> Pers | V7: Vracht | W7: Motor | X7: Obstakel / overig | Y7: Fout pers | Z7: Fout Vracht
B8: =VLOOKUP(B3,Coordinaten!$A$2:$G$95,3,0)&", "&VLOOKUP(B3,Coordinaten!$A$2:$G$95,5,0) -> Carpool parking Jezus-Eik, Overijse | D8: 2021-11-18 | E8: 09:00 - 16:00u | F8: 57 | G8: 0 | H8: 0 | I8: 0 | J8: 0 | K8: 1 | L8: 58 | M8: 0 | N8: 0 | O8: 0 | Q8: 0 | S8: =D8 -> 2021-11-18 | T8: =E8 -> 09:00 - 16:00u | U8: =IF(F8=0,NA(),F8/$L8) -> 0.9827586207 | V8: =IF(G8=0,NA(),G8/$L8) ->  | W8: =IF(H8=0,NA(),H8/$L8) ->  | Z8: 0.01724137931
B9: ="Nabij kruispunt: "&VLOOKUP(B3,Coordinaten!$A$2:$L$95,4,0) -> Nabij kruispunt: A4 / Kersenbomenlaan | F9: 0.9827586207 | G9: - | H9: - | I9: - | J9: - | K9: 0.01724137931 | L9: 1 | Q9: 0 | S9: =D10 -> 2021-11-18 | T9: =E10 -> 19:00 - 02:00u | U9: =IF(F10=0,NA(),F10/$L10) -> 1 | V9: =IF(G10=0,NA(),G10/$L10) -> 
D10: 2021-11-18 | E10: 19:00 - 02:00u | F10: 48 | G10: 0 | H10: 0 | I10: 0 | J10: 0 | K10: 0 | L10: 48 | M10: 0 | N10: 0 | O10: 0 | Q10: 0
B11: Meting | F11: 1 | G11: - | H11: - | I11: - | J11: - | K11: - | L11: 1 | Q11: 0
B12: ="Meetperiode: "&TEXT(VLOOKUP(B3,Coordinaten!$A$2:$G$95,7,0),"dddd dd mmmm jjjj") -> Meetperiode: donderdag 18 november 2021
B13: Methodiek: Parkeerdrukmeting met waarnemers
B14: In opdracht van: Vlaamse overheid
B15: Uitgevoerd door: Dufec
D16: VERDELING NAAR CATEGORIE
B17: Locatie
B18: =IF(B4="","",HYPERLINK("http://www.googlemaps.com/?q="&B4,"Lat/Long: "&B4)) -> Lat/Long: 50.791286, 4.486517
P20: Legenda
Q21: Personenwagen
Q22: Vracht
Q23: Motor
Q24: Obstakel / overig
Q25: Fout personenwagen
Q26: Fout Vracht
B38: Opmerking
B39: Het onderzoek vindt plaats gedurende coronamaatregelen.
B40: Dit heeft mogelijk een effect op de resultaten.
B42: Toelichting
B43: Pers = personenwagens op daarvoor bestemde
B44: openbare plaatsen
B45: Vracht = vrachtwagens op daarvoor bestemde
B46: parkeerplaatsen (middel- en zwaar vrachtverkeer)
B47: Motor = geparkeerde motoren op openbare plaatsen
B48: Obstakel / overig = obstakels of overige voertuigen
B49: geparkeerd op openbare plaatsen
B50: Fout pers = personenwagens die fout geparkeerd staan
B51: Fout vracht = vrachtwagens die fout geparkeerd staan
B52: E-wagen = geparkeerde elektrisch voertuig bij een
B53: elektrisch oplaadpunt
B54: Invalide = personenwagens en motoren op voor
B55: invalide personen bestemde parkeerplaats
B56: Gestalde fietsen = alle gestalde fietsen op de
B57: daarvoor bestemde parkeerplaatsen

Sheet 87.Affligem
B2: PARKEERONDERZOEK | D2: CARPOOLPARKINGS EN P+R PARKINGS
B3: 87 | D3: =B8 & " - "& TEXT(VLOOKUP(B3,Coordinaten!$A$2:$G$95,7,0),"dddd dd mmmm jjjj") -> Carpool parking Affligem, Affligem - dinsdag 23 november 2021
B4: =VLOOKUP(B3,Coordinaten!$A$2:$G$95,6,0) -> 50.893622, 4.119238
D5: BEZETTING | Q5: OPMERKINGEN
B7: Onderzoeksgebied | D7: Datum | E7: Geregistreerd tussen | F7: Pers | G7: Vracht | H7: Motor | I7: Obstakel / overig | J7: Fout pers | K7: Fout Vracht | L7: Totaal | M7: E-wagen plaats | N7: Invalidenplaats | O7: Gestalde fietsen | U7: =F7 -> Pers | V7: Vracht | W7: Motor | X7: Obstakel / overig | Y7: Fout pers | Z7: Fout Vracht
B8: =VLOOKUP(B3,Coordinaten!$A$2:$G$95,3,0)&", "&VLOOKUP(B3,Coordinaten!$A$2:$G$95,5,0) -> Carpool parking Affligem, Affligem | D8: 2021-11-23 | E8: 09:00 - 16:00u | F8: 68 | G8: 0 | H8: 0 | I8: 0 | J8: 0 | K8: 0 | L8: 68 | M8: 0 | N8: 0 | O8: 0 | Q8: Vanaf 20 november nieuwe coronamaatregelen, waaronder verplicht telewerk | S8: =D8 -> 2021-11-23 | T8: =E8 -> 09:00 - 16:00u | U8: =IF(F8=0,NA(),F8/$L8) -> 1 | V8: =IF(G8=0,NA(),G8/$L8) ->  | W8: =IF(H8=0,NA(),H8/$L8) -> 
B9: ="Nabij kruispunt: "&VLOOKUP(B3,Coordinaten!$A$2:$L$95,4,0) -> Nabij kruispunt: N208 / A10 | F9: 1 | G9: - | H9: - | I9: - | J9: - | K9: - | L9: 1 | Q9: 0 | S9: =D10 -> 2021-11-23 | T9: =E10 -> 19:00 - 02:00u | U9: =IF(F10=0,NA(),F10/$L10) -> 1 | V9: =IF(G10=0,NA(),G10/$L10) -> 
D10: 2021-11-23 | E10: 19:00 - 02:00u | F10: 13 | G10: 0 | H10: 0 | I10: 0 | J10: 0 | K10: 0 | L10: 13 | M10: 0 | N10: 0 | O10: 0 | Q10: Vanaf 20 november nieuwe coronamaatregelen, waaronder verplicht telewerk
B11: Meting | F11: 1 | G11: - | H11: - | I11: - | J11: - | K11: - | L11: 1 | Q11: 0
B12: ="Meetperiode: "&TEXT(VLOOKUP(B3,Coordinaten!$A$2:$G$95,7,0),"dddd dd mmmm jjjj") -> Meetperiode: dinsdag 23 november 2021
B13: Methodiek: Parkeerdrukmeting met waarnemers
B14: In opdracht van: Vlaamse overheid
B15: Uitgevoerd door: Dufec
D16: VERDELING NAAR CATEGORIE
B17: Locatie
B18: =IF(B4="","",HYPERLINK("http://www.googlemaps.com/?q="&B4,"Lat/Long: "&B4)) -> Lat/Long: 50.893622, 4.119238
P20: Legenda
Q21: Personenwagen
Q22: Vracht
Q23: Motor
Q24: Obstakel / overig
Q25: Fout personenwagen
Q26: Fout Vracht
B38: Opmerking
B39: Het onderzoek vindt plaats gedurende coronamaatregelen.
B40: Dit heeft mogelijk een effect op de resultaten.
B42: Toelichting
B43: Pers = personenwagens op daarvoor bestemde
B44: openbare plaatsen
B45: Vracht = vrachtwagens op daarvoor bestemde
B46: parkeerplaatsen (middel- en zwaar vrachtverkeer)
B47: Motor = geparkeerde motoren op openbare plaatsen
B48: Obstakel / overig = obstakels of overige voertuigen
B49: geparkeerd op openbare plaatsen
B50: Fout pers = personenwagens die fout geparkeerd staan
B51: Fout vracht = vrachtwagens die fout geparkeerd staan
B52: E-wagen = geparkeerde elektrisch voertuig bij een
B53: elektrisch oplaadpunt
B54: Invalide = personenwagens en motoren op voor
B55: invalide personen bestemde parkeerplaats
B56: Gestalde fietsen = alle gestalde fietsen op de
B57: daarvoor bestemde parkeerplaatsen

Sheet 88.Bertem
B2: PARKEERONDERZOEK | D2: CARPOOLPARKINGS EN P+R PARKINGS
B3: 88 | D3: =B8 & " - "& TEXT(VLOOKUP(B3,Coordinaten!$A$2:$G$95,7,0),"dddd dd mmmm jjjj") -> Carpool parking Bertem, Bertem - dinsdag 16 november 2021
B4: =VLOOKUP(B3,Coordinaten!$A$2:$G$95,6,0) -> 50.861791, 4.613666
D5: BEZETTING | Q5: OPMERKINGEN
B7: Onderzoeksgebied | D7: Datum | E7: Geregistreerd tussen | F7: Pers | G7: Vracht | H7: Motor | I7: Obstakel / overig | J7: Fout pers | K7: Fout Vracht | L7: Totaal | M7: E-wagen plaats | N7: Invalidenplaats | O7: Gestalde fietsen | U7: =F7 -> Pers | V7: Vracht | W7: Motor | X7: Obstakel / overig | Y7: Fout pers | Z7: Fout Vracht
B8: =VLOOKUP(B3,Coordinaten!$A$2:$G$95,3,0)&", "&VLOOKUP(B3,Coordinaten!$A$2:$G$95,5,0) -> Carpool parking Bertem, Bertem | D8: 2021-11-16 | E8: 09:00 - 16:00u | F8: 59 | G8: 0 | H8: 0 | I8: 0 | J8: 1 | K8: 0 | L8: 60 | M8: 0 | N8: 0 | O8: 1 | Q8: 0 | S8: =D8 -> 2021-11-16 | T8: =E8 -> 09:00 - 16:00u | U8: =IF(F8=0,NA(),F8/$L8) -> 0.9833333333 | V8: =IF(G8=0,NA(),G8/$L8) ->  | W8: =IF(H8=0,NA(),H8/$L8) ->  | Y8: 0.01666666667
B9: ="Nabij kruispunt: "&VLOOKUP(B3,Coordinaten!$A$2:$L$95,4,0) -> Nabij kruispunt: N3 / A3 | F9: 0.9833333333 | G9: - | H9: - | I9: - | J9: 0.01666666667 | K9: - | L9: 1 | Q9: 0 | S9: =D10 -> 2021-11-16 | T9: =E10 -> 19:00 - 02:00u | U9: =IF(F10=0,NA(),F10/$L10) -> 0.9846153846 | V9: =IF(G10=0,NA(),G10/$L10) ->  | Z9: 0.01538461538
D10: 2021-11-16 | E10: 19:00 - 02:00u | F10: 64 | G10: 0 | H10: 0 | I10: 0 | J10: 0 | K10: 1 | L10: 65 | M10: 0 | N10: 0 | O10: 1 | Q10: Fout vracht: Bus op parkeerplaats
B11: Meting | F11: 0.9846153846 | G11: - | H11: - | I11: - | J11: - | K11: 0.01538461538 | L11: 1 | Q11: 0
B12: ="Meetperiode: "&TEXT(VLOOKUP(B3,Coordinaten!$A$2:$G$95,7,0),"dddd dd mmmm jjjj") -> Meetperiode: dinsdag 16 november 2021
B13: Methodiek: Parkeerdrukmeting met waarnemers
B14: In opdracht van: Vlaamse overheid
B15: Uitgevoerd door: Dufec
D16: VERDELING NAAR CATEGORIE
B17: Locatie
B18: =IF(B4="","",HYPERLINK("http://www.googlemaps.com/?q="&B4,"Lat/Long: "&B4)) -> Lat/Long: 50.861791, 4.613666
P20: Legenda
Q21: Personenwagen
Q22: Vracht
Q23: Motor
Q24: Obstakel / overig
Q25: Fout personenwagen
Q26: Fout Vracht
B38: Opmerking
B39: Het onderzoek vindt plaats gedurende coronamaatregelen.
B40: Dit heeft mogelijk een effect op de resultaten.
B42: Toelichting
B43: Pers = personenwagens op daarvoor bestemde
B44: openbare plaatsen
B45: Vracht = vrachtwagens op daarvoor bestemde
B46: parkeerplaatsen (middel- en zwaar vrachtverkeer)
B47: Motor = geparkeerde motoren op openbare plaatsen
B48: Obstakel / overig = obstakels of overige voertuigen
B49: geparkeerd op openbare plaatsen
B50: Fout pers = personenwagens die fout geparkeerd staan
B51: Fout vracht = vrachtwagens die fout geparkeerd staan
B52: E-wagen = geparkeerde elektrisch voertuig bij een
B53: elektrisch oplaadpunt
B54: Invalide = personenwagens en motoren op voor
B55: invalide personen bestemde parkeerplaats
B56: Gestalde fietsen = alle gestalde fietsen op de
B57: daarvoor bestemde parkeerplaatsen

Sheet 89.Hoegaarden
B2: PARKEERONDERZOEK | D2: CARPOOLPARKINGS EN P+R PARKINGS
B3: 89 | D3: =B8 & " - "& TEXT(VLOOKUP(B3,Coordinaten!$A$2:$G$95,7,0),"dddd dd mmmm jjjj") -> Carpool parking Hoegaarden, Hoegaarden - dinsdag 16 november 2021
B4: =VLOOKUP(B3,Coordinaten!$A$2:$G$95,6,0) -> 50.780420, 4.919336
D5: BEZETTING | Q5: OPMERKINGEN
B7: Onderzoeksgebied | D7: Datum | E7: Geregistreerd tussen | F7: Pers | G7: Vracht | H7: Motor | I7: Obstakel / overig | J7: Fout pers | K7: Fout Vracht | L7: Totaal | M7: E-wagen plaats | N7: Invalidenplaats | O7: Gestalde fietsen | U7: =F7 -> Pers | V7: Vracht | W7: Motor | X7: Obstakel / overig | Y7: Fout pers | Z7: Fout Vracht
B8: =VLOOKUP(B3,Coordinaten!$A$2:$G$95,3,0)&", "&VLOOKUP(B3,Coordinaten!$A$2:$G$95,5,0) -> Carpool parking Hoegaarden, Hoegaarden | D8: 2021-11-16 | E8: 09:00 - 16:00u | F8: 44 | G8: 2 | H8: 0 | I8: 5 | J8: 1 | K8: 1 | L8: 53 | M8: 0 | N8: 0 | O8: 0 | Q8: Obstakel: 5 opleggers | S8: =D8 -> 2021-11-16 | T8: =E8 -> 09:00 - 16:00u | U8: =IF(F8=0,NA(),F8/$L8) -> 0.8301886792 | V8: =IF(G8=0,NA(),G8/$L8) -> 0.03773584906 | W8: =IF(H8=0,NA(),H8/$L8) ->  | X8: 0.09433962264 | Y8: 0.01886792453 | Z8: 0.01886792453
B9: ="Nabij kruispunt: "&VLOOKUP(B3,Coordinaten!$A$2:$L$95,4,0) -> Nabij kruispunt: N29 / A3 | F9: 0.8301886792 | G9: 0.03773584906 | H9: - | I9: 0.09433962264 | J9: 0.01886792453 | K9: 0.01886792453 | L9: 1 | Q9: 0 | S9: =D10 -> 2021-11-16 | T9: =E10 -> 19:00 - 02:00u | U9: =IF(F10=0,NA(),F10/$L10) -> 0.6666666667 | V9: =IF(G10=0,NA(),G10/$L10) ->  | Z9: 0.3333333333
D10: 2021-11-16 | E10: 19:00 - 02:00u | F10: 16 | G10: 0 | H10: 0 | I10: 0 | J10: 0 | K10: 8 | L10: 24 | M10: 0 | N10: 0 | O10: 0 | Q10: 0
B11: Meting | F11: 0.6666666667 | G11: - | H11: - | I11: - | J11: - | K11: 0.3333333333 | L11: 1 | Q11: 0
B12: ="Meetperiode: "&TEXT(VLOOKUP(B3,Coordinaten!$A$2:$G$95,7,0),"dddd dd mmmm jjjj") -> Meetperiode: dinsdag 16 november 2021
B13: Methodiek: Parkeerdrukmeting met waarnemers
B14: In opdracht van: Vlaamse overheid
B15: Uitgevoerd door: Dufec
D16: VERDELING NAAR CATEGORIE
B17: Locatie
B18: =IF(B4="","",HYPERLINK("http://www.googlemaps.com/?q="&B4,"Lat/Long: "&B4)) -> Lat/Long: 50.780420, 4.919336
P20: Legenda
Q21: Personenwagen
Q22: Vracht
Q23: Motor
Q24: Obstakel / overig
Q25: Fout personenwagen
Q26: Fout Vracht
B38: Opmerking
B39: Het onderzoek vindt plaats gedurende coronamaatregelen.
B40: Dit heeft mogelijk een effect op de resultaten.
B42: Toelichting
B43: Pers = personenwagens op daarvoor bestemde
B44: openbare plaatsen
B45: Vracht = vrachtwagens op daarvoor bestemde
B46: parkeerplaatsen (middel- en zwaar vrachtverkeer)
B47: Motor = geparkeerde motoren op openbare plaatsen
B48: Obstakel / overig = obstakels of overige voertuigen
B49: geparkeerd op openbare plaatsen
B50: Fout pers = personenwagens die fout geparkeerd staan
B51: Fout vracht = vrachtwagens die fout geparkeerd staan
B52: E-wagen = geparkeerde elektrisch voertuig bij een
B53: elektrisch oplaadpunt
B54: Invalide = personenwagens en motoren op voor
B55: invalide personen bestemde parkeerplaats
B56: Gestalde fietsen = alle gestalde fietsen op de
B57: daarvoor bestemde parkeerplaatsen

Sheet 90.Kampenhout
B2: PARKEERONDERZOEK | D2: CARPOOLPARKINGS EN P+R PARKINGS
B3: 90 | D3: =B8 & " - "& TEXT(VLOOKUP(B3,Coordinaten!$A$2:$G$95,7,0),"dddd dd mmmm jjjj") -> Carpool parking Kampenhout, Kampenhout - dinsdag 16 november 2021
B4: =VLOOKUP(B3,Coordinaten!$A$2:$G$95,6,0) -> 50.955475, 4.594162
D5: BEZETTING | Q5: OPMERKINGEN
B7: Onderzoeksgebied | D7: Datum | E7: Geregistreerd tussen | F7: Pers | G7: Vracht | H7: Motor | I7: Obstakel / overig | J7: Fout pers | K7: Fout Vracht | L7: Totaal | M7: E-wagen plaats | N7: Invalidenplaats | O7: Gestalde fietsen | U7: =F7 -> Pers | V7: Vracht | W7: Motor | X7: Obstakel / overig | Y7: Fout pers | Z7: Fout Vracht
B8: =VLOOKUP(B3,Coordinaten!$A$2:$G$95,3,0)&", "&VLOOKUP(B3,Coordinaten!$A$2:$G$95,5,0) -> Carpool parking Kampenhout, Kampenhout | D8: 2021-11-16 | E8: 09:00 - 16:00u | F8: 6 | G8: 0 | H8: 0 | I8: 0 | J8: 0 | K8: 0 | L8: 6 | M8: 0 | N8: 0 | O8: 4 | Q8: 0 | S8: =D8 -> 2021-11-16 | T8: =E8 -> 09:00 - 16:00u | U8: =IF(F8=0,NA(),F8/$L8) -> 1 | V8: =IF(G8=0,NA(),G8/$L8) ->  | W8: =IF(H8=0,NA(),H8/$L8) -> 
B9: ="Nabij kruispunt: "&VLOOKUP(B3,Coordinaten!$A$2:$L$95,4,0) -> Nabij kruispunt: N21 / N26 | F9: 1 | G9: - | H9: - | I9: - | J9: - | K9: - | L9: 1 | Q9: 0 | S9: =D10 -> 2021-11-16 | T9: =E10 -> 19:00 - 02:00u | U9: =IF(F10=0,NA(),F10/$L10) -> 1 | V9: =IF(G10=0,NA(),G10/$L10) -> 
D10: 2021-11-16 | E10: 19:00 - 02:00u | F10: 6 | G10: 0 | H10: 0 | I10: 0 | J10: 0 | K10: 0 | L10: 6 | M10: 0 | N10: 0 | O10: 0 | Q10: 0
B11: Meting | F11: 1 | G11: - | H11: - | I11: - | J11: - | K11: - | L11: 1 | Q11: 0
B12: ="Meetperiode: "&TEXT(VLOOKUP(B3,Coordinaten!$A$2:$G$95,7,0),"dddd dd mmmm jjjj") -> Meetperiode: dinsdag 16 november 2021
B13: Methodiek: Parkeerdrukmeting met waarnemers
B14: In opdracht van: Vlaamse overheid
B15: Uitgevoerd door: Dufec
D16: VERDELING NAAR CATEGORIE
B17: Locatie
B18: =IF(B4="","",HYPERLINK("http://www.googlemaps.com/?q="&B4,"Lat/Long: "&B4)) -> Lat/Long: 50.955475, 4.594162
P20: Legenda
Q21: Personenwagen
Q22: Vracht
Q23: Motor
Q24: Obstakel / overig
Q25: Fout personenwagen
Q26: Fout Vracht
B38: Opmerking
B39: Het onderzoek vindt plaats gedurende coronamaatregelen.
B40: Dit heeft mogelijk een effect op de resultaten.
B42: Toelichting
B43: Pers = personenwagens op daarvoor bestemde
B44: openbare plaatsen
B45: Vracht = vrachtwagens op daarvoor bestemde
B46: parkeerplaatsen (middel- en zwaar vrachtverkeer)
B47: Motor = geparkeerde motoren op openbare plaatsen
B48: Obstakel / overig = obstakels of overige voertuigen
B49: geparkeerd op openbare plaatsen
B50: Fout pers = personenwagens die fout geparkeerd staan
B51: Fout vracht = vrachtwagens die fout geparkeerd staan
B52: E-wagen = geparkeerde elektrisch voertuig bij een
B53: elektrisch oplaadpunt
B54: Invalide = personenwagens en motoren op voor
B55: invalide personen bestemde parkeerplaats
B56: Gestalde fietsen = alle gestalde fietsen op de
B57: daarvoor bestemde parkeerplaatsen

Sheet 91.Nevele
B2: PARKEERONDERZOEK | D2: CARPOOLPARKINGS EN P+R PARKINGS
B3: 91 | D3: =B8 & " - "& TEXT(VLOOKUP(B3,Coordinaten!$A$2:$G$95,7,0),"dddd dd mmmm jjjj") -> Carpool parking Nevele, Nevele - dinsdag 09 november 2021
B4: =VLOOKUP(B3,Coordinaten!$A$2:$G$95,6,0) -> 51.056514, 3.527934
D5: BEZETTING | Q5: OPMERKINGEN
B7: Onderzoeksgebied | D7: Datum | E7: Geregistreerd tussen | F7: Pers | G7: Vracht | H7: Motor | I7: Obstakel / overig | J7: Fout pers | K7: Fout Vracht | L7: Totaal | M7: E-wagen plaats | N7: Invalidenplaats | O7: Gestalde fietsen | U7: =F7 -> Pers | V7: Vracht | W7: Motor | X7: Obstakel / overig | Y7: Fout pers | Z7: Fout Vracht
B8: =VLOOKUP(B3,Coordinaten!$A$2:$G$95,3,0)&", "&VLOOKUP(B3,Coordinaten!$A$2:$G$95,5,0) -> Carpool parking Nevele, Nevele | D8: 2021-11-09 | E8: 09:00 - 16:00u | F8: 31 | G8: 0 | H8: 0 | I8: 0 | J8: 0 | K8: 0 | L8: 31 | M8: 0 | N8: 0 | O8: 0 | Q8: 0 | S8: =D8 -> 2021-11-09 | T8: =E8 -> 09:00 - 16:00u | U8: =IF(F8=0,NA(),F8/$L8) -> 1 | V8: =IF(G8=0,NA(),G8/$L8) ->  | W8: =IF(H8=0,NA(),H8/$L8) -> 
B9: ="Nabij kruispunt: "&VLOOKUP(B3,Coordinaten!$A$2:$L$95,4,0) -> Nabij kruispunt: N437 / A10 | F9: 1 | G9: - | H9: - | I9: - | J9: - | K9: - | L9: 1 | Q9: 0 | S9: =D10 -> 2021-11-09 | T9: =E10 -> 19:00 - 02:00u | U9: =IF(F10=0,NA(),F10/$L10) -> 1 | V9: =IF(G10=0,NA(),G10/$L10) -> 
D10: 2021-11-09 | E10: 19:00 - 02:00u | F10: 5 | G10: 0 | H10: 0 | I10: 0 | J10: 0 | K10: 0 | L10: 5 | M10: 0 | N10: 1 | O10: 0 | Q10: 0
B11: Meting | F11: 1 | G11: - | H11: - | I11: - | J11: - | K11: - | L11: 1 | Q11: 0
B12: ="Meetperiode: "&TEXT(VLOOKUP(B3,Coordinaten!$A$2:$G$95,7,0),"dddd dd mmmm jjjj") -> Meetperiode: dinsdag 09 november 2021
B13: Methodiek: Parkeerdrukmeting met waarnemers
B14: In opdracht van: Vlaamse overheid
B15: Uitgevoerd door: Dufec
D16: VERDELING NAAR CATEGORIE
B17: Locatie
B18: =IF(B4="","",HYPERLINK("http://www.googlemaps.com/?q="&B4,"Lat/Long: "&B4)) -> Lat/Long: 51.056514, 3.527934
P20: Legenda
Q21: Personenwagen
Q22: Vracht
Q23: Motor
Q24: Obstakel / overig
Q25: Fout personenwagen
Q26: Fout Vracht
B38: Opmerking
B39: Het onderzoek vindt plaats gedurende coronamaatregelen.
B40: Dit heeft mogelijk een effect op de resultaten.
B42: Toelichting
B43: Pers = personenwagens op daarvoor bestemde
B44: openbare plaatsen
B45: Vracht = vrachtwagens op daarvoor bestemde
B46: parkeerplaatsen (middel- en zwaar vrachtverkeer)
B47: Motor = geparkeerde motoren op openbare plaatsen
B48: Obstakel / overig = obstakels of overige voertuigen
B49: geparkeerd op openbare plaatsen
B50: Fout pers = personenwagens die fout geparkeerd staan
B51: Fout vracht = vrachtwagens die fout geparkeerd staan
B52: E-wagen = geparkeerde elektrisch voertuig bij een
B53: elektrisch oplaadpunt
B54: Invalide = personenwagens en motoren op voor
B55: invalide personen bestemde parkeerplaats
B56: Gestalde fietsen = alle gestalde fietsen op de
B57: daarvoor bestemde parkeerplaatsen

Sheet 92.Beerse-Vosselaar
B2: PARKEERONDERZOEK | D2: CARPOOLPARKINGS EN P+R PARKINGS
B3: 92 | D3: =B8 & " - "& TEXT(VLOOKUP(B3,Coordinaten!$A$2:$G$95,7,0),"dddd dd mmmm jjjj") -> P+R parking Beerse-Vosselaar, Lille - donderdag 18 november 2021
B4: =VLOOKUP(B3,Coordinaten!$A$2:$G$95,6,0) -> 51.289402, 4.856541
D5: BEZETTING | Q5: OPMERKINGEN
B7: Onderzoeksgebied | D7: Datum | E7: Geregistreerd tussen | F7: Pers | G7: Vracht | H7: Motor | I7: Obstakel / overig | J7: Fout pers | K7: Fout Vracht | L7: Totaal | M7: E-wagen plaats | N7: Invalidenplaats | O7: Gestalde fietsen | U7: =F7 -> Pers | V7: Vracht | W7: Motor | X7: Obstakel / overig | Y7: Fout pers | Z7: Fout Vracht
B8: =VLOOKUP(B3,Coordinaten!$A$2:$G$95,3,0)&", "&VLOOKUP(B3,Coordinaten!$A$2:$G$95,5,0) -> P+R parking Beerse-Vosselaar, Lille | D8: 2021-11-18 | E8: 09:00 - 16:00u | F8: 29 | G8: 0 | H8: 0 | I8: 0 | J8: 0 | K8: 0 | L8: 29 | M8: 0 | N8: 0 | O8: 0 | Q8: 0 | S8: =D8 -> 2021-11-18 | T8: =E8 -> 09:00 - 16:00u | U8: =IF(F8=0,NA(),F8/$L8) -> 1 | V8: =IF(G8=0,NA(),G8/$L8) ->  | W8: =IF(H8=0,NA(),H8/$L8) -> 
B9: ="Nabij kruispunt: "&VLOOKUP(B3,Coordinaten!$A$2:$L$95,4,0) -> Nabij kruispunt: N132 / A21 | F9: 1 | G9: - | H9: - | I9: - | J9: - | K9: - | L9: 1 | Q9: 0 | S9: =D10 -> 2021-11-18 | T9: =E10 -> 19:00 - 02:00u | U9: =IF(F10=0,NA(),F10/$L10) -> 1 | V9: =IF(G10=0,NA(),G10/$L10) -> 
D10: 2021-11-18 | E10: 19:00 - 02:00u | F10: 7 | G10: 0 | H10: 0 | I10: 0 | J10: 0 | K10: 0 | L10: 7 | M10: 0 | N10: 0 | O10: 0 | Q10: 0
B11: Meting | F11: 1 | G11: - | H11: - | I11: - | J11: - | K11: - | L11: 1 | Q11: 0
B12: ="Meetperiode: "&TEXT(VLOOKUP(B3,Coordinaten!$A$2:$G$95,7,0),"dddd dd mmmm jjjj") -> Meetperiode: donderdag 18 november 2021
B13: Methodiek: Parkeerdrukmeting met waarnemers
B14: In opdracht van: Vlaamse overheid
B15: Uitgevoerd door: Dufec
D16: VERDELING NAAR CATEGORIE
B17: Locatie
B18: =IF(B4="","",HYPERLINK("http://www.googlemaps.com/?q="&B4,"Lat/Long: "&B4)) -> Lat/Long: 51.289402, 4.856541
P20: Legenda
Q21: Personenwagen
Q22: Vracht
Q23: Motor
Q24: Obstakel / overig
Q25: Fout personenwagen
Q26: Fout Vracht
B38: Opmerking
B39: Het onderzoek vindt plaats gedurende coronamaatregelen.
B40: Dit heeft mogelijk een effect op de resultaten.
B42: Toelichting
B43: Pers = personenwagens op daarvoor bestemde
B44: openbare plaatsen
B45: Vracht = vrachtwagens op daarvoor bestemde
B46: parkeerplaatsen (middel- en zwaar vrachtverkeer)
B47: Motor = geparkeerde motoren op openbare plaatsen
B48: Obstakel / overig = obstakels of overige voertuigen
B49: geparkeerd op openbare plaatsen
B50: Fout pers = personenwagens die fout geparkeerd staan
B51: Fout vracht = vrachtwagens die fout geparkeerd staan
B52: E-wagen = geparkeerde elektrisch voertuig bij een
B53: elektrisch oplaadpunt
B54: Invalide = personenwagens en motoren op voor
B55: invalide personen bestemde parkeerplaats
B56: Gestalde fietsen = alle gestalde fietsen op de
B57: daarvoor bestemde parkeerplaatsen

Sheet 93.Terlaemen
B2: PARKEERONDERZOEK | D2: CARPOOLPARKINGS EN P+R PARKINGS
B3: 93 | D3: =B8 & " - "& TEXT(VLOOKUP(B3,Coordinaten!$A$2:$G$95,7,0),"dddd dd mmmm jjjj") -> Carpool parking Terlaemen, Heusden-Zolder - donderdag 18 november 2021
B4: =VLOOKUP(B3,Coordinaten!$A$2:$G$95,6,0) -> 51.006354, 5.271851
D5: BEZETTING | Q5: OPMERKINGEN
B7: Onderzoeksgebied | D7: Datum | E7: Geregistreerd tussen | F7: Pers | G7: Vracht | H7: Motor | I7: Obstakel / overig | J7: Fout pers | K7: Fout Vracht | L7: Totaal | M7: E-wagen plaats | N7: Invalidenplaats | O7: Gestalde fietsen | U7: =F7 -> Pers | V7: Vracht | W7: Motor | X7: Obstakel / overig | Y7: Fout pers | Z7: Fout Vracht
B8: =VLOOKUP(B3,Coordinaten!$A$2:$G$95,3,0)&", "&VLOOKUP(B3,Coordinaten!$A$2:$G$95,5,0) -> Carpool parking Terlaemen, Heusden-Zolder | D8: 2021-11-18 | E8: 09:00 - 16:00u | F8: 3 | G8: 0 | H8: 0 | I8: 0 | J8: 0 | K8: 0 | L8: 3 | M8: 0 | N8: 0 | O8: 0 | Q8: Moeilijk te bereiken wegen wegwerkzaamheden | S8: =D8 -> 2021-11-18 | T8: =E8 -> 09:00 - 16:00u | U8: =IF(F8=0,NA(),F8/$L8) -> 1 | V8: =IF(G8=0,NA(),G8/$L8) ->  | W8: =IF(H8=0,NA(),H8/$L8) -> 
B9: ="Nabij kruispunt: "&VLOOKUP(B3,Coordinaten!$A$2:$L$95,4,0) -> Nabij kruispunt: N729 / Snelwegstraat | F9: 1 | G9: - | H9: - | I9: - | J9: - | K9: - | L9: 1 | Q9: 0 | S9: =D10 -> 2021-11-18 | T9: =E10 -> 19:00 - 02:00u | U9: =IF(F10=0,NA(),F10/$L10) ->  | V9: =IF(G10=0,NA(),G10/$L10) -> 
D10: 2021-11-18 | E10: 19:00 - 02:00u | F10: 0 | G10: 0 | H10: 0 | I10: 0 | J10: 0 | K10: 0 | L10: 0 | M10: 0 | N10: 0 | O10: 0 | Q10: De veldwerker heeft deze locatie niet kunnen bereiken, dus niet geteld
B11: Meting | F11: - | G11: - | H11: - | I11: - | J11: - | K11: - | L11: - | Q11: 0
B12: ="Meetperiode: "&TEXT(VLOOKUP(B3,Coordinaten!$A$2:$G$95,7,0),"dddd dd mmmm jjjj") -> Meetperiode: donderdag 18 november 2021
B13: Methodiek: Parkeerdrukmeting met waarnemers
B14: In opdracht van: Vlaamse overheid
B15: Uitgevoerd door: Dufec
D16: VERDELING NAAR CATEGORIE
B17: Locatie
B18: =IF(B4="","",HYPERLINK("http://www.googlemaps.com/?q="&B4,"Lat/Long: "&B4)) -> Lat/Long: 51.006354, 5.271851
P20: Legenda
Q21: Personenwagen
Q22: Vracht
Q23: Motor
Q24: Obstakel / overig
Q25: Fout personenwagen
Q26: Fout Vracht
B38: Opmerking
B39: Het onderzoek vindt plaats gedurende coronamaatregelen.
B40: Dit heeft mogelijk een effect op de resultaten.
B42: Toelichting
B43: Pers = personenwagens op daarvoor bestemde
B44: openbare plaatsen
B45: Vracht = vrachtwagens op daarvoor bestemde
B46: parkeerplaatsen (middel- en zwaar vrachtverkeer)
B47: Motor = geparkeerde motoren op openbare plaatsen
B48: Obstakel / overig = obstakels of overige voertuigen
B49: geparkeerd op openbare plaatsen
B50: Fout pers = personenwagens die fout geparkeerd staan
B51: Fout vracht = vrachtwagens die fout geparkeerd staan
B52: E-wagen = geparkeerde elektrisch voertuig bij een
B53: elektrisch oplaadpunt
B54: Invalide = personenwagens en motoren op voor
B55: invalide personen bestemde parkeerplaats
B56: Gestalde fietsen = alle gestalde fietsen op de
B57: daarvoor bestemde parkeerplaatsen

Sheet 94.Boechout
B2: PARKEERONDERZOEK | D2: CARPOOLPARKINGS EN P+R PARKINGS
B3: 94 | D3: =B8 & " - "& TEXT(VLOOKUP(B3,Coordinaten!$A$2:$G$95,7,0),"dddd dd mmmm jjjj") -> P+R parking Boechout, Boechout - donderdag 18 november 2021
B4: =VLOOKUP(B3,Coordinaten!$A$2:$G$95,6,0) -> 51.168563, 4.494312
D5: BEZETTING | Q5: OPMERKINGEN
B7: Onderzoeksgebied | D7: Datum | E7: Geregistreerd tussen | F7: Pers | G7: Vracht | H7: Motor | I7: Obstakel / overig | J7: Fout pers | K7: Fout Vracht | L7: Totaal | M7: E-wagen plaats | N7: Invalidenplaats | O7: Gestalde fietsen | U7: =F7 -> Pers | V7: Vracht | W7: Motor | X7: Obstakel / overig | Y7: Fout pers | Z7: Fout Vracht
B8: =VLOOKUP(B3,Coordinaten!$A$2:$G$95,3,0)&", "&VLOOKUP(B3,Coordinaten!$A$2:$G$95,5,0) -> P+R parking Boechout, Boechout | D8: 2021-11-18 | E8: 09:00 - 16:00u | F8: 130 | G8: 0 | H8: 0 | I8: 0 | J8: 0 | K8: 0 | L8: 130 | M8: 0 | N8: 0 | O8: 0 | Q8: 0 | S8: =D8 -> 2021-11-18 | T8: =E8 -> 09:00 - 16:00u | U8: =IF(F8=0,NA(),F8/$L8) -> 1 | V8: =IF(G8=0,NA(),G8/$L8) ->  | W8: =IF(H8=0,NA(),H8/$L8) -> 
B9: ="Nabij kruispunt: "&VLOOKUP(B3,Coordinaten!$A$2:$L$95,4,0) -> Nabij kruispunt: N10 / Borsbeeksesteenweg | F9: 1 | G9: - | H9: - | I9: - | J9: - | K9: - | L9: 1 | Q9: 0 | S9: =D10 -> 2021-11-18 | T9: =E10 -> 19:00 - 02:00u | U9: =IF(F10=0,NA(),F10/$L10) -> 1 | V9: =IF(G10=0,NA(),G10/$L10) -> 
D10: 2021-11-18 | E10: 19:00 - 02:00u | F10: 19 | G10: 0 | H10: 0 | I10: 0 | J10: 0 | K10: 0 | L10: 19 | M10: 0 | N10: 0 | O10: 45 | Q10: 0
B11: Meting | F11: 1 | G11: - | H11: - | I11: - | J11: - | K11: - | L11: 1 | Q11: 0
B12: ="Meetperiode: "&TEXT(VLOOKUP(B3,Coordinaten!$A$2:$G$95,7,0),"dddd dd mmmm jjjj") -> Meetperiode: donderdag 18 november 2021
B13: Methodiek: Parkeerdrukmeting met waarnemers
B14: In opdracht van: Vlaamse overheid
B15: Uitgevoerd door: Dufec
D16: VERDELING NAAR CATEGORIE
B17: Locatie
B18: =IF(B4="","",HYPERLINK("http://www.googlemaps.com/?q="&B4,"Lat/Long: "&B4)) -> Lat/Long: 51.168563, 4.494312
P20: Legenda
Q21: Personenwagen
Q22: Vracht
Q23: Motor
Q24: Obstakel / overig
Q25: Fout personenwagen
Q26: Fout Vracht
B38: Opmerking
B39: Het onderzoek vindt plaats gedurende coronamaatregelen.
B40: Dit heeft mogelijk een effect op de resultaten.
B42: Toelichting
B43: Pers = personenwagens op daarvoor bestemde
B44: openbare plaatsen
B45: Vracht = vrachtwagens op daarvoor bestemde
B46: parkeerplaatsen (middel- en zwaar vrachtverkeer)
B47: Motor = geparkeerde motoren op openbare plaatsen
B48: Obstakel / overig = obstakels of overige voertuigen
B49: geparkeerd op openbare plaatsen
B50: Fout pers = personenwagens die fout geparkeerd staan
B51: Fout vracht = vrachtwagens die fout geparkeerd staan
B52: E-wagen = geparkeerde elektrisch voertuig bij een
B53: elektrisch oplaadpunt
B54: Invalide = personenwagens en motoren op voor
B55: invalide personen bestemde parkeerplaats
B56: Gestalde fietsen = alle gestalde fietsen op de
B57: daarvoor bestemde parkeerplaatsen

Sheet 95.Aalter
B2: PARKEERONDERZOEK | D2: CARPOOLPARKINGS EN P+R PARKINGS
B3: 95 | D3: =B8 & " - "& TEXT(VLOOKUP(B3,Coordinaten!$A$2:$G$101,7,0),"dddd d mmmm jjjj") -> Carpool parking Aalter, Aalter - dinsdag 9 november 2021
B4: =VLOOKUP(B3,Coordinaten!$A$2:$G$101,6,0) -> 51.0749724302438, 3.44756033702165
D5: BEZETTING | Q5: OPMERKINGEN
B7: Onderzoeksgebied | D7: Datum | E7: Geregistreerd tussen | F7: Pers | G7: Vracht | H7: Motor | I7: Obstakel / overig | J7: Fout pers | K7: Fout Vracht | L7: Totaal | M7: E-wagen plaats | N7: Invalidenplaats | O7: Gestalde fietsen | U7: =F7 -> Pers | V7: Vracht | W7: Motor | X7: Obstakel / overig | Y7: Fout pers | Z7: Fout Vracht
B8: =VLOOKUP(B3,Coordinaten!$A$2:$G$101,3,0)&", "&VLOOKUP(B3,Coordinaten!$A$2:$G$101,5,0) -> Carpool parking Aalter, Aalter | D8: 2021-11-09 | E8: 09:00 - 16:00u | F8: 27 | G8: 0 | H8: 0 | I8: 0 | J8: 1 | K8: 0 | L8: 28 | M8: 0 | N8: 0 | O8: 2 | Q8: 0 | S8: =D8 -> 2021-11-09 | T8: =E8 -> 09:00 - 16:00u | U8: =IF(F8=0,NA(),F8/$L8) -> 0.9642857143 | V8: =IF(G8=0,NA(),G8/$L8) ->  | W8: =IF(H8=0,NA(),H8/$L8) ->  | Y8: 0.03571428571
B9: ="Nabij kruispunt: "&VLOOKUP(B3,Coordinaten!$A$2:$L$101,4,0) -> Nabij kruispunt: N37/N409/E40 | F9: 0.9642857143 | G9: - | H9: - | I9: - | J9: 0.03571428571 | K9: - | L9: 1 | Q9: 0 | S9: =D10 -> 2021-11-30 | T9: =E10 -> 19:00 - 02:00u | U9: =IF(F10=0,NA(),F10/$L10) -> 1 | V9: =IF(G10=0,NA(),G10/$L10) -> 
D10: 2021-11-30 | E10: 19:00 - 02:00u | F10: 14 | G10: 0 | H10: 0 | I10: 0 | J10: 0 | K10: 0 | L10: 14 | M10: 0 | N10: 0 | O10: 0 | Q10: Vanaf 20 november nieuwe coronamaatregelen, waaronder verplicht telewerk
B11: Meting | F11: 1 | G11: - | H11: - | I11: - | J11: - | K11: - | L11: 1 | Q11: Dinsdagavond 9 november niet bereikbaar, dus hermeting op 30 november
B12: ="Meetperiode: "&TEXT(VLOOKUP(B3,Coordinaten!$A$2:$G$101,7,0),"dddd d mmmm jjjj") -> Meetperiode: dinsdag 9 november 2021
B13: Methodiek: Parkeerdrukmeting met waarnemers
B14: In opdracht van: Vlaamse overheid
B15: Uitgevoerd door: Dufec
D16: VERDELING NAAR CATEGORIE
B17: Locatie
B18: =IF(B4="","",HYPERLINK("http://www.googlemaps.com/?q="&B4,"Lat/Long: "&B4)) -> Lat/Long: 51.0749724302438, 3.44756033702165
P20: Legenda
Q21: Personenwagen
Q22: Vracht
Q23: Motor
Q24: Obstakel / overig
Q25: Fout personenwagen
Q26: Fout Vracht
B38: Opmerking
B39: Het onderzoek vindt plaats gedurende coronamaatregelen.
B40: Dit heeft mogelijk een effect op de resultaten.
B42: Toelichting
B43: Pers = personenwagens op daarvoor bestemde
B44: openbare plaatsen
B45: Vracht = vrachtwagens op daarvoor bestemde
B46: parkeerplaatsen (middel- en zwaar vrachtverkeer)
B47: Motor = geparkeerde motoren op openbare plaatsen
B48: Obstakel / overig = obstakels of overige voertuigen
B49: geparkeerd op openbare plaatsen
B50: Fout pers = personenwagens die fout geparkeerd staan
B51: Fout vracht = vrachtwagens die fout geparkeerd staan
B52: E-wagen = geparkeerde elektrisch voertuig bij een
B53: elektrisch oplaadpunt
B54: Invalide = personenwagens en motoren op voor
B55: invalide personen bestemde parkeerplaats
B56: Gestalde fietsen = alle gestalde fietsen op de
B57: daarvoor bestemde parkeerplaatsen

Sheet 96.De Pinte
B2: PARKEERONDERZOEK | D2: CARPOOLPARKINGS EN P+R PARKINGS
B3: 96 | D3: =B8 & " - "& TEXT(VLOOKUP(B3,Coordinaten!$A$2:$G$101,7,0),"dddd d mmmm jjjj") -> Carpool parking De Pinte, De Pinte - dinsdag 23 november 2021
B4: =VLOOKUP(B3,Coordinaten!$A$2:$G$101,6,0) -> 50.9860214680881, 3.67492574904555
D5: BEZETTING | Q5: OPMERKINGEN
B7: Onderzoeksgebied | D7: Datum | E7: Geregistreerd tussen | F7: Pers | G7: Vracht | H7: Motor | I7: Obstakel / overig | J7: Fout pers | K7: Fout Vracht | L7: Totaal | M7: E-wagen plaats | N7: Invalidenplaats | O7: Gestalde fietsen | U7: =F7 -> Pers | V7: Vracht | W7: Motor | X7: Obstakel / overig | Y7: Fout pers | Z7: Fout Vracht
B8: =VLOOKUP(B3,Coordinaten!$A$2:$G$101,3,0)&", "&VLOOKUP(B3,Coordinaten!$A$2:$G$101,5,0) -> Carpool parking De Pinte, De Pinte | D8: 2021-11-23 | E8: 09:00 - 16:00u | F8: 26 | G8: 0 | H8: 0 | I8: 0 | J8: 0 | K8: 0 | L8: 26 | M8: 0 | N8: 0 | O8: 18 | Q8: Vanaf 20 november nieuwe coronamaatregelen, waaronder verplicht telewerk | S8: =D8 -> 2021-11-23 | T8: =E8 -> 09:00 - 16:00u | U8: =IF(F8=0,NA(),F8/$L8) -> 1 | V8: =IF(G8=0,NA(),G8/$L8) ->  | W8: =IF(H8=0,NA(),H8/$L8) -> 
B9: ="Nabij kruispunt: "&VLOOKUP(B3,Coordinaten!$A$2:$L$101,4,0) -> Nabij kruispunt: E17/N60 | F9: 1 | G9: - | H9: - | I9: - | J9: - | K9: - | L9: 1 | Q9: 0 | S9: =D10 -> 2021-11-23 | T9: =E10 -> 19:00 - 02:00u | U9: =IF(F10=0,NA(),F10/$L10) -> 0.9375 | V9: =IF(G10=0,NA(),G10/$L10) ->  | Y9: 0.0625
D10: 2021-11-23 | E10: 19:00 - 02:00u | F10: 15 | G10: 0 | H10: 0 | I10: 0 | J10: 1 | K10: 0 | L10: 16 | M10: 0 | N10: 0 | O10: 0 | Q10: Vanaf 20 november nieuwe coronamaatregelen, waaronder verplicht telewerk
B11: Meting | F11: 0.9375 | G11: - | H11: - | I11: - | J11: 0.0625 | K11: - | L11: 1 | Q11: 0
B12: ="Meetperiode: "&TEXT(VLOOKUP(B3,Coordinaten!$A$2:$G$101,7,0),"dddd d mmmm jjjj") -> Meetperiode: dinsdag 23 november 2021
B13: Methodiek: Parkeerdrukmeting met waarnemers
B14: In opdracht van: Vlaamse overheid
B15: Uitgevoerd door: Dufec
D16: VERDELING NAAR CATEGORIE
B17: Locatie
B18: =IF(B4="","",HYPERLINK("http://www.googlemaps.com/?q="&B4,"Lat/Long: "&B4)) -> Lat/Long: 50.9860214680881, 3.67492574904555
P20: Legenda
Q21: Personenwagen
Q22: Vracht
Q23: Motor
Q24: Obstakel / overig
Q25: Fout personenwagen
Q26: Fout Vracht
B38: Opmerking
B39: Het onderzoek vindt plaats gedurende coronamaatregelen.
B40: Dit heeft mogelijk een effect op de resultaten.
B42: Toelichting
B43: Pers = personenwagens op daarvoor bestemde
B44: openbare plaatsen
B45: Vracht = vrachtwagens op daarvoor bestemde
B46: parkeerplaatsen (middel- en zwaar vrachtverkeer)
B47: Motor = geparkeerde motoren op openbare plaatsen
B48: Obstakel / overig = obstakels of overige voertuigen
B49: geparkeerd op openbare plaatsen
B50: Fout pers = personenwagens die fout geparkeerd staan
B51: Fout vracht = vrachtwagens die fout geparkeerd staan
B52: E-wagen = geparkeerde elektrisch voertuig bij een
B53: elektrisch oplaadpunt
B54: Invalide = personenwagens en motoren op voor
B55: invalide personen bestemde parkeerplaats
B56: Gestalde fietsen = alle gestalde fietsen op de
B57: daarvoor bestemde parkeerplaatsen

Sheet 97.Destelbergen
B2: PARKEERONDERZOEK | D2: CARPOOLPARKINGS EN P+R PARKINGS
B3: 97 | D3: =B8 & " - "& TEXT(VLOOKUP(B3,Coordinaten!$A$2:$G$101,7,0),"dddd d mmmm jjjj") -> Carpool parking Destelbergen, Destelbergen - dinsdag 9 november 2021
B4: =VLOOKUP(B3,Coordinaten!$A$2:$G$101,6,0) -> 51.0582508416525, 3.81284992030355
D5: BEZETTING | Q5: OPMERKINGEN
B7: Onderzoeksgebied | D7: Datum | E7: Geregistreerd tussen | F7: Pers | G7: Vracht | H7: Motor | I7: Obstakel / overig | J7: Fout pers | K7: Fout Vracht | L7: Totaal | M7: E-wagen plaats | N7: Invalidenplaats | O7: Gestalde fietsen | U7: =F7 -> Pers | V7: Vracht | W7: Motor | X7: Obstakel / overig | Y7: Fout pers | Z7: Fout Vracht
B8: =VLOOKUP(B3,Coordinaten!$A$2:$G$101,3,0)&", "&VLOOKUP(B3,Coordinaten!$A$2:$G$101,5,0) -> Carpool parking Destelbergen, Destelbergen | D8: 2021-11-09 | E8: 09:00 - 16:00u | F8: 24 | G8: 1 | H8: 0 | I8: 0 | J8: 0 | K8: 0 | L8: 25 | M8: 0 | N8: 0 | O8: 4 | Q8: 0 | S8: =D8 -> 2021-11-09 | T8: =E8 -> 09:00 - 16:00u | U8: =IF(F8=0,NA(),F8/$L8) -> 0.96 | V8: =IF(G8=0,NA(),G8/$L8) -> 0.04 | W8: =IF(H8=0,NA(),H8/$L8) -> 
B9: ="Nabij kruispunt: "&VLOOKUP(B3,Coordinaten!$A$2:$L$101,4,0) -> Nabij kruispunt: R4/N445 | F9: 0.96 | G9: 0.04 | H9: - | I9: - | J9: - | K9: - | L9: 1 | Q9: 0 | S9: =D10 -> 2021-11-09 | T9: =E10 -> 19:00 - 02:00u | U9: =IF(F10=0,NA(),F10/$L10) -> 0.4666666667 | V9: =IF(G10=0,NA(),G10/$L10) -> 0.2666666667 | Z9: 0.2666666667
D10: 2021-11-09 | E10: 19:00 - 02:00u | F10: 7 | G10: 4 | H10: 0 | I10: 0 | J10: 0 | K10: 4 | L10: 15 | M10: 0 | N10: 0 | O10: 2 | Q10: 0
B11: Meting | F11: 0.4666666667 | G11: 0.2666666667 | H11: - | I11: - | J11: - | K11: 0.2666666667 | L11: 1 | Q11: 0
B12: ="Meetperiode: "&TEXT(VLOOKUP(B3,Coordinaten!$A$2:$G$101,7,0),"dddd d mmmm jjjj") -> Meetperiode: dinsdag 9 november 2021
B13: Methodiek: Parkeerdrukmeting met waarnemers
B14: In opdracht van: Vlaamse overheid
B15: Uitgevoerd door: Dufec
D16: VERDELING NAAR CATEGORIE
B17: Locatie
B18: =IF(B4="","",HYPERLINK("http://www.googlemaps.com/?q="&B4,"Lat/Long: "&B4)) -> Lat/Long: 51.0582508416525, 3.81284992030355
P20: Legenda
Q21: Personenwagen
Q22: Vracht
Q23: Motor
Q24: Obstakel / overig
Q25: Fout personenwagen
Q26: Fout Vracht
B38: Opmerking
B39: Het onderzoek vindt plaats gedurende coronamaatregelen.
B40: Dit heeft mogelijk een effect op de resultaten.
B42: Toelichting
B43: Pers = personenwagens op daarvoor bestemde
B44: openbare plaatsen
B45: Vracht = vrachtwagens op daarvoor bestemde
B46: parkeerplaatsen (middel- en zwaar vrachtverkeer)
B47: Motor = geparkeerde motoren op openbare plaatsen
B48: Obstakel / overig = obstakels of overige voertuigen
B49: geparkeerd op openbare plaatsen
B50: Fout pers = personenwagens die fout geparkeerd staan
B51: Fout vracht = vrachtwagens die fout geparkeerd staan
B52: E-wagen = geparkeerde elektrisch voertuig bij een
B53: elektrisch oplaadpunt
B54: Invalide = personenwagens en motoren op voor
B55: invalide personen bestemde parkeerplaats
B56: Gestalde fietsen = alle gestalde fietsen op de
B57: daarvoor bestemde parkeerplaatsen

Sheet 98.Lokeren
B2: PARKEERONDERZOEK | D2: CARPOOLPARKINGS EN P+R PARKINGS
B3: 98 | D3: =B8 & " - "& TEXT(VLOOKUP(B3,Coordinaten!$A$2:$G$101,7,0),"dddd d mmmm jjjj") -> Carpool parking Lokeren, Lokeren - dinsdag 9 november 2021
B4: =VLOOKUP(B3,Coordinaten!$A$2:$G$101,6,0) -> 51.087592871792, 4.01991671115621
D5: BEZETTING | Q5: OPMERKINGEN
B7: Onderzoeksgebied | D7: Datum | E7: Geregistreerd tussen | F7: Pers | G7: Vracht | H7: Motor | I7: Obstakel / overig | J7: Fout pers | K7: Fout Vracht | L7: Totaal | M7: E-wagen plaats | N7: Invalidenplaats | O7: Gestalde fietsen | U7: =F7 -> Pers | V7: Vracht | W7: Motor | X7: Obstakel / overig | Y7: Fout pers | Z7: Fout Vracht
B8: =VLOOKUP(B3,Coordinaten!$A$2:$G$101,3,0)&", "&VLOOKUP(B3,Coordinaten!$A$2:$G$101,5,0) -> Carpool parking Lokeren, Lokeren | D8: 2021-11-09 | E8: 09:00 - 16:00u | F8: 49 | G8: 0 | H8: 0 | I8: 0 | J8: 1 | K8: 1 | L8: 51 | M8: 0 | N8: 0 | O8: 1 | Q8: 0 | S8: =D8 -> 2021-11-09 | T8: =E8 -> 09:00 - 16:00u | U8: =IF(F8=0,NA(),F8/$L8) -> 0.9607843137 | V8: =IF(G8=0,NA(),G8/$L8) ->  | W8: =IF(H8=0,NA(),H8/$L8) ->  | Y8: 0.01960784314 | Z8: 0.01960784314
B9: ="Nabij kruispunt: "&VLOOKUP(B3,Coordinaten!$A$2:$L$101,4,0) -> Nabij kruispunt: E17/N47 - uitrit 12 | F9: 0.9607843137 | G9: - | H9: - | I9: - | J9: 0.01960784314 | K9: 0.01960784314 | L9: 1 | Q9: 0 | S9: =D10 -> 2021-11-09 | T9: =E10 -> 19:00 - 02:00u | U9: =IF(F10=0,NA(),F10/$L10) -> 1 | V9: =IF(G10=0,NA(),G10/$L10) -> 
D10: 2021-11-09 | E10: 19:00 - 02:00u | F10: 28 | G10: 0 | H10: 0 | I10: 0 | J10: 0 | K10: 0 | L10: 28 | M10: 0 | N10: 0 | O10: 0 | Q10: 0
B11: Meting | F11: 1 | G11: - | H11: - | I11: - | J11: - | K11: - | L11: 1 | Q11: 0
B12: ="Meetperiode: "&TEXT(VLOOKUP(B3,Coordinaten!$A$2:$G$101,7,0),"dddd d mmmm jjjj") -> Meetperiode: dinsdag 9 november 2021
B13: Methodiek: Parkeerdrukmeting met waarnemers
B14: In opdracht van: Vlaamse overheid
B15: Uitgevoerd door: Dufec
D16: VERDELING NAAR CATEGORIE
B17: Locatie
B18: =IF(B4="","",HYPERLINK("http://www.googlemaps.com/?q="&B4,"Lat/Long: "&B4)) -> Lat/Long: 51.087592871792, 4.01991671115621
P20: Legenda
Q21: Personenwagen
Q22: Vracht
Q23: Motor
Q24: Obstakel / overig
Q25: Fout personenwagen
Q26: Fout Vracht
B38: Opmerking
B39: Het onderzoek vindt plaats gedurende coronamaatregelen.
B40: Dit heeft mogelijk een effect op de resultaten.
B42: Toelichting
B43: Pers = personenwagens op daarvoor bestemde
B44: openbare plaatsen
B45: Vracht = vrachtwagens op daarvoor bestemde
B46: parkeerplaatsen (middel- en zwaar vrachtverkeer)
B47: Motor = geparkeerde motoren op openbare plaatsen
B48: Obstakel / overig = obstakels of overige voertuigen
B49: geparkeerd op openbare plaatsen
B50: Fout pers = personenwagens die fout geparkeerd staan
B51: Fout vracht = vrachtwagens die fout geparkeerd staan
B52: E-wagen = geparkeerde elektrisch voertuig bij een
B53: elektrisch oplaadpunt
B54: Invalide = personenwagens en motoren op voor
B55: invalide personen bestemde parkeerplaats
B56: Gestalde fietsen = alle gestalde fietsen op de
B57: daarvoor bestemde parkeerplaatsen

Sheet 99.Massenhoven
B2: PARKEERONDERZOEK | D2: CARPOOLPARKINGS EN P+R PARKINGS
B3: 99 | D3: =B8 & " - "& TEXT(VLOOKUP(B3,Coordinaten!$A$2:$G$101,7,0),"dddd d mmmm jjjj") -> P+R parking Massenhoven, Massenhoven - donderdag 18 november 2021
B4: =VLOOKUP(B3,Coordinaten!$A$2:$G$101,6,0) -> 51.194333453788, 4.64222375753947
D5: BEZETTING | Q5: OPMERKINGEN
B7: Onderzoeksgebied | D7: Datum | E7: Geregistreerd tussen | F7: Pers | G7: Vracht | H7: Motor | I7: Obstakel / overig | J7: Fout pers | K7: Fout Vracht | L7: Totaal | M7: E-wagen plaats | N7: Invalidenplaats | O7: Gestalde fietsen | U7: =F7 -> Pers | V7: Vracht | W7: Motor | X7: Obstakel / overig | Y7: Fout pers | Z7: Fout Vracht
B8: =VLOOKUP(B3,Coordinaten!$A$2:$G$101,3,0)&", "&VLOOKUP(B3,Coordinaten!$A$2:$G$101,5,0) -> P+R parking Massenhoven, Massenhoven | D8: 2021-11-18 | E8: 09:00 - 16:00u | F8: 0 | G8: 0 | H8: 0 | I8: 0 | J8: 0 | K8: 0 | L8: 0 | M8: 0 | N8: 0 | O8: 0 | Q8: Niet te bereiken | S8: =D8 -> 2021-11-18 | T8: =E8 -> 09:00 - 16:00u | U8: =IF(F8=0,NA(),F8/$L8) ->  | V8: =IF(G8=0,NA(),G8/$L8) ->  | W8: =IF(H8=0,NA(),H8/$L8) -> 
B9: ="Nabij kruispunt: "&VLOOKUP(B3,Coordinaten!$A$2:$L$101,4,0) -> Nabij kruispunt: E313/N14 | F9: - | G9: - | H9: - | I9: - | J9: - | K9: - | L9: - | Q9: 0 | S9: =D10 -> 2021-11-18 | T9: =E10 -> 19:00 - 02:00u | U9: =IF(F10=0,NA(),F10/$L10) ->  | V9: =IF(G10=0,NA(),G10/$L10) -> 
D10: 2021-11-18 | E10: 19:00 - 02:00u | F10: 0 | G10: 0 | H10: 0 | I10: 0 | J10: 0 | K10: 0 | L10: 0 | M10: 0 | N10: 0 | O10: 0 | Q10: Niet te bereiken
B11: Meting | F11: - | G11: - | H11: - | I11: - | J11: - | K11: - | L11: - | Q11: 0
B12: ="Meetperiode: "&TEXT(VLOOKUP(B3,Coordinaten!$A$2:$G$101,7,0),"dddd d mmmm jjjj") -> Meetperiode: donderdag 18 november 2021
B13: Methodiek: Parkeerdrukmeting met waarnemers
B14: In opdracht van: Vlaamse overheid
B15: Uitgevoerd door: Dufec
D16: VERDELING NAAR CATEGORIE
B17: Locatie
B18: =IF(B4="","",HYPERLINK("http://www.googlemaps.com/?q="&B4,"Lat/Long: "&B4)) -> Lat/Long: 51.194333453788, 4.64222375753947
P20: Legenda
Q21: Personenwagen
Q22: Vracht
Q23: Motor
Q24: Obstakel / overig
Q25: Fout personenwagen
Q26: Fout Vracht
B38: Opmerking
B39: Het onderzoek vindt plaats gedurende coronamaatregelen.
B40: Dit heeft mogelijk een effect op de resultaten.
B42: Toelichting
B43: Pers = personenwagens op daarvoor bestemde
B44: openbare plaatsen
B45: Vracht = vrachtwagens op daarvoor bestemde
B46: parkeerplaatsen (middel- en zwaar vrachtverkeer)
B47: Motor = geparkeerde motoren op openbare plaatsen
B48: Obstakel / overig = obstakels of overige voertuigen
B49: geparkeerd op openbare plaatsen
B50: Fout pers = personenwagens die fout geparkeerd staan
B51: Fout vracht = vrachtwagens die fout geparkeerd staan
B52: E-wagen = geparkeerde elektrisch voertuig bij een
B53: elektrisch oplaadpunt
B54: Invalide = personenwagens en motoren op voor
B55: invalide personen bestemde parkeerplaats
B56: Gestalde fietsen = alle gestalde fietsen op de
B57: daarvoor bestemde parkeerplaatsen

Sheet 100.Tongeren
B2: PARKEERONDERZOEK | D2: CARPOOLPARKINGS EN P+R PARKINGS
B3: 100 | D3: =B8 & " - "& TEXT(VLOOKUP(B3,Coordinaten!$A$2:$G$101,7,0),"dddd d mmmm jjjj") -> Carpool parking Tongeren, Tongeren - dinsdag 16 november 2021
B4: =VLOOKUP(B3,Coordinaten!$A$2:$G$101,6,0) -> 50.7911487169427, 5.52935513780375
D5: BEZETTING | Q5: OPMERKINGEN
B7: Onderzoeksgebied | D7: Datum | E7: Geregistreerd tussen | F7: Pers | G7: Vracht | H7: Motor | I7: Obstakel / overig | J7: Fout pers | K7: Fout Vracht | L7: Totaal | M7: E-wagen plaats | N7: Invalidenplaats | O7: Gestalde fietsen | U7: =F7 -> Pers | V7: Vracht | W7: Motor | X7: Obstakel / overig | Y7: Fout pers | Z7: Fout Vracht
B8: =VLOOKUP(B3,Coordinaten!$A$2:$G$101,3,0)&", "&VLOOKUP(B3,Coordinaten!$A$2:$G$101,5,0) -> Carpool parking Tongeren, Tongeren | D8: 2021-11-16 | E8: 09:00 - 16:00u | F8: 49 | G8: 0 | H8: 0 | I8: 4 | J8: 0 | K8: 3 | L8: 56 | M8: 0 | N8: 0 | O8: 0 | Q8: Obstakel: 4 parkeerplaatsen voor bouwvakkers | S8: =D8 -> 2021-11-16 | T8: =E8 -> 09:00 - 16:00u | U8: =IF(F8=0,NA(),F8/$L8) -> 0.875 | V8: =IF(G8=0,NA(),G8/$L8) ->  | W8: =IF(H8=0,NA(),H8/$L8) ->  | X8: 0.07142857143 | Z8: 0.05357142857
B9: ="Nabij kruispunt: "&VLOOKUP(B3,Coordinaten!$A$2:$L$101,4,0) -> Nabij kruispunt: N79 / E313 (rotonde) | F9: 0.875 | G9: - | H9: - | I9: 0.07142857143 | J9: - | K9: 0.05357142857 | L9: 1 | Q9: 0 | S9: =D10 -> 2021-11-16 | T9: =E10 -> 19:00 - 02:00u | U9: =IF(F10=0,NA(),F10/$L10) -> 0.5 | V9: =IF(G10=0,NA(),G10/$L10) ->  | X9: 0.4 | Z9: 0.1
D10: 2021-11-16 | E10: 19:00 - 02:00u | F10: 5 | G10: 0 | H10: 0 | I10: 4 | J10: 0 | K10: 1 | L10: 10 | M10: 0 | N10: 0 | O10: 0 | Q10: Obstakel: 4 parkeerplaatsen voor bouwvakkers
B11: Meting | F11: 0.5 | G11: - | H11: - | I11: 0.4 | J11: - | K11: 0.1 | L11: 1 | Q11: 0
B12: ="Meetperiode: "&TEXT(VLOOKUP(B3,Coordinaten!$A$2:$G$101,7,0),"dddd d mmmm jjjj") -> Meetperiode: dinsdag 16 november 2021
B13: Methodiek: Parkeerdrukmeting met waarnemers
B14: In opdracht van: Vlaamse overheid
B15: Uitgevoerd door: Dufec
D16: VERDELING NAAR CATEGORIE
B17: Locatie
B18: =IF(B4="","",HYPERLINK("http://www.googlemaps.com/?q="&B4,"Lat/Long: "&B4)) -> Lat/Long: 50.7911487169427, 5.52935513780375
P20: Legenda
Q21: Personenwagen
Q22: Vracht
Q23: Motor
Q24: Obstakel / overig
Q25: Fout personenwagen
Q26: Fout Vracht
B38: Opmerking
B39: Het onderzoek vindt plaats gedurende coronamaatregelen.
B40: Dit heeft mogelijk een effect op de resultaten.
B42: Toelichting
B43: Pers = personenwagens op daarvoor bestemde
B44: openbare plaatsen
B45: Vracht = vrachtwagens op daarvoor bestemde
B46: parkeerplaatsen (middel- en zwaar vrachtverkeer)
B47: Motor = geparkeerde motoren op openbare plaatsen
B48: Obstakel / overig = obstakels of overige voertuigen
B49: geparkeerd op openbare plaatsen
B50: Fout pers = personenwagens die fout geparkeerd staan
B51: Fout vracht = vrachtwagens die fout geparkeerd staan
B52: E-wagen = geparkeerde elektrisch voertuig bij een
B53: elektrisch oplaadpunt
B54: Invalide = personenwagens en motoren op voor
B55: invalide personen bestemde parkeerplaats
B56: Gestalde fietsen = alle gestalde fietsen op de
B57: daarvoor bestemde parkeerplaatsen

Sheet Coordinaten (hidden)
A1: Locatie | B1: Naam1 | C1: naam2 | D1: Nabij kruispunt | E1: Plaats | F1: Coordinaten | G1: Datum | H1: URL | I1: 1e deel | J1: 3edeel | K1: 2edeel | L1: 4edeel | R1: ID
A2: 1 | B2: Kemzeke-Zuid | C2: Carpool parking Kemzeke-Zuid | D2: N49 / N403 | E2: Stekene | F2: 51.226907, 4.063425 | G2: 2021-11-09 | H2: https://api.mapbox.com/styles/v1/heinv/cj1c3sqp500di2rqmtxr5l2jn/static/4.063425,51.226907,13,0/400x400?access_token=pk.eyJ1IjoiaGVpbnYiLCJhIjoiNGEzYjEwYjY5MjM3YjQxNTZlZmY5MjE5YTViZWFiNjYifQ.dwA82fqv0CeVGxFMr30KIg | I2: https://api.mapbox.com/styles/v1/heinv/cj1c3sqp500di2rqmtxr5l2jn/static/ | J2: 51.226907 | K2: 4.063425 | L2: ,13,0/400x400?access_token=pk.eyJ1IjoiaGVpbnYiLCJhIjoiNGEzYjEwYjY5MjM3YjQxNTZlZmY5MjE5YTViZWFiNjYifQ.dwA82fqv0CeVGxFMr30KIg | R2: 1
A3: 2 | B3: Halle-Dassenveld | C3: Carpool parking Halle-Dassenveld | D3: N7 / A8 | E3: Halle | F3: 50.726346, 4.217220 | G3: 2021-11-23 | H3: https://api.mapbox.com/styles/v1/heinv/cj1c3sqp500di2rqmtxr5l2jn/static/4.217220,50.726346,13,0/400x400?access_token=pk.eyJ1IjoiaGVpbnYiLCJhIjoiNGEzYjEwYjY5MjM3YjQxNTZlZmY5MjE5YTViZWFiNjYifQ.dwA82fqv0CeVGxFMr30KIg | I3: https://api.mapbox.com/styles/v1/heinv/cj1c3sqp500di2rqmtxr5l2jn/static/ | J3: 50.726346 | K3: 4.217220 | L3: ,13,0/400x400?access_token=pk.eyJ1IjoiaGVpbnYiLCJhIjoiNGEzYjEwYjY5MjM3YjQxNTZlZmY5MjE5YTViZWFiNjYifQ.dwA82fqv0CeVGxFMr30KIg | R3: 2
A4: 3 | B4: Winksele | C4: Carpool parking Winksele | D4: Stuiverstraat / N2 | E4: Herent | F4: 50.885324, 4.672071 | G4: 2021-11-16 | H4: https://api.mapbox.com/styles/v1/heinv/cj1c3sqp500di2rqmtxr5l2jn/static/4.672071,50.885324,13,0/400x400?access_token=pk.eyJ1IjoiaGVpbnYiLCJhIjoiNGEzYjEwYjY5MjM3YjQxNTZlZmY5MjE5YTViZWFiNjYifQ.dwA82fqv0CeVGxFMr30KIg | I4: https://api.mapbox.com/styles/v1/heinv/cj1c3sqp500di2rqmtxr5l2jn/static/ | J4: 50.885324 | K4: 4.672071 | L4: ,13,0/400x400?access_token=pk.eyJ1IjoiaGVpbnYiLCJhIjoiNGEzYjEwYjY5MjM3YjQxNTZlZmY5MjE5YTViZWFiNjYifQ.dwA82fqv0CeVGxFMr30KIg | R4: 3
A5: 4 | B5: Herent | C5: Carpool parking Herent | D5: N26 / A2 | E5: Leuven | F5: 50.893869, 4.689409 | G5: 2021-11-16 | H5: https://api.mapbox.com/styles/v1/heinv/cj1c3sqp500di2rqmtxr5l2jn/static/4.689409,50.893869,13,0/400x400?access_token=pk.eyJ1IjoiaGVpbnYiLCJhIjoiNGEzYjEwYjY5MjM3YjQxNTZlZmY5MjE5YTViZWFiNjYifQ.dwA82fqv0CeVGxFMr30KIg | I5: https://api.mapbox.com/styles/v1/heinv/cj1c3sqp500di2rqmtxr5l2jn/static/ | J5: 50.893869 | K5: 4.689409 | L5: ,13,0/400x400?access_token=pk.eyJ1IjoiaGVpbnYiLCJhIjoiNGEzYjEwYjY5MjM3YjQxNTZlZmY5MjE5YTViZWFiNjYifQ.dwA82fqv0CeVGxFMr30KIg | R5: 4
A6: 5 | B6: Bekkevoort | C6: Carpool parking Bekkevoort | D6: N2 / A2 | E6: Bekkevoort | F6: 50.952219, 4.998683 | G6: 2021-11-16 | H6: https://api.mapbox.com/styles/v1/heinv/cj1c3sqp500di2rqmtxr5l2jn/static/4.998683,50.952219,13,0/400x400?access_token=pk.eyJ1IjoiaGVpbnYiLCJhIjoiNGEzYjEwYjY5MjM3YjQxNTZlZmY5MjE5YTViZWFiNjYifQ.dwA82fqv0CeVGxFMr30KIg | I6: https://api.mapbox.com/styles/v1/heinv/cj1c3sqp500di2rqmtxr5l2jn/static/ | J6: 50.952219 | K6: 4.998683 | L6: ,13,0/400x400?access_token=pk.eyJ1IjoiaGVpbnYiLCJhIjoiNGEzYjEwYjY5MjM3YjQxNTZlZmY5MjE5YTViZWFiNjYifQ.dwA82fqv0CeVGxFMr30KIg | R6: 5
A7: 6 | B7: Overijse | C7: Carpool parking Overijse | D7: Kerkeweg / N253 | E7: Overijse | F7: 50.755140, 4.526412 | G7: 2021-11-18 | H7: https://api.mapbox.com/styles/v1/heinv/cj1c3sqp500di2rqmtxr5l2jn/static/4.526412,50.755140,13,0/400x400?access_token=pk.eyJ1IjoiaGVpbnYiLCJhIjoiNGEzYjEwYjY5MjM3YjQxNTZlZmY5MjE5YTViZWFiNjYifQ.dwA82fqv0CeVGxFMr30KIg | I7: https://api.mapbox.com/styles/v1/heinv/cj1c3sqp500di2rqmtxr5l2jn/static/ | J7: 50.755140 | K7: 4.526412 | L7: ,13,0/400x400?access_token=pk.eyJ1IjoiaGVpbnYiLCJhIjoiNGEzYjEwYjY5MjM3YjQxNTZlZmY5MjE5YTViZWFiNjYifQ.dwA82fqv0CeVGxFMr30KIg | R7: 6
A8: 7 | B8: St. Michiels | C8: Carpool parking St. Michiels | D8: N31 / N32 | E8: Brugge | F8: 51.194190, 3.197624 | G8: 2021-11-09 | H8: https://api.mapbox.com/styles/v1/heinv/cj1c3sqp500di2rqmtxr5l2jn/static/3.197624,51.194190,13,0/400x400?access_token=pk.eyJ1IjoiaGVpbnYiLCJhIjoiNGEzYjEwYjY5MjM3YjQxNTZlZmY5MjE5YTViZWFiNjYifQ.dwA82fqv0CeVGxFMr30KIg | I8: https://api.mapbox.com/styles/v1/heinv/cj1c3sqp500di2rqmtxr5l2jn/static/ | J8: 51.194190 | K8: 3.197624 | L8: ,13,0/400x400?access_token=pk.eyJ1IjoiaGVpbnYiLCJhIjoiNGEzYjEwYjY5MjM3YjQxNTZlZmY5MjE5YTViZWFiNjYifQ.dwA82fqv0CeVGxFMr30KIg | R8: 7
A9: 8 | B9: Izegem | C9: Carpool parking Izegem | D9: N382c / Schaapbruggestraat | E9: Roeselare | F9: 50.940676, 3.160323 | G9: 2021-11-23 | H9: https://api.mapbox.com/styles/v1/heinv/cj1c3sqp500di2rqmtxr5l2jn/static/3.160323,50.940676,13,0/400x400?access_token=pk.eyJ1IjoiaGVpbnYiLCJhIjoiNGEzYjEwYjY5MjM3YjQxNTZlZmY5MjE5YTViZWFiNjYifQ.dwA82fqv0CeVGxFMr30KIg | I9: https://api.mapbox.com/styles/v1/heinv/cj1c3sqp500di2rqmtxr5l2jn/static/ | J9: 50.940676 | K9: 3.160323 | L9: ,13,0/400x400?access_token=pk.eyJ1IjoiaGVpbnYiLCJhIjoiNGEzYjEwYjY5MjM3YjQxNTZlZmY5MjE5YTViZWFiNjYifQ.dwA82fqv0CeVGxFMr30KIg | R9: 8
A10: 9 | B10: Torhout | C10: Carpool parking Torhout | D10: R34 / Keibergstraat | E10: Torhout | F10: 51.077896, 3.118743 | G10: 2021-11-23 | H10: https://api.mapbox.com/styles/v1/heinv/cj1c3sqp500di2rqmtxr5l2jn/static/3.118743,51.077896,13,0/400x400?access_token=pk.eyJ1IjoiaGVpbnYiLCJhIjoiNGEzYjEwYjY5MjM3YjQxNTZlZmY5MjE5YTViZWFiNjYifQ.dwA82fqv0CeVGxFMr30KIg | I10: https://api.mapbox.com/styles/v1/heinv/cj1c3sqp500di2rqmtxr5l2jn/static/ | J10: 51.077896 | K10: 3.118743 | L10: ,13,0/400x400?access_token=pk.eyJ1IjoiaGVpbnYiLCJhIjoiNGEzYjEwYjY5MjM3YjQxNTZlZmY5MjE5YTViZWFiNjYifQ.dwA82fqv0CeVGxFMr30KIg | R10: 9
A11: 10 | B11: Houthalen | C11: Carpool parking Houthalen | D11: N715 / A2 | E11: Houthalen-Helchteren | F11: 51.015552, 5.371400 | G11: 2021-11-16 | H11: https://api.mapbox.com/styles/v1/heinv/cj1c3sqp500di2rqmtxr5l2jn/static/5.371400,51.015552,13,0/400x400?access_token=pk.eyJ1IjoiaGVpbnYiLCJhIjoiNGEzYjEwYjY5MjM3YjQxNTZlZmY5MjE5YTViZWFiNjYifQ.dwA82fqv0CeVGxFMr30KIg | I11: https://api.mapbox.com/styles/v1/heinv/cj1c3sqp500di2rqmtxr5l2jn/static/ | J11: 51.015552 | K11: 5.371400 | L11: ,13,0/400x400?access_token=pk.eyJ1IjoiaGVpbnYiLCJhIjoiNGEzYjEwYjY5MjM3YjQxNTZlZmY5MjE5YTViZWFiNjYifQ.dwA82fqv0CeVGxFMr30KIg | R11: 10
A12: 11 | B12: Diepenbeek | C12: Carpool parking Diepenbeek | D12: N76 / A13 | E12: Diepenbeek | F12: 50.894087, 5.417912 | G12: 2021-11-16 | H12: https://api.mapbox.com/styles/v1/heinv/cj1c3sqp500di2rqmtxr5l2jn/static/5.417912,50.894087,13,0/400x400?access_token=pk.eyJ1IjoiaGVpbnYiLCJhIjoiNGEzYjEwYjY5MjM3YjQxNTZlZmY5MjE5YTViZWFiNjYifQ.dwA82fqv0CeVGxFMr30KIg | I12: https://api.mapbox.com/styles/v1/heinv/cj1c3sqp500di2rqmtxr5l2jn/static/ | J12: 50.894087 | K12: 5.417912 | L12: ,13,0/400x400?access_token=pk.eyJ1IjoiaGVpbnYiLCJhIjoiNGEzYjEwYjY5MjM3YjQxNTZlZmY5MjE5YTViZWFiNjYifQ.dwA82fqv0CeVGxFMr30KIg | R12: 11
A13: 12 | B13: Wommelgem-Zuid | C13: P+R parking Wommelgem-Zuid | D13: R11 / A13 | E13: Wommelgem | F13: 51.210463, 4.493799 | G13: 2021-11-18 | H13: https://api.mapbox.com/styles/v1/heinv/cj1c3sqp500di2rqmtxr5l2jn/static/4.493799,51.210463,13,0/400x400?access_token=pk.eyJ1IjoiaGVpbnYiLCJhIjoiNGEzYjEwYjY5MjM3YjQxNTZlZmY5MjE5YTViZWFiNjYifQ.dwA82fqv0CeVGxFMr30KIg | I13: https://api.mapbox.com/styles/v1/heinv/cj1c3sqp500di2rqmtxr5l2jn/static/ | J13: 51.210463 | K13: 4.493799 | L13: ,13,0/400x400?access_token=pk.eyJ1IjoiaGVpbnYiLCJhIjoiNGEzYjEwYjY5MjM3YjQxNTZlZmY5MjE5YTViZWFiNjYifQ.dwA82fqv0CeVGxFMr30KIg | R13: 12
A14: 13 | B14: Minitaria | C14: Carpool parking Minitaria | D14: N3 / R27 | E14: Tienen | F14: 50.799170, 4.970858 | G14: 2021-11-16 | H14: https://api.mapbox.com/styles/v1/heinv/cj1c3sqp500di2rqmtxr5l2jn/static/4.970858,50.799170,13,0/400x400?access_token=pk.eyJ1IjoiaGVpbnYiLCJhIjoiNGEzYjEwYjY5MjM3YjQxNTZlZmY5MjE5YTViZWFiNjYifQ.dwA82fqv0CeVGxFMr30KIg | I14: https://api.mapbox.com/styles/v1/heinv/cj1c3sqp500di2rqmtxr5l2jn/static/ | J14: 50.799170 | K14: 4.970858 | L14: ,13,0/400x400?access_token=pk.eyJ1IjoiaGVpbnYiLCJhIjoiNGEzYjEwYjY5MjM3YjQxNTZlZmY5MjE5YTViZWFiNjYifQ.dwA82fqv0CeVGxFMr30KIg | R14: 13
A15: 14 | B15: Hakendover | C15: Carpool parking Hakendover | D15: N3 / R27 | E15: Tienen | F15: 50.798982, 4.973467 | G15: 2021-11-16 | H15: https://api.mapbox.com/styles/v1/heinv/cj1c3sqp500di2rqmtxr5l2jn/static/4.973467,50.798982,13,0/400x400?access_token=pk.eyJ1IjoiaGVpbnYiLCJhIjoiNGEzYjEwYjY5MjM3YjQxNTZlZmY5MjE5YTViZWFiNjYifQ.dwA82fqv0CeVGxFMr30KIg | I15: https://api.mapbox.com/styles/v1/heinv/cj1c3sqp500di2rqmtxr5l2jn/static/ | J15: 50.798982 | K15: 4.973467 | L15: ,13,0/400x400?access_token=pk.eyJ1IjoiaGVpbnYiLCJhIjoiNGEzYjEwYjY5MjM3YjQxNTZlZmY5MjE5YTViZWFiNjYifQ.dwA82fqv0CeVGxFMr30KIg | R15: 14
A16: 15 | B16: Kontich | C16: Carpool parking Kontich | D16: N171 / A1 | E16: Kontich | F16: 51.126274, 4.432122 | G16: 2021-11-18 | H16: https://api.mapbox.com/styles/v1/heinv/cj1c3sqp500di2rqmtxr5l2jn/static/4.432122,51.126274,13,0/400x400?access_token=pk.eyJ1IjoiaGVpbnYiLCJhIjoiNGEzYjEwYjY5MjM3YjQxNTZlZmY5MjE5YTViZWFiNjYifQ.dwA82fqv0CeVGxFMr30KIg | I16: https://api.mapbox.com/styles/v1/heinv/cj1c3sqp500di2rqmtxr5l2jn/static/ | J16: 51.126274 | K16: 4.432122 | L16: ,13,0/400x400?access_token=pk.eyJ1IjoiaGVpbnYiLCJhIjoiNGEzYjEwYjY5MjM3YjQxNTZlZmY5MjE5YTViZWFiNjYifQ.dwA82fqv0CeVGxFMr30KIg | R16: 15
A17: 16 | B17: Breendonk (Puurs) | C17: Carpool parking Breendonk (Puurs) | D17: N16 / N183 | E17: Puurs | F17: 51.060329, 4.334348 | G17: 2021-11-18 | H17: https://api.mapbox.com/styles/v1/heinv/cj1c3sqp500di2rqmtxr5l2jn/static/4.334348,51.060329,13,0/400x400?access_token=pk.eyJ1IjoiaGVpbnYiLCJhIjoiNGEzYjEwYjY5MjM3YjQxNTZlZmY5MjE5YTViZWFiNjYifQ.dwA82fqv0CeVGxFMr30KIg | I17: https://api.mapbox.com/styles/v1/heinv/cj1c3sqp500di2rqmtxr5l2jn/static/ | J17: 51.060329 | K17: 4.334348 | L17: ,13,0/400x400?access_token=pk.eyJ1IjoiaGVpbnYiLCJhIjoiNGEzYjEwYjY5MjM3YjQxNTZlZmY5MjE5YTViZWFiNjYifQ.dwA82fqv0CeVGxFMr30KIg | R17: 16
A18: 17 | B18: Hasselt-Zuid | C18: Carpool parking Hasselt-Zuid | D18: N80 / A13 | E18: Hasselt | F18: 50.915675, 5.322639 | G18: 2021-11-16 | H18: https://api.mapbox.com/styles/v1/heinv/cj1c3sqp500di2rqmtxr5l2jn/static/5.322639,50.915675,13,0/400x400?access_token=pk.eyJ1IjoiaGVpbnYiLCJhIjoiNGEzYjEwYjY5MjM3YjQxNTZlZmY5MjE5YTViZWFiNjYifQ.dwA82fqv0CeVGxFMr30KIg | I18: https://api.mapbox.com/styles/v1/heinv/cj1c3sqp500di2rqmtxr5l2jn/static/ | J18: 50.915675 | K18: 5.322639 | L18: ,13,0/400x400?access_token=pk.eyJ1IjoiaGVpbnYiLCJhIjoiNGEzYjEwYjY5MjM3YjQxNTZlZmY5MjE5YTViZWFiNjYifQ.dwA82fqv0CeVGxFMr30KIg | R18: 17
A19: 18 | B19: Herentals-West | C19: Carpool parking Herentals-West | D19: N13 / A13 | E19: Grobbendonk | F19: 51.175093, 4.761781 | G19: 2021-11-18 | H19: https://api.mapbox.com/styles/v1/heinv/cj1c3sqp500di2rqmtxr5l2jn/static/4.761781,51.175093,13,0/400x400?access_token=pk.eyJ1IjoiaGVpbnYiLCJhIjoiNGEzYjEwYjY5MjM3YjQxNTZlZmY5MjE5YTViZWFiNjYifQ.dwA82fqv0CeVGxFMr30KIg | I19: https://api.mapbox.com/styles/v1/heinv/cj1c3sqp500di2rqmtxr5l2jn/static/ | J19: 51.175093 | K19: 4.761781 | L19: ,13,0/400x400?access_token=pk.eyJ1IjoiaGVpbnYiLCJhIjoiNGEzYjEwYjY5MjM3YjQxNTZlZmY5MjE5YTViZWFiNjYifQ.dwA82fqv0CeVGxFMr30KIg | R19: 18
A20: 19 | B20: Rumst | C20: Carpool parking Rumst | D20: N1c / A1 | E20: Rumst | F20: 51.085447, 4.444751 | G20: 2021-11-18 | H20: https://api.mapbox.com/styles/v1/heinv/cj1c3sqp500di2rqmtxr5l2jn/static/4.444751,51.085447,13,0/400x400?access_token=pk.eyJ1IjoiaGVpbnYiLCJhIjoiNGEzYjEwYjY5MjM3YjQxNTZlZmY5MjE5YTViZWFiNjYifQ.dwA82fqv0CeVGxFMr30KIg | I20: https://api.mapbox.com/styles/v1/heinv/cj1c3sqp500di2rqmtxr5l2jn/static/ | J20: 51.085447 | K20: 4.444751 | L20: ,13,0/400x400?access_token=pk.eyJ1IjoiaGVpbnYiLCJhIjoiNGEzYjEwYjY5MjM3YjQxNTZlZmY5MjE5YTViZWFiNjYifQ.dwA82fqv0CeVGxFMr30KIg | R20: 19
A21: 20 | B21: Paal | C21: Carpool parking Paal | D21: N29 / A13 | E21: Beringen | F21: 51.043187, 5.186305 | G21: 2021-11-18 | H21: https://api.mapbox.com/styles/v1/heinv/cj1c3sqp500di2rqmtxr5l2jn/static/5.186305,51.043187,13,0/400x400?access_token=pk.eyJ1IjoiaGVpbnYiLCJhIjoiNGEzYjEwYjY5MjM3YjQxNTZlZmY5MjE5YTViZWFiNjYifQ.dwA82fqv0CeVGxFMr30KIg | I21: https://api.mapbox.com/styles/v1/heinv/cj1c3sqp500di2rqmtxr5l2jn/static/ | J21: 51.043187 | K21: 5.186305 | L21: ,13,0/400x400?access_token=pk.eyJ1IjoiaGVpbnYiLCJhIjoiNGEzYjEwYjY5MjM3YjQxNTZlZmY5MjE5YTViZWFiNjYifQ.dwA82fqv0CeVGxFMr30KIg | R21: 20
